Workbook

Sheet Sample Report (hidden)
A2: Date
A3: Hen
A4: Program
A5: Start at 999999
A6: Sequence component 1 | B6: Time 1 | C6: Seqeunce Component 2 | D6: Time 2 | E6: Seqeunce Component 3 | F6: Time 3 | G6: Correct 0 = No 1=Yes | J6: Seqeunce | K6: Time
A7: 12 | B7: 7 | C7: 12 | D7: 42 | E7: 13 | F7: 18 | G7: if 77 new line, if 31 or 41 = yes new line on 77, | J7: =string of Seqeunce compponent 1, 2 & 3 | K7: =time 3
A8: This continues until ther is a 1 on its own to indicate start of summary data
J9: 10-19 =1
A10: Summary Data | J10: 20-29 =2
A11: Correct | B11: Incorrect | C11: Rft | D11: total | E11: Av Correct | F11: Av Incorrect | G11: Percent correct | H11: Time | J11: in this example the seqeunce would be 111
A12: 40 | B12: 33 | C12: 40 | D12: 73 | E12: 23.95 | F12: 15 | G12: 54 | H12: 806

Sheet Summary
A2: Day | B2: Date | C2: Average Response Rate | D2: Target % | E2: RF for non correct sequence | F2: U Value | K2: Block 1 | L2: Block 2 | M2: Block 3 | N2: Block 4 | O2: Block 5 | P2: Block 6
A3: 1 | B3: ='!L831C50.056'!B2:C2 -> <date> | C3: =('!L831C50.056'!H172/60)/'!L831C50.056'!Q3 -> 0 | D3: ='!L831C50.056'!N28/'!L831C50.056'!Q3 -> 0 | E3: =SUM('!L831C50.056'!L28:Q28)/'!L831C50.056'!Q3 -> 7.692771084 | F3: ='!L831C50.056'!Q24 -> 0.1888003172 | J3: Average Response Rate | K3: =AVERAGE(C3:C7) -> 1.698655558 | L3: =AVERAGE(C8:C12) -> 2.029454985 | M3: =AVERAGE(C13:C17) -> 2.020407293 | N3: =AVERAGE(C18:C22) -> 1.596332569 | O3: =AVERAGE(C23:C27) -> 1.59579635 | P3: =AVERAGE(C28:C32) -> 1.626400115
A4: 2 | B4: ='!L901B40.056'!B2:C2 -> <date> | C4: =('!L901B40.056'!H179/60)/'!L901B40.056'!Q3 -> 2.30327553 | D4: ='!L901B40.056'!N28/'!L901B40.056'!Q3 -> 0 | E4: =SUM('!L901B40.056'!L28:Q28)/'!L901B40.056'!Q3 -> 6.76300578 | F4: ='!L901B40.056'!Q24 -> 0.2383861763 | J4: Target % | K4: =AVERAGE(D3:D7) -> 0 | L4: =AVERAGE(D8:D12) -> 0.001092896175 | M4: =AVERAGE(D13:D17) -> 0.001020408163 | N4: =AVERAGE(D18:D22) -> 0 | O4: =AVERAGE(D23:D27) -> 0 | P4: =AVERAGE(D28:D32) -> 0
A5: 3 | B5: ='!L902D10.056'!B2:C2 -> <date> | C5: =('!L902D10.056'!H195/60)/'!L902D10.056'!Q3 -> 2.110141093 | D5: ='!L902D10.056'!N28/'!L902D10.056'!Q3 -> 0 | E5: =SUM('!L902D10.056'!L28:Q28)/'!L902D10.056'!Q3 -> 6.211640212 | F5: ='!L902D10.056'!Q24 -> 0.1746228805 | J5: CCRF | K5: =AVERAGE(E3:E7) -> 6.546934485 | L5: =AVERAGE(E8:E12) -> 5.984191105 | M5: =AVERAGE(E13:E17) -> 5.958098112 | N5: =AVERAGE(E18:E22) -> 5.922536913 | O5: =AVERAGE(E23:E27) -> 5.905203257 | P5: =AVERAGE(E28:E32) -> 5.942176798
A6: 4 | B6: ='!L903B00.056'!B2:C2 -> <date> | C6: =('!L903B00.056'!H197/60)/'!L903B00.056'!Q3 -> 2.093542757 | D6: ='!L903B00.056'!N28/'!L903B00.056'!Q3 -> 0 | E6: =SUM('!L903B00.056'!L28:Q28)/'!L903B00.056'!Q3 -> 6.151832461 | F6: ='!L903B00.056'!Q24 -> 0.05964477761 | J6: U Value | K6: =AVERAGE(F3:F7) -> 0.1467874254 | L6: =AVERAGE(F8:F12) -> 0.04398241042 | M6: =AVERAGE(F13:F17) -> 0.03496620809 | N6: =AVERAGE(F18:F22) -> 0.04766560009 | O6: =AVERAGE(F23:F27) -> 0.01588939575 | P6: =AVERAGE(F28:F32) -> 0.01026254657
A7: 5 | B7: ='!L904B40.056'!B2:C2 -> <date> | C7: =('!L904B40.056'!H207/60)/'!L904B40.056'!Q3 -> 1.986318408 | D7: ='!L904B40.056'!N28/'!L904B40.056'!Q3 -> 0 | E7: =SUM('!L904B40.056'!L28:Q28)/'!L904B40.056'!Q3 -> 5.915422886 | F7: ='!L904B40.056'!Q24 -> 0.07248297554
A8: 6 | B8: ='!L905A40.056'!B2:C2 -> <date> | C8: =('!L905A40.056'!H211/60)/'!L905A40.056'!Q3 -> 1.945691057 | D8: ='!L905A40.056'!N28/'!L905A40.056'!Q3 -> 0 | E8: =SUM('!L905A40.056'!L28:Q28)/'!L905A40.056'!Q3 -> 5.751219512 | F8: ='!L905A40.056'!Q24 -> 0.01434282395
A9: 7 | B9: ='!L906C20.056'!B2:C2 -> <date> | C9: =('!L906C20.056'!H207/60)/'!L906C20.056'!Q3 -> 1.983665008 | D9: ='!L906C20.056'!N28/'!L906C20.056'!Q3 -> 0 | E9: =SUM('!L906C20.056'!L28:Q28)/'!L906C20.056'!Q3 -> 5.860696517 | F9: ='!L906C20.056'!Q24 -> 0.03230271048 | G9: =K3 -> 1.698655558 | H9: =L3 -> 2.029454985 | I9: =M3 -> 2.020407293 | J9: =N3 -> 1.596332569 | K9: =O3 -> 1.59579635 | L9: =P3 -> 1.626400115 | M9: =K4 -> 0 | N9: =L4 -> 0.001092896175 | O9: =M4 -> 0.001020408163 | P9: =N4 -> 0 | Q9: =O4 -> 0 | R9: =P4 -> 0 | S9: =K6 -> 0.1467874254 | T9: =L6 -> 0.04398241042 | U9: =M6 -> 0.03496620809 | V9: =N6 -> 0.04766560009 | W9: =O6 -> 0.01588939575 | X9: =P6 -> 0.01026254657
A10: 8 | B10: ='!L907B30.056'!B2:C2 -> <date> | C10: =('!L907B30.056'!H198/60)/'!L907B30.056'!Q3 -> 2.078732639 | D10: ='!L907B30.056'!N28/'!L907B30.056'!Q3 -> 0 | E10: =SUM('!L907B30.056'!L28:Q28)/'!L907B30.056'!Q3 -> 6.119791667 | F10: ='!L907B30.056'!Q24 -> 0.05192662841
A11: 9 | B11: ='!L908920.056'!B2:C2 -> <date> | C11: =('!L908920.056'!H189/60)/'!L908920.056'!Q3 -> 2.179872495 | D11: ='!L908920.056'!N28/'!L908920.056'!Q3 -> 0.005464480874 | E11: =SUM('!L908920.056'!L28:Q28)/'!L908920.056'!Q3 -> 6.409836066 | F11: ='!L908920.056'!Q24 -> 0.08810339587
A12: 10 | B12: ='!L909D30.056'!B2:C2 -> <date> | C12: =('!L909D30.056'!H210/60)/'!L909D30.056'!Q3 -> 1.959313725 | D12: ='!L909D30.056'!N28/'!L909D30.056'!Q3 -> 0 | E12: =SUM('!L909D30.056'!L28:Q28)/'!L909D30.056'!Q3 -> 5.779411765 | F12: ='!L909D30.056'!Q24 -> 0.03323649337
A13: 11 | B13: ='!L910B20.056'!B2:C2 -> <date> | C13: =('!L910B20.056'!H206/60)/'!L910B20.056'!Q3 -> 1.9995 | D13: ='!L910B20.056'!N28/'!L910B20.056'!Q3 -> 0 | E13: =SUM('!L910B20.056'!L28:Q28)/'!L910B20.056'!Q3 -> 5.89 | F13: ='!L910B20.056'!Q24 -> 0.01780974736
A14: 12 | B14: ='!L911D10.056'!B2:C2 -> <date> | C14: =('!L911D10.056'!H203/60)/'!L911D10.056'!Q3 -> 2.025211506 | D14: ='!L911D10.056'!N28/'!L911D10.056'!Q3 -> 0 | E14: =SUM('!L911D10.056'!L28:Q28)/'!L911D10.056'!Q3 -> 5.974619289 | F14: ='!L911D10.056'!Q24 -> 0.03080515513
A15: 13 | B15: ='!L912C00.056'!B2:C2 -> <date> | C15: =('!L912C00.056'!H201/60)/'!L912C00.056'!Q3 -> 2.031632653 | D15: ='!L912C00.056'!N28/'!L912C00.056'!Q3 -> 0.005102040816 | E15: =SUM('!L912C00.056'!L28:Q28)/'!L912C00.056'!Q3 -> 6.005102041 | F15: ='!L912C00.056'!Q24 -> 0.03651376506
A16: 14 | B16: ='!L913A50.056'!B2:C2 -> <date> | C16: =('!L913A50.056'!H201/60)/'!L913A50.056'!Q3 -> 2.051025641 | D16: ='!L913A50.056'!N28/'!L913A50.056'!Q3 -> 0 | E16: =SUM('!L913A50.056'!L28:Q28)/'!L913A50.056'!Q3 -> 6.030769231 | F16: ='!L913A50.056'!Q24 -> 0.06135161267
A17: 15 | B17: ='!L914B50.056'!B2:C2 -> <date> | C17: =('!L914B50.056'!H206/60)/'!L914B50.056'!Q3 -> 1.994666667 | D17: ='!L914B50.056'!N28/'!L914B50.056'!Q3 -> 0 | E17: =SUM('!L914B50.056'!L28:Q28)/'!L914B50.056'!Q3 -> 5.89 | F17: ='!L914B50.056'!Q24 -> 0.0283507602
A18: 16 | B18: ='!L915A50.056'!B2:C2 -> <date> | C18: =('!L915A50.056'!H200/60)/'!L915A50.056'!Q3 -> 0 | D18: ='!L915A50.056'!N28/'!L915A50.056'!Q3 -> 0 | E18: =SUM('!L915A50.056'!L28:Q28)/'!L915A50.056'!Q3 -> 6.06185567 | F18: ='!L915A50.056'!Q24 -> 0.07289968987
A19: 17 | B19: ='!L916A50.056'!B2:C2 -> <date> | C19: =('!L916A50.056'!H208/60)/'!L916A50.056'!Q3 -> 1.98019802 | D19: ='!L916A50.056'!N28/'!L916A50.056'!Q3 -> 0 | E19: =SUM('!L916A50.056'!L28:Q28)/'!L916A50.056'!Q3 -> 5.831683168 | F19: ='!L916A50.056'!Q24 -> 0.06362894604
A20: 18 | B20: ='!L917B00.056'!B2:C2 -> <date> | C20: =('!L917B00.056'!H205/60)/'!L917B00.056'!Q3 -> 1.991833333 | D20: ='!L917B00.056'!N28/'!L917B00.056'!Q3 -> 0 | E20: =SUM('!L917B00.056'!L28:Q28)/'!L917B00.056'!Q3 -> 5.89 | F20: ='!L917B00.056'!Q24 -> 0.04319603293
A21: 19 | B21: ='!L918A20.056'!B2:C2 -> <date> | C21: =('!L918A20.056'!H205/60)/'!L918A20.056'!Q3 -> 2.002177554 | D21: ='!L918A20.056'!N28/'!L918A20.056'!Q3 -> 0 | E21: =SUM('!L918A20.056'!L28:Q28)/'!L918A20.056'!Q3 -> 5.914572864 | F21: ='!L918A20.056'!Q24 -> 0.01062329101
A22: 20 | B22: ='!L919B30.056'!B2:C2 -> <date> | C22: =('!L919B30.056'!H205/60)/'!L919B30.056'!Q3 -> 2.007453936 | D22: ='!L919B30.056'!N28/'!L919B30.056'!Q3 -> 0 | E22: =SUM('!L919B30.056'!L28:Q28)/'!L919B30.056'!Q3 -> 5.914572864 | F22: ='!L919B30.056'!Q24 -> 0.0479800406
A23: 21 | B23: ='!L920B40.056'!B2:C2 -> <date> | C23: =('!L920B40.056'!H207/60)/'!L920B40.056'!Q3 -> 1.982587065 | D23: ='!L920B40.056'!N28/'!L920B40.056'!Q3 -> 0 | E23: =SUM('!L920B40.056'!L28:Q28)/'!L920B40.056'!Q3 -> 5.860696517 | F23: ='!L920B40.056'!Q24 -> 0.03279357885
A24: 22 | B24: ='!L921C10.056'!B2:C2 -> <date> | C24: =('!L921C10.056'!H203/60)/'!L921C10.056'!Q3 -> 0 | D24: ='!L921C10.056'!N28/'!L921C10.056'!Q3 -> 0 | E24: =SUM('!L921C10.056'!L28:Q28)/'!L921C10.056'!Q3 -> 5.974619289 | F24: ='!L921C10.056'!Q24 -> 0.01818373737
A25: 23 | B25: ='!L922C40.056'!B2:C2 -> <date> | C25: =('!L922C40.056'!H205/60)/'!L922C40.056'!Q3 -> 2.004941374 | D25: ='!L922C40.056'!N28/'!L922C40.056'!Q3 -> 0 | E25: =SUM('!L922C40.056'!L28:Q28)/'!L922C40.056'!Q3 -> 5.914572864 | F25: ='!L922C40.056'!Q24 -> 0.01658574989
A26: 24 | B26: ='!L923B50.056'!B2:C2 -> <date> | C26: =('!L923B50.056'!H204/60)/'!L923B50.056'!Q3 -> 2.014225589 | D26: ='!L923B50.056'!N28/'!L923B50.056'!Q3 -> 0 | E26: =SUM('!L923B50.056'!L28:Q28)/'!L923B50.056'!Q3 -> 5.944444444 | F26: ='!L923B50.056'!Q24 -> 0.006003128981
A27: 25 | B27: ='!L924C20.056'!B2:C2 -> <date> | C27: =('!L924C20.056'!H208/60)/'!L924C20.056'!Q3 -> 1.977227723 | D27: ='!L924C20.056'!N28/'!L924C20.056'!Q3 -> 0 | E27: =SUM('!L924C20.056'!L28:Q28)/'!L924C20.056'!Q3 -> 5.831683168 | F27: ='!L924C20.056'!Q24 -> 0.005880783678
A28: 26 | B28: ='!L925A10.056'!B2:C2 -> <date> | C28: =('!L925A10.056'!H205/60)/'!L925A10.056'!Q3 -> 2.007872697 | D28: ='!L925A10.056'!N28/'!L925A10.056'!Q3 -> 0 | E28: =SUM('!L925A10.056'!L28:Q28)/'!L925A10.056'!Q3 -> 5.914572864 | F28: ='!L925A10.056'!Q24 -> 0.01790180924
A29: 27 | B29: ='!L926A50.056'!B2:C2 -> <date> | C29: =('!L926A50.056'!H204/60)/'!L926A50.056'!Q3 -> 2.013131313 | D29: ='!L926A50.056'!N28/'!L926A50.056'!Q3 -> 0 | E29: =SUM('!L926A50.056'!L28:Q28)/'!L926A50.056'!Q3 -> 5.944444444 | F29: ='!L926A50.056'!Q24 -> 0.006003128981
A30: 28 | B30: ='!L927B20.056'!B2:C2 -> <date> | C30: =('!L927B20.056'!H212/60)/'!L927B20.056'!Q3 -> 0 | D30: ='!L927B20.056'!N28/'!L927B20.056'!Q3 -> 0 | E30: =SUM('!L927B20.056'!L28:Q28)/'!L927B20.056'!Q3 -> 5.72815534 | F30: ='!L927B20.056'!Q24 -> 0
A31: 29 | B31: ='!L928830.056'!B2:C2 -> <date> | C31: =('!L928830.056'!H200/60)/'!L928830.056'!Q3 -> 2.058505155 | D31: ='!L928830.056'!N28/'!L928830.056'!Q3 -> 0 | E31: =SUM('!L928830.056'!L28:Q28)/'!L928830.056'!Q3 -> 6.06185567 | F31: ='!L928830.056'!Q24 -> 0.01225617097
A32: 30 | B32: ='!L929920.056'!B2:C2 -> <date> | C32: =('!L929920.056'!H200/60)/'!L929920.056'!Q3 -> 2.052491409 | D32: ='!L929920.056'!N28/'!L929920.056'!Q3 -> 0 | E32: =SUM('!L929920.056'!L28:Q28)/'!L929920.056'!Q3 -> 6.06185567 | F32: ='!L929920.056'!Q24 -> 0.01515162366

Sheet Start
F1: Use Folder 51 | H1: Auto Clean Up | J1: Correct sequence
F2: FALSE | H2: TRUE | J2: 2212
A4: Working with Folder | G4: Process All/Or Pick A number: ALL or an integer
A5: E:\Hen Data\Raw Data\56\Phase 3 ANY\ | G5: ALL
A6: Filenames:
A7: !L831C50.056 | G7: Paint Cells
A8: !L901B40.056 | G8: FALSE
A9: !L902D10.056
A10: !L903B00.056
A11: !L904B40.056
A12: !L905A40.056
A13: !L906C20.056
A14: !L907B30.056
A15: !L908920.056
A16: !L909D30.056
A17: !L910B20.056
A18: !L911D10.056
A19: !L912C00.056
A20: !L913A50.056
A21: !L914B50.056
A22: !L915A50.056
A23: !L916A50.056
A24: !L917B00.056
A25: !L918A20.056
A26: !L919B30.056
A27: !L920B40.056
A28: !L921C10.056
A29: !L923B50.056
A30: !L922C40.056
A31: !L924C20.056
A32: !L925A10.056
A33: !L926A50.056
A34: !L927B20.056
A35: !L928830.056
A36: !L929920.056

Sheet !L831C50.056
A1: Report for:!L831C50.056
A2: Date: | B2: <date>
A3: Hen: | B3: <hen> | F3: Correct Sequence | G3: =Start!J2 -> 2212 | P3: Total Sequences in Data | Q3: =4994-COUNTBLANK(L7:L5000) -> 166 | V3: Total Sequences in Block Data | W3: =COUNTA(L7:L34) -> 28 | AA3: Total Sequences in Block Data | AB3: =COUNTA(L35:L61) -> 27 | AF3: Total Sequences in Block Data | AG3: =COUNTA(L62:L89) -> 28 | AK3: Total Sequences in Block Data | AL3: =COUNTA(L90:L117) -> 28 | AP3: Total Sequences in Block Data | AQ3: =COUNTA(L118:L144) -> 27 | AU3: Total Sequences in Block Data | AV3: =COUNTA(L145:L172) -> 28
P4: Total Sequences in Summary | Q4: =SUM(O7:O22) -> 165 | V4: Total Sequences in Block Summary | W4: =SUM(U7:U22) -> 28 | AA4: Total Sequences in Block Summary | AB4: =SUM(Z7:Z22) -> 27 | AF4: Total Sequences in Block Summary | AG4: =SUM(AE7:AE22) -> 28 | AK4: Total Sequences in Block Summary | AL4: =SUM(AJ7:AJ22) -> 28 | AP4: Total Sequences in Block Summary | AQ4: =SUM(AO7:AO22) -> 27 | AU4: Total Sequences in Block Summary | AV4: =SUM(AT7:AT22) -> 27
T5: Block 1 | Y5: Block 2 | AD5: Block 3 | AI5: Block 4 | AN5: Block 5 | AS5: Block 6
A6: Sequence Component 1 | B6: Time 1 | C6: Sequence Component 2 | D6: Time 2 | E6: Sequence Component 3 | F6: Time 3 | G6: Sequence Component 4 | H6: Time 4 | I6: Sequence Component 5 | J6: Time 5 | K6: Correct? 0=No 1=Yes | L6: Sequence | N6: Frequency | P6: Relative Frequency | Q6: Variability | T6: Frequency | V6: Relative Frequency | W6: Variability | Y6: Frequency | AA6: Relative Frequency | AB6: Variability | AD6: Frequency | AF6: Relative Frequency | AG6: Variability | AI6: Frequency | AK6: Relative Frequency | AL6: Variability | AN6: Frequency | AP6: Relative Frequency | AQ6: Variability | AS6: Frequency | AU6: Relative Frequency | AV6: Variability
A7: 12 | B7: 15 | C7: 23 | D7: 26 | E7: 13 | F7: 65 | G7: 23 | H7: 75 | K7: 0 | L7: 1212 | N7: 1111 | O7: =COUNTIF($L$7:$L$500,N7) -> 0 | P7: =O7/$Q$4 -> 0 | Q7: =IF(P7=0,0,(P7*((LOG(P7))/LOG(2)))) -> 0 | T7: =N7 -> 1111 | U7: =COUNTIF(L7:L34,T7) -> 0 | V7: =U7/(W4-U20) -> 0 | W7: =IF(V7=0,0,(V7*((LOG(V7))/LOG(2)))) -> 0 | Y7: =N7 -> 1111 | Z7: =COUNTIF(L35:L61,Y7) -> 0 | AA7: =Z7/(AB4-Z20) -> 0 | AB7: =IF(AA7=0,0,(AA7*((LOG(AA7))/LOG(2)))) -> 0 | AD7: =N7 -> 1111 | AE7: =COUNTIF(L62:L89,AD7) -> 0 | AF7: =AE7/(AG4-AE20) -> 0 | AG7: =IF(AF7=0,0,(AF7*((LOG(AF7))/LOG(2)))) -> 0 | AI7: =N7 -> 1111 | AJ7: =COUNTIF(L90:L117,AI7) -> 0 | AK7: =AJ7/(AL4-AJ20) -> 0 | AL7: =IF(AK7=0,0,(AK7*((LOG(AK7))/LOG(2)))) -> 0 | AN7: =N7 -> 1111 | AO7: =COUNTIF(L118:L144,AN7) -> 0 | AP7: =AO7/(AQ4-AO20) -> 0 | AQ7: =IF(AP7=0,0,(AP7*((LOG(AP7))/LOG(2)))) -> 0 | AS7: =N7 -> 1111 | AT7: =COUNTIF(L145:L172,AS7) -> 0 | AU7: =AT7/(AV4-AT20) -> 0 | AV7: =IF(AU7=0,0,(AU7*((LOG(AU7))/LOG(2)))) -> 0
A8: 12 | B8: 178 | C8: 14 | D8: 184 | E8: 24 | F8: 205 | G8: 23 | H8: 251 | K8: 0 | L8: 1122 | N8: 1112 | O8: =COUNTIF($L$7:$L$500,N8) -> 4 | P8: =O8/$Q$4 -> 0.02424242424 | Q8: =IF(P8=0,0,(P8*((LOG(P8))/LOG(2)))) -> -0.1300926597 | T8: =N8 -> 1112 | U8: =COUNTIF(L7:L34,T8) -> 0 | V8: =U8/(W4-U20) -> 0 | W8: =IF(V8=0,0,(V8*((LOG(V8))/LOG(2)))) -> 0 | Y8: =N8 -> 1112 | Z8: =COUNTIF(L35:L61,Y8) -> 1 | AA8: =Z8/(AB4-Z20) -> 0.03703703704 | AB8: =IF(AA8=0,0,(AA8*((LOG(AA8))/LOG(2)))) -> -0.1761069445 | AD8: =N8 -> 1112 | AE8: =COUNTIF(L62:L89,AD8) -> 1 | AF8: =AE8/(AG4-AE20) -> 0.03571428571 | AG8: =IF(AF8=0,0,(AF8*((LOG(AF8))/LOG(2)))) -> -0.1716912472 | AI8: =N8 -> 1112 | AJ8: =COUNTIF(L90:L117,AI8) -> 1 | AK8: =AJ8/(AL4-AJ20) -> 0.03571428571 | AL8: =IF(AK8=0,0,(AK8*((LOG(AK8))/LOG(2)))) -> -0.1716912472 | AN8: =N8 -> 1112 | AO8: =COUNTIF(L118:L144,AN8) -> 0 | AP8: =AO8/(AQ4-AO20) -> 0 | AQ8: =IF(AP8=0,0,(AP8*((LOG(AP8))/LOG(2)))) -> 0 | AS8: =N8 -> 1112 | AT8: =COUNTIF(L145:L172,AS8) -> 1 | AU8: =AT8/(AV4-AT20) -> 0.03703703704 | AV8: =IF(AU8=0,0,(AU8*((LOG(AU8))/LOG(2)))) -> -0.1761069445
A9: 12 | B9: 354 | C9: 23 | D9: 376 | E9: 13 | F9: 412 | G9: 23 | H9: 434 | K9: 0 | L9: 1212 | N9: 1121 | O9: =COUNTIF($L$7:$L$500,N9) -> 0 | P9: =O9/$Q$4 -> 0 | Q9: =IF(P9=0,0,(P9*((LOG(P9))/LOG(2)))) -> 0 | T9: =N9 -> 1121 | U9: =COUNTIF(L7:L34,T9) -> 0 | V9: =U9/(W4-U20) -> 0 | W9: =IF(V9=0,0,(V9*((LOG(V9))/LOG(2)))) -> 0 | Y9: =N9 -> 1121 | Z9: =COUNTIF(L35:L61,Y9) -> 0 | AA9: =Z9/(AB4-Z20) -> 0 | AB9: =IF(AA9=0,0,(AA9*((LOG(AA9))/LOG(2)))) -> 0 | AD9: =N9 -> 1121 | AE9: =COUNTIF(L62:L89,AD9) -> 0 | AF9: =AE9/(AG4-AE20) -> 0 | AG9: =IF(AF9=0,0,(AF9*((LOG(AF9))/LOG(2)))) -> 0 | AI9: =N9 -> 1121 | AJ9: =COUNTIF(L90:L117,AI9) -> 0 | AK9: =AJ9/(AL4-AJ20) -> 0 | AL9: =IF(AK9=0,0,(AK9*((LOG(AK9))/LOG(2)))) -> 0 | AN9: =N9 -> 1121 | AO9: =COUNTIF(L118:L144,AN9) -> 0 | AP9: =AO9/(AQ4-AO20) -> 0 | AQ9: =IF(AP9=0,0,(AP9*((LOG(AP9))/LOG(2)))) -> 0 | AS9: =N9 -> 1121 | AT9: =COUNTIF(L145:L172,AS9) -> 0 | AU9: =AT9/(AV4-AT20) -> 0 | AV9: =IF(AU9=0,0,(AU9*((LOG(AU9))/LOG(2)))) -> 0
A10: 12 | B10: 521 | C10: 14 | D10: 530 | E10: 24 | F10: 541 | G10: 23 | H10: 551 | K10: 0 | L10: 1122 | N10: 1122 | O10: =COUNTIF($L$7:$L$500,N10) -> 95 | P10: =O10/$Q$4 -> 0.5757575758 | Q10: =IF(P10=0,0,(P10*((LOG(P10))/LOG(2)))) -> -0.4585716822 | T10: =N10 -> 1122 | U10: =COUNTIF(L7:L34,T10) -> 14 | V10: =U10/(W4-U20) -> 0.5 | W10: =IF(V10=0,0,(V10*((LOG(V10))/LOG(2)))) -> -0.5 | Y10: =N10 -> 1122 | Z10: =COUNTIF(L35:L61,Y10) -> 11 | AA10: =Z10/(AB4-Z20) -> 0.4074074074 | AB10: =IF(AA10=0,0,(AA10*((LOG(AA10))/LOG(2)))) -> -0.5277783229 | AD10: =N10 -> 1122 | AE10: =COUNTIF(L62:L89,AD10) -> 16 | AF10: =AE10/(AG4-AE20) -> 0.5714285714 | AG10: =IF(AF10=0,0,(AF10*((LOG(AF10))/LOG(2)))) -> -0.4613456697 | AI10: =N10 -> 1122 | AJ10: =COUNTIF(L90:L117,AI10) -> 22 | AK10: =AJ10/(AL4-AJ20) -> 0.7857142857 | AL10: =IF(AK10=0,0,(AK10*((LOG(AK10))/LOG(2)))) -> -0.2733683098 | AN10: =N10 -> 1122 | AO10: =COUNTIF(L118:L144,AN10) -> 15 | AP10: =AO10/(AQ4-AO20) -> 0.5555555556 | AQ10: =IF(AP10=0,0,(AP10*((LOG(AP10))/LOG(2)))) -> -0.4711093925 | AS10: =N10 -> 1122 | AT10: =COUNTIF(L145:L172,AS10) -> 17 | AU10: =AT10/(AV4-AT20) -> 0.6296296296 | AV10: =IF(AU10=0,0,(AU10*((LOG(AU10))/LOG(2)))) -> -0.4202303421
A11: 12 | B11: 656 | C11: 23 | D11: 679 | E11: 24 | F11: 696 | G11: 23 | H11: 712 | K11: 0 | L11: 1222 | N11: 1211 | O11: =COUNTIF($L$7:$L$500,N11) -> 1 | P11: =O11/$Q$4 -> 0.006060606061 | Q11: =IF(P11=0,0,(P11*((LOG(P11))/LOG(2)))) -> -0.04464437706 | T11: =N11 -> 1211 | U11: =COUNTIF(L7:L34,T11) -> 0 | V11: =U11/(W4-U20) -> 0 | W11: =IF(V11=0,0,(V11*((LOG(V11))/LOG(2)))) -> 0 | Y11: =N11 -> 1211 | Z11: =COUNTIF(L35:L61,Y11) -> 1 | AA11: =Z11/(AB4-Z20) -> 0.03703703704 | AB11: =IF(AA11=0,0,(AA11*((LOG(AA11))/LOG(2)))) -> -0.1761069445 | AD11: =N11 -> 1211 | AE11: =COUNTIF(L62:L89,AD11) -> 0 | AF11: =AE11/(AG4-AE20) -> 0 | AG11: =IF(AF11=0,0,(AF11*((LOG(AF11))/LOG(2)))) -> 0 | AI11: =N11 -> 1211 | AJ11: =COUNTIF(L90:L117,AI11) -> 0 | AK11: =AJ11/(AL4-AJ20) -> 0 | AL11: =IF(AK11=0,0,(AK11*((LOG(AK11))/LOG(2)))) -> 0 | AN11: =N11 -> 1211 | AO11: =COUNTIF(L118:L144,AN11) -> 0 | AP11: =AO11/(AQ4-AO20) -> 0 | AQ11: =IF(AP11=0,0,(AP11*((LOG(AP11))/LOG(2)))) -> 0 | AS11: =N11 -> 1211 | AT11: =COUNTIF(L145:L172,AS11) -> 0 | AU11: =AT11/(AV4-AT20) -> 0 | AV11: =IF(AU11=0,0,(AU11*((LOG(AU11))/LOG(2)))) -> 0
A12: 12 | B12: 813 | C12: 14 | D12: 825 | E12: 24 | F12: 836 | G12: 23 | H12: 856 | K12: 0 | L12: 1122 | N12: 1212 | O12: =COUNTIF($L$7:$L$500,N12) -> 2 | P12: =O12/$Q$4 -> 0.01212121212 | Q12: =IF(P12=0,0,(P12*((LOG(P12))/LOG(2)))) -> -0.07716754199 | T12: =N12 -> 1212 | U12: =COUNTIF(L7:L34,T12) -> 2 | V12: =U12/(W4-U20) -> 0.07142857143 | W12: =IF(V12=0,0,(V12*((LOG(V12))/LOG(2)))) -> -0.271953923 | Y12: =N12 -> 1212 | Z12: =COUNTIF(L35:L61,Y12) -> 0 | AA12: =Z12/(AB4-Z20) -> 0 | AB12: =IF(AA12=0,0,(AA12*((LOG(AA12))/LOG(2)))) -> 0 | AD12: =N12 -> 1212 | AE12: =COUNTIF(L62:L89,AD12) -> 0 | AF12: =AE12/(AG4-AE20) -> 0 | AG12: =IF(AF12=0,0,(AF12*((LOG(AF12))/LOG(2)))) -> 0 | AI12: =N12 -> 1212 | AJ12: =COUNTIF(L90:L117,AI12) -> 0 | AK12: =AJ12/(AL4-AJ20) -> 0 | AL12: =IF(AK12=0,0,(AK12*((LOG(AK12))/LOG(2)))) -> 0 | AN12: =N12 -> 1212 | AO12: =COUNTIF(L118:L144,AN12) -> 0 | AP12: =AO12/(AQ4-AO20) -> 0 | AQ12: =IF(AP12=0,0,(AP12*((LOG(AP12))/LOG(2)))) -> 0 | AS12: =N12 -> 1212 | AT12: =COUNTIF(L145:L172,AS12) -> 0 | AU12: =AT12/(AV4-AT20) -> 0 | AV12: =IF(AU12=0,0,(AU12*((LOG(AU12))/LOG(2)))) -> 0
A13: 12 | B13: 956 | C13: 14 | D13: 965 | E13: 24 | F13: 975 | G13: 23 | H13: 984 | K13: 0 | L13: 1122 | N13: 1221 | O13: =COUNTIF($L$7:$L$500,N13) -> 0 | P13: =O13/$Q$4 -> 0 | Q13: =IF(P13=0,0,(P13*((LOG(P13))/LOG(2)))) -> 0 | T13: =N13 -> 1221 | U13: =COUNTIF(L7:L34,T13) -> 0 | V13: =U13/(W4-U20) -> 0 | W13: =IF(V13=0,0,(V13*((LOG(V13))/LOG(2)))) -> 0 | Y13: =N13 -> 1221 | Z13: =COUNTIF(L35:L61,Y13) -> 0 | AA13: =Z13/(AB4-Z20) -> 0 | AB13: =IF(AA13=0,0,(AA13*((LOG(AA13))/LOG(2)))) -> 0 | AD13: =N13 -> 1221 | AE13: =COUNTIF(L62:L89,AD13) -> 0 | AF13: =AE13/(AG4-AE20) -> 0 | AG13: =IF(AF13=0,0,(AF13*((LOG(AF13))/LOG(2)))) -> 0 | AI13: =N13 -> 1221 | AJ13: =COUNTIF(L90:L117,AI13) -> 0 | AK13: =AJ13/(AL4-AJ20) -> 0 | AL13: =IF(AK13=0,0,(AK13*((LOG(AK13))/LOG(2)))) -> 0 | AN13: =N13 -> 1221 | AO13: =COUNTIF(L118:L144,AN13) -> 0 | AP13: =AO13/(AQ4-AO20) -> 0 | AQ13: =IF(AP13=0,0,(AP13*((LOG(AP13))/LOG(2)))) -> 0 | AS13: =N13 -> 1221 | AT13: =COUNTIF(L145:L172,AS13) -> 0 | AU13: =AT13/(AV4-AT20) -> 0 | AV13: =IF(AU13=0,0,(AU13*((LOG(AU13))/LOG(2)))) -> 0
A14: 12 | B14: 1076 | C14: 14 | D14: 1082 | E14: 24 | F14: 1091 | G14: 23 | H14: 1100 | K14: 0 | L14: 1122 | N14: 1222 | O14: =COUNTIF($L$7:$L$500,N14) -> 59 | P14: =O14/$Q$4 -> 0.3575757576 | Q14: =IF(P14=0,0,(P14*((LOG(P14))/LOG(2)))) -> -0.5305277014 | T14: =N14 -> 1222 | U14: =COUNTIF(L7:L34,T14) -> 9 | V14: =U14/(W4-U20) -> 0.3214285714 | W14: =IF(V14=0,0,(V14*((LOG(V14))/LOG(2)))) -> -0.5263167602 | Y14: =N14 -> 1222 | Z14: =COUNTIF(L35:L61,Y14) -> 14 | AA14: =Z14/(AB4-Z20) -> 0.5185185185 | AB14: =IF(AA14=0,0,(AA14*((LOG(AA14))/LOG(2)))) -> -0.4913131897 | AD14: =N14 -> 1222 | AE14: =COUNTIF(L62:L89,AD14) -> 11 | AF14: =AE14/(AG4-AE20) -> 0.3928571429 | AG14: =IF(AF14=0,0,(AF14*((LOG(AF14))/LOG(2)))) -> -0.5295412978 | AI14: =N14 -> 1222 | AJ14: =COUNTIF(L90:L117,AI14) -> 5 | AK14: =AJ14/(AL4-AJ20) -> 0.1785714286 | AL14: =IF(AK14=0,0,(AK14*((LOG(AK14))/LOG(2)))) -> -0.4438262191 | AN14: =N14 -> 1222 | AO14: =COUNTIF(L118:L144,AN14) -> 11 | AP14: =AO14/(AQ4-AO20) -> 0.4074074074 | AQ14: =IF(AP14=0,0,(AP14*((LOG(AP14))/LOG(2)))) -> -0.5277783229 | AS14: =N14 -> 1222 | AT14: =COUNTIF(L145:L172,AS14) -> 9 | AU14: =AT14/(AV4-AT20) -> 0.3333333333 | AV14: =IF(AU14=0,0,(AU14*((LOG(AU14))/LOG(2)))) -> -0.5283208336
A15: 12 | B15: 1203 | C15: 14 | D15: 1215 | E15: 24 | F15: 1254 | G15: 23 | H15: 1270 | K15: 0 | L15: 1122 | N15: 2111 | O15: =COUNTIF($L$7:$L$500,N15) -> 0 | P15: =O15/$Q$4 -> 0 | Q15: =IF(P15=0,0,(P15*((LOG(P15))/LOG(2)))) -> 0 | T15: =N15 -> 2111 | U15: =COUNTIF(L7:L34,T15) -> 0 | V15: =U15/(W4-U20) -> 0 | W15: =IF(V15=0,0,(V15*((LOG(V15))/LOG(2)))) -> 0 | Y15: =N15 -> 2111 | Z15: =COUNTIF(L35:L61,Y15) -> 0 | AA15: =Z15/(AB4-Z20) -> 0 | AB15: =IF(AA15=0,0,(AA15*((LOG(AA15))/LOG(2)))) -> 0 | AD15: =N15 -> 2111 | AE15: =COUNTIF(L62:L89,AD15) -> 0 | AF15: =AE15/(AG4-AE20) -> 0 | AG15: =IF(AF15=0,0,(AF15*((LOG(AF15))/LOG(2)))) -> 0 | AI15: =N15 -> 2111 | AJ15: =COUNTIF(L90:L117,AI15) -> 0 | AK15: =AJ15/(AL4-AJ20) -> 0 | AL15: =IF(AK15=0,0,(AK15*((LOG(AK15))/LOG(2)))) -> 0 | AN15: =N15 -> 2111 | AO15: =COUNTIF(L118:L144,AN15) -> 0 | AP15: =AO15/(AQ4-AO20) -> 0 | AQ15: =IF(AP15=0,0,(AP15*((LOG(AP15))/LOG(2)))) -> 0 | AS15: =N15 -> 2111 | AT15: =COUNTIF(L145:L172,AS15) -> 0 | AU15: =AT15/(AV4-AT20) -> 0 | AV15: =IF(AU15=0,0,(AU15*((LOG(AU15))/LOG(2)))) -> 0
A16: 21 | B16: 1393 | C16: 12 | D16: 1416 | E16: 24 | F16: 1462 | G16: 23 | H16: 1470 | K16: 0 | L16: 2122 | N16: 2112 | O16: =COUNTIF($L$7:$L$500,N16) -> 0 | P16: =O16/$Q$4 -> 0 | Q16: =IF(P16=0,0,(P16*((LOG(P16))/LOG(2)))) -> 0 | T16: =N16 -> 2112 | U16: =COUNTIF(L7:L34,T16) -> 0 | V16: =U16/(W4-U20) -> 0 | W16: =IF(V16=0,0,(V16*((LOG(V16))/LOG(2)))) -> 0 | Y16: =N16 -> 2112 | Z16: =COUNTIF(L35:L61,Y16) -> 0 | AA16: =Z16/(AB4-Z20) -> 0 | AB16: =IF(AA16=0,0,(AA16*((LOG(AA16))/LOG(2)))) -> 0 | AD16: =N16 -> 2112 | AE16: =COUNTIF(L62:L89,AD16) -> 0 | AF16: =AE16/(AG4-AE20) -> 0 | AG16: =IF(AF16=0,0,(AF16*((LOG(AF16))/LOG(2)))) -> 0 | AI16: =N16 -> 2112 | AJ16: =COUNTIF(L90:L117,AI16) -> 0 | AK16: =AJ16/(AL4-AJ20) -> 0 | AL16: =IF(AK16=0,0,(AK16*((LOG(AK16))/LOG(2)))) -> 0 | AN16: =N16 -> 2112 | AO16: =COUNTIF(L118:L144,AN16) -> 0 | AP16: =AO16/(AQ4-AO20) -> 0 | AQ16: =IF(AP16=0,0,(AP16*((LOG(AP16))/LOG(2)))) -> 0 | AS16: =N16 -> 2112 | AT16: =COUNTIF(L145:L172,AS16) -> 0 | AU16: =AT16/(AV4-AT20) -> 0 | AV16: =IF(AU16=0,0,(AU16*((LOG(AU16))/LOG(2)))) -> 0
A17: 12 | B17: 1579 | C17: 23 | D17: 1589 | E17: 24 | F17: 1606 | G17: 23 | H17: 1625 | K17: 0 | L17: 1222 | N17: 2121 | O17: =COUNTIF($L$7:$L$500,N17) -> 0 | P17: =O17/$Q$4 -> 0 | Q17: =IF(P17=0,0,(P17*((LOG(P17))/LOG(2)))) -> 0 | T17: =N17 -> 2121 | U17: =COUNTIF(L7:L34,T17) -> 0 | V17: =U17/(W4-U20) -> 0 | W17: =IF(V17=0,0,(V17*((LOG(V17))/LOG(2)))) -> 0 | Y17: =N17 -> 2121 | Z17: =COUNTIF(L35:L61,Y17) -> 0 | AA17: =Z17/(AB4-Z20) -> 0 | AB17: =IF(AA17=0,0,(AA17*((LOG(AA17))/LOG(2)))) -> 0 | AD17: =N17 -> 2121 | AE17: =COUNTIF(L62:L89,AD17) -> 0 | AF17: =AE17/(AG4-AE20) -> 0 | AG17: =IF(AF17=0,0,(AF17*((LOG(AF17))/LOG(2)))) -> 0 | AI17: =N17 -> 2121 | AJ17: =COUNTIF(L90:L117,AI17) -> 0 | AK17: =AJ17/(AL4-AJ20) -> 0 | AL17: =IF(AK17=0,0,(AK17*((LOG(AK17))/LOG(2)))) -> 0 | AN17: =N17 -> 2121 | AO17: =COUNTIF(L118:L144,AN17) -> 0 | AP17: =AO17/(AQ4-AO20) -> 0 | AQ17: =IF(AP17=0,0,(AP17*((LOG(AP17))/LOG(2)))) -> 0 | AS17: =N17 -> 2121 | AT17: =COUNTIF(L145:L172,AS17) -> 0 | AU17: =AT17/(AV4-AT20) -> 0 | AV17: =IF(AU17=0,0,(AU17*((LOG(AU17))/LOG(2)))) -> 0
A18: 21 | B18: 1730 | C18: 21 | D18: 1746 | E18: 22 | F18: 1796 | G18: 23 | H18: 1804 | K18: 0 | L18: 2222 | N18: 2122 | O18: =COUNTIF($L$7:$L$500,N18) -> 1 | P18: =O18/$Q$4 -> 0.006060606061 | Q18: =IF(P18=0,0,(P18*((LOG(P18))/LOG(2)))) -> -0.04464437706 | T18: =N18 -> 2122 | U18: =COUNTIF(L7:L34,T18) -> 1 | V18: =U18/(W4-U20) -> 0.03571428571 | W18: =IF(V18=0,0,(V18*((LOG(V18))/LOG(2)))) -> -0.1716912472 | Y18: =N18 -> 2122 | Z18: =COUNTIF(L35:L61,Y18) -> 0 | AA18: =Z18/(AB4-Z20) -> 0 | AB18: =IF(AA18=0,0,(AA18*((LOG(AA18))/LOG(2)))) -> 0 | AD18: =N18 -> 2122 | AE18: =COUNTIF(L62:L89,AD18) -> 0 | AF18: =AE18/(AG4-AE20) -> 0 | AG18: =IF(AF18=0,0,(AF18*((LOG(AF18))/LOG(2)))) -> 0 | AI18: =N18 -> 2122 | AJ18: =COUNTIF(L90:L117,AI18) -> 0 | AK18: =AJ18/(AL4-AJ20) -> 0 | AL18: =IF(AK18=0,0,(AK18*((LOG(AK18))/LOG(2)))) -> 0 | AN18: =N18 -> 2122 | AO18: =COUNTIF(L118:L144,AN18) -> 0 | AP18: =AO18/(AQ4-AO20) -> 0 | AQ18: =IF(AP18=0,0,(AP18*((LOG(AP18))/LOG(2)))) -> 0 | AS18: =N18 -> 2122 | AT18: =COUNTIF(L145:L172,AS18) -> 0 | AU18: =AT18/(AV4-AT20) -> 0 | AV18: =IF(AU18=0,0,(AU18*((LOG(AU18))/LOG(2)))) -> 0
A19: 12 | B19: 1906 | C19: 23 | D19: 1945 | E19: 24 | F19: 1955 | G19: 23 | H19: 1966 | K19: 0 | L19: 1222 | N19: 2211 | O19: =COUNTIF($L$7:$L$500,N19) -> 0 | P19: =O19/$Q$4 -> 0 | Q19: =IF(P19=0,0,(P19*((LOG(P19))/LOG(2)))) -> 0 | T19: =N19 -> 2211 | U19: =COUNTIF(L7:L34,T19) -> 0 | V19: =U19/(W4-U20) -> 0 | W19: =IF(V19=0,0,(V19*((LOG(V19))/LOG(2)))) -> 0 | Y19: =N19 -> 2211 | Z19: =COUNTIF(L35:L61,Y19) -> 0 | AA19: =Z19/(AB4-Z20) -> 0 | AB19: =IF(AA19=0,0,(AA19*((LOG(AA19))/LOG(2)))) -> 0 | AD19: =N19 -> 2211 | AE19: =COUNTIF(L62:L89,AD19) -> 0 | AF19: =AE19/(AG4-AE20) -> 0 | AG19: =IF(AF19=0,0,(AF19*((LOG(AF19))/LOG(2)))) -> 0 | AI19: =N19 -> 2211 | AJ19: =COUNTIF(L90:L117,AI19) -> 0 | AK19: =AJ19/(AL4-AJ20) -> 0 | AL19: =IF(AK19=0,0,(AK19*((LOG(AK19))/LOG(2)))) -> 0 | AN19: =N19 -> 2211 | AO19: =COUNTIF(L118:L144,AN19) -> 0 | AP19: =AO19/(AQ4-AO20) -> 0 | AQ19: =IF(AP19=0,0,(AP19*((LOG(AP19))/LOG(2)))) -> 0 | AS19: =N19 -> 2211 | AT19: =COUNTIF(L145:L172,AS19) -> 0 | AU19: =AT19/(AV4-AT20) -> 0 | AV19: =IF(AU19=0,0,(AU19*((LOG(AU19))/LOG(2)))) -> 0
A20: 12 | B20: 2077 | C20: 14 | D20: 2088 | E20: 24 | F20: 2103 | G20: 23 | H20: 2118 | K20: 0 | L20: 1122 | N20: 2212 | O20: =COUNTIF($L$7:$L$500,N20) -> 0 | P20: =O20/$Q$4 -> 0 | Q20: =IF(P20=0,0,(P20*((LOG(P20))/LOG(2)))) -> 0 | T20: =N20 -> 2212 | U20: =COUNTIF(L7:L34,T20) -> 0 | Y20: =N20 -> 2212 | Z20: =COUNTIF(L35:L61,Y20) -> 0 | AD20: =N20 -> 2212 | AE20: =COUNTIF(L62:L89,AD20) -> 0 | AI20: =N20 -> 2212 | AJ20: =COUNTIF(L90:L117,AI20) -> 0 | AN20: =N20 -> 2212 | AO20: =COUNTIF(L118:L144,AN20) -> 0 | AS20: =N20 -> 2212 | AT20: =COUNTIF(L145:L172,AS20) -> 0
A21: 12 | B21: 2207 | C21: 14 | D21: 2212 | E21: 24 | F21: 2221 | G21: 23 | H21: 2232 | K21: 0 | L21: 1122 | N21: 2221 | O21: =COUNTIF($L$7:$L$500,N21) -> 0 | P21: =O21/$Q$4 -> 0 | Q21: =IF(P21=0,0,(P21*((LOG(P21))/LOG(2)))) -> 0 | T21: =N21 -> 2221 | U21: =COUNTIF(L7:L34,T21) -> 0 | V21: =U21/(W4-U20) -> 0 | W21: =IF(V21=0,0,(V21*((LOG(V21))/LOG(2)))) -> 0 | Y21: =N21 -> 2221 | Z21: =COUNTIF(L35:L61,Y21) -> 0 | AA21: =Z21/(AB4-Z20) -> 0 | AB21: =IF(AA21=0,0,(AA21*((LOG(AA21))/LOG(2)))) -> 0 | AD21: =N21 -> 2221 | AE21: =COUNTIF(L62:L89,AD21) -> 0 | AF21: =AE21/(AG4-AE20) -> 0 | AG21: =IF(AF21=0,0,(AF21*((LOG(AF21))/LOG(2)))) -> 0 | AI21: =N21 -> 2221 | AJ21: =COUNTIF(L90:L117,AI21) -> 0 | AK21: =AJ21/(AL4-AJ20) -> 0 | AL21: =IF(AK21=0,0,(AK21*((LOG(AK21))/LOG(2)))) -> 0 | AN21: =N21 -> 2221 | AO21: =COUNTIF(L118:L144,AN21) -> 0 | AP21: =AO21/(AQ4-AO20) -> 0 | AQ21: =IF(AP21=0,0,(AP21*((LOG(AP21))/LOG(2)))) -> 0 | AS21: =N21 -> 2221 | AT21: =COUNTIF(L145:L172,AS21) -> 0 | AU21: =AT21/(AV4-AT20) -> 0 | AV21: =IF(AU21=0,0,(AU21*((LOG(AU21))/LOG(2)))) -> 0
A22: 12 | B22: 2334 | C22: 14 | D22: 2343 | E22: 24 | F22: 2352 | G22: 23 | H22: 2368 | K22: 0 | L22: 1122 | N22: 2222 | O22: =COUNTIF($L$7:$L$500,N22) -> 3 | P22: =O22/$Q$4 -> 0.01818181818 | Q22: =IF(P22=0,0,(P22*((LOG(P22))/LOG(2)))) -> -0.1051156312 | T22: =N22 -> 2222 | U22: =COUNTIF(L7:L34,T22) -> 2 | V22: =U22/(W4-U20) -> 0.07142857143 | W22: =IF(V22=0,0,(V22*((LOG(V22))/LOG(2)))) -> -0.271953923 | Y22: =N22 -> 2222 | Z22: =COUNTIF(L35:L61,Y22) -> 0 | AA22: =Z22/(AB4-Z20) -> 0 | AB22: =IF(AA22=0,0,(AA22*((LOG(AA22))/LOG(2)))) -> 0 | AD22: =N22 -> 2222 | AE22: =COUNTIF(L62:L89,AD22) -> 0 | AF22: =AE22/(AG4-AE20) -> 0 | AG22: =IF(AF22=0,0,(AF22*((LOG(AF22))/LOG(2)))) -> 0 | AI22: =N22 -> 2222 | AJ22: =COUNTIF(L90:L117,AI22) -> 0 | AK22: =AJ22/(AL4-AJ20) -> 0 | AL22: =IF(AK22=0,0,(AK22*((LOG(AK22))/LOG(2)))) -> 0 | AN22: =N22 -> 2222 | AO22: =COUNTIF(L118:L144,AN22) -> 1 | AP22: =AO22/(AQ4-AO20) -> 0.03703703704 | AQ22: =IF(AP22=0,0,(AP22*((LOG(AP22))/LOG(2)))) -> -0.1761069445 | AS22: =N22 -> 2222 | AT22: =COUNTIF(L145:L172,AS22) -> 0 | AU22: =AT22/(AV4-AT20) -> 0 | AV22: =IF(AU22=0,0,(AU22*((LOG(AU22))/LOG(2)))) -> 0
A23: 12 | B23: 2458 | C23: 14 | D23: 2467 | E23: 24 | F23: 2483 | G23: 23 | H23: 2497 | K23: 0 | L23: 1122 | P23: =SUM(P7:P22) -> 1 | Q23: =-SUM(Q7:Q22) -> 1.390763971 | V23: =SUM(V7:V22) -> 1 | W23: =-SUM(W7:W22) -> 1.741915853 | AA23: =SUM(AA7:AA22) -> 1 | AB23: =-SUM(AB7:AB22) -> 1.371305402 | AF23: =SUM(AF7:AF22) -> 1 | AG23: =-SUM(AG7:AG22) -> 1.162578215 | AK23: =SUM(AK7:AK22) -> 1 | AL23: =-SUM(AL7:AL22) -> 0.8888857762 | AP23: =SUM(AP7:AP22) -> 1 | AQ23: =-SUM(AQ7:AQ22) -> 1.17499466 | AU23: =SUM(AU7:AU22) -> 1 | AV23: =-SUM(AV7:AV22) -> 1.12465812
A24: 12 | B24: 2594 | C24: 14 | D24: 2604 | E24: 24 | F24: 2623 | G24: 23 | H24: 2647 | K24: 0 | L24: 1122 | P24: U= | Q24: =Q23/(LOG(Q4)/LOG(2)) -> 0.1888003172 | V24: U1= | W24: =W23/(LOG(W4)/LOG(2)) -> 0.3623439254 | AA24: U2= | AB24: =AB23/(LOG(AB4)/LOG(2)) -> 0.2883991264 | AF24: U3= | AG24: =AG23/(LOG(AG4)/LOG(2)) -> 0.2418332396 | AK24: U4= | AL24: =AL23/(LOG(AL4)/LOG(2)) -> 0.1849012171 | AP24: U5= | AQ24: =AQ23/(LOG(AQ4)/LOG(2)) -> 0.2471130304 | AU24: U6= | AV24: =AV23/(LOG(AV4)/LOG(2)) -> 0.2365267569
A25: 12 | B25: 2755 | C25: 23 | D25: 2786 | E25: 24 | F25: 2813 | G25: 23 | H25: 2825 | K25: 0 | L25: 1222
A26: 12 | B26: 2928 | C26: 14 | D26: 2939 | E26: 24 | F26: 2972 | G26: 23 | H26: 2988 | K26: 0 | L26: 1122
A27: 12 | B27: 3077 | C27: 14 | D27: 3083 | E27: 24 | F27: 3099 | G27: 23 | H27: 3128 | K27: 0 | L27: 1122 | N27: Total Target Seq
A28: 12 | B28: 3230 | C28: 23 | D28: 3286 | E28: 24 | F28: 3294 | G28: 23 | H28: 3302 | K28: 0 | L28: 1222 | N28: =COUNTIF(L7:L172,G3) -> 0 | P28: 28 | Q28: 27 | R28: 28 | S28: 28 | T28: 27 | U28: 28
A29: 12 | B29: 3403 | C29: 23 | D29: 3424 | E29: 24 | F29: 3443 | G29: 23 | H29: 3456 | K29: 0 | L29: 1222 | P29: % of reinforcement given in 6 equal intervals based on number of trials
A30: 12 | B30: 3558 | C30: 14 | D30: 3569 | E30: 24 | F30: 3585 | G30: 23 | H30: 3595 | K30: 0 | L30: 1122 | P30: %_1 | Q30: %_2 | R30: %_3 | S30: %_4 | T30: %_5 | U30: %_6
A31: 12 | B31: 3708 | C31: 23 | D31: 3717 | E31: 24 | F31: 3726 | G31: 23 | H31: 3735 | K31: 0 | L31: 1222 | O31: target sequence | P31: =$G$3 -> 2212 | Q31: =$G$3 -> 2212 | R31: =$G$3 -> 2212 | S31: =$G$3 -> 2212 | T31: =$G$3 -> 2212 | U31: =$G$3 -> 2212
A32: 12 | B32: 3829 | C32: 23 | D32: 3870 | E32: 24 | F32: 3884 | G32: 23 | H32: 3901 | K32: 0 | L32: 1222 | O32: total reinforcement | P32: =U20 -> 0 | Q32: =Z20 -> 0 | R32: =AE20 -> 0 | S32: =AJ20 -> 0 | T32: =AO20 -> 0 | U32: =AT20 -> 0
A33: 12 | B33: 4025 | C33: 23 | D33: 4050 | E33: 24 | F33: 4066 | G33: 23 | H33: 4073 | K33: 0 | L33: 1222 | O33: % target
A34: 21 | B34: 4209 | C34: 21 | D34: 4218 | E34: 22 | F34: 4239 | G34: 23 | H34: 4309 | K34: 0 | L34: 2222 | O34: CCRF
A35: 12 | B35: 4414 | C35: 14 | D35: 4424 | E35: 24 | F35: 4438 | G35: 23 | H35: 4447 | K35: 0 | L35: 1122 | O35: % CCRf
A36: 12 | B36: 4556 | C36: 23 | D36: 4587 | E36: 24 | F36: 4594 | G36: 23 | H36: 4612 | K36: 0 | L36: 1222 | O36: average response rate | P36: =H34/P28 -> 153.8928571 | Q36: =(H61-H34)/Q28 -> 152.3703704 | R36: =(H89-H61)/R28 -> 146.9285714 | S36: =(H117-H89)/S28 -> 130.6785714 | T36: =(H144-H117)/T28 -> 146.7407407 | U36: =(H172-H144)/U28 -> -719.9285714
A37: 12 | B37: 4726 | C37: 23 | D37: 4735 | E37: 24 | F37: 4743 | G37: 23 | H37: 4750 | K37: 0 | L37: 1222
A38: 12 | B38: 4846 | C38: 14 | D38: 4857 | E38: 24 | F38: 4868 | G38: 23 | H38: 4878 | K38: 0 | L38: 1122
A39: 12 | B39: 4985 | C39: 23 | D39: 5014 | E39: 24 | F39: 5022 | G39: 23 | H39: 5029 | K39: 0 | L39: 1222
A40: 12 | B40: 5140 | C40: 23 | D40: 5154 | E40: 24 | F40: 5174 | G40: 23 | H40: 5182 | K40: 0 | L40: 1222
A41: 12 | B41: 5288 | C41: 14 | D41: 5293 | E41: 24 | F41: 5337 | G41: 23 | H41: 5351 | K41: 0 | L41: 1122
A42: 12 | B42: 5464 | C42: 23 | D42: 5496 | E42: 24 | F42: 5504 | G42: 23 | H42: 5518 | K42: 0 | L42: 1222
A43: 12 | B43: 5626 | C43: 23 | D43: 5639 | E43: 24 | F43: 5688 | G43: 23 | H43: 5697 | K43: 0 | L43: 1222
A44: 12 | B44: 5804 | C44: 14 | D44: 5817 | E44: 24 | F44: 5826 | G44: 23 | H44: 5854 | K44: 0 | L44: 1122
A45: 12 | B45: 5948 | C45: 23 | D45: 5960 | E45: 24 | F45: 5979 | G45: 23 | H45: 5988 | K45: 0 | L45: 1222
A46: 12 | B46: 6091 | C46: 14 | D46: 6111 | E46: 24 | F46: 6120 | G46: 23 | H46: 6128 | K46: 0 | L46: 1122
A47: 12 | B47: 6236 | C47: 23 | D47: 6260 | E47: 13 | F47: 6285 | G47: 14 | H47: 6295 | K47: 0 | L47: 1211
A48: 12 | B48: 6398 | C48: 14 | D48: 6408 | E48: 24 | F48: 6428 | G48: 23 | H48: 6436 | K48: 0 | L48: 1122
A49: 12 | B49: 6543 | C49: 14 | D49: 6552 | E49: 24 | F49: 6566 | G49: 23 | H49: 6609 | K49: 0 | L49: 1122
A50: 12 | B50: 6720 | C50: 23 | D50: 6738 | E50: 24 | F50: 6747 | G50: 23 | H50: 6762 | K50: 0 | L50: 1222
A51: 12 | B51: 6868 | C51: 14 | D51: 6876 | E51: 24 | F51: 6915 | G51: 23 | H51: 6923 | K51: 0 | L51: 1122
A52: 12 | B52: 7028 | C52: 14 | D52: 7051 | E52: 24 | F52: 7061 | G52: 23 | H52: 7071 | K52: 0 | L52: 1122
A53: 12 | B53: 7185 | C53: 23 | D53: 7217 | E53: 24 | F53: 7233 | G53: 23 | H53: 7240 | K53: 0 | L53: 1222
A54: 12 | B54: 7334 | C54: 23 | D54: 7383 | E54: 24 | F54: 7390 | G54: 23 | H54: 7398 | K54: 0 | L54: 1222
A55: 12 | B55: 7506 | C55: 23 | D55: 7531 | E55: 24 | F55: 7538 | G55: 23 | H55: 7548 | K55: 0 | L55: 1222
A56: 12 | B56: 7656 | C56: 23 | D56: 7682 | E56: 24 | F56: 7690 | G56: 23 | H56: 7698 | K56: 0 | L56: 1222
A57: 12 | B57: 7808 | C57: 23 | D57: 7818 | E57: 24 | F57: 7826 | G57: 23 | H57: 7833 | K57: 0 | L57: 1222
A58: 12 | B58: 7938 | C58: 14 | D58: 7948 | E58: 24 | F58: 7988 | G58: 23 | H58: 8015 | K58: 0 | L58: 1122
A59: 12 | B59: 8106 | C59: 23 | D59: 8117 | E59: 24 | F59: 8126 | G59: 23 | H59: 8143 | K59: 0 | L59: 1222
A60: 12 | B60: 8247 | C60: 14 | D60: 8254 | E60: 24 | F60: 8278 | G60: 23 | H60: 8289 | K60: 0 | L60: 1122
A61: 12 | B61: 8394 | C61: 14 | D61: 8400 | E61: 13 | F61: 8409 | G61: 23 | H61: 8423 | K61: 0 | L61: 1112
A62: 12 | B62: 8530 | C62: 14 | D62: 8540 | E62: 24 | F62: 8550 | G62: 23 | H62: 8574 | K62: 0 | L62: 1122
A63: 12 | B63: 8688 | C63: 23 | D63: 8708 | E63: 24 | F63: 8727 | G63: 23 | H63: 8734 | K63: 0 | L63: 1222
A64: 12 | B64: 8844 | C64: 14 | D64: 8863 | E64: 24 | F64: 8877 | G64: 23 | H64: 8902 | K64: 0 | L64: 1122
A65: 12 | B65: 9012 | C65: 14 | D65: 9039 | E65: 24 | F65: 9058 | G65: 23 | H65: 9066 | K65: 0 | L65: 1122
A66: 12 | B66: 9153 | C66: 14 | D66: 9166 | E66: 24 | F66: 9177 | G66: 23 | H66: 9186 | K66: 0 | L66: 1122
A67: 12 | B67: 9289 | C67: 14 | D67: 9300 | E67: 24 | F67: 9309 | G67: 23 | H67: 9317 | K67: 0 | L67: 1122
A68: 12 | B68: 9420 | C68: 14 | D68: 9430 | E68: 24 | F68: 9440 | G68: 23 | H68: 9456 | K68: 0 | L68: 1122
A69: 12 | B69: 9567 | C69: 23 | D69: 9582 | E69: 24 | F69: 9591 | G69: 23 | H69: 9598 | K69: 0 | L69: 1222
A70: 12 | B70: 9711 | C70: 23 | D70: 9751 | E70: 24 | F70: 9767 | G70: 23 | H70: 9774 | K70: 0 | L70: 1222
A71: 12 | B71: 9886 | C71: 14 | D71: 9902 | E71: 24 | F71: 9929 | G71: 23 | H71: 9962 | K71: 0 | L71: 1122
A72: 12 | B72: 10078 | C72: 23 | D72: 10108 | E72: 24 | F72: 10116 | G72: 23 | H72: 10188 | K72: 0 | L72: 1222
A73: 12 | B73: 10295 | C73: 23 | D73: 10310 | E73: 24 | F73: 10324 | G73: 23 | H73: 10335 | K73: 0 | L73: 1222
A74: 12 | B74: 10439 | C74: 14 | D74: 10448 | E74: 13 | F74: 10468 | G74: 23 | H74: 10487 | K74: 0 | L74: 1112
A75: 12 | B75: 10590 | C75: 14 | D75: 10608 | E75: 24 | F75: 10631 | G75: 23 | H75: 10639 | K75: 0 | L75: 1122
A76: 12 | B76: 10731 | C76: 14 | D76: 10737 | E76: 24 | F76: 10747 | G76: 23 | H76: 10755 | K76: 0 | L76: 1122
A77: 12 | B77: 10862 | C77: 23 | D77: 10872 | E77: 24 | F77: 10887 | G77: 23 | H77: 10898 | K77: 0 | L77: 1222
A78: 12 | B78: 10989 | C78: 14 | D78: 10995 | E78: 24 | F78: 11005 | G78: 23 | H78: 11013 | K78: 0 | L78: 1122
A79: 12 | B79: 11110 | C79: 23 | D79: 11124 | E79: 24 | F79: 11133 | G79: 23 | H79: 11142 | K79: 0 | L79: 1222
A80: 12 | B80: 11232 | C80: 14 | D80: 11258 | E80: 24 | F80: 11267 | G80: 23 | H80: 11276 | K80: 0 | L80: 1122
A81: 12 | B81: 11378 | C81: 23 | D81: 11389 | E81: 24 | F81: 11403 | G81: 23 | H81: 11411 | K81: 0 | L81: 1222
A82: 12 | B82: 11509 | C82: 14 | D82: 11515 | E82: 24 | F82: 11526 | G82: 23 | H82: 11534 | K82: 0 | L82: 1122
A83: 12 | B83: 11630 | C83: 14 | D83: 11639 | E83: 24 | F83: 11660 | G83: 23 | H83: 11676 | K83: 0 | L83: 1122
A84: 12 | B84: 11774 | C84: 23 | D84: 11784 | E84: 24 | F84: 11792 | G84: 23 | H84: 11800 | K84: 0 | L84: 1222
A85: 12 | B85: 11892 | C85: 23 | D85: 11900 | E85: 24 | F85: 11908 | G85: 23 | H85: 11924 | K85: 0 | L85: 1222
A86: 12 | B86: 12021 | C86: 14 | D86: 12032 | E86: 24 | F86: 12041 | G86: 23 | H86: 12070 | K86: 0 | L86: 1122
A87: 12 | B87: 12190 | C87: 14 | D87: 12207 | E87: 24 | F87: 12217 | G87: 23 | H87: 12250 | K87: 0 | L87: 1122
A88: 12 | B88: 12347 | C88: 14 | D88: 12355 | E88: 24 | F88: 12381 | G88: 23 | H88: 12396 | K88: 0 | L88: 1122
A89: 12 | B89: 12511 | C89: 23 | D89: 12520 | E89: 24 | F89: 12528 | G89: 23 | H89: 12537 | K89: 0 | L89: 1222
A90: 12 | B90: 12629 | C90: 23 | D90: 12661 | E90: 24 | F90: 12671 | G90: 23 | H90: 12685 | K90: 0 | L90: 1222
A91: 12 | B91: 12782 | C91: 14 | D91: 12791 | E91: 24 | F91: 12800 | G91: 23 | H91: 12808 | K91: 0 | L91: 1122
A92: 12 | B92: 12905 | C92: 14 | D92: 12913 | E92: 24 | F92: 12919 | G92: 23 | H92: 12925 | K92: 0 | L92: 1122
A93: 12 | B93: 13025 | C93: 14 | D93: 13030 | E93: 24 | F93: 13041 | G93: 23 | H93: 13049 | K93: 0 | L93: 1122
A94: 12 | B94: 13147 | C94: 14 | D94: 13156 | E94: 24 | F94: 13166 | G94: 23 | H94: 13176 | K94: 0 | L94: 1122
A95: 12 | B95: 13288 | C95: 23 | D95: 13301 | E95: 24 | F95: 13309 | G95: 23 | H95: 13318 | K95: 0 | L95: 1222
A96: 12 | B96: 13419 | C96: 14 | D96: 13426 | E96: 24 | F96: 13434 | G96: 23 | H96: 13443 | K96: 0 | L96: 1122
A97: 12 | B97: 13534 | C97: 14 | D97: 13539 | E97: 24 | F97: 13549 | G97: 23 | H97: 13557 | K97: 0 | L97: 1122
A98: 12 | B98: 13658 | C98: 23 | D98: 13668 | E98: 24 | F98: 13676 | G98: 23 | H98: 13688 | K98: 0 | L98: 1222
A99: 12 | B99: 13786 | C99: 14 | D99: 13795 | E99: 24 | F99: 13804 | G99: 23 | H99: 13811 | K99: 0 | L99: 1122
A100: 12 | B100: 13904 | C100: 14 | D100: 13912 | E100: 24 | F100: 13921 | G100: 23 | H100: 13929 | K100: 0 | L100: 1122
A101: 12 | B101: 14016 | C101: 14 | D101: 14026 | E101: 24 | F101: 14036 | G101: 23 | H101: 14044 | K101: 0 | L101: 1122
A102: 12 | B102: 14141 | C102: 14 | D102: 14146 | E102: 24 | F102: 14155 | G102: 23 | H102: 14163 | K102: 0 | L102: 1122
A103: 12 | B103: 14252 | C103: 14 | D103: 14265 | E103: 24 | F103: 14274 | G103: 23 | H103: 14289 | K103: 0 | L103: 1122
A104: 12 | B104: 14386 | C104: 14 | D104: 14391 | E104: 24 | F104: 14401 | G104: 23 | H104: 14417 | K104: 0 | L104: 1122
A105: 12 | B105: 14528 | C105: 23 | D105: 14561 | E105: 24 | F105: 14575 | G105: 23 | H105: 14589 | K105: 0 | L105: 1222
A106: 12 | B106: 14693 | C106: 14 | D106: 14701 | E106: 24 | F106: 14731 | G106: 23 | H106: 14759 | K106: 0 | L106: 1122
A107: 12 | B107: 14848 | C107: 14 | D107: 14853 | E107: 24 | F107: 14862 | G107: 23 | H107: 14877 | K107: 0 | L107: 1122
A108: 12 | B108: 14970 | C108: 14 | D108: 14975 | E108: 24 | F108: 14984 | G108: 23 | H108: 14991 | K108: 0 | L108: 1122
A109: 12 | B109: 15090 | C109: 14 | D109: 15095 | E109: 24 | F109: 15112 | G109: 23 | H109: 15120 | K109: 0 | L109: 1122
A110: 12 | B110: 15224 | C110: 14 | D110: 15234 | E110: 24 | F110: 15244 | G110: 23 | H110: 15251 | K110: 0 | L110: 1122
A111: 12 | B111: 15353 | C111: 14 | D111: 15360 | E111: 24 | F111: 15391 | G111: 23 | H111: 15407 | K111: 0 | L111: 1122
A112: 12 | B112: 15496 | C112: 14 | D112: 15501 | E112: 24 | F112: 15511 | G112: 23 | H112: 15524 | K112: 0 | L112: 1122
A113: 12 | B113: 15621 | C113: 14 | D113: 15628 | E113: 13 | F113: 15633 | G113: 23 | H113: 15643 | K113: 0 | L113: 1112
A114: 12 | B114: 15744 | C114: 23 | D114: 15754 | E114: 24 | F114: 15763 | G114: 23 | H114: 15770 | K114: 0 | L114: 1222
A115: 12 | B115: 15871 | C115: 14 | D115: 15880 | E115: 24 | F115: 15899 | G115: 23 | H115: 15911 | K115: 0 | L115: 1122
A116: 12 | B116: 16008 | C116: 14 | D116: 16015 | E116: 24 | F116: 16026 | G116: 23 | H116: 16039 | K116: 0 | L116: 1122
A117: 12 | B117: 16139 | C117: 14 | D117: 16150 | E117: 24 | F117: 16169 | G117: 23 | H117: 16196 | K117: 0 | L117: 1122
A118: 12 | B118: 16293 | C118: 14 | D118: 16300 | E118: 24 | F118: 16310 | G118: 23 | H118: 16318 | K118: 0 | L118: 1122
A119: 12 | B119: 16415 | C119: 14 | D119: 16421 | E119: 24 | F119: 16430 | G119: 23 | H119: 16452 | K119: 0 | L119: 1122
A120: 12 | B120: 16562 | C120: 14 | D120: 16605 | E120: 24 | F120: 16615 | G120: 23 | H120: 16623 | K120: 0 | L120: 1122
A121: 12 | B121: 16711 | C121: 14 | D121: 16720 | E121: 24 | F121: 16760 | G121: 23 | H121: 16767 | K121: 0 | L121: 1122
A122: 12 | B122: 16866 | C122: 14 | D122: 16874 | E122: 24 | F122: 16883 | G122: 23 | H122: 16896 | K122: 0 | L122: 1122
A123: 12 | B123: 16996 | C123: 14 | D123: 17001 | E123: 24 | F123: 17011 | G123: 23 | H123: 17019 | K123: 0 | L123: 1122
A124: 12 | B124: 17230 | C124: 23 | D124: 17244 | E124: 24 | F124: 17251 | G124: 23 | H124: 17267 | K124: 0 | L124: 1222
A125: 12 | B125: 17358 | C125: 14 | D125: 17363 | E125: 24 | F125: 17373 | G125: 23 | H125: 17381 | K125: 0 | L125: 1122
A126: 12 | B126: 17485 | C126: 23 | D126: 17495 | E126: 24 | F126: 17515 | G126: 23 | H126: 17535 | K126: 0 | L126: 1222
A127: 12 | B127: 17639 | C127: 14 | D127: 17655 | E127: 24 | F127: 17683 | G127: 23 | H127: 17691 | K127: 0 | L127: 1122
A128: 21 | B128: 17834 | C128: 21 | D128: 17847 | E128: 22 | F128: 17856 | G128: 23 | H128: 17866 | K128: 0 | L128: 2222
A129: 12 | B129: 17966 | C129: 23 | D129: 17976 | E129: 24 | F129: 17983 | G129: 23 | H129: 17991 | K129: 0 | L129: 1222
A130: 12 | B130: 18103 | C130: 23 | D130: 18119 | E130: 24 | F130: 18127 | G130: 23 | H130: 18159 | K130: 0 | L130: 1222
A131: 12 | B131: 18283 | C131: 23 | D131: 18293 | E131: 24 | F131: 18315 | G131: 23 | H131: 18337 | K131: 0 | L131: 1222
A132: 12 | B132: 18453 | C132: 23 | D132: 18463 | E132: 24 | F132: 18484 | G132: 23 | H132: 18492 | K132: 0 | L132: 1222
A133: 12 | B133: 18603 | C133: 23 | D133: 18620 | E133: 24 | F133: 18636 | G133: 23 | H133: 18651 | K133: 0 | L133: 1222
A134: 12 | B134: 18757 | C134: 23 | D134: 18768 | E134: 24 | F134: 18775 | G134: 23 | H134: 18783 | K134: 0 | L134: 1222
A135: 12 | B135: 18888 | C135: 14 | D135: 18897 | E135: 24 | F135: 18907 | G135: 23 | H135: 18927 | K135: 0 | L135: 1122
A136: 12 | B136: 19016 | C136: 23 | D136: 19027 | E136: 24 | F136: 19034 | G136: 23 | H136: 19045 | K136: 0 | L136: 1222
A137: 12 | B137: 19143 | C137: 14 | D137: 19149 | E137: 24 | F137: 19160 | G137: 23 | H137: 19168 | K137: 0 | L137: 1122
A138: 12 | B138: 19264 | C138: 14 | D138: 19272 | E138: 24 | F138: 19281 | G138: 23 | H138: 19288 | K138: 0 | L138: 1122
A139: 12 | B139: 19396 | C139: 14 | D139: 19405 | E139: 24 | F139: 19415 | G139: 23 | H139: 19429 | K139: 0 | L139: 1122
A140: 12 | B140: 19527 | C140: 14 | D140: 19534 | E140: 24 | F140: 19543 | G140: 23 | H140: 19584 | K140: 0 | L140: 1122
A141: 12 | B141: 19702 | C141: 14 | D141: 19722 | E141: 24 | F141: 19757 | G141: 23 | H141: 19772 | K141: 0 | L141: 1122
A142: 12 | B142: 19881 | C142: 23 | D142: 19891 | E142: 24 | F142: 19912 | G142: 23 | H142: 19919 | K142: 0 | L142: 1222
A143: 12 | B143: 20011 | C143: 14 | D143: 20020 | E143: 24 | F143: 20029 | G143: 23 | H143: 20036 | K143: 0 | L143: 1122
A144: 12 | B144: 20134 | C144: 23 | D144: 20144 | E144: 24 | F144: 20151 | G144: 23 | H144: 20158 | K144: 0 | L144: 1222
A145: 12 | B145: 20263 | C145: 14 | D145: 20272 | E145: 24 | F145: 20282 | G145: 23 | H145: 20287 | K145: 0 | L145: 1122
A146: 12 | B146: 20377 | C146: 14 | D146: 20382 | E146: 24 | F146: 20391 | G146: 23 | H146: 20398 | K146: 0 | L146: 1122
A147: 12 | B147: 20498 | C147: 23 | D147: 20508 | E147: 24 | F147: 20516 | G147: 23 | H147: 20524 | K147: 0 | L147: 1222
A148: 12 | B148: 20627 | C148: 23 | D148: 20640 | E148: 24 | F148: 20658 | G148: 23 | H148: 20666 | K148: 0 | L148: 1222
A149: 12 | B149: 20772 | C149: 14 | D149: 20780 | E149: 24 | F149: 20790 | G149: 23 | H149: 20796 | K149: 0 | L149: 1122
A150: 12 | B150: 20887 | C150: 14 | D150: 20897 | E150: 24 | F150: 20907 | G150: 23 | H150: 20915 | K150: 0 | L150: 1122
A151: 12 | B151: 21006 | C151: 14 | D151: 21015 | E151: 24 | F151: 21024 | G151: 23 | H151: 21031 | K151: 0 | L151: 1122
A152: 12 | B152: 21129 | C152: 14 | D152: 21135 | E152: 24 | F152: 21151 | G152: 23 | H152: 21161 | K152: 0 | L152: 1122
A153: 12 | B153: 21261 | C153: 23 | D153: 21271 | E153: 24 | F153: 21297 | G153: 23 | H153: 21304 | K153: 0 | L153: 1222
A154: 12 | B154: 21404 | C154: 14 | D154: 21410 | E154: 24 | F154: 21428 | G154: 23 | H154: 21442 | K154: 0 | L154: 1122
A155: 12 | B155: 21559 | C155: 23 | D155: 21576 | E155: 24 | F155: 21607 | G155: 23 | H155: 21625 | K155: 0 | L155: 1222
A156: 12 | B156: 21715 | C156: 14 | D156: 21721 | E156: 24 | F156: 21729 | G156: 23 | H156: 21744 | K156: 0 | L156: 1122
A157: 12 | B157: 21846 | C157: 14 | D157: 21850 | E157: 13 | F157: 21860 | G157: 23 | H157: 21876 | K157: 0 | L157: 1112
A158: 12 | B158: 21979 | C158: 14 | D158: 21990 | E158: 24 | F158: 22030 | G158: 23 | H158: 22048 | K158: 0 | L158: 1122
A159: 12 | B159: 22153 | C159: 14 | D159: 22161 | E159: 24 | F159: 22170 | G159: 23 | H159: 22185 | K159: 0 | L159: 1122
A160: 12 | B160: 22281 | C160: 14 | D160: 22286 | E160: 24 | F160: 22321 | G160: 23 | H160: 22329 | K160: 0 | L160: 1122
A161: 12 | B161: 22430 | C161: 23 | D161: 22436 | E161: 24 | F161: 22444 | G161: 23 | H161: 22452 | K161: 0 | L161: 1222
A162: 12 | B162: 22561 | C162: 23 | D162: 22574 | E162: 24 | F162: 22590 | G162: 23 | H162: 22601 | K162: 0 | L162: 1222
A163: 12 | B163: 22711 | C163: 14 | D163: 22720 | E163: 24 | F163: 22731 | G163: 23 | H163: 22747 | K163: 0 | L163: 1122
A164: 12 | B164: 22850 | C164: 14 | D164: 22856 | E164: 24 | F164: 22866 | G164: 23 | H164: 22874 | K164: 0 | L164: 1122
A165: 12 | B165: 22971 | C165: 14 | D165: 22977 | E165: 24 | F165: 22994 | G165: 23 | H165: 23001 | K165: 0 | L165: 1122
A166: 12 | B166: 23104 | C166: 23 | D166: 23141 | E166: 24 | F166: 23149 | G166: 23 | H166: 23158 | K166: 0 | L166: 1222
A167: 12 | B167: 23268 | C167: 14 | D167: 23277 | E167: 24 | F167: 23300 | G167: 23 | H167: 23308 | K167: 0 | L167: 1122
A168: 12 | B168: 23399 | C168: 14 | D168: 23405 | E168: 24 | F168: 23414 | G168: 23 | H168: 23428 | K168: 0 | L168: 1122
A169: 12 | B169: 23525 | C169: 14 | D169: 23531 | E169: 24 | F169: 23541 | G169: 23 | H169: 23549 | K169: 0 | L169: 1122
A170: 12 | B170: 23666 | C170: 23 | D170: 23683 | E170: 24 | F170: 23691 | G170: 23 | H170: 23704 | K170: 0 | L170: 1222
A171: 12 | B171: 23812 | C171: 23 | D171: 23836 | E171: 24 | F171: 23850 | G171: 23 | H171: 23865 | K171: 0 | L171: 1222
A172: 12 | B172: 23962 | C172: 14 | D172: 23966 | E172: 24 | F172: 23976 | L172: 112

Sheet !L901B40.056
A1: Report for:!L901B40.056
A2: Date: | B2: <date>
A3: Hen: | B3: <hen> | F3: Correct Sequence | G3: =Start!J2 -> 2212 | P3: Total Sequences in Data | Q3: =4994-COUNTBLANK(L7:L5000) -> 173 | V3: Total Sequences in Block Data | W3: =COUNTA(L7:L35) -> 29 | AA3: Total Sequences in Block Data | AB3: =COUNTA(L36:L64) -> 29 | AF3: Total Sequences in Block Data | AG3: =COUNTA(L65:L92) -> 28 | AK3: Total Sequences in Block Data | AL3: =COUNTA(L93:L121) -> 29 | AP3: Total Sequences in Block Data | AQ3: =COUNTA(L122:L150) -> 29 | AU3: Total Sequences in Block Data | AV3: =COUNTA(L151:L179) -> 29
P4: Total Sequences in Summary | Q4: =SUM(O7:O22) -> 173 | V4: Total Sequences in Block Summary | W4: =SUM(U7:U22) -> 29 | AA4: Total Sequences in Block Summary | AB4: =SUM(Z7:Z22) -> 29 | AF4: Total Sequences in Block Summary | AG4: =SUM(AE7:AE22) -> 28 | AK4: Total Sequences in Block Summary | AL4: =SUM(AJ7:AJ22) -> 29 | AP4: Total Sequences in Block Summary | AQ4: =SUM(AO7:AO22) -> 29 | AU4: Total Sequences in Block Summary | AV4: =SUM(AT7:AT22) -> 29
T5: Block 1 | Y5: Block 2 | AD5: Block 3 | AI5: Block 4 | AN5: Block 5 | AS5: Block 6
A6: Sequence Component 1 | B6: Time 1 | C6: Sequence Component 2 | D6: Time 2 | E6: Sequence Component 3 | F6: Time 3 | G6: Sequence Component 4 | H6: Time 4 | I6: Sequence Component 5 | J6: Time 5 | K6: Correct? 0=No 1=Yes | L6: Sequence | N6: Frequency | P6: Relative Frequency | Q6: Variability | T6: Frequency | V6: Relative Frequency | W6: Variability | Y6: Frequency | AA6: Relative Frequency | AB6: Variability | AD6: Frequency | AF6: Relative Frequency | AG6: Variability | AI6: Frequency | AK6: Relative Frequency | AL6: Variability | AN6: Frequency | AP6: Relative Frequency | AQ6: Variability | AS6: Frequency | AU6: Relative Frequency | AV6: Variability
A7: 12 | B7: 28 | C7: 23 | D7: 38 | E7: 24 | F7: 53 | G7: 14 | H7: 78 | K7: 0 | L7: 1221 | N7: 1111 | O7: =COUNTIF($L$7:$L$500,N7) -> 8 | P7: =O7/$Q$4 -> 0.04624277457 | Q7: =IF(P7=0,0,(P7*((LOG(P7))/LOG(2)))) -> -0.2050695134 | T7: =N7 -> 1111 | U7: =COUNTIF(L7:L35,T7) -> 0 | V7: =U7/(W4-U20) -> 0 | W7: =IF(V7=0,0,(V7*((LOG(V7))/LOG(2)))) -> 0 | Y7: =N7 -> 1111 | Z7: =COUNTIF(L36:L64,Y7) -> 0 | AA7: =Z7/(AB4-Z20) -> 0 | AB7: =IF(AA7=0,0,(AA7*((LOG(AA7))/LOG(2)))) -> 0 | AD7: =N7 -> 1111 | AE7: =COUNTIF(L65:L92,AD7) -> 0 | AF7: =AE7/(AG4-AE20) -> 0 | AG7: =IF(AF7=0,0,(AF7*((LOG(AF7))/LOG(2)))) -> 0 | AI7: =N7 -> 1111 | AJ7: =COUNTIF(L93:L121,AI7) -> 0 | AK7: =AJ7/(AL4-AJ20) -> 0 | AL7: =IF(AK7=0,0,(AK7*((LOG(AK7))/LOG(2)))) -> 0 | AN7: =N7 -> 1111 | AO7: =COUNTIF(L122:L150,AN7) -> 1 | AP7: =AO7/(AQ4-AO20) -> 0.03448275862 | AQ7: =IF(AP7=0,0,(AP7*((LOG(AP7))/LOG(2)))) -> -0.167516586 | AS7: =N7 -> 1111 | AT7: =COUNTIF(L151:L179,AS7) -> 7 | AU7: =AT7/(AV4-AT20) -> 0.2413793103 | AV7: =IF(AU7=0,0,(AU7*((LOG(AU7))/LOG(2)))) -> -0.4949787073
A8: 12 | B8: 182 | C8: 14 | D8: 187 | E8: 24 | F8: 197 | G8: 23 | H8: 208 | K8: 0 | L8: 1122 | N8: 1112 | O8: =COUNTIF($L$7:$L$500,N8) -> 48 | P8: =O8/$Q$4 -> 0.2774566474 | Q8: =IF(P8=0,0,(P8*((LOG(P8))/LOG(2)))) -> -0.5132020514 | T8: =N8 -> 1112 | U8: =COUNTIF(L7:L35,T8) -> 2 | V8: =U8/(W4-U20) -> 0.06896551724 | W8: =IF(V8=0,0,(V8*((LOG(V8))/LOG(2)))) -> -0.2660676548 | Y8: =N8 -> 1112 | Z8: =COUNTIF(L36:L64,Y8) -> 3 | AA8: =Z8/(AB4-Z20) -> 0.1034482759 | AB8: =IF(AA8=0,0,(AA8*((LOG(AA8))/LOG(2)))) -> -0.3385881201 | AD8: =N8 -> 1112 | AE8: =COUNTIF(L65:L92,AD8) -> 5 | AF8: =AE8/(AG4-AE20) -> 0.1785714286 | AG8: =IF(AF8=0,0,(AF8*((LOG(AF8))/LOG(2)))) -> -0.4438262191 | AI8: =N8 -> 1112 | AJ8: =COUNTIF(L93:L121,AI8) -> 9 | AK8: =AJ8/(AL4-AJ20) -> 0.3103448276 | AL8: =IF(AK8=0,0,(AK8*((LOG(AK8))/LOG(2)))) -> -0.5238794463 | AN8: =N8 -> 1112 | AO8: =COUNTIF(L122:L150,AN8) -> 13 | AP8: =AO8/(AQ4-AO20) -> 0.4482758621 | AQ8: =IF(AP8=0,0,(AP8*((LOG(AP8))/LOG(2)))) -> -0.5188978138 | AS8: =N8 -> 1112 | AT8: =COUNTIF(L151:L179,AS8) -> 16 | AU8: =AT8/(AV4-AT20) -> 0.5517241379 | AV8: =IF(AU8=0,0,(AU8*((LOG(AU8))/LOG(2)))) -> -0.4733688249
A9: 12 | B9: 303 | C9: 23 | D9: 317 | E9: 24 | F9: 326 | G9: 23 | H9: 335 | K9: 0 | L9: 1222 | N9: 1121 | O9: =COUNTIF($L$7:$L$500,N9) -> 1 | P9: =O9/$Q$4 -> 0.005780346821 | Q9: =IF(P9=0,0,(P9*((LOG(P9))/LOG(2)))) -> -0.04297472964 | T9: =N9 -> 1121 | U9: =COUNTIF(L7:L35,T9) -> 0 | V9: =U9/(W4-U20) -> 0 | W9: =IF(V9=0,0,(V9*((LOG(V9))/LOG(2)))) -> 0 | Y9: =N9 -> 1121 | Z9: =COUNTIF(L36:L64,Y9) -> 0 | AA9: =Z9/(AB4-Z20) -> 0 | AB9: =IF(AA9=0,0,(AA9*((LOG(AA9))/LOG(2)))) -> 0 | AD9: =N9 -> 1121 | AE9: =COUNTIF(L65:L92,AD9) -> 0 | AF9: =AE9/(AG4-AE20) -> 0 | AG9: =IF(AF9=0,0,(AF9*((LOG(AF9))/LOG(2)))) -> 0 | AI9: =N9 -> 1121 | AJ9: =COUNTIF(L93:L121,AI9) -> 1 | AK9: =AJ9/(AL4-AJ20) -> 0.03448275862 | AL9: =IF(AK9=0,0,(AK9*((LOG(AK9))/LOG(2)))) -> -0.167516586 | AN9: =N9 -> 1121 | AO9: =COUNTIF(L122:L150,AN9) -> 0 | AP9: =AO9/(AQ4-AO20) -> 0 | AQ9: =IF(AP9=0,0,(AP9*((LOG(AP9))/LOG(2)))) -> 0 | AS9: =N9 -> 1121 | AT9: =COUNTIF(L151:L179,AS9) -> 0 | AU9: =AT9/(AV4-AT20) -> 0 | AV9: =IF(AU9=0,0,(AU9*((LOG(AU9))/LOG(2)))) -> 0
A10: 12 | B10: 437 | C10: 14 | D10: 444 | E10: 24 | F10: 452 | G10: 23 | H10: 460 | K10: 0 | L10: 1122 | N10: 1122 | O10: =COUNTIF($L$7:$L$500,N10) -> 87 | P10: =O10/$Q$4 -> 0.5028901734 | Q10: =IF(P10=0,0,(P10*((LOG(P10))/LOG(2)))) -> -0.4987085067 | T10: =N10 -> 1122 | U10: =COUNTIF(L7:L35,T10) -> 18 | V10: =U10/(W4-U20) -> 0.6206896552 | W10: =IF(V10=0,0,(V10*((LOG(V10))/LOG(2)))) -> -0.4270692375 | Y10: =N10 -> 1122 | Z10: =COUNTIF(L36:L64,Y10) -> 23 | AA10: =Z10/(AB4-Z20) -> 0.7931034483 | AB10: =IF(AA10=0,0,(AA10*((LOG(AA10))/LOG(2)))) -> -0.2652288931 | AD10: =N10 -> 1122 | AE10: =COUNTIF(L65:L92,AD10) -> 13 | AF10: =AE10/(AG4-AE20) -> 0.4642857143 | AG10: =IF(AF10=0,0,(AF10*((LOG(AF10))/LOG(2)))) -> -0.5139249161 | AI10: =N10 -> 1122 | AJ10: =COUNTIF(L93:L121,AI10) -> 17 | AK10: =AJ10/(AL4-AJ20) -> 0.5862068966 | AL10: =IF(AK10=0,0,(AK10*((LOG(AK10))/LOG(2)))) -> -0.4516830557 | AN10: =N10 -> 1122 | AO10: =COUNTIF(L122:L150,AN10) -> 11 | AP10: =AO10/(AQ4-AO20) -> 0.3793103448 | AQ10: =IF(AP10=0,0,(AP10*((LOG(AP10))/LOG(2)))) -> -0.5304842463 | AS10: =N10 -> 1122 | AT10: =COUNTIF(L151:L179,AS10) -> 5 | AU10: =AT10/(AV4-AT20) -> 0.1724137931 | AV10: =IF(AU10=0,0,(AU10*((LOG(AU10))/LOG(2)))) -> -0.4372505
A11: 12 | B11: 563 | C11: 14 | D11: 568 | E11: 24 | F11: 598 | G11: 23 | H11: 623 | K11: 0 | L11: 1122 | N11: 1211 | O11: =COUNTIF($L$7:$L$500,N11) -> 0 | P11: =O11/$Q$4 -> 0 | Q11: =IF(P11=0,0,(P11*((LOG(P11))/LOG(2)))) -> 0 | T11: =N11 -> 1211 | U11: =COUNTIF(L7:L35,T11) -> 0 | V11: =U11/(W4-U20) -> 0 | W11: =IF(V11=0,0,(V11*((LOG(V11))/LOG(2)))) -> 0 | Y11: =N11 -> 1211 | Z11: =COUNTIF(L36:L64,Y11) -> 0 | AA11: =Z11/(AB4-Z20) -> 0 | AB11: =IF(AA11=0,0,(AA11*((LOG(AA11))/LOG(2)))) -> 0 | AD11: =N11 -> 1211 | AE11: =COUNTIF(L65:L92,AD11) -> 0 | AF11: =AE11/(AG4-AE20) -> 0 | AG11: =IF(AF11=0,0,(AF11*((LOG(AF11))/LOG(2)))) -> 0 | AI11: =N11 -> 1211 | AJ11: =COUNTIF(L93:L121,AI11) -> 0 | AK11: =AJ11/(AL4-AJ20) -> 0 | AL11: =IF(AK11=0,0,(AK11*((LOG(AK11))/LOG(2)))) -> 0 | AN11: =N11 -> 1211 | AO11: =COUNTIF(L122:L150,AN11) -> 0 | AP11: =AO11/(AQ4-AO20) -> 0 | AQ11: =IF(AP11=0,0,(AP11*((LOG(AP11))/LOG(2)))) -> 0 | AS11: =N11 -> 1211 | AT11: =COUNTIF(L151:L179,AS11) -> 0 | AU11: =AT11/(AV4-AT20) -> 0 | AV11: =IF(AU11=0,0,(AU11*((LOG(AU11))/LOG(2)))) -> 0
A12: 12 | B12: 731 | C12: 23 | D12: 763 | E12: 24 | F12: 772 | G12: 23 | H12: 780 | K12: 0 | L12: 1222 | N12: 1212 | O12: =COUNTIF($L$7:$L$500,N12) -> 0 | P12: =O12/$Q$4 -> 0 | Q12: =IF(P12=0,0,(P12*((LOG(P12))/LOG(2)))) -> 0 | T12: =N12 -> 1212 | U12: =COUNTIF(L7:L35,T12) -> 0 | V12: =U12/(W4-U20) -> 0 | W12: =IF(V12=0,0,(V12*((LOG(V12))/LOG(2)))) -> 0 | Y12: =N12 -> 1212 | Z12: =COUNTIF(L36:L64,Y12) -> 0 | AA12: =Z12/(AB4-Z20) -> 0 | AB12: =IF(AA12=0,0,(AA12*((LOG(AA12))/LOG(2)))) -> 0 | AD12: =N12 -> 1212 | AE12: =COUNTIF(L65:L92,AD12) -> 0 | AF12: =AE12/(AG4-AE20) -> 0 | AG12: =IF(AF12=0,0,(AF12*((LOG(AF12))/LOG(2)))) -> 0 | AI12: =N12 -> 1212 | AJ12: =COUNTIF(L93:L121,AI12) -> 0 | AK12: =AJ12/(AL4-AJ20) -> 0 | AL12: =IF(AK12=0,0,(AK12*((LOG(AK12))/LOG(2)))) -> 0 | AN12: =N12 -> 1212 | AO12: =COUNTIF(L122:L150,AN12) -> 0 | AP12: =AO12/(AQ4-AO20) -> 0 | AQ12: =IF(AP12=0,0,(AP12*((LOG(AP12))/LOG(2)))) -> 0 | AS12: =N12 -> 1212 | AT12: =COUNTIF(L151:L179,AS12) -> 0 | AU12: =AT12/(AV4-AT20) -> 0 | AV12: =IF(AU12=0,0,(AU12*((LOG(AU12))/LOG(2)))) -> 0
A13: 12 | B13: 887 | C13: 14 | D13: 897 | E13: 24 | F13: 906 | G13: 23 | H13: 920 | K13: 0 | L13: 1122 | N13: 1221 | O13: =COUNTIF($L$7:$L$500,N13) -> 3 | P13: =O13/$Q$4 -> 0.01734104046 | Q13: =IF(P13=0,0,(P13*((LOG(P13))/LOG(2)))) -> -0.1014392901 | T13: =N13 -> 1221 | U13: =COUNTIF(L7:L35,T13) -> 3 | V13: =U13/(W4-U20) -> 0.1034482759 | W13: =IF(V13=0,0,(V13*((LOG(V13))/LOG(2)))) -> -0.3385881201 | Y13: =N13 -> 1221 | Z13: =COUNTIF(L36:L64,Y13) -> 0 | AA13: =Z13/(AB4-Z20) -> 0 | AB13: =IF(AA13=0,0,(AA13*((LOG(AA13))/LOG(2)))) -> 0 | AD13: =N13 -> 1221 | AE13: =COUNTIF(L65:L92,AD13) -> 0 | AF13: =AE13/(AG4-AE20) -> 0 | AG13: =IF(AF13=0,0,(AF13*((LOG(AF13))/LOG(2)))) -> 0 | AI13: =N13 -> 1221 | AJ13: =COUNTIF(L93:L121,AI13) -> 0 | AK13: =AJ13/(AL4-AJ20) -> 0 | AL13: =IF(AK13=0,0,(AK13*((LOG(AK13))/LOG(2)))) -> 0 | AN13: =N13 -> 1221 | AO13: =COUNTIF(L122:L150,AN13) -> 0 | AP13: =AO13/(AQ4-AO20) -> 0 | AQ13: =IF(AP13=0,0,(AP13*((LOG(AP13))/LOG(2)))) -> 0 | AS13: =N13 -> 1221 | AT13: =COUNTIF(L151:L179,AS13) -> 0 | AU13: =AT13/(AV4-AT20) -> 0 | AV13: =IF(AU13=0,0,(AU13*((LOG(AU13))/LOG(2)))) -> 0
A14: 12 | B14: 1032 | C14: 14 | D14: 1039 | E14: 24 | F14: 1065 | G14: 23 | H14: 1083 | K14: 0 | L14: 1122 | N14: 1222 | O14: =COUNTIF($L$7:$L$500,N14) -> 26 | P14: =O14/$Q$4 -> 0.1502890173 | Q14: =IF(P14=0,0,(P14*((LOG(P14))/LOG(2)))) -> -0.4109185043 | T14: =N14 -> 1222 | U14: =COUNTIF(L7:L35,T14) -> 6 | V14: =U14/(W4-U20) -> 0.2068965517 | W14: =IF(V14=0,0,(V14*((LOG(V14))/LOG(2)))) -> -0.4702796885 | Y14: =N14 -> 1222 | Z14: =COUNTIF(L36:L64,Y14) -> 3 | AA14: =Z14/(AB4-Z20) -> 0.1034482759 | AB14: =IF(AA14=0,0,(AA14*((LOG(AA14))/LOG(2)))) -> -0.3385881201 | AD14: =N14 -> 1222 | AE14: =COUNTIF(L65:L92,AD14) -> 10 | AF14: =AE14/(AG4-AE20) -> 0.3571428571 | AG14: =IF(AF14=0,0,(AF14*((LOG(AF14))/LOG(2)))) -> -0.5305095811 | AI14: =N14 -> 1222 | AJ14: =COUNTIF(L93:L121,AI14) -> 2 | AK14: =AJ14/(AL4-AJ20) -> 0.06896551724 | AL14: =IF(AK14=0,0,(AK14*((LOG(AK14))/LOG(2)))) -> -0.2660676548 | AN14: =N14 -> 1222 | AO14: =COUNTIF(L122:L150,AN14) -> 4 | AP14: =AO14/(AQ4-AO20) -> 0.1379310345 | AQ14: =IF(AP14=0,0,(AP14*((LOG(AP14))/LOG(2)))) -> -0.3942042752 | AS14: =N14 -> 1222 | AT14: =COUNTIF(L151:L179,AS14) -> 1 | AU14: =AT14/(AV4-AT20) -> 0.03448275862 | AV14: =IF(AU14=0,0,(AU14*((LOG(AU14))/LOG(2)))) -> -0.167516586
A15: 12 | B15: 1198 | C15: 23 | D15: 1223 | E15: 24 | F15: 1231 | G15: 23 | H15: 1240 | K15: 0 | L15: 1222 | N15: 2111 | O15: =COUNTIF($L$7:$L$500,N15) -> 0 | P15: =O15/$Q$4 -> 0 | Q15: =IF(P15=0,0,(P15*((LOG(P15))/LOG(2)))) -> 0 | T15: =N15 -> 2111 | U15: =COUNTIF(L7:L35,T15) -> 0 | V15: =U15/(W4-U20) -> 0 | W15: =IF(V15=0,0,(V15*((LOG(V15))/LOG(2)))) -> 0 | Y15: =N15 -> 2111 | Z15: =COUNTIF(L36:L64,Y15) -> 0 | AA15: =Z15/(AB4-Z20) -> 0 | AB15: =IF(AA15=0,0,(AA15*((LOG(AA15))/LOG(2)))) -> 0 | AD15: =N15 -> 2111 | AE15: =COUNTIF(L65:L92,AD15) -> 0 | AF15: =AE15/(AG4-AE20) -> 0 | AG15: =IF(AF15=0,0,(AF15*((LOG(AF15))/LOG(2)))) -> 0 | AI15: =N15 -> 2111 | AJ15: =COUNTIF(L93:L121,AI15) -> 0 | AK15: =AJ15/(AL4-AJ20) -> 0 | AL15: =IF(AK15=0,0,(AK15*((LOG(AK15))/LOG(2)))) -> 0 | AN15: =N15 -> 2111 | AO15: =COUNTIF(L122:L150,AN15) -> 0 | AP15: =AO15/(AQ4-AO20) -> 0 | AQ15: =IF(AP15=0,0,(AP15*((LOG(AP15))/LOG(2)))) -> 0 | AS15: =N15 -> 2111 | AT15: =COUNTIF(L151:L179,AS15) -> 0 | AU15: =AT15/(AV4-AT20) -> 0 | AV15: =IF(AU15=0,0,(AU15*((LOG(AU15))/LOG(2)))) -> 0
A16: 12 | B16: 1347 | C16: 14 | D16: 1365 | E16: 24 | F16: 1425 | G16: 23 | H16: 1437 | K16: 0 | L16: 1122 | N16: 2112 | O16: =COUNTIF($L$7:$L$500,N16) -> 0 | P16: =O16/$Q$4 -> 0 | Q16: =IF(P16=0,0,(P16*((LOG(P16))/LOG(2)))) -> 0 | T16: =N16 -> 2112 | U16: =COUNTIF(L7:L35,T16) -> 0 | V16: =U16/(W4-U20) -> 0 | W16: =IF(V16=0,0,(V16*((LOG(V16))/LOG(2)))) -> 0 | Y16: =N16 -> 2112 | Z16: =COUNTIF(L36:L64,Y16) -> 0 | AA16: =Z16/(AB4-Z20) -> 0 | AB16: =IF(AA16=0,0,(AA16*((LOG(AA16))/LOG(2)))) -> 0 | AD16: =N16 -> 2112 | AE16: =COUNTIF(L65:L92,AD16) -> 0 | AF16: =AE16/(AG4-AE20) -> 0 | AG16: =IF(AF16=0,0,(AF16*((LOG(AF16))/LOG(2)))) -> 0 | AI16: =N16 -> 2112 | AJ16: =COUNTIF(L93:L121,AI16) -> 0 | AK16: =AJ16/(AL4-AJ20) -> 0 | AL16: =IF(AK16=0,0,(AK16*((LOG(AK16))/LOG(2)))) -> 0 | AN16: =N16 -> 2112 | AO16: =COUNTIF(L122:L150,AN16) -> 0 | AP16: =AO16/(AQ4-AO20) -> 0 | AQ16: =IF(AP16=0,0,(AP16*((LOG(AP16))/LOG(2)))) -> 0 | AS16: =N16 -> 2112 | AT16: =COUNTIF(L151:L179,AS16) -> 0 | AU16: =AT16/(AV4-AT20) -> 0 | AV16: =IF(AU16=0,0,(AU16*((LOG(AU16))/LOG(2)))) -> 0
A17: 12 | B17: 1550 | C17: 23 | D17: 1576 | E17: 24 | F17: 1624 | G17: 14 | H17: 1649 | K17: 0 | L17: 1221 | N17: 2121 | O17: =COUNTIF($L$7:$L$500,N17) -> 0 | P17: =O17/$Q$4 -> 0 | Q17: =IF(P17=0,0,(P17*((LOG(P17))/LOG(2)))) -> 0 | T17: =N17 -> 2121 | U17: =COUNTIF(L7:L35,T17) -> 0 | V17: =U17/(W4-U20) -> 0 | W17: =IF(V17=0,0,(V17*((LOG(V17))/LOG(2)))) -> 0 | Y17: =N17 -> 2121 | Z17: =COUNTIF(L36:L64,Y17) -> 0 | AA17: =Z17/(AB4-Z20) -> 0 | AB17: =IF(AA17=0,0,(AA17*((LOG(AA17))/LOG(2)))) -> 0 | AD17: =N17 -> 2121 | AE17: =COUNTIF(L65:L92,AD17) -> 0 | AF17: =AE17/(AG4-AE20) -> 0 | AG17: =IF(AF17=0,0,(AF17*((LOG(AF17))/LOG(2)))) -> 0 | AI17: =N17 -> 2121 | AJ17: =COUNTIF(L93:L121,AI17) -> 0 | AK17: =AJ17/(AL4-AJ20) -> 0 | AL17: =IF(AK17=0,0,(AK17*((LOG(AK17))/LOG(2)))) -> 0 | AN17: =N17 -> 2121 | AO17: =COUNTIF(L122:L150,AN17) -> 0 | AP17: =AO17/(AQ4-AO20) -> 0 | AQ17: =IF(AP17=0,0,(AP17*((LOG(AP17))/LOG(2)))) -> 0 | AS17: =N17 -> 2121 | AT17: =COUNTIF(L151:L179,AS17) -> 0 | AU17: =AT17/(AV4-AT20) -> 0 | AV17: =IF(AU17=0,0,(AU17*((LOG(AU17))/LOG(2)))) -> 0
A18: 12 | B18: 1745 | C18: 14 | D18: 1750 | E18: 24 | F18: 1759 | G18: 23 | H18: 1767 | K18: 0 | L18: 1122 | N18: 2122 | O18: =COUNTIF($L$7:$L$500,N18) -> 0 | P18: =O18/$Q$4 -> 0 | Q18: =IF(P18=0,0,(P18*((LOG(P18))/LOG(2)))) -> 0 | T18: =N18 -> 2122 | U18: =COUNTIF(L7:L35,T18) -> 0 | V18: =U18/(W4-U20) -> 0 | W18: =IF(V18=0,0,(V18*((LOG(V18))/LOG(2)))) -> 0 | Y18: =N18 -> 2122 | Z18: =COUNTIF(L36:L64,Y18) -> 0 | AA18: =Z18/(AB4-Z20) -> 0 | AB18: =IF(AA18=0,0,(AA18*((LOG(AA18))/LOG(2)))) -> 0 | AD18: =N18 -> 2122 | AE18: =COUNTIF(L65:L92,AD18) -> 0 | AF18: =AE18/(AG4-AE20) -> 0 | AG18: =IF(AF18=0,0,(AF18*((LOG(AF18))/LOG(2)))) -> 0 | AI18: =N18 -> 2122 | AJ18: =COUNTIF(L93:L121,AI18) -> 0 | AK18: =AJ18/(AL4-AJ20) -> 0 | AL18: =IF(AK18=0,0,(AK18*((LOG(AK18))/LOG(2)))) -> 0 | AN18: =N18 -> 2122 | AO18: =COUNTIF(L122:L150,AN18) -> 0 | AP18: =AO18/(AQ4-AO20) -> 0 | AQ18: =IF(AP18=0,0,(AP18*((LOG(AP18))/LOG(2)))) -> 0 | AS18: =N18 -> 2122 | AT18: =COUNTIF(L151:L179,AS18) -> 0 | AU18: =AT18/(AV4-AT20) -> 0 | AV18: =IF(AU18=0,0,(AU18*((LOG(AU18))/LOG(2)))) -> 0
A19: 12 | B19: 1884 | C19: 23 | D19: 1893 | E19: 24 | F19: 1923 | G19: 14 | H19: 1941 | K19: 0 | L19: 1221 | N19: 2211 | O19: =COUNTIF($L$7:$L$500,N19) -> 0 | P19: =O19/$Q$4 -> 0 | Q19: =IF(P19=0,0,(P19*((LOG(P19))/LOG(2)))) -> 0 | T19: =N19 -> 2211 | U19: =COUNTIF(L7:L35,T19) -> 0 | V19: =U19/(W4-U20) -> 0 | W19: =IF(V19=0,0,(V19*((LOG(V19))/LOG(2)))) -> 0 | Y19: =N19 -> 2211 | Z19: =COUNTIF(L36:L64,Y19) -> 0 | AA19: =Z19/(AB4-Z20) -> 0 | AB19: =IF(AA19=0,0,(AA19*((LOG(AA19))/LOG(2)))) -> 0 | AD19: =N19 -> 2211 | AE19: =COUNTIF(L65:L92,AD19) -> 0 | AF19: =AE19/(AG4-AE20) -> 0 | AG19: =IF(AF19=0,0,(AF19*((LOG(AF19))/LOG(2)))) -> 0 | AI19: =N19 -> 2211 | AJ19: =COUNTIF(L93:L121,AI19) -> 0 | AK19: =AJ19/(AL4-AJ20) -> 0 | AL19: =IF(AK19=0,0,(AK19*((LOG(AK19))/LOG(2)))) -> 0 | AN19: =N19 -> 2211 | AO19: =COUNTIF(L122:L150,AN19) -> 0 | AP19: =AO19/(AQ4-AO20) -> 0 | AQ19: =IF(AP19=0,0,(AP19*((LOG(AP19))/LOG(2)))) -> 0 | AS19: =N19 -> 2211 | AT19: =COUNTIF(L151:L179,AS19) -> 0 | AU19: =AT19/(AV4-AT20) -> 0 | AV19: =IF(AU19=0,0,(AU19*((LOG(AU19))/LOG(2)))) -> 0
A20: 12 | B20: 2051 | C20: 23 | D20: 2066 | E20: 24 | F20: 2078 | G20: 23 | H20: 2096 | K20: 0 | L20: 1222 | N20: 2212 | O20: =COUNTIF($L$7:$L$500,N20) -> 0 | P20: =O20/$Q$4 -> 0 | Q20: =IF(P20=0,0,(P20*((LOG(P20))/LOG(2)))) -> 0 | T20: =N20 -> 2212 | U20: =COUNTIF(L7:L35,T20) -> 0 | Y20: =N20 -> 2212 | Z20: =COUNTIF(L36:L64,Y20) -> 0 | AD20: =N20 -> 2212 | AE20: =COUNTIF(L65:L92,AD20) -> 0 | AI20: =N20 -> 2212 | AJ20: =COUNTIF(L93:L121,AI20) -> 0 | AN20: =N20 -> 2212 | AO20: =COUNTIF(L122:L150,AN20) -> 0 | AS20: =N20 -> 2212 | AT20: =COUNTIF(L151:L179,AS20) -> 0
A21: 12 | B21: 2203 | C21: 14 | D21: 2209 | E21: 24 | F21: 2220 | G21: 23 | H21: 2227 | K21: 0 | L21: 1122 | N21: 2221 | O21: =COUNTIF($L$7:$L$500,N21) -> 0 | P21: =O21/$Q$4 -> 0 | Q21: =IF(P21=0,0,(P21*((LOG(P21))/LOG(2)))) -> 0 | T21: =N21 -> 2221 | U21: =COUNTIF(L7:L35,T21) -> 0 | V21: =U21/(W4-U20) -> 0 | W21: =IF(V21=0,0,(V21*((LOG(V21))/LOG(2)))) -> 0 | Y21: =N21 -> 2221 | Z21: =COUNTIF(L36:L64,Y21) -> 0 | AA21: =Z21/(AB4-Z20) -> 0 | AB21: =IF(AA21=0,0,(AA21*((LOG(AA21))/LOG(2)))) -> 0 | AD21: =N21 -> 2221 | AE21: =COUNTIF(L65:L92,AD21) -> 0 | AF21: =AE21/(AG4-AE20) -> 0 | AG21: =IF(AF21=0,0,(AF21*((LOG(AF21))/LOG(2)))) -> 0 | AI21: =N21 -> 2221 | AJ21: =COUNTIF(L93:L121,AI21) -> 0 | AK21: =AJ21/(AL4-AJ20) -> 0 | AL21: =IF(AK21=0,0,(AK21*((LOG(AK21))/LOG(2)))) -> 0 | AN21: =N21 -> 2221 | AO21: =COUNTIF(L122:L150,AN21) -> 0 | AP21: =AO21/(AQ4-AO20) -> 0 | AQ21: =IF(AP21=0,0,(AP21*((LOG(AP21))/LOG(2)))) -> 0 | AS21: =N21 -> 2221 | AT21: =COUNTIF(L151:L179,AS21) -> 0 | AU21: =AT21/(AV4-AT20) -> 0 | AV21: =IF(AU21=0,0,(AU21*((LOG(AU21))/LOG(2)))) -> 0
A22: 12 | B22: 2332 | C22: 14 | D22: 2354 | E22: 24 | F22: 2377 | G22: 23 | H22: 2384 | K22: 0 | L22: 1122 | N22: 2222 | O22: =COUNTIF($L$7:$L$500,N22) -> 0 | P22: =O22/$Q$4 -> 0 | Q22: =IF(P22=0,0,(P22*((LOG(P22))/LOG(2)))) -> 0 | T22: =N22 -> 2222 | U22: =COUNTIF(L7:L35,T22) -> 0 | V22: =U22/(W4-U20) -> 0 | W22: =IF(V22=0,0,(V22*((LOG(V22))/LOG(2)))) -> 0 | Y22: =N22 -> 2222 | Z22: =COUNTIF(L36:L64,Y22) -> 0 | AA22: =Z22/(AB4-Z20) -> 0 | AB22: =IF(AA22=0,0,(AA22*((LOG(AA22))/LOG(2)))) -> 0 | AD22: =N22 -> 2222 | AE22: =COUNTIF(L65:L92,AD22) -> 0 | AF22: =AE22/(AG4-AE20) -> 0 | AG22: =IF(AF22=0,0,(AF22*((LOG(AF22))/LOG(2)))) -> 0 | AI22: =N22 -> 2222 | AJ22: =COUNTIF(L93:L121,AI22) -> 0 | AK22: =AJ22/(AL4-AJ20) -> 0 | AL22: =IF(AK22=0,0,(AK22*((LOG(AK22))/LOG(2)))) -> 0 | AN22: =N22 -> 2222 | AO22: =COUNTIF(L122:L150,AN22) -> 0 | AP22: =AO22/(AQ4-AO20) -> 0 | AQ22: =IF(AP22=0,0,(AP22*((LOG(AP22))/LOG(2)))) -> 0 | AS22: =N22 -> 2222 | AT22: =COUNTIF(L151:L179,AS22) -> 0 | AU22: =AT22/(AV4-AT20) -> 0 | AV22: =IF(AU22=0,0,(AU22*((LOG(AU22))/LOG(2)))) -> 0
A23: 12 | B23: 2479 | C23: 14 | D23: 2484 | E23: 24 | F23: 2501 | G23: 23 | H23: 2508 | K23: 0 | L23: 1122 | P23: =SUM(P7:P22) -> 1 | Q23: =-SUM(Q7:Q22) -> 1.772312596 | V23: =SUM(V7:V22) -> 1 | W23: =-SUM(W7:W22) -> 1.502004701 | AA23: =SUM(AA7:AA22) -> 1 | AB23: =-SUM(AB7:AB22) -> 0.9424051333 | AF23: =SUM(AF7:AF22) -> 1 | AG23: =-SUM(AG7:AG22) -> 1.488260716 | AK23: =SUM(AK7:AK22) -> 1 | AL23: =-SUM(AL7:AL22) -> 1.409146743 | AP23: =SUM(AP7:AP22) -> 1 | AQ23: =-SUM(AQ7:AQ22) -> 1.611102921 | AU23: =SUM(AU7:AU22) -> 1 | AV23: =-SUM(AV7:AV22) -> 1.573114618
A24: 12 | B24: 2620 | C24: 23 | D24: 2630 | E24: 24 | F24: 2638 | G24: 23 | H24: 2651 | K24: 0 | L24: 1222 | P24: U= | Q24: =Q23/(LOG(Q4)/LOG(2)) -> 0.2383861763 | V24: U1= | W24: =W23/(LOG(W4)/LOG(2)) -> 0.30918291 | AA24: U2= | AB24: =AB23/(LOG(AB4)/LOG(2)) -> 0.1939911116 | AF24: U3= | AG24: =AG23/(LOG(AG4)/LOG(2)) -> 0.3095799542 | AK24: U4= | AL24: =AL23/(LOG(AL4)/LOG(2)) -> 0.2900683935 | AP24: U5= | AQ24: =AQ23/(LOG(AQ4)/LOG(2)) -> 0.3316404331 | AU24: U6= | AV24: =AV23/(LOG(AV4)/LOG(2)) -> 0.3238206613
A25: 12 | B25: 2748 | C25: 14 | D25: 2755 | E25: 24 | F25: 2762 | G25: 23 | H25: 2780 | K25: 0 | L25: 1122
A26: 12 | B26: 2897 | C26: 14 | D26: 2905 | E26: 24 | F26: 2929 | G26: 23 | H26: 2941 | K26: 0 | L26: 1122
A27: 12 | B27: 3030 | C27: 14 | D27: 3035 | E27: 13 | F27: 3043 | G27: 23 | H27: 3052 | K27: 0 | L27: 1112 | N27: Total Target Seq
A28: 12 | B28: 3162 | C28: 14 | D28: 3168 | E28: 13 | F28: 3188 | G28: 23 | H28: 3198 | K28: 0 | L28: 1112 | N28: =COUNTIF(L7:L179,G3) -> 0 | P28: 29 | Q28: 29 | R28: 28 | S28: 29 | T28: 29 | U28: 29
A29: 12 | B29: 3302 | C29: 14 | D29: 3307 | E29: 24 | F29: 3316 | G29: 23 | H29: 3325 | K29: 0 | L29: 1122 | P29: % of reinforcement given in 6 equal intervals based on number of trials
A30: 12 | B30: 3434 | C30: 14 | D30: 3441 | E30: 24 | F30: 3454 | G30: 23 | H30: 3502 | K30: 0 | L30: 1122 | P30: %_1 | Q30: %_2 | R30: %_3 | S30: %_4 | T30: %_5 | U30: %_6
A31: 12 | B31: 3614 | C31: 23 | D31: 3646 | E31: 24 | F31: 3653 | G31: 23 | H31: 3660 | K31: 0 | L31: 1222 | O31: target sequence | P31: =$G$3 -> 2212 | Q31: =$G$3 -> 2212 | R31: =$G$3 -> 2212 | S31: =$G$3 -> 2212 | T31: =$G$3 -> 2212 | U31: =$G$3 -> 2212
A32: 12 | B32: 3773 | C32: 14 | D32: 3784 | E32: 24 | F32: 3806 | G32: 23 | H32: 3814 | K32: 0 | L32: 1122 | O32: total reinforcement | P32: =U20 -> 0 | Q32: =Z20 -> 0 | R32: =AE20 -> 0 | S32: =AJ20 -> 0 | T32: =AO20 -> 0 | U32: =AT20 -> 0
A33: 12 | B33: 3909 | C33: 14 | D33: 3914 | E33: 24 | F33: 3924 | G33: 23 | H33: 3932 | K33: 0 | L33: 1122 | O33: % target
A34: 12 | B34: 4043 | C34: 14 | D34: 4056 | E34: 24 | F34: 4104 | G34: 23 | H34: 4111 | K34: 0 | L34: 1122 | O34: CCRF
A35: 12 | B35: 4222 | C35: 14 | D35: 4233 | E35: 24 | F35: 4242 | G35: 23 | H35: 4252 | K35: 0 | L35: 1122 | O35: % CCRf
A36: 12 | B36: 4343 | C36: 14 | D36: 4348 | E36: 24 | F36: 4357 | G36: 23 | H36: 4365 | K36: 0 | L36: 1122 | O36: average response rate | P36: =H35/P28 -> 146.6206897 | Q36: =(H64-H35)/Q28 -> 140.0689655 | R36: =(H92-H64)/R28 -> 144.1785714 | S36: =(H121-H92)/S28 -> 133.862069 | T36: =(H150-H121)/T28 -> 136.5862069 | U36: =(H179-H150)/U28 -> 128.0689655
A37: 12 | B37: 4462 | C37: 14 | D37: 4467 | E37: 24 | F37: 4497 | G37: 23 | H37: 4506 | K37: 0 | L37: 1122
A38: 12 | B38: 4607 | C38: 14 | D38: 4612 | E38: 24 | F38: 4621 | G38: 23 | H38: 4628 | K38: 0 | L38: 1122
A39: 12 | B39: 4741 | C39: 14 | D39: 4749 | E39: 13 | F39: 4762 | G39: 23 | H39: 4785 | K39: 0 | L39: 1112
A40: 12 | B40: 4897 | C40: 23 | D40: 4909 | E40: 24 | F40: 4923 | G40: 23 | H40: 4930 | K40: 0 | L40: 1222
A41: 12 | B41: 5028 | C41: 14 | D41: 5033 | E41: 24 | F41: 5043 | G41: 23 | H41: 5050 | K41: 0 | L41: 1122
A42: 12 | B42: 5160 | C42: 14 | D42: 5170 | E42: 24 | F42: 5179 | G42: 23 | H42: 5193 | K42: 0 | L42: 1122
A43: 12 | B43: 5288 | C43: 14 | D43: 5294 | E43: 24 | F43: 5302 | G43: 23 | H43: 5309 | K43: 0 | L43: 1122
A44: 12 | B44: 5412 | C44: 14 | D44: 5425 | E44: 24 | F44: 5448 | G44: 23 | H44: 5462 | K44: 0 | L44: 1122
A45: 12 | B45: 5582 | C45: 14 | D45: 5589 | E45: 24 | F45: 5618 | G45: 23 | H45: 5652 | K45: 0 | L45: 1122
A46: 12 | B46: 5755 | C46: 14 | D46: 5764 | E46: 13 | F46: 5780 | G46: 23 | H46: 5798 | K46: 0 | L46: 1112
A47: 12 | B47: 5886 | C47: 14 | D47: 5891 | E47: 24 | F47: 5900 | G47: 23 | H47: 5907 | K47: 0 | L47: 1122
A48: 12 | B48: 6018 | C48: 23 | D48: 6065 | E48: 24 | F48: 6096 | G48: 23 | H48: 6108 | K48: 0 | L48: 1222
A49: 12 | B49: 6201 | C49: 14 | D49: 6207 | E49: 24 | F49: 6227 | G49: 23 | H49: 6245 | K49: 0 | L49: 1122
A50: 12 | B50: 6338 | C50: 14 | D50: 6344 | E50: 24 | F50: 6361 | G50: 23 | H50: 6369 | K50: 0 | L50: 1122
A51: 12 | B51: 6472 | C51: 14 | D51: 6478 | E51: 24 | F51: 6494 | G51: 23 | H51: 6502 | K51: 0 | L51: 1122
A52: 12 | B52: 6600 | C52: 14 | D52: 6605 | E52: 24 | F52: 6615 | G52: 23 | H52: 6623 | K52: 0 | L52: 1122
A53: 12 | B53: 6733 | C53: 14 | D53: 6743 | E53: 24 | F53: 6752 | G53: 23 | H53: 6766 | K53: 0 | L53: 1122
A54: 12 | B54: 6861 | C54: 14 | D54: 6868 | E54: 24 | F54: 6878 | G54: 23 | H54: 6885 | K54: 0 | L54: 1122
A55: 12 | B55: 6999 | C55: 14 | D55: 7005 | E55: 24 | F55: 7019 | G55: 23 | H55: 7027 | K55: 0 | L55: 1122
A56: 12 | B56: 7133 | C56: 14 | D56: 7148 | E56: 24 | F56: 7179 | G56: 23 | H56: 7187 | K56: 0 | L56: 1122
A57: 12 | B57: 7282 | C57: 14 | D57: 7288 | E57: 24 | F57: 7315 | G57: 23 | H57: 7325 | K57: 0 | L57: 1122
A58: 12 | B58: 7432 | C58: 14 | D58: 7442 | E58: 24 | F58: 7451 | G58: 23 | H58: 7458 | K58: 0 | L58: 1122
A59: 12 | B59: 7565 | C59: 14 | D59: 7571 | E59: 24 | F59: 7590 | G59: 23 | H59: 7607 | K59: 0 | L59: 1122
A60: 12 | B60: 7709 | C60: 14 | D60: 7716 | E60: 13 | F60: 7721 | G60: 23 | H60: 7745 | K60: 0 | L60: 1112
A61: 12 | B61: 7849 | C61: 14 | D61: 7855 | E61: 24 | F61: 7864 | G61: 23 | H61: 7871 | K61: 0 | L61: 1122
A62: 12 | B62: 7962 | C62: 14 | D62: 7968 | E62: 24 | F62: 7986 | G62: 23 | H62: 8001 | K62: 0 | L62: 1122
A63: 12 | B63: 8114 | C63: 23 | D63: 8154 | E63: 24 | F63: 8171 | G63: 23 | H63: 8178 | K63: 0 | L63: 1222
A64: 12 | B64: 8284 | C64: 14 | D64: 8291 | E64: 24 | F64: 8306 | G64: 23 | H64: 8314 | K64: 0 | L64: 1122
A65: 12 | B65: 8418 | C65: 14 | D65: 8426 | E65: 13 | F65: 8431 | G65: 23 | H65: 8441 | K65: 0 | L65: 1112
A66: 12 | B66: 8549 | C66: 14 | D66: 8558 | E66: 24 | F66: 8593 | G66: 23 | H66: 8610 | K66: 0 | L66: 1122
A67: 12 | B67: 8700 | C67: 23 | D67: 8719 | E67: 24 | F67: 8742 | G67: 23 | H67: 8751 | K67: 0 | L67: 1222
A68: 12 | B68: 8858 | C68: 14 | D68: 8866 | E68: 24 | F68: 8875 | G68: 23 | H68: 8889 | K68: 0 | L68: 1122
A69: 12 | B69: 9001 | C69: 23 | D69: 9010 | E69: 24 | F69: 9017 | G69: 23 | H69: 9024 | K69: 0 | L69: 1222
A70: 12 | B70: 9131 | C70: 14 | D70: 9137 | E70: 24 | F70: 9146 | G70: 23 | H70: 9160 | K70: 0 | L70: 1122
A71: 12 | B71: 9270 | C71: 14 | D71: 9276 | E71: 24 | F71: 9298 | G71: 23 | H71: 9307 | K71: 0 | L71: 1122
A72: 12 | B72: 9438 | C72: 23 | D72: 9459 | E72: 24 | F72: 9472 | G72: 23 | H72: 9479 | K72: 0 | L72: 1222
A73: 12 | B73: 9589 | C73: 23 | D73: 9624 | E73: 24 | F73: 9661 | G73: 23 | H73: 9679 | K73: 0 | L73: 1222
A74: 12 | B74: 9788 | C74: 14 | D74: 9794 | E74: 24 | F74: 9805 | G74: 23 | H74: 9818 | K74: 0 | L74: 1122
A75: 12 | B75: 9922 | C75: 14 | D75: 9928 | E75: 24 | F75: 9937 | G75: 23 | H75: 9953 | K75: 0 | L75: 1122
A76: 12 | B76: 10064 | C76: 23 | D76: 10077 | E76: 24 | F76: 10086 | G76: 23 | H76: 10099 | K76: 0 | L76: 1222
A77: 12 | B77: 10214 | C77: 23 | D77: 10233 | E77: 24 | F77: 10242 | G77: 23 | H77: 10250 | K77: 0 | L77: 1222
A78: 12 | B78: 10356 | C78: 14 | D78: 10365 | E78: 24 | F78: 10374 | G78: 23 | H78: 10385 | K78: 0 | L78: 1122
A79: 12 | B79: 10473 | C79: 23 | D79: 10483 | E79: 24 | F79: 10491 | G79: 23 | H79: 10499 | K79: 0 | L79: 1222
A80: 12 | B80: 10606 | C80: 14 | D80: 10620 | E80: 24 | F80: 10639 | G80: 23 | H80: 10651 | K80: 0 | L80: 1122
A81: 12 | B81: 10771 | C81: 23 | D81: 10787 | E81: 24 | F81: 10806 | G81: 23 | H81: 10825 | K81: 0 | L81: 1222
A82: 12 | B82: 10935 | C82: 23 | D82: 10949 | E82: 24 | F82: 10960 | G82: 23 | H82: 10967 | K82: 0 | L82: 1222
A83: 12 | B83: 11077 | C83: 14 | D83: 11082 | E83: 24 | F83: 11126 | G83: 23 | H83: 11137 | K83: 0 | L83: 1122
A84: 12 | B84: 11228 | C84: 14 | D84: 11233 | E84: 24 | F84: 11242 | G84: 23 | H84: 11247 | K84: 0 | L84: 1122
A85: 12 | B85: 11359 | C85: 14 | D85: 11365 | E85: 24 | F85: 11376 | G85: 23 | H85: 11388 | K85: 0 | L85: 1122
A86: 12 | B86: 11491 | C86: 14 | D86: 11497 | E86: 13 | F86: 11517 | G86: 23 | H86: 11526 | K86: 0 | L86: 1112
A87: 12 | B87: 11636 | C87: 14 | D87: 11641 | E87: 13 | F87: 11654 | G87: 23 | H87: 11679 | K87: 0 | L87: 1112
A88: 12 | B88: 11788 | C88: 14 | D88: 11793 | E88: 13 | F88: 11806 | G88: 23 | H88: 11815 | K88: 0 | L88: 1112
A89: 12 | B89: 11919 | C89: 14 | D89: 11926 | E89: 13 | F89: 11935 | G89: 23 | H89: 11944 | K89: 0 | L89: 1112
A90: 12 | B90: 12057 | C90: 14 | D90: 12064 | E90: 24 | F90: 12079 | G90: 23 | H90: 12092 | K90: 0 | L90: 1122
A91: 12 | B91: 12200 | C91: 23 | D91: 12219 | E91: 24 | F91: 12231 | G91: 23 | H91: 12239 | K91: 0 | L91: 1222
A92: 12 | B92: 12330 | C92: 14 | D92: 12335 | E92: 24 | F92: 12344 | G92: 23 | H92: 12351 | K92: 0 | L92: 1122
A93: 12 | B93: 12445 | C93: 23 | D93: 12454 | E93: 24 | F93: 12467 | G93: 23 | H93: 12475 | K93: 0 | L93: 1222
A94: 12 | B94: 12583 | C94: 14 | D94: 12588 | E94: 13 | F94: 12599 | G94: 23 | H94: 12609 | K94: 0 | L94: 1112
A95: 12 | B95: 12714 | C95: 14 | D95: 12719 | E95: 13 | F95: 12730 | G95: 23 | H95: 12738 | K95: 0 | L95: 1112
A96: 12 | B96: 12848 | C96: 14 | D96: 12857 | E96: 24 | F96: 12889 | G96: 23 | H96: 12900 | K96: 0 | L96: 1122
A97: 12 | B97: 13011 | C97: 14 | D97: 13016 | E97: 13 | F97: 13028 | G97: 23 | H97: 13036 | K97: 0 | L97: 1112
A98: 12 | B98: 13146 | C98: 23 | D98: 13158 | E98: 24 | F98: 13180 | G98: 23 | H98: 13187 | K98: 0 | L98: 1222
A99: 12 | B99: 13296 | C99: 14 | D99: 13305 | E99: 24 | F99: 13319 | G99: 23 | H99: 13335 | K99: 0 | L99: 1122
A100: 12 | B100: 13445 | C100: 14 | D100: 13450 | E100: 24 | F100: 13476 | G100: 23 | H100: 13482 | K100: 0 | L100: 1122
A101: 12 | B101: 13580 | C101: 14 | D101: 13586 | E101: 24 | F101: 13602 | G101: 23 | H101: 13608 | K101: 0 | L101: 1122
A102: 12 | B102: 13721 | C102: 14 | D102: 13726 | E102: 24 | F102: 13737 | G102: 23 | H102: 13754 | K102: 0 | L102: 1122
A103: 12 | B103: 13847 | C103: 14 | D103: 13852 | E103: 24 | F103: 13888 | G103: 23 | H103: 13895 | K103: 0 | L103: 1122
A104: 12 | B104: 14005 | C104: 14 | D104: 14014 | E104: 24 | F104: 14023 | G104: 23 | H104: 14052 | K104: 0 | L104: 1122
A105: 12 | B105: 14152 | C105: 14 | D105: 14157 | E105: 13 | F105: 14166 | G105: 23 | H105: 14175 | K105: 0 | L105: 1112
A106: 12 | B106: 14277 | C106: 14 | D106: 14282 | E106: 13 | F106: 14292 | G106: 23 | H106: 14315 | K106: 0 | L106: 1112
A107: 12 | B107: 14404 | C107: 14 | D107: 14409 | E107: 24 | F107: 14417 | G107: 23 | H107: 14423 | K107: 0 | L107: 1122
A108: 12 | B108: 14524 | C108: 14 | D108: 14529 | E108: 24 | F108: 14539 | G108: 23 | H108: 14547 | K108: 0 | L108: 1122
A109: 12 | B109: 14649 | C109: 14 | D109: 14654 | E109: 13 | F109: 14663 | G109: 23 | H109: 14674 | K109: 0 | L109: 1112
A110: 12 | B110: 14781 | C110: 14 | D110: 14790 | E110: 24 | F110: 14799 | G110: 23 | H110: 14818 | K110: 0 | L110: 1122
A111: 12 | B111: 14924 | C111: 14 | D111: 14932 | E111: 24 | F111: 14942 | G111: 23 | H111: 14958 | K111: 0 | L111: 1122
A112: 12 | B112: 15053 | C112: 14 | D112: 15059 | E112: 24 | F112: 15068 | G112: 23 | H112: 15086 | K112: 0 | L112: 1122
A113: 12 | B113: 15187 | C113: 14 | D113: 15192 | E113: 13 | F113: 15197 | G113: 23 | H113: 15206 | K113: 0 | L113: 1112
A114: 12 | B114: 15307 | C114: 14 | D114: 15314 | E114: 13 | F114: 15321 | G114: 23 | H114: 15347 | K114: 0 | L114: 1112
A115: 12 | B115: 15452 | C115: 14 | D115: 15459 | E115: 24 | F115: 15468 | G115: 23 | H115: 15476 | K115: 0 | L115: 1122
A116: 12 | B116: 15577 | C116: 14 | D116: 15584 | E116: 24 | F116: 15593 | G116: 23 | H116: 15599 | K116: 0 | L116: 1122
A117: 12 | B117: 15703 | C117: 14 | D117: 15710 | E117: 24 | F117: 15749 | G117: 23 | H117: 15756 | K117: 0 | L117: 1122
A118: 12 | B118: 15848 | C118: 14 | D118: 15855 | E118: 24 | F118: 15865 | G118: 23 | H118: 15872 | K118: 0 | L118: 1122
A119: 12 | B119: 15974 | C119: 14 | D119: 15979 | E119: 24 | F119: 15990 | G119: 14 | H119: 16004 | K119: 0 | L119: 1121
A120: 12 | B120: 16092 | C120: 14 | D120: 16098 | E120: 24 | F120: 16107 | G120: 23 | H120: 16114 | K120: 0 | L120: 1122
A121: 12 | B121: 16211 | C121: 14 | D121: 16216 | E121: 13 | F121: 16224 | G121: 23 | H121: 16233 | K121: 0 | L121: 1112
A122: 12 | B122: 16336 | C122: 14 | D122: 16341 | E122: 24 | F122: 16350 | G122: 23 | H122: 16357 | K122: 0 | L122: 1122
A123: 12 | B123: 16460 | C123: 23 | D123: 16470 | E123: 24 | F123: 16477 | G123: 23 | H123: 16485 | K123: 0 | L123: 1222
A124: 12 | B124: 16594 | C124: 14 | D124: 16604 | E124: 24 | F124: 16613 | G124: 23 | H124: 16645 | K124: 0 | L124: 1122
A125: 12 | B125: 16753 | C125: 14 | D125: 16762 | E125: 24 | F125: 16775 | G125: 23 | H125: 16780 | K125: 0 | L125: 1122
A126: 12 | B126: 16873 | C126: 23 | D126: 16944 | E126: 24 | F126: 16952 | G126: 23 | H126: 16959 | K126: 0 | L126: 1222
A127: 12 | B127: 17058 | C127: 14 | D127: 17064 | E127: 13 | F127: 17080 | G127: 23 | H127: 17089 | K127: 0 | L127: 1112
A128: 12 | B128: 17187 | C128: 14 | D128: 17193 | E128: 13 | F128: 17205 | G128: 23 | H128: 17219 | K128: 0 | L128: 1112
A129: 12 | B129: 17318 | C129: 14 | D129: 17323 | E129: 13 | F129: 17333 | G129: 23 | H129: 17342 | K129: 0 | L129: 1112
A130: 12 | B130: 17445 | C130: 14 | D130: 17453 | E130: 13 | F130: 17458 | G130: 23 | H130: 17468 | K130: 0 | L130: 1112
A131: 12 | B131: 17559 | C131: 14 | D131: 17567 | E131: 24 | F131: 17576 | G131: 23 | H131: 17598 | K131: 0 | L131: 1122
A132: 12 | B132: 17695 | C132: 14 | D132: 17702 | E132: 13 | F132: 17711 | G132: 23 | H132: 17727 | K132: 0 | L132: 1112
A133: 12 | B133: 17827 | C133: 14 | D133: 17831 | E133: 24 | F133: 17853 | G133: 23 | H133: 17878 | K133: 0 | L133: 1122
A134: 12 | B134: 17977 | C134: 14 | D134: 17982 | E134: 24 | F134: 17993 | G134: 23 | H134: 18000 | K134: 0 | L134: 1122
A135: 12 | B135: 18099 | C135: 14 | D135: 18104 | E135: 13 | F135: 18117 | G135: 23 | H135: 18127 | K135: 0 | L135: 1112
A136: 12 | B136: 18227 | C136: 14 | D136: 18231 | E136: 13 | F136: 18244 | G136: 23 | H136: 18253 | K136: 0 | L136: 1112
A137: 12 | B137: 18358 | C137: 14 | D137: 18366 | E137: 24 | F137: 18377 | G137: 23 | H137: 18412 | K137: 0 | L137: 1122
A138: 12 | B138: 18516 | C138: 14 | D138: 18526 | E138: 13 | F138: 18534 | G138: 14 | H138: 18545 | K138: 0 | L138: 1111
A139: 12 | B139: 18644 | C139: 23 | D139: 18655 | E139: 24 | F139: 18669 | G139: 23 | H139: 18682 | K139: 0 | L139: 1222
A140: 12 | B140: 18788 | C140: 14 | D140: 18795 | E140: 24 | F140: 18804 | G140: 23 | H140: 18816 | K140: 0 | L140: 1122
A141: 12 | B141: 18924 | C141: 14 | D141: 18936 | E141: 13 | F141: 18947 | G141: 23 | H141: 18966 | K141: 0 | L141: 1112
A142: 12 | B142: 19075 | C142: 14 | D142: 19081 | E142: 13 | F142: 19104 | G142: 23 | H142: 19129 | K142: 0 | L142: 1112
A143: 12 | B143: 19236 | C143: 23 | D143: 19244 | E143: 24 | F143: 19252 | G143: 23 | H143: 19261 | K143: 0 | L143: 1222
A144: 12 | B144: 19360 | C144: 14 | D144: 19364 | E144: 13 | F144: 19373 | G144: 23 | H144: 19382 | K144: 0 | L144: 1112
A145: 12 | B145: 19488 | C145: 14 | D145: 19498 | E145: 24 | F145: 19509 | G145: 23 | H145: 19538 | K145: 0 | L145: 1122
A146: 12 | B146: 19647 | C146: 14 | D146: 19652 | E146: 13 | F146: 19667 | G146: 23 | H146: 19689 | K146: 0 | L146: 1112
A147: 12 | B147: 19787 | C147: 14 | D147: 19792 | E147: 13 | F147: 19801 | G147: 23 | H147: 19810 | K147: 0 | L147: 1112
A148: 12 | B148: 19917 | C148: 14 | D148: 19928 | E148: 24 | F148: 19939 | G148: 23 | H148: 19946 | K148: 0 | L148: 1122
A149: 12 | B149: 20039 | C149: 14 | D149: 20044 | E149: 24 | F149: 20054 | G149: 23 | H149: 20066 | K149: 0 | L149: 1122
A150: 12 | B150: 20169 | C150: 14 | D150: 20174 | E150: 13 | F150: 20184 | G150: 23 | H150: 20194 | K150: 0 | L150: 1112
A151: 12 | B151: 20303 | C151: 14 | D151: 20308 | E151: 13 | F151: 20322 | G151: 23 | H151: 20331 | K151: 0 | L151: 1112
A152: 12 | B152: 20433 | C152: 23 | D152: 20444 | E152: 24 | F152: 20457 | G152: 23 | H152: 20464 | K152: 0 | L152: 1222
A153: 12 | B153: 20567 | C153: 14 | D153: 20575 | E153: 13 | F153: 20584 | G153: 23 | H153: 20593 | K153: 0 | L153: 1112
A154: 12 | B154: 20686 | C154: 14 | D154: 20691 | E154: 24 | F154: 20722 | G154: 23 | H154: 20735 | K154: 0 | L154: 1122
A155: 12 | B155: 20843 | C155: 14 | D155: 20849 | E155: 24 | F155: 20859 | G155: 23 | H155: 20870 | K155: 0 | L155: 1122
A156: 12 | B156: 20976 | C156: 14 | D156: 20981 | E156: 24 | F156: 21004 | G156: 23 | H156: 21015 | K156: 0 | L156: 1122
A157: 12 | B157: 21121 | C157: 14 | D157: 21128 | E157: 13 | F157: 21137 | G157: 23 | H157: 21146 | K157: 0 | L157: 1112
A158: 12 | B158: 21244 | C158: 14 | D158: 21249 | E158: 13 | F158: 21258 | G158: 23 | H158: 21290 | K158: 0 | L158: 1112
A159: 12 | B159: 21399 | C159: 14 | D159: 21405 | E159: 13 | F159: 21410 | G159: 14 | H159: 21423 | K159: 0 | L159: 1111
A160: 12 | B160: 21524 | C160: 14 | D160: 21529 | E160: 13 | F160: 21537 | G160: 23 | H160: 21550 | K160: 0 | L160: 1112
A161: 12 | B161: 21647 | C161: 14 | D161: 21653 | E161: 13 | F161: 21658 | G161: 23 | H161: 21668 | K161: 0 | L161: 1112
A162: 12 | B162: 21758 | C162: 14 | D162: 21764 | E162: 13 | F162: 21770 | G162: 23 | H162: 21779 | K162: 0 | L162: 1112
A163: 12 | B163: 21868 | C163: 14 | D163: 21873 | E163: 13 | F163: 21878 | G163: 23 | H163: 21899 | K163: 0 | L163: 1112
A164: 12 | B164: 21997 | C164: 14 | D164: 22002 | E164: 24 | F164: 22012 | G164: 23 | H164: 22020 | K164: 0 | L164: 1122
A165: 12 | B165: 22126 | C165: 14 | D165: 22135 | E165: 13 | F165: 22141 | G165: 14 | H165: 22160 | K165: 0 | L165: 1111
A166: 12 | B166: 22264 | C166: 14 | D166: 22270 | E166: 13 | F166: 22275 | G166: 23 | H166: 22287 | K166: 0 | L166: 1112
A167: 12 | B167: 22383 | C167: 14 | D167: 22389 | E167: 13 | F167: 22396 | G167: 23 | H167: 22406 | K167: 0 | L167: 1112
A168: 12 | B168: 22512 | C168: 14 | D168: 22517 | E168: 13 | F168: 22525 | G168: 23 | H168: 22536 | K168: 0 | L168: 1112
A169: 12 | B169: 22634 | C169: 14 | D169: 22639 | E169: 13 | F169: 22644 | G169: 14 | H169: 22652 | K169: 0 | L169: 1111
A170: 12 | B170: 22743 | C170: 14 | D170: 22748 | E170: 13 | F170: 22753 | G170: 23 | H170: 22762 | K170: 0 | L170: 1112
A171: 12 | B171: 22868 | C171: 14 | D171: 22875 | E171: 13 | F171: 22884 | G171: 23 | H171: 22893 | K171: 0 | L171: 1112
A172: 12 | B172: 22999 | C172: 14 | D172: 23005 | E172: 13 | F172: 23011 | G172: 14 | H172: 23025 | K172: 0 | L172: 1111
A173: 12 | B173: 23128 | C173: 14 | D173: 23133 | E173: 13 | F173: 23139 | G173: 23 | H173: 23160 | K173: 0 | L173: 1112
A174: 12 | B174: 23268 | C174: 14 | D174: 23273 | E174: 13 | F174: 23279 | G174: 14 | H174: 23290 | K174: 0 | L174: 1111
A175: 12 | B175: 23395 | C175: 14 | D175: 23400 | E175: 13 | F175: 23406 | G175: 23 | H175: 23431 | K175: 0 | L175: 1112
A176: 12 | B176: 23538 | C176: 14 | D176: 23544 | E176: 13 | F176: 23550 | G176: 23 | H176: 23560 | K176: 0 | L176: 1112
A177: 12 | B177: 23658 | C177: 14 | D177: 23663 | E177: 13 | F177: 23670 | G177: 14 | H177: 23679 | K177: 0 | L177: 1111
A178: 12 | B178: 23770 | C178: 14 | D178: 23775 | E178: 24 | F178: 23784 | G178: 23 | H178: 23791 | K178: 0 | L178: 1122
A179: 12 | B179: 23890 | C179: 14 | D179: 23894 | E179: 13 | F179: 23899 | G179: 14 | H179: 23908 | K179: 0 | L179: 1111

Sheet !L902D10.056
A1: Report for:!L902D10.056
A2: Date: | B2: <date>
A3: Hen: | B3: <hen> | F3: Correct Sequence | G3: =Start!J2 -> 2212 | P3: Total Sequences in Data | Q3: =4994-COUNTBLANK(L7:L5000) -> 189 | V3: Total Sequences in Block Data | W3: =COUNTA(L7:L38) -> 32 | AA3: Total Sequences in Block Data | AB3: =COUNTA(L39:L69) -> 31 | AF3: Total Sequences in Block Data | AG3: =COUNTA(L70:L101) -> 32 | AK3: Total Sequences in Block Data | AL3: =COUNTA(L102:L132) -> 31 | AP3: Total Sequences in Block Data | AQ3: =COUNTA(L133:L164) -> 32 | AU3: Total Sequences in Block Data | AV3: =COUNTA(L165:L195) -> 31
P4: Total Sequences in Summary | Q4: =SUM(O7:O22) -> 189 | V4: Total Sequences in Block Summary | W4: =SUM(U7:U22) -> 32 | AA4: Total Sequences in Block Summary | AB4: =SUM(Z7:Z22) -> 31 | AF4: Total Sequences in Block Summary | AG4: =SUM(AE7:AE22) -> 32 | AK4: Total Sequences in Block Summary | AL4: =SUM(AJ7:AJ22) -> 31 | AP4: Total Sequences in Block Summary | AQ4: =SUM(AO7:AO22) -> 32 | AU4: Total Sequences in Block Summary | AV4: =SUM(AT7:AT22) -> 31
T5: Block 1 | Y5: Block 2 | AD5: Block 3 | AI5: Block 4 | AN5: Block 5 | AS5: Block 6
A6: Sequence Component 1 | B6: Time 1 | C6: Sequence Component 2 | D6: Time 2 | E6: Sequence Component 3 | F6: Time 3 | G6: Sequence Component 4 | H6: Time 4 | I6: Sequence Component 5 | J6: Time 5 | K6: Correct? 0=No 1=Yes | L6: Sequence | N6: Frequency | P6: Relative Frequency | Q6: Variability | T6: Frequency | V6: Relative Frequency | W6: Variability | Y6: Frequency | AA6: Relative Frequency | AB6: Variability | AD6: Frequency | AF6: Relative Frequency | AG6: Variability | AI6: Frequency | AK6: Relative Frequency | AL6: Variability | AN6: Frequency | AP6: Relative Frequency | AQ6: Variability | AS6: Frequency | AU6: Relative Frequency | AV6: Variability
A7: 12 | B7: 16 | C7: 14 | D7: 22 | E7: 24 | F7: 32 | G7: 23 | H7: 40 | K7: 0 | L7: 1122 | N7: 1111 | O7: =COUNTIF($L$7:$L$500,N7) -> 109 | P7: =O7/$Q$4 -> 0.5767195767 | Q7: =IF(P7=0,0,(P7*((LOG(P7))/LOG(2)))) -> -0.457948851 | T7: =N7 -> 1111 | U7: =COUNTIF(L7:L38,T7) -> 9 | V7: =U7/(W4-U20) -> 0.28125 | W7: =IF(V7=0,0,(V7*((LOG(V7))/LOG(2)))) -> -0.5147085933 | Y7: =N7 -> 1111 | Z7: =COUNTIF(L39:L69,Y7) -> 20 | AA7: =Z7/(AB4-Z20) -> 0.6451612903 | AB7: =IF(AA7=0,0,(AA7*((LOG(AA7))/LOG(2)))) -> -0.4079149777 | AD7: =N7 -> 1111 | AE7: =COUNTIF(L70:L101,AD7) -> 22 | AF7: =AE7/(AG4-AE20) -> 0.6875 | AG7: =IF(AF7=0,0,(AF7*((LOG(AF7))/LOG(2)))) -> -0.3716407622 | AI7: =N7 -> 1111 | AJ7: =COUNTIF(L102:L132,AI7) -> 16 | AK7: =AJ7/(AL4-AJ20) -> 0.5161290323 | AL7: =IF(AK7=0,0,(AK7*((LOG(AK7))/LOG(2)))) -> -0.4924884183 | AN7: =N7 -> 1111 | AO7: =COUNTIF(L133:L164,AN7) -> 20 | AP7: =AO7/(AQ4-AO20) -> 0.625 | AQ7: =IF(AP7=0,0,(AP7*((LOG(AP7))/LOG(2)))) -> -0.4237949407 | AS7: =N7 -> 1111 | AT7: =COUNTIF(L165:L195,AS7) -> 22 | AU7: =AT7/(AV4-AT20) -> 0.7096774194 | AV7: =IF(AU7=0,0,(AU7*((LOG(AU7))/LOG(2)))) -> -0.3511233296
A8: 12 | B8: 137 | C8: 14 | D8: 143 | E8: 13 | F8: 155 | G8: 23 | H8: 165 | K8: 0 | L8: 1112 | N8: 1112 | O8: =COUNTIF($L$7:$L$500,N8) -> 66 | P8: =O8/$Q$4 -> 0.3492063492 | Q8: =IF(P8=0,0,(P8*((LOG(P8))/LOG(2)))) -> -0.5300422652 | T8: =N8 -> 1112 | U8: =COUNTIF(L7:L38,T8) -> 17 | V8: =U8/(W4-U20) -> 0.53125 | W8: =IF(V8=0,0,(V8*((LOG(V8))/LOG(2)))) -> -0.4847853656 | Y8: =N8 -> 1112 | Z8: =COUNTIF(L39:L69,Y8) -> 10 | AA8: =Z8/(AB4-Z20) -> 0.3225806452 | AB8: =IF(AA8=0,0,(AA8*((LOG(AA8))/LOG(2)))) -> -0.526538134 | AD8: =N8 -> 1112 | AE8: =COUNTIF(L70:L101,AD8) -> 8 | AF8: =AE8/(AG4-AE20) -> 0.25 | AG8: =IF(AF8=0,0,(AF8*((LOG(AF8))/LOG(2)))) -> -0.5 | AI8: =N8 -> 1112 | AJ8: =COUNTIF(L102:L132,AI8) -> 15 | AK8: =AJ8/(AL4-AJ20) -> 0.4838709677 | AL8: =IF(AK8=0,0,(AK8*((LOG(AK8))/LOG(2)))) -> -0.5067608297 | AN8: =N8 -> 1112 | AO8: =COUNTIF(L133:L164,AN8) -> 9 | AP8: =AO8/(AQ4-AO20) -> 0.28125 | AQ8: =IF(AP8=0,0,(AP8*((LOG(AP8))/LOG(2)))) -> -0.5147085933 | AS8: =N8 -> 1112 | AT8: =COUNTIF(L165:L195,AS8) -> 7 | AU8: =AT8/(AV4-AT20) -> 0.2258064516 | AV8: =IF(AU8=0,0,(AU8*((LOG(AU8))/LOG(2)))) -> -0.4847706361
A9: 12 | B9: 271 | C9: 14 | D9: 277 | E9: 24 | F9: 287 | G9: 23 | H9: 296 | K9: 0 | L9: 1122 | N9: 1121 | O9: =COUNTIF($L$7:$L$500,N9) -> 0 | P9: =O9/$Q$4 -> 0 | Q9: =IF(P9=0,0,(P9*((LOG(P9))/LOG(2)))) -> 0 | T9: =N9 -> 1121 | U9: =COUNTIF(L7:L38,T9) -> 0 | V9: =U9/(W4-U20) -> 0 | W9: =IF(V9=0,0,(V9*((LOG(V9))/LOG(2)))) -> 0 | Y9: =N9 -> 1121 | Z9: =COUNTIF(L39:L69,Y9) -> 0 | AA9: =Z9/(AB4-Z20) -> 0 | AB9: =IF(AA9=0,0,(AA9*((LOG(AA9))/LOG(2)))) -> 0 | AD9: =N9 -> 1121 | AE9: =COUNTIF(L70:L101,AD9) -> 0 | AF9: =AE9/(AG4-AE20) -> 0 | AG9: =IF(AF9=0,0,(AF9*((LOG(AF9))/LOG(2)))) -> 0 | AI9: =N9 -> 1121 | AJ9: =COUNTIF(L102:L132,AI9) -> 0 | AK9: =AJ9/(AL4-AJ20) -> 0 | AL9: =IF(AK9=0,0,(AK9*((LOG(AK9))/LOG(2)))) -> 0 | AN9: =N9 -> 1121 | AO9: =COUNTIF(L133:L164,AN9) -> 0 | AP9: =AO9/(AQ4-AO20) -> 0 | AQ9: =IF(AP9=0,0,(AP9*((LOG(AP9))/LOG(2)))) -> 0 | AS9: =N9 -> 1121 | AT9: =COUNTIF(L165:L195,AS9) -> 0 | AU9: =AT9/(AV4-AT20) -> 0 | AV9: =IF(AU9=0,0,(AU9*((LOG(AU9))/LOG(2)))) -> 0
A10: 12 | B10: 397 | C10: 14 | D10: 402 | E10: 13 | F10: 413 | G10: 23 | H10: 430 | K10: 0 | L10: 1112 | N10: 1122 | O10: =COUNTIF($L$7:$L$500,N10) -> 12 | P10: =O10/$Q$4 -> 0.06349206349 | Q10: =IF(P10=0,0,(P10*((LOG(P10))/LOG(2)))) -> -0.2525257094 | T10: =N10 -> 1122 | U10: =COUNTIF(L7:L38,T10) -> 5 | V10: =U10/(W4-U20) -> 0.15625 | W10: =IF(V10=0,0,(V10*((LOG(V10))/LOG(2)))) -> -0.4184487352 | Y10: =N10 -> 1122 | Z10: =COUNTIF(L39:L69,Y10) -> 1 | AA10: =Z10/(AB4-Z20) -> 0.03225806452 | AB10: =IF(AA10=0,0,(AA10*((LOG(AA10))/LOG(2)))) -> -0.1598127842 | AD10: =N10 -> 1122 | AE10: =COUNTIF(L70:L101,AD10) -> 1 | AF10: =AE10/(AG4-AE20) -> 0.03125 | AG10: =IF(AF10=0,0,(AF10*((LOG(AF10))/LOG(2)))) -> -0.15625 | AI10: =N10 -> 1122 | AJ10: =COUNTIF(L102:L132,AI10) -> 0 | AK10: =AJ10/(AL4-AJ20) -> 0 | AL10: =IF(AK10=0,0,(AK10*((LOG(AK10))/LOG(2)))) -> 0 | AN10: =N10 -> 1122 | AO10: =COUNTIF(L133:L164,AN10) -> 3 | AP10: =AO10/(AQ4-AO20) -> 0.09375 | AQ10: =IF(AP10=0,0,(AP10*((LOG(AP10))/LOG(2)))) -> -0.3201597656 | AS10: =N10 -> 1122 | AT10: =COUNTIF(L165:L195,AS10) -> 2 | AU10: =AT10/(AV4-AT20) -> 0.06451612903 | AV10: =IF(AU10=0,0,(AU10*((LOG(AU10))/LOG(2)))) -> -0.2551094394
A11: 12 | B11: 534 | C11: 14 | D11: 540 | E11: 13 | F11: 548 | G11: 23 | H11: 576 | K11: 0 | L11: 1112 | N11: 1211 | O11: =COUNTIF($L$7:$L$500,N11) -> 0 | P11: =O11/$Q$4 -> 0 | Q11: =IF(P11=0,0,(P11*((LOG(P11))/LOG(2)))) -> 0 | T11: =N11 -> 1211 | U11: =COUNTIF(L7:L38,T11) -> 0 | V11: =U11/(W4-U20) -> 0 | W11: =IF(V11=0,0,(V11*((LOG(V11))/LOG(2)))) -> 0 | Y11: =N11 -> 1211 | Z11: =COUNTIF(L39:L69,Y11) -> 0 | AA11: =Z11/(AB4-Z20) -> 0 | AB11: =IF(AA11=0,0,(AA11*((LOG(AA11))/LOG(2)))) -> 0 | AD11: =N11 -> 1211 | AE11: =COUNTIF(L70:L101,AD11) -> 0 | AF11: =AE11/(AG4-AE20) -> 0 | AG11: =IF(AF11=0,0,(AF11*((LOG(AF11))/LOG(2)))) -> 0 | AI11: =N11 -> 1211 | AJ11: =COUNTIF(L102:L132,AI11) -> 0 | AK11: =AJ11/(AL4-AJ20) -> 0 | AL11: =IF(AK11=0,0,(AK11*((LOG(AK11))/LOG(2)))) -> 0 | AN11: =N11 -> 1211 | AO11: =COUNTIF(L133:L164,AN11) -> 0 | AP11: =AO11/(AQ4-AO20) -> 0 | AQ11: =IF(AP11=0,0,(AP11*((LOG(AP11))/LOG(2)))) -> 0 | AS11: =N11 -> 1211 | AT11: =COUNTIF(L165:L195,AS11) -> 0 | AU11: =AT11/(AV4-AT20) -> 0 | AV11: =IF(AU11=0,0,(AU11*((LOG(AU11))/LOG(2)))) -> 0
A12: 12 | B12: 674 | C12: 14 | D12: 681 | E12: 13 | F12: 686 | G12: 14 | H12: 698 | K12: 0 | L12: 1111 | N12: 1212 | O12: =COUNTIF($L$7:$L$500,N12) -> 1 | P12: =O12/$Q$4 -> 0.005291005291 | Q12: =IF(P12=0,0,(P12*((LOG(P12))/LOG(2)))) -> -0.04001186468 | T12: =N12 -> 1212 | U12: =COUNTIF(L7:L38,T12) -> 1 | V12: =U12/(W4-U20) -> 0.03125 | W12: =IF(V12=0,0,(V12*((LOG(V12))/LOG(2)))) -> -0.15625 | Y12: =N12 -> 1212 | Z12: =COUNTIF(L39:L69,Y12) -> 0 | AA12: =Z12/(AB4-Z20) -> 0 | AB12: =IF(AA12=0,0,(AA12*((LOG(AA12))/LOG(2)))) -> 0 | AD12: =N12 -> 1212 | AE12: =COUNTIF(L70:L101,AD12) -> 0 | AF12: =AE12/(AG4-AE20) -> 0 | AG12: =IF(AF12=0,0,(AF12*((LOG(AF12))/LOG(2)))) -> 0 | AI12: =N12 -> 1212 | AJ12: =COUNTIF(L102:L132,AI12) -> 0 | AK12: =AJ12/(AL4-AJ20) -> 0 | AL12: =IF(AK12=0,0,(AK12*((LOG(AK12))/LOG(2)))) -> 0 | AN12: =N12 -> 1212 | AO12: =COUNTIF(L133:L164,AN12) -> 0 | AP12: =AO12/(AQ4-AO20) -> 0 | AQ12: =IF(AP12=0,0,(AP12*((LOG(AP12))/LOG(2)))) -> 0 | AS12: =N12 -> 1212 | AT12: =COUNTIF(L165:L195,AS12) -> 0 | AU12: =AT12/(AV4-AT20) -> 0 | AV12: =IF(AU12=0,0,(AU12*((LOG(AU12))/LOG(2)))) -> 0
A13: 12 | B13: 794 | C13: 14 | D13: 799 | E13: 24 | F13: 810 | G13: 23 | H13: 824 | K13: 0 | L13: 1122 | N13: 1221 | O13: =COUNTIF($L$7:$L$500,N13) -> 0 | P13: =O13/$Q$4 -> 0 | Q13: =IF(P13=0,0,(P13*((LOG(P13))/LOG(2)))) -> 0 | T13: =N13 -> 1221 | U13: =COUNTIF(L7:L38,T13) -> 0 | V13: =U13/(W4-U20) -> 0 | W13: =IF(V13=0,0,(V13*((LOG(V13))/LOG(2)))) -> 0 | Y13: =N13 -> 1221 | Z13: =COUNTIF(L39:L69,Y13) -> 0 | AA13: =Z13/(AB4-Z20) -> 0 | AB13: =IF(AA13=0,0,(AA13*((LOG(AA13))/LOG(2)))) -> 0 | AD13: =N13 -> 1221 | AE13: =COUNTIF(L70:L101,AD13) -> 0 | AF13: =AE13/(AG4-AE20) -> 0 | AG13: =IF(AF13=0,0,(AF13*((LOG(AF13))/LOG(2)))) -> 0 | AI13: =N13 -> 1221 | AJ13: =COUNTIF(L102:L132,AI13) -> 0 | AK13: =AJ13/(AL4-AJ20) -> 0 | AL13: =IF(AK13=0,0,(AK13*((LOG(AK13))/LOG(2)))) -> 0 | AN13: =N13 -> 1221 | AO13: =COUNTIF(L133:L164,AN13) -> 0 | AP13: =AO13/(AQ4-AO20) -> 0 | AQ13: =IF(AP13=0,0,(AP13*((LOG(AP13))/LOG(2)))) -> 0 | AS13: =N13 -> 1221 | AT13: =COUNTIF(L165:L195,AS13) -> 0 | AU13: =AT13/(AV4-AT20) -> 0 | AV13: =IF(AU13=0,0,(AU13*((LOG(AU13))/LOG(2)))) -> 0
A14: 12 | B14: 928 | C14: 14 | D14: 934 | E14: 13 | F14: 946 | G14: 23 | H14: 969 | K14: 0 | L14: 1112 | N14: 1222 | O14: =COUNTIF($L$7:$L$500,N14) -> 1 | P14: =O14/$Q$4 -> 0.005291005291 | Q14: =IF(P14=0,0,(P14*((LOG(P14))/LOG(2)))) -> -0.04001186468 | T14: =N14 -> 1222 | U14: =COUNTIF(L7:L38,T14) -> 0 | V14: =U14/(W4-U20) -> 0 | W14: =IF(V14=0,0,(V14*((LOG(V14))/LOG(2)))) -> 0 | Y14: =N14 -> 1222 | Z14: =COUNTIF(L39:L69,Y14) -> 0 | AA14: =Z14/(AB4-Z20) -> 0 | AB14: =IF(AA14=0,0,(AA14*((LOG(AA14))/LOG(2)))) -> 0 | AD14: =N14 -> 1222 | AE14: =COUNTIF(L70:L101,AD14) -> 1 | AF14: =AE14/(AG4-AE20) -> 0.03125 | AG14: =IF(AF14=0,0,(AF14*((LOG(AF14))/LOG(2)))) -> -0.15625 | AI14: =N14 -> 1222 | AJ14: =COUNTIF(L102:L132,AI14) -> 0 | AK14: =AJ14/(AL4-AJ20) -> 0 | AL14: =IF(AK14=0,0,(AK14*((LOG(AK14))/LOG(2)))) -> 0 | AN14: =N14 -> 1222 | AO14: =COUNTIF(L133:L164,AN14) -> 0 | AP14: =AO14/(AQ4-AO20) -> 0 | AQ14: =IF(AP14=0,0,(AP14*((LOG(AP14))/LOG(2)))) -> 0 | AS14: =N14 -> 1222 | AT14: =COUNTIF(L165:L195,AS14) -> 0 | AU14: =AT14/(AV4-AT20) -> 0 | AV14: =IF(AU14=0,0,(AU14*((LOG(AU14))/LOG(2)))) -> 0
A15: 12 | B15: 1066 | C15: 14 | D15: 1076 | E15: 13 | F15: 1082 | G15: 14 | H15: 1092 | K15: 0 | L15: 1111 | N15: 2111 | O15: =COUNTIF($L$7:$L$500,N15) -> 0 | P15: =O15/$Q$4 -> 0 | Q15: =IF(P15=0,0,(P15*((LOG(P15))/LOG(2)))) -> 0 | T15: =N15 -> 2111 | U15: =COUNTIF(L7:L38,T15) -> 0 | V15: =U15/(W4-U20) -> 0 | W15: =IF(V15=0,0,(V15*((LOG(V15))/LOG(2)))) -> 0 | Y15: =N15 -> 2111 | Z15: =COUNTIF(L39:L69,Y15) -> 0 | AA15: =Z15/(AB4-Z20) -> 0 | AB15: =IF(AA15=0,0,(AA15*((LOG(AA15))/LOG(2)))) -> 0 | AD15: =N15 -> 2111 | AE15: =COUNTIF(L70:L101,AD15) -> 0 | AF15: =AE15/(AG4-AE20) -> 0 | AG15: =IF(AF15=0,0,(AF15*((LOG(AF15))/LOG(2)))) -> 0 | AI15: =N15 -> 2111 | AJ15: =COUNTIF(L102:L132,AI15) -> 0 | AK15: =AJ15/(AL4-AJ20) -> 0 | AL15: =IF(AK15=0,0,(AK15*((LOG(AK15))/LOG(2)))) -> 0 | AN15: =N15 -> 2111 | AO15: =COUNTIF(L133:L164,AN15) -> 0 | AP15: =AO15/(AQ4-AO20) -> 0 | AQ15: =IF(AP15=0,0,(AP15*((LOG(AP15))/LOG(2)))) -> 0 | AS15: =N15 -> 2111 | AT15: =COUNTIF(L165:L195,AS15) -> 0 | AU15: =AT15/(AV4-AT20) -> 0 | AV15: =IF(AU15=0,0,(AU15*((LOG(AU15))/LOG(2)))) -> 0
A16: 12 | B16: 1190 | C16: 14 | D16: 1195 | E16: 13 | F16: 1204 | G16: 23 | H16: 1214 | K16: 0 | L16: 1112 | N16: 2112 | O16: =COUNTIF($L$7:$L$500,N16) -> 0 | P16: =O16/$Q$4 -> 0 | Q16: =IF(P16=0,0,(P16*((LOG(P16))/LOG(2)))) -> 0 | T16: =N16 -> 2112 | U16: =COUNTIF(L7:L38,T16) -> 0 | V16: =U16/(W4-U20) -> 0 | W16: =IF(V16=0,0,(V16*((LOG(V16))/LOG(2)))) -> 0 | Y16: =N16 -> 2112 | Z16: =COUNTIF(L39:L69,Y16) -> 0 | AA16: =Z16/(AB4-Z20) -> 0 | AB16: =IF(AA16=0,0,(AA16*((LOG(AA16))/LOG(2)))) -> 0 | AD16: =N16 -> 2112 | AE16: =COUNTIF(L70:L101,AD16) -> 0 | AF16: =AE16/(AG4-AE20) -> 0 | AG16: =IF(AF16=0,0,(AF16*((LOG(AF16))/LOG(2)))) -> 0 | AI16: =N16 -> 2112 | AJ16: =COUNTIF(L102:L132,AI16) -> 0 | AK16: =AJ16/(AL4-AJ20) -> 0 | AL16: =IF(AK16=0,0,(AK16*((LOG(AK16))/LOG(2)))) -> 0 | AN16: =N16 -> 2112 | AO16: =COUNTIF(L133:L164,AN16) -> 0 | AP16: =AO16/(AQ4-AO20) -> 0 | AQ16: =IF(AP16=0,0,(AP16*((LOG(AP16))/LOG(2)))) -> 0 | AS16: =N16 -> 2112 | AT16: =COUNTIF(L165:L195,AS16) -> 0 | AU16: =AT16/(AV4-AT20) -> 0 | AV16: =IF(AU16=0,0,(AU16*((LOG(AU16))/LOG(2)))) -> 0
A17: 12 | B17: 1319 | C17: 14 | D17: 1328 | E17: 13 | F17: 1343 | G17: 23 | H17: 1384 | K17: 0 | L17: 1112 | N17: 2121 | O17: =COUNTIF($L$7:$L$500,N17) -> 0 | P17: =O17/$Q$4 -> 0 | Q17: =IF(P17=0,0,(P17*((LOG(P17))/LOG(2)))) -> 0 | T17: =N17 -> 2121 | U17: =COUNTIF(L7:L38,T17) -> 0 | V17: =U17/(W4-U20) -> 0 | W17: =IF(V17=0,0,(V17*((LOG(V17))/LOG(2)))) -> 0 | Y17: =N17 -> 2121 | Z17: =COUNTIF(L39:L69,Y17) -> 0 | AA17: =Z17/(AB4-Z20) -> 0 | AB17: =IF(AA17=0,0,(AA17*((LOG(AA17))/LOG(2)))) -> 0 | AD17: =N17 -> 2121 | AE17: =COUNTIF(L70:L101,AD17) -> 0 | AF17: =AE17/(AG4-AE20) -> 0 | AG17: =IF(AF17=0,0,(AF17*((LOG(AF17))/LOG(2)))) -> 0 | AI17: =N17 -> 2121 | AJ17: =COUNTIF(L102:L132,AI17) -> 0 | AK17: =AJ17/(AL4-AJ20) -> 0 | AL17: =IF(AK17=0,0,(AK17*((LOG(AK17))/LOG(2)))) -> 0 | AN17: =N17 -> 2121 | AO17: =COUNTIF(L133:L164,AN17) -> 0 | AP17: =AO17/(AQ4-AO20) -> 0 | AQ17: =IF(AP17=0,0,(AP17*((LOG(AP17))/LOG(2)))) -> 0 | AS17: =N17 -> 2121 | AT17: =COUNTIF(L165:L195,AS17) -> 0 | AU17: =AT17/(AV4-AT20) -> 0 | AV17: =IF(AU17=0,0,(AU17*((LOG(AU17))/LOG(2)))) -> 0
A18: 12 | B18: 1489 | C18: 14 | D18: 1495 | E18: 13 | F18: 1500 | G18: 14 | H18: 1512 | K18: 0 | L18: 1111 | N18: 2122 | O18: =COUNTIF($L$7:$L$500,N18) -> 0 | P18: =O18/$Q$4 -> 0 | Q18: =IF(P18=0,0,(P18*((LOG(P18))/LOG(2)))) -> 0 | T18: =N18 -> 2122 | U18: =COUNTIF(L7:L38,T18) -> 0 | V18: =U18/(W4-U20) -> 0 | W18: =IF(V18=0,0,(V18*((LOG(V18))/LOG(2)))) -> 0 | Y18: =N18 -> 2122 | Z18: =COUNTIF(L39:L69,Y18) -> 0 | AA18: =Z18/(AB4-Z20) -> 0 | AB18: =IF(AA18=0,0,(AA18*((LOG(AA18))/LOG(2)))) -> 0 | AD18: =N18 -> 2122 | AE18: =COUNTIF(L70:L101,AD18) -> 0 | AF18: =AE18/(AG4-AE20) -> 0 | AG18: =IF(AF18=0,0,(AF18*((LOG(AF18))/LOG(2)))) -> 0 | AI18: =N18 -> 2122 | AJ18: =COUNTIF(L102:L132,AI18) -> 0 | AK18: =AJ18/(AL4-AJ20) -> 0 | AL18: =IF(AK18=0,0,(AK18*((LOG(AK18))/LOG(2)))) -> 0 | AN18: =N18 -> 2122 | AO18: =COUNTIF(L133:L164,AN18) -> 0 | AP18: =AO18/(AQ4-AO20) -> 0 | AQ18: =IF(AP18=0,0,(AP18*((LOG(AP18))/LOG(2)))) -> 0 | AS18: =N18 -> 2122 | AT18: =COUNTIF(L165:L195,AS18) -> 0 | AU18: =AT18/(AV4-AT20) -> 0 | AV18: =IF(AU18=0,0,(AU18*((LOG(AU18))/LOG(2)))) -> 0
A19: 12 | B19: 1619 | C19: 14 | D19: 1626 | E19: 13 | F19: 1631 | G19: 23 | H19: 1643 | K19: 0 | L19: 1112 | N19: 2211 | O19: =COUNTIF($L$7:$L$500,N19) -> 0 | P19: =O19/$Q$4 -> 0 | Q19: =IF(P19=0,0,(P19*((LOG(P19))/LOG(2)))) -> 0 | T19: =N19 -> 2211 | U19: =COUNTIF(L7:L38,T19) -> 0 | V19: =U19/(W4-U20) -> 0 | W19: =IF(V19=0,0,(V19*((LOG(V19))/LOG(2)))) -> 0 | Y19: =N19 -> 2211 | Z19: =COUNTIF(L39:L69,Y19) -> 0 | AA19: =Z19/(AB4-Z20) -> 0 | AB19: =IF(AA19=0,0,(AA19*((LOG(AA19))/LOG(2)))) -> 0 | AD19: =N19 -> 2211 | AE19: =COUNTIF(L70:L101,AD19) -> 0 | AF19: =AE19/(AG4-AE20) -> 0 | AG19: =IF(AF19=0,0,(AF19*((LOG(AF19))/LOG(2)))) -> 0 | AI19: =N19 -> 2211 | AJ19: =COUNTIF(L102:L132,AI19) -> 0 | AK19: =AJ19/(AL4-AJ20) -> 0 | AL19: =IF(AK19=0,0,(AK19*((LOG(AK19))/LOG(2)))) -> 0 | AN19: =N19 -> 2211 | AO19: =COUNTIF(L133:L164,AN19) -> 0 | AP19: =AO19/(AQ4-AO20) -> 0 | AQ19: =IF(AP19=0,0,(AP19*((LOG(AP19))/LOG(2)))) -> 0 | AS19: =N19 -> 2211 | AT19: =COUNTIF(L165:L195,AS19) -> 0 | AU19: =AT19/(AV4-AT20) -> 0 | AV19: =IF(AU19=0,0,(AU19*((LOG(AU19))/LOG(2)))) -> 0
A20: 12 | B20: 1730 | C20: 14 | D20: 1739 | E20: 13 | F20: 1745 | G20: 23 | H20: 1756 | K20: 0 | L20: 1112 | N20: 2212 | O20: =COUNTIF($L$7:$L$500,N20) -> 0 | P20: =O20/$Q$4 -> 0 | Q20: =IF(P20=0,0,(P20*((LOG(P20))/LOG(2)))) -> 0 | T20: =N20 -> 2212 | U20: =COUNTIF(L7:L38,T20) -> 0 | Y20: =N20 -> 2212 | Z20: =COUNTIF(L39:L69,Y20) -> 0 | AD20: =N20 -> 2212 | AE20: =COUNTIF(L70:L101,AD20) -> 0 | AI20: =N20 -> 2212 | AJ20: =COUNTIF(L102:L132,AI20) -> 0 | AN20: =N20 -> 2212 | AO20: =COUNTIF(L133:L164,AN20) -> 0 | AS20: =N20 -> 2212 | AT20: =COUNTIF(L165:L195,AS20) -> 0
A21: 12 | B21: 1887 | C21: 23 | D21: 1900 | E21: 13 | F21: 1922 | G21: 23 | H21: 1947 | K21: 0 | L21: 1212 | N21: 2221 | O21: =COUNTIF($L$7:$L$500,N21) -> 0 | P21: =O21/$Q$4 -> 0 | Q21: =IF(P21=0,0,(P21*((LOG(P21))/LOG(2)))) -> 0 | T21: =N21 -> 2221 | U21: =COUNTIF(L7:L38,T21) -> 0 | V21: =U21/(W4-U20) -> 0 | W21: =IF(V21=0,0,(V21*((LOG(V21))/LOG(2)))) -> 0 | Y21: =N21 -> 2221 | Z21: =COUNTIF(L39:L69,Y21) -> 0 | AA21: =Z21/(AB4-Z20) -> 0 | AB21: =IF(AA21=0,0,(AA21*((LOG(AA21))/LOG(2)))) -> 0 | AD21: =N21 -> 2221 | AE21: =COUNTIF(L70:L101,AD21) -> 0 | AF21: =AE21/(AG4-AE20) -> 0 | AG21: =IF(AF21=0,0,(AF21*((LOG(AF21))/LOG(2)))) -> 0 | AI21: =N21 -> 2221 | AJ21: =COUNTIF(L102:L132,AI21) -> 0 | AK21: =AJ21/(AL4-AJ20) -> 0 | AL21: =IF(AK21=0,0,(AK21*((LOG(AK21))/LOG(2)))) -> 0 | AN21: =N21 -> 2221 | AO21: =COUNTIF(L133:L164,AN21) -> 0 | AP21: =AO21/(AQ4-AO20) -> 0 | AQ21: =IF(AP21=0,0,(AP21*((LOG(AP21))/LOG(2)))) -> 0 | AS21: =N21 -> 2221 | AT21: =COUNTIF(L165:L195,AS21) -> 0 | AU21: =AT21/(AV4-AT20) -> 0 | AV21: =IF(AU21=0,0,(AU21*((LOG(AU21))/LOG(2)))) -> 0
A22: 12 | B22: 2046 | C22: 14 | D22: 2052 | E22: 13 | F22: 2061 | G22: 23 | H22: 2083 | K22: 0 | L22: 1112 | N22: 2222 | O22: =COUNTIF($L$7:$L$500,N22) -> 0 | P22: =O22/$Q$4 -> 0 | Q22: =IF(P22=0,0,(P22*((LOG(P22))/LOG(2)))) -> 0 | T22: =N22 -> 2222 | U22: =COUNTIF(L7:L38,T22) -> 0 | V22: =U22/(W4-U20) -> 0 | W22: =IF(V22=0,0,(V22*((LOG(V22))/LOG(2)))) -> 0 | Y22: =N22 -> 2222 | Z22: =COUNTIF(L39:L69,Y22) -> 0 | AA22: =Z22/(AB4-Z20) -> 0 | AB22: =IF(AA22=0,0,(AA22*((LOG(AA22))/LOG(2)))) -> 0 | AD22: =N22 -> 2222 | AE22: =COUNTIF(L70:L101,AD22) -> 0 | AF22: =AE22/(AG4-AE20) -> 0 | AG22: =IF(AF22=0,0,(AF22*((LOG(AF22))/LOG(2)))) -> 0 | AI22: =N22 -> 2222 | AJ22: =COUNTIF(L102:L132,AI22) -> 0 | AK22: =AJ22/(AL4-AJ20) -> 0 | AL22: =IF(AK22=0,0,(AK22*((LOG(AK22))/LOG(2)))) -> 0 | AN22: =N22 -> 2222 | AO22: =COUNTIF(L133:L164,AN22) -> 0 | AP22: =AO22/(AQ4-AO20) -> 0 | AQ22: =IF(AP22=0,0,(AP22*((LOG(AP22))/LOG(2)))) -> 0 | AS22: =N22 -> 2222 | AT22: =COUNTIF(L165:L195,AS22) -> 0 | AU22: =AT22/(AV4-AT20) -> 0 | AV22: =IF(AU22=0,0,(AU22*((LOG(AU22))/LOG(2)))) -> 0
A23: 12 | B23: 2182 | C23: 14 | D23: 2192 | E23: 24 | F23: 2213 | G23: 23 | H23: 2233 | K23: 0 | L23: 1122 | P23: =SUM(P7:P22) -> 1 | Q23: =-SUM(Q7:Q22) -> 1.320540555 | V23: =SUM(V7:V22) -> 1 | W23: =-SUM(W7:W22) -> 1.574192694 | AA23: =SUM(AA7:AA22) -> 1 | AB23: =-SUM(AB7:AB22) -> 1.094265896 | AF23: =SUM(AF7:AF22) -> 1 | AG23: =-SUM(AG7:AG22) -> 1.184140762 | AK23: =SUM(AK7:AK22) -> 1 | AL23: =-SUM(AL7:AL22) -> 0.999249248 | AP23: =SUM(AP7:AP22) -> 1 | AQ23: =-SUM(AQ7:AQ22) -> 1.2586633 | AU23: =SUM(AU7:AU22) -> 1 | AV23: =-SUM(AV7:AV22) -> 1.091003405
A24: 12 | B24: 2330 | C24: 14 | D24: 2336 | E24: 13 | F24: 2342 | G24: 23 | H24: 2352 | K24: 0 | L24: 1112 | P24: U= | Q24: =Q23/(LOG(Q4)/LOG(2)) -> 0.1746228805 | V24: U1= | W24: =W23/(LOG(W4)/LOG(2)) -> 0.3148385388 | AA24: U2= | AB24: =AB23/(LOG(AB4)/LOG(2)) -> 0.2208765716 | AF24: U3= | AG24: =AG23/(LOG(AG4)/LOG(2)) -> 0.2368281524 | AK24: U4= | AL24: =AL23/(LOG(AL4)/LOG(2)) -> 0.201697548 | AP24: U5= | AQ24: =AQ23/(LOG(AQ4)/LOG(2)) -> 0.2517326599 | AU24: U6= | AV24: =AV23/(LOG(AV4)/LOG(2)) -> 0.2202180408
A25: 12 | B25: 2459 | C25: 14 | D25: 2465 | E25: 13 | F25: 2475 | G25: 23 | H25: 2504 | K25: 0 | L25: 1112
A26: 12 | B26: 2608 | C26: 14 | D26: 2614 | E26: 13 | F26: 2619 | G26: 23 | H26: 2629 | K26: 0 | L26: 1112
A27: 12 | B27: 2725 | C27: 14 | D27: 2731 | E27: 24 | F27: 2742 | G27: 23 | H27: 2749 | K27: 0 | L27: 1122 | N27: Total Target Seq
A28: 12 | B28: 2856 | C28: 14 | D28: 2863 | E28: 13 | F28: 2873 | G28: 14 | H28: 2879 | K28: 0 | L28: 1111 | N28: =COUNTIF(L7:L195,G3) -> 0 | P28: 32 | Q28: 31 | R28: 32 | S28: 31 | T28: 32 | U28: 31
A29: 12 | B29: 2983 | C29: 14 | D29: 2992 | E29: 13 | F29: 2997 | G29: 14 | H29: 3007 | K29: 0 | L29: 1111 | P29: % of reinforcement given in 6 equal intervals based on number of trials
A30: 12 | B30: 3107 | C30: 14 | D30: 3112 | E30: 13 | F30: 3117 | G30: 14 | H30: 3122 | K30: 0 | L30: 1111 | P30: %_1 | Q30: %_2 | R30: %_3 | S30: %_4 | T30: %_5 | U30: %_6
A31: 12 | B31: 3227 | C31: 14 | D31: 3233 | E31: 13 | F31: 3239 | G31: 14 | H31: 3249 | K31: 0 | L31: 1111 | O31: target sequence | P31: =$G$3 -> 2212 | Q31: =$G$3 -> 2212 | R31: =$G$3 -> 2212 | S31: =$G$3 -> 2212 | T31: =$G$3 -> 2212 | U31: =$G$3 -> 2212
A32: 12 | B32: 3351 | C32: 14 | D32: 3357 | E32: 13 | F32: 3365 | G32: 23 | H32: 3411 | K32: 0 | L32: 1112 | O32: total reinforcement | P32: =U20 -> 0 | Q32: =Z20 -> 0 | R32: =AE20 -> 0 | S32: =AJ20 -> 0 | T32: =AO20 -> 0 | U32: =AT20 -> 0
A33: 12 | B33: 3518 | C33: 14 | D33: 3524 | E33: 13 | F33: 3533 | G33: 23 | H33: 3552 | K33: 0 | L33: 1112 | O33: % target
A34: 12 | B34: 3654 | C34: 14 | D34: 3660 | E34: 13 | F34: 3666 | G34: 14 | H34: 3674 | K34: 0 | L34: 1111 | O34: CCRF
A35: 12 | B35: 3772 | C35: 14 | D35: 3777 | E35: 13 | F35: 3787 | G35: 23 | H35: 3802 | K35: 0 | L35: 1112 | O35: % CCRf
A36: 12 | B36: 3913 | C36: 14 | D36: 3918 | E36: 13 | F36: 3923 | G36: 23 | H36: 3939 | K36: 0 | L36: 1112 | O36: average response rate | P36: =H38/P28 -> 130.53125 | Q36: =(H69-H38)/Q28 -> 126.0322581 | R36: =(H101-H69)/R28 -> 126 | S36: =(H132-H101)/S28 -> 122.3548387 | T36: =(H164-H132)/T28 -> 129.40625 | U36: =(H195-H164)/U28 -> 125.1290323
A37: 12 | B37: 4032 | C37: 14 | D37: 4037 | E37: 13 | F37: 4047 | G37: 23 | H37: 4063 | K37: 0 | L37: 1112
A38: 12 | B38: 4160 | C38: 14 | D38: 4164 | E38: 13 | F38: 4171 | G38: 14 | H38: 4177 | K38: 0 | L38: 1111
A39: 12 | B39: 4272 | C39: 14 | D39: 4276 | E39: 13 | F39: 4281 | G39: 23 | H39: 4290 | K39: 0 | L39: 1112
A40: 12 | B40: 4387 | C40: 14 | D40: 4393 | E40: 13 | F40: 4398 | G40: 14 | H40: 4408 | K40: 0 | L40: 1111
A41: 12 | B41: 4503 | C41: 14 | D41: 4510 | E41: 13 | F41: 4515 | G41: 14 | H41: 4525 | K41: 0 | L41: 1111
A42: 12 | B42: 4625 | C42: 14 | D42: 4631 | E42: 13 | F42: 4636 | G42: 14 | H42: 4646 | K42: 0 | L42: 1111
A43: 12 | B43: 4745 | C43: 14 | D43: 4750 | E43: 13 | F43: 4755 | G43: 23 | H43: 4780 | K43: 0 | L43: 1112
A44: 12 | B44: 4878 | C44: 14 | D44: 4883 | E44: 13 | F44: 4889 | G44: 23 | H44: 4898 | K44: 0 | L44: 1112
A45: 12 | B45: 5005 | C45: 14 | D45: 5011 | E45: 13 | F45: 5016 | G45: 23 | H45: 5051 | K45: 0 | L45: 1112
A46: 12 | B46: 5139 | C46: 14 | D46: 5145 | E46: 13 | F46: 5150 | G46: 23 | H46: 5163 | K46: 0 | L46: 1112
A47: 12 | B47: 5267 | C47: 14 | D47: 5273 | E47: 13 | F47: 5281 | G47: 14 | H47: 5288 | K47: 0 | L47: 1111
A48: 12 | B48: 5386 | C48: 14 | D48: 5392 | E48: 13 | F48: 5397 | G48: 14 | H48: 5403 | K48: 0 | L48: 1111
A49: 12 | B49: 5509 | C49: 14 | D49: 5516 | E49: 13 | F49: 5521 | G49: 14 | H49: 5540 | K49: 0 | L49: 1111
A50: 12 | B50: 5632 | C50: 14 | D50: 5636 | E50: 13 | F50: 5642 | G50: 14 | H50: 5651 | K50: 0 | L50: 1111
A51: 12 | B51: 5746 | C51: 14 | D51: 5753 | E51: 13 | F51: 5762 | G51: 14 | H51: 5776 | K51: 0 | L51: 1111
A52: 12 | B52: 5875 | C52: 14 | D52: 5881 | E52: 13 | F52: 5887 | G52: 14 | H52: 5896 | K52: 0 | L52: 1111
A53: 12 | B53: 6000 | C53: 14 | D53: 6006 | E53: 13 | F53: 6012 | G53: 14 | H53: 6025 | K53: 0 | L53: 1111
A54: 12 | B54: 6120 | C54: 14 | D54: 6125 | E54: 13 | F54: 6131 | G54: 14 | H54: 6146 | K54: 0 | L54: 1111
A55: 12 | B55: 6236 | C55: 14 | D55: 6242 | E55: 13 | F55: 6246 | G55: 23 | H55: 6263 | K55: 0 | L55: 1112
A56: 12 | B56: 6359 | C56: 14 | D56: 6364 | E56: 13 | F56: 6369 | G56: 14 | H56: 6375 | K56: 0 | L56: 1111
A57: 12 | B57: 6490 | C57: 14 | D57: 6496 | E57: 13 | F57: 6509 | G57: 14 | H57: 6519 | K57: 0 | L57: 1111
A58: 12 | B58: 6616 | C58: 14 | D58: 6622 | E58: 13 | F58: 6627 | G58: 14 | H58: 6633 | K58: 0 | L58: 1111
A59: 12 | B59: 6738 | C59: 14 | D59: 6745 | E59: 13 | F59: 6753 | G59: 14 | H59: 6764 | K59: 0 | L59: 1111
A60: 12 | B60: 6860 | C60: 14 | D60: 6865 | E60: 13 | F60: 6869 | G60: 23 | H60: 6908 | K60: 0 | L60: 1112
A61: 12 | B61: 7007 | C61: 14 | D61: 7013 | E61: 13 | F61: 7019 | G61: 14 | H61: 7027 | K61: 0 | L61: 1111
A62: 12 | B62: 7114 | C62: 14 | D62: 7120 | E62: 24 | F62: 7141 | G62: 23 | H62: 7153 | K62: 0 | L62: 1122
A63: 12 | B63: 7262 | C63: 14 | D63: 7268 | E63: 13 | F63: 7284 | G63: 23 | H63: 7339 | K63: 0 | L63: 1112
A64: 12 | B64: 7443 | C64: 14 | D64: 7449 | E64: 13 | F64: 7454 | G64: 14 | H64: 7463 | K64: 0 | L64: 1111
A65: 12 | B65: 7561 | C65: 14 | D65: 7566 | E65: 13 | F65: 7570 | G65: 14 | H65: 7579 | K65: 0 | L65: 1111
A66: 12 | B66: 7680 | C66: 14 | D66: 7686 | E66: 13 | F66: 7691 | G66: 23 | H66: 7723 | K66: 0 | L66: 1112
A67: 12 | B67: 7823 | C67: 14 | D67: 7828 | E67: 13 | F67: 7833 | G67: 23 | H67: 7846 | K67: 0 | L67: 1112
A68: 12 | B68: 7950 | C68: 14 | D68: 7956 | E68: 13 | F68: 7962 | G68: 14 | H68: 7967 | K68: 0 | L68: 1111
A69: 12 | B69: 8065 | C69: 14 | D69: 8070 | E69: 13 | F69: 8075 | G69: 14 | H69: 8084 | K69: 0 | L69: 1111
A70: 12 | B70: 8181 | C70: 14 | D70: 8188 | E70: 13 | F70: 8194 | G70: 14 | H70: 8204 | K70: 0 | L70: 1111
A71: 12 | B71: 8302 | C71: 14 | D71: 8307 | E71: 13 | F71: 8312 | G71: 23 | H71: 8331 | K71: 0 | L71: 1112
A72: 12 | B72: 8432 | C72: 14 | D72: 8438 | E72: 13 | F72: 8444 | G72: 14 | H72: 8449 | K72: 0 | L72: 1111
A73: 12 | B73: 8550 | C73: 14 | D73: 8556 | E73: 13 | F73: 8567 | G73: 23 | H73: 8611 | K73: 0 | L73: 1112
A74: 12 | B74: 8713 | C74: 14 | D74: 8720 | E74: 13 | F74: 8725 | G74: 14 | H74: 8735 | K74: 0 | L74: 1111
A75: 12 | B75: 8835 | C75: 14 | D75: 8842 | E75: 13 | F75: 8846 | G75: 14 | H75: 8858 | K75: 0 | L75: 1111
A76: 12 | B76: 8957 | C76: 14 | D76: 8963 | E76: 13 | F76: 8971 | G76: 23 | H76: 8981 | K76: 0 | L76: 1112
A77: 12 | B77: 9087 | C77: 14 | D77: 9093 | E77: 13 | F77: 9098 | G77: 14 | H77: 9108 | K77: 0 | L77: 1111
A78: 12 | B78: 9198 | C78: 14 | D78: 9203 | E78: 13 | F78: 9208 | G78: 23 | H78: 9219 | K78: 0 | L78: 1112
A79: 12 | B79: 9316 | C79: 14 | D79: 9322 | E79: 13 | F79: 9330 | G79: 23 | H79: 9353 | K79: 0 | L79: 1112
A80: 12 | B80: 9448 | C80: 14 | D80: 9453 | E80: 13 | F80: 9462 | G80: 14 | H80: 9472 | K80: 0 | L80: 1111
A81: 12 | B81: 9570 | C81: 14 | D81: 9574 | E81: 13 | F81: 9580 | G81: 14 | H81: 9590 | K81: 0 | L81: 1111
A82: 12 | B82: 9686 | C82: 14 | D82: 9695 | E82: 13 | F82: 9705 | G82: 14 | H82: 9720 | K82: 0 | L82: 1111
A83: 12 | B83: 9825 | C83: 14 | D83: 9830 | E83: 13 | F83: 9836 | G83: 14 | H83: 9845 | K83: 0 | L83: 1111
A84: 12 | B84: 9941 | C84: 14 | D84: 9947 | E84: 13 | F84: 9952 | G84: 14 | H84: 9962 | K84: 0 | L84: 1111
A85: 12 | B85: 10057 | C85: 14 | D85: 10063 | E85: 13 | F85: 10070 | G85: 14 | H85: 10078 | K85: 0 | L85: 1111
A86: 12 | B86: 10173 | C86: 14 | D86: 10179 | E86: 13 | F86: 10185 | G86: 14 | H86: 10194 | K86: 0 | L86: 1111
A87: 12 | B87: 10299 | C87: 14 | D87: 10304 | E87: 13 | F87: 10319 | G87: 14 | H87: 10337 | K87: 0 | L87: 1111
A88: 12 | B88: 10447 | C88: 14 | D88: 10455 | E88: 13 | F88: 10460 | G88: 14 | H88: 10470 | K88: 0 | L88: 1111
A89: 12 | B89: 10573 | C89: 14 | D89: 10579 | E89: 13 | F89: 10587 | G89: 23 | H89: 10601 | K89: 0 | L89: 1112
A90: 12 | B90: 10692 | C90: 14 | D90: 10697 | E90: 13 | F90: 10702 | G90: 14 | H90: 10715 | K90: 0 | L90: 1111
A91: 12 | B91: 10818 | C91: 14 | D91: 10824 | E91: 13 | F91: 10829 | G91: 14 | H91: 10837 | K91: 0 | L91: 1111
A92: 12 | B92: 10939 | C92: 14 | D92: 10945 | E92: 13 | F92: 10951 | G92: 14 | H92: 10956 | K92: 0 | L92: 1111
A93: 12 | B93: 11054 | C93: 14 | D93: 11058 | E93: 13 | F93: 11063 | G93: 14 | H93: 11072 | K93: 0 | L93: 1111
A94: 12 | B94: 11171 | C94: 14 | D94: 11177 | E94: 24 | F94: 11187 | G94: 23 | H94: 11196 | K94: 0 | L94: 1122
A95: 12 | B95: 11300 | C95: 14 | D95: 11306 | E95: 13 | F95: 11315 | G95: 14 | H95: 11329 | K95: 0 | L95: 1111
A96: 12 | B96: 11417 | C96: 14 | D96: 11422 | E96: 13 | F96: 11429 | G96: 23 | H96: 11443 | K96: 0 | L96: 1112
A97: 12 | B97: 11544 | C97: 14 | D97: 11549 | E97: 13 | F97: 11557 | G97: 23 | H97: 11570 | K97: 0 | L97: 1112
A98: 12 | B98: 11666 | C98: 14 | D98: 11672 | E98: 13 | F98: 11677 | G98: 14 | H98: 11686 | K98: 0 | L98: 1111
A99: 12 | B99: 11788 | C99: 14 | D99: 11793 | E99: 13 | F99: 11799 | G99: 14 | H99: 11804 | K99: 0 | L99: 1111
A100: 12 | B100: 11902 | C100: 14 | D100: 11908 | E100: 13 | F100: 11916 | G100: 14 | H100: 11930 | K100: 0 | L100: 1111
A101: 12 | B101: 12033 | C101: 23 | D101: 12051 | E101: 24 | F101: 12089 | G101: 23 | H101: 12116 | K101: 0 | L101: 1222
A102: 12 | B102: 12207 | C102: 14 | D102: 12212 | E102: 13 | F102: 12220 | G102: 23 | H102: 12231 | K102: 0 | L102: 1112
A103: 12 | B103: 12333 | C103: 14 | D103: 12338 | E103: 13 | F103: 12344 | G103: 14 | H103: 12354 | K103: 0 | L103: 1111
A104: 12 | B104: 12457 | C104: 14 | D104: 12463 | E104: 13 | F104: 12473 | G104: 14 | H104: 12481 | K104: 0 | L104: 1111
A105: 12 | B105: 12588 | C105: 14 | D105: 12593 | E105: 13 | F105: 12599 | G105: 14 | H105: 12607 | K105: 0 | L105: 1111
A106: 12 | B106: 12707 | C106: 14 | D106: 12711 | E106: 13 | F106: 12717 | G106: 14 | H106: 12725 | K106: 0 | L106: 1111
A107: 12 | B107: 12826 | C107: 14 | D107: 12831 | E107: 13 | F107: 12838 | G107: 14 | H107: 12845 | K107: 0 | L107: 1111
A108: 12 | B108: 12936 | C108: 14 | D108: 12941 | E108: 13 | F108: 12946 | G108: 14 | H108: 12961 | K108: 0 | L108: 1111
A109: 12 | B109: 13062 | C109: 14 | D109: 13067 | E109: 13 | F109: 13074 | G109: 14 | H109: 13083 | K109: 0 | L109: 1111
A110: 12 | B110: 13186 | C110: 14 | D110: 13197 | E110: 13 | F110: 13205 | G110: 23 | H110: 13223 | K110: 0 | L110: 1112
A111: 12 | B111: 13317 | C111: 14 | D111: 13322 | E111: 13 | F111: 13332 | G111: 23 | H111: 13344 | K111: 0 | L111: 1112
A112: 12 | B112: 13433 | C112: 14 | D112: 13437 | E112: 13 | F112: 13445 | G112: 23 | H112: 13455 | K112: 0 | L112: 1112
A113: 12 | B113: 13551 | C113: 14 | D113: 13556 | E113: 13 | F113: 13561 | G113: 23 | H113: 13582 | K113: 0 | L113: 1112
A114: 12 | B114: 13688 | C114: 14 | D114: 13694 | E114: 13 | F114: 13699 | G114: 14 | H114: 13708 | K114: 0 | L114: 1111
A115: 12 | B115: 13807 | C115: 14 | D115: 13812 | E115: 13 | F115: 13817 | G115: 14 | H115: 13824 | K115: 0 | L115: 1111
A116: 12 | B116: 13922 | C116: 14 | D116: 13927 | E116: 13 | F116: 13938 | G116: 23 | H116: 13951 | K116: 0 | L116: 1112
A117: 12 | B117: 14049 | C117: 14 | D117: 14054 | E117: 13 | F117: 14060 | G117: 14 | H117: 14069 | K117: 0 | L117: 1111
A118: 12 | B118: 14156 | C118: 14 | D118: 14161 | E118: 13 | F118: 14168 | G118: 23 | H118: 14189 | K118: 0 | L118: 1112
A119: 12 | B119: 14285 | C119: 14 | D119: 14289 | E119: 13 | F119: 14299 | G119: 23 | H119: 14310 | K119: 0 | L119: 1112
A120: 12 | B120: 14407 | C120: 14 | D120: 14412 | E120: 13 | F120: 14416 | G120: 14 | H120: 14426 | K120: 0 | L120: 1111
A121: 12 | B121: 14524 | C121: 14 | D121: 14528 | E121: 13 | F121: 14535 | G121: 14 | H121: 14544 | K121: 0 | L121: 1111
A122: 12 | B122: 14641 | C122: 14 | D122: 14646 | E122: 13 | F122: 14650 | G122: 23 | H122: 14668 | K122: 0 | L122: 1112
A123: 12 | B123: 14770 | C123: 14 | D123: 14777 | E123: 13 | F123: 14786 | G123: 14 | H123: 14795 | K123: 0 | L123: 1111
A124: 12 | B124: 14887 | C124: 14 | D124: 14891 | E124: 13 | F124: 14897 | G124: 23 | H124: 14910 | K124: 0 | L124: 1112
A125: 12 | B125: 15015 | C125: 14 | D125: 15020 | E125: 13 | F125: 15025 | G125: 14 | H125: 15035 | K125: 0 | L125: 1111
A126: 12 | B126: 15132 | C126: 14 | D126: 15136 | E126: 13 | F126: 15142 | G126: 23 | H126: 15154 | K126: 0 | L126: 1112
A127: 12 | B127: 15250 | C127: 14 | D127: 15256 | E127: 13 | F127: 15261 | G127: 14 | H127: 15271 | K127: 0 | L127: 1111
A128: 12 | B128: 15369 | C128: 14 | D128: 15375 | E128: 13 | F128: 15380 | G128: 14 | H128: 15386 | K128: 0 | L128: 1111
A129: 12 | B129: 15480 | C129: 14 | D129: 15485 | E129: 13 | F129: 15491 | G129: 23 | H129: 15503 | K129: 0 | L129: 1112
A130: 12 | B130: 15601 | C130: 14 | D130: 15607 | E130: 13 | F130: 15617 | G130: 23 | H130: 15630 | K130: 0 | L130: 1112
A131: 12 | B131: 15740 | C131: 14 | D131: 15745 | E131: 13 | F131: 15752 | G131: 23 | H131: 15780 | K131: 0 | L131: 1112
A132: 12 | B132: 15885 | C132: 14 | D132: 15890 | E132: 13 | F132: 15896 | G132: 23 | H132: 15909 | K132: 0 | L132: 1112
A133: 12 | B133: 16010 | C133: 14 | D133: 16017 | E133: 13 | F133: 16023 | G133: 14 | H133: 16032 | K133: 0 | L133: 1111
A134: 12 | B134: 16132 | C134: 14 | D134: 16138 | E134: 13 | F134: 16143 | G134: 14 | H134: 16152 | K134: 0 | L134: 1111
A135: 12 | B135: 16254 | C135: 14 | D135: 16259 | E135: 13 | F135: 16264 | G135: 23 | H135: 16296 | K135: 0 | L135: 1112
A136: 12 | B136: 16403 | C136: 14 | D136: 16409 | E136: 13 | F136: 16414 | G136: 23 | H136: 16427 | K136: 0 | L136: 1112
A137: 12 | B137: 16517 | C137: 14 | D137: 16522 | E137: 13 | F137: 16531 | G137: 23 | H137: 16541 | K137: 0 | L137: 1112
A138: 12 | B138: 16649 | C138: 14 | D138: 16654 | E138: 24 | F138: 16675 | G138: 23 | H138: 16699 | K138: 0 | L138: 1122
A139: 12 | B139: 16796 | C139: 14 | D139: 16803 | E139: 13 | F139: 16812 | G139: 14 | H139: 16826 | K139: 0 | L139: 1111
A140: 12 | B140: 16929 | C140: 14 | D140: 16939 | E140: 13 | F140: 16948 | G140: 23 | H140: 16969 | K140: 0 | L140: 1112
A141: 12 | B141: 17075 | C141: 14 | D141: 17083 | E141: 13 | F141: 17093 | G141: 23 | H141: 17124 | K141: 0 | L141: 1112
A142: 12 | B142: 17220 | C142: 14 | D142: 17229 | E142: 13 | F142: 17238 | G142: 23 | H142: 17274 | K142: 0 | L142: 1112
A143: 12 | B143: 17377 | C143: 14 | D143: 17383 | E143: 13 | F143: 17389 | G143: 14 | H143: 17397 | K143: 0 | L143: 1111
A144: 12 | B144: 17493 | C144: 14 | D144: 17498 | E144: 13 | F144: 17503 | G144: 14 | H144: 17516 | K144: 0 | L144: 1111
A145: 12 | B145: 17606 | C145: 14 | D145: 17612 | E145: 24 | F145: 17654 | G145: 23 | H145: 17668 | K145: 0 | L145: 1122
A146: 12 | B146: 17773 | C146: 14 | D146: 17778 | E146: 13 | F146: 17783 | G146: 14 | H146: 17793 | K146: 0 | L146: 1111
A147: 12 | B147: 17889 | C147: 14 | D147: 17895 | E147: 13 | F147: 17901 | G147: 14 | H147: 17910 | K147: 0 | L147: 1111
A148: 12 | B148: 18001 | C148: 14 | D148: 18006 | E148: 13 | F148: 18015 | G148: 23 | H148: 18025 | K148: 0 | L148: 1112
A149: 12 | B149: 18129 | C149: 14 | D149: 18134 | E149: 13 | F149: 18140 | G149: 14 | H149: 18150 | K149: 0 | L149: 1111
A150: 12 | B150: 18258 | C150: 14 | D150: 18264 | E150: 13 | F150: 18269 | G150: 14 | H150: 18285 | K150: 0 | L150: 1111
A151: 12 | B151: 18386 | C151: 14 | D151: 18392 | E151: 13 | F151: 18397 | G151: 14 | H151: 18411 | K151: 0 | L151: 1111
A152: 12 | B152: 18514 | C152: 14 | D152: 18520 | E152: 13 | F152: 18525 | G152: 14 | H152: 18535 | K152: 0 | L152: 1111
A153: 12 | B153: 18625 | C153: 14 | D153: 18633 | E153: 13 | F153: 18649 | G153: 23 | H153: 18661 | K153: 0 | L153: 1112
A154: 12 | B154: 18765 | C154: 14 | D154: 18774 | E154: 13 | F154: 18779 | G154: 14 | H154: 18796 | K154: 0 | L154: 1111
A155: 12 | B155: 18893 | C155: 14 | D155: 18900 | E155: 13 | F155: 18909 | G155: 14 | H155: 18918 | K155: 0 | L155: 1111
A156: 12 | B156: 19019 | C156: 14 | D156: 19024 | E156: 13 | F156: 19030 | G156: 14 | H156: 19039 | K156: 0 | L156: 1111
A157: 12 | B157: 19139 | C157: 14 | D157: 19145 | E157: 13 | F157: 19150 | G157: 14 | H157: 19155 | K157: 0 | L157: 1111
A158: 12 | B158: 19254 | C158: 14 | D158: 19260 | E158: 13 | F158: 19265 | G158: 14 | H158: 19274 | K158: 0 | L158: 1111
A159: 12 | B159: 19370 | C159: 14 | D159: 19376 | E159: 13 | F159: 19382 | G159: 14 | H159: 19390 | K159: 0 | L159: 1111
A160: 12 | B160: 19498 | C160: 14 | D160: 19503 | E160: 13 | F160: 19509 | G160: 14 | H160: 19519 | K160: 0 | L160: 1111
A161: 12 | B161: 19617 | C161: 14 | D161: 19622 | E161: 13 | F161: 19629 | G161: 14 | H161: 19643 | K161: 0 | L161: 1111
A162: 12 | B162: 19748 | C162: 14 | D162: 19756 | E162: 24 | F162: 19777 | G162: 23 | H162: 19784 | K162: 0 | L162: 1122
A163: 12 | B163: 19887 | C163: 14 | D163: 19896 | E163: 13 | F163: 19904 | G163: 14 | H163: 19931 | K163: 0 | L163: 1111
A164: 12 | B164: 20021 | C164: 14 | D164: 20029 | E164: 13 | F164: 20040 | G164: 23 | H164: 20050 | K164: 0 | L164: 1112
A165: 12 | B165: 20153 | C165: 14 | D165: 20160 | E165: 13 | F165: 20165 | G165: 14 | H165: 20174 | K165: 0 | L165: 1111
A166: 12 | B166: 20270 | C166: 14 | D166: 20274 | E166: 13 | F166: 20281 | G166: 14 | H166: 20290 | K166: 0 | L166: 1111
A167: 12 | B167: 20385 | C167: 14 | D167: 20391 | E167: 13 | F167: 20396 | G167: 14 | H167: 20406 | K167: 0 | L167: 1111
A168: 12 | B168: 20508 | C168: 14 | D168: 20513 | E168: 13 | F168: 20518 | G168: 14 | H168: 20539 | K168: 0 | L168: 1111
A169: 12 | B169: 20645 | C169: 14 | D169: 20650 | E169: 13 | F169: 20656 | G169: 14 | H169: 20666 | K169: 0 | L169: 1111
A170: 12 | B170: 20768 | C170: 14 | D170: 20774 | E170: 13 | F170: 20781 | G170: 14 | H170: 20793 | K170: 0 | L170: 1111
A171: 12 | B171: 20898 | C171: 14 | D171: 20904 | E171: 13 | F171: 20910 | G171: 14 | H171: 20919 | K171: 0 | L171: 1111
A172: 12 | B172: 21020 | C172: 14 | D172: 21025 | E172: 13 | F172: 21033 | G172: 14 | H172: 21047 | K172: 0 | L172: 1111
A173: 12 | B173: 21153 | C173: 14 | D173: 21159 | E173: 13 | F173: 21170 | G173: 14 | H173: 21182 | K173: 0 | L173: 1111
A174: 12 | B174: 21288 | C174: 14 | D174: 21297 | E174: 13 | F174: 21306 | G174: 14 | H174: 21321 | K174: 0 | L174: 1111
A175: 12 | B175: 21421 | C175: 14 | D175: 21428 | E175: 13 | F175: 21434 | G175: 14 | H175: 21443 | K175: 0 | L175: 1111
A176: 12 | B176: 21533 | C176: 14 | D176: 21537 | E176: 13 | F176: 21548 | G176: 23 | H176: 21560 | K176: 0 | L176: 1112
A177: 12 | B177: 21657 | C177: 14 | D177: 21662 | E177: 24 | F177: 21675 | G177: 23 | H177: 21683 | K177: 0 | L177: 1122
A178: 12 | B178: 21780 | C178: 14 | D178: 21785 | E178: 13 | F178: 21790 | G178: 14 | H178: 21800 | K178: 0 | L178: 1111
A179: 12 | B179: 21897 | C179: 14 | D179: 21903 | E179: 13 | F179: 21913 | G179: 23 | H179: 21923 | K179: 0 | L179: 1112
A180: 12 | B180: 22012 | C180: 14 | D180: 22017 | E180: 13 | F180: 22026 | G180: 23 | H180: 22038 | K180: 0 | L180: 1112
A181: 12 | B181: 22143 | C181: 14 | D181: 22148 | E181: 13 | F181: 22154 | G181: 14 | H181: 22163 | K181: 0 | L181: 1111
A182: 12 | B182: 22253 | C182: 14 | D182: 22259 | E182: 13 | F182: 22264 | G182: 23 | H182: 22283 | K182: 0 | L182: 1112
A183: 12 | B183: 22389 | C183: 14 | D183: 22394 | E183: 13 | F183: 22420 | G183: 14 | H183: 22429 | K183: 0 | L183: 1111
A184: 12 | B184: 22529 | C184: 14 | D184: 22535 | E184: 13 | F184: 22545 | G184: 23 | H184: 22557 | K184: 0 | L184: 1112
A185: 12 | B185: 22656 | C185: 14 | D185: 22662 | E185: 13 | F185: 22667 | G185: 14 | H185: 22675 | K185: 0 | L185: 1111
A186: 12 | B186: 22765 | C186: 14 | D186: 22769 | E186: 13 | F186: 22774 | G186: 23 | H186: 22786 | K186: 0 | L186: 1112
A187: 12 | B187: 22883 | C187: 14 | D187: 22888 | E187: 13 | F187: 22893 | G187: 14 | H187: 22903 | K187: 0 | L187: 1111
A188: 12 | B188: 23001 | C188: 14 | D188: 23007 | E188: 13 | F188: 23016 | G188: 23 | H188: 23029 | K188: 0 | L188: 1112
A189: 12 | B189: 23126 | C189: 14 | D189: 23132 | E189: 13 | F189: 23137 | G189: 14 | H189: 23146 | K189: 0 | L189: 1111
A190: 12 | B190: 23255 | C190: 14 | D190: 23261 | E190: 13 | F190: 23269 | G190: 14 | H190: 23293 | K190: 0 | L190: 1111
A191: 12 | B191: 23396 | C191: 14 | D191: 23402 | E191: 13 | F191: 23413 | G191: 14 | H191: 23421 | K191: 0 | L191: 1111
A192: 12 | B192: 23511 | C192: 14 | D192: 23519 | E192: 24 | F192: 23531 | G192: 23 | H192: 23543 | K192: 0 | L192: 1122
A193: 12 | B193: 23640 | C193: 14 | D193: 23645 | E193: 13 | F193: 23655 | G193: 14 | H193: 23668 | K193: 0 | L193: 1111
A194: 12 | B194: 23771 | C194: 14 | D194: 23778 | E194: 13 | F194: 23785 | G194: 14 | H194: 23799 | K194: 0 | L194: 1111
A195: 12 | B195: 23895 | C195: 14 | D195: 23901 | E195: 13 | F195: 23910 | G195: 14 | H195: 23929 | K195: 1 | L195: 1111

Sheet !L903B00.056
A1: Report for:!L903B00.056
A2: Date: | B2: <date>
A3: Hen: | B3: <hen> | F3: Correct Sequence | G3: =Start!J2 -> 2212 | P3: Total Sequences in Data | Q3: =4994-COUNTBLANK(L7:L5000) -> 191 | V3: Total Sequences in Block Data | W3: =COUNTA(L7:L38) -> 32 | AA3: Total Sequences in Block Data | AB3: =COUNTA(L39:L70) -> 32 | AF3: Total Sequences in Block Data | AG3: =COUNTA(L71:L101) -> 31 | AK3: Total Sequences in Block Data | AL3: =COUNTA(L102:L133) -> 32 | AP3: Total Sequences in Block Data | AQ3: =COUNTA(L134:L165) -> 32 | AU3: Total Sequences in Block Data | AV3: =COUNTA(L166:L197) -> 32
P4: Total Sequences in Summary | Q4: =SUM(O7:O22) -> 191 | V4: Total Sequences in Block Summary | W4: =SUM(U7:U22) -> 32 | AA4: Total Sequences in Block Summary | AB4: =SUM(Z7:Z22) -> 32 | AF4: Total Sequences in Block Summary | AG4: =SUM(AE7:AE22) -> 31 | AK4: Total Sequences in Block Summary | AL4: =SUM(AJ7:AJ22) -> 32 | AP4: Total Sequences in Block Summary | AQ4: =SUM(AO7:AO22) -> 32 | AU4: Total Sequences in Block Summary | AV4: =SUM(AT7:AT22) -> 32
T5: Block 1 | Y5: Block 2 | AD5: Block 3 | AI5: Block 4 | AN5: Block 5 | AS5: Block 6
A6: Sequence Component 1 | B6: Time 1 | C6: Sequence Component 2 | D6: Time 2 | E6: Sequence Component 3 | F6: Time 3 | G6: Sequence Component 4 | H6: Time 4 | I6: Sequence Component 5 | J6: Time 5 | K6: Correct? 0=No 1=Yes | L6: Sequence | N6: Frequency | P6: Relative Frequency | Q6: Variability | T6: Frequency | V6: Relative Frequency | W6: Variability | Y6: Frequency | AA6: Relative Frequency | AB6: Variability | AD6: Frequency | AF6: Relative Frequency | AG6: Variability | AI6: Frequency | AK6: Relative Frequency | AL6: Variability | AN6: Frequency | AP6: Relative Frequency | AQ6: Variability | AS6: Frequency | AU6: Relative Frequency | AV6: Variability
A7: 12 | B7: 18 | C7: 14 | D7: 25 | E7: 24 | F7: 40 | G7: 14 | H7: 58 | K7: 0 | L7: 1121 | N7: 1111 | O7: =COUNTIF($L$7:$L$500,N7) -> 176 | P7: =O7/$Q$4 -> 0.9214659686 | Q7: =IF(P7=0,0,(P7*((LOG(P7))/LOG(2)))) -> -0.1087304128 | T7: =N7 -> 1111 | U7: =COUNTIF(L7:L38,T7) -> 21 | V7: =U7/(W4-U20) -> 0.65625 | W7: =IF(V7=0,0,(V7*((LOG(V7))/LOG(2)))) -> -0.3987916913 | Y7: =N7 -> 1111 | Z7: =COUNTIF(L39:L70,Y7) -> 29 | AA7: =Z7/(AB4-Z20) -> 0.90625 | AB7: =IF(AA7=0,0,(AA7*((LOG(AA7))/LOG(2)))) -> -0.1287047232 | AD7: =N7 -> 1111 | AE7: =COUNTIF(L71:L101,AD7) -> 31 | AF7: =AE7/(AG4-AE20) -> 1 | AG7: =IF(AF7=0,0,(AF7*((LOG(AF7))/LOG(2)))) -> 0 | AI7: =N7 -> 1111 | AJ7: =COUNTIF(L102:L133,AI7) -> 31 | AK7: =AJ7/(AL4-AJ20) -> 0.96875 | AL7: =IF(AK7=0,0,(AK7*((LOG(AK7))/LOG(2)))) -> -0.04437232431 | AN7: =N7 -> 1111 | AO7: =COUNTIF(L134:L165,AN7) -> 32 | AP7: =AO7/(AQ4-AO20) -> 1 | AQ7: =IF(AP7=0,0,(AP7*((LOG(AP7))/LOG(2)))) -> 0 | AS7: =N7 -> 1111 | AT7: =COUNTIF(L166:L197,AS7) -> 32 | AU7: =AT7/(AV4-AT20) -> 1 | AV7: =IF(AU7=0,0,(AU7*((LOG(AU7))/LOG(2)))) -> 0
A8: 12 | B8: 166 | C8: 14 | D8: 176 | E8: 24 | F8: 188 | G8: 23 | H8: 197 | K8: 0 | L8: 1122 | N8: 1112 | O8: =COUNTIF($L$7:$L$500,N8) -> 13 | P8: =O8/$Q$4 -> 0.06806282723 | Q8: =IF(P8=0,0,(P8*((LOG(P8))/LOG(2)))) -> -0.2638788399 | T8: =N8 -> 1112 | U8: =COUNTIF(L7:L38,T8) -> 9 | V8: =U8/(W4-U20) -> 0.28125 | W8: =IF(V8=0,0,(V8*((LOG(V8))/LOG(2)))) -> -0.5147085933 | Y8: =N8 -> 1112 | Z8: =COUNTIF(L39:L70,Y8) -> 3 | AA8: =Z8/(AB4-Z20) -> 0.09375 | AB8: =IF(AA8=0,0,(AA8*((LOG(AA8))/LOG(2)))) -> -0.3201597656 | AD8: =N8 -> 1112 | AE8: =COUNTIF(L71:L101,AD8) -> 0 | AF8: =AE8/(AG4-AE20) -> 0 | AG8: =IF(AF8=0,0,(AF8*((LOG(AF8))/LOG(2)))) -> 0 | AI8: =N8 -> 1112 | AJ8: =COUNTIF(L102:L133,AI8) -> 1 | AK8: =AJ8/(AL4-AJ20) -> 0.03125 | AL8: =IF(AK8=0,0,(AK8*((LOG(AK8))/LOG(2)))) -> -0.15625 | AN8: =N8 -> 1112 | AO8: =COUNTIF(L134:L165,AN8) -> 0 | AP8: =AO8/(AQ4-AO20) -> 0 | AQ8: =IF(AP8=0,0,(AP8*((LOG(AP8))/LOG(2)))) -> 0 | AS8: =N8 -> 1112 | AT8: =COUNTIF(L166:L197,AS8) -> 0 | AU8: =AT8/(AV4-AT20) -> 0 | AV8: =IF(AU8=0,0,(AU8*((LOG(AU8))/LOG(2)))) -> 0
A9: 12 | B9: 299 | C9: 14 | D9: 305 | E9: 13 | F9: 317 | G9: 23 | H9: 329 | K9: 0 | L9: 1112 | N9: 1121 | O9: =COUNTIF($L$7:$L$500,N9) -> 1 | P9: =O9/$Q$4 -> 0.005235602094 | Q9: =IF(P9=0,0,(P9*((LOG(P9))/LOG(2)))) -> -0.03967240224 | T9: =N9 -> 1121 | U9: =COUNTIF(L7:L38,T9) -> 1 | V9: =U9/(W4-U20) -> 0.03125 | W9: =IF(V9=0,0,(V9*((LOG(V9))/LOG(2)))) -> -0.15625 | Y9: =N9 -> 1121 | Z9: =COUNTIF(L39:L70,Y9) -> 0 | AA9: =Z9/(AB4-Z20) -> 0 | AB9: =IF(AA9=0,0,(AA9*((LOG(AA9))/LOG(2)))) -> 0 | AD9: =N9 -> 1121 | AE9: =COUNTIF(L71:L101,AD9) -> 0 | AF9: =AE9/(AG4-AE20) -> 0 | AG9: =IF(AF9=0,0,(AF9*((LOG(AF9))/LOG(2)))) -> 0 | AI9: =N9 -> 1121 | AJ9: =COUNTIF(L102:L133,AI9) -> 0 | AK9: =AJ9/(AL4-AJ20) -> 0 | AL9: =IF(AK9=0,0,(AK9*((LOG(AK9))/LOG(2)))) -> 0 | AN9: =N9 -> 1121 | AO9: =COUNTIF(L134:L165,AN9) -> 0 | AP9: =AO9/(AQ4-AO20) -> 0 | AQ9: =IF(AP9=0,0,(AP9*((LOG(AP9))/LOG(2)))) -> 0 | AS9: =N9 -> 1121 | AT9: =COUNTIF(L166:L197,AS9) -> 0 | AU9: =AT9/(AV4-AT20) -> 0 | AV9: =IF(AU9=0,0,(AU9*((LOG(AU9))/LOG(2)))) -> 0
A10: 12 | B10: 434 | C10: 14 | D10: 442 | E10: 13 | F10: 451 | G10: 14 | H10: 463 | K10: 0 | L10: 1111 | N10: 1122 | O10: =COUNTIF($L$7:$L$500,N10) -> 1 | P10: =O10/$Q$4 -> 0.005235602094 | Q10: =IF(P10=0,0,(P10*((LOG(P10))/LOG(2)))) -> -0.03967240224 | T10: =N10 -> 1122 | U10: =COUNTIF(L7:L38,T10) -> 1 | V10: =U10/(W4-U20) -> 0.03125 | W10: =IF(V10=0,0,(V10*((LOG(V10))/LOG(2)))) -> -0.15625 | Y10: =N10 -> 1122 | Z10: =COUNTIF(L39:L70,Y10) -> 0 | AA10: =Z10/(AB4-Z20) -> 0 | AB10: =IF(AA10=0,0,(AA10*((LOG(AA10))/LOG(2)))) -> 0 | AD10: =N10 -> 1122 | AE10: =COUNTIF(L71:L101,AD10) -> 0 | AF10: =AE10/(AG4-AE20) -> 0 | AG10: =IF(AF10=0,0,(AF10*((LOG(AF10))/LOG(2)))) -> 0 | AI10: =N10 -> 1122 | AJ10: =COUNTIF(L102:L133,AI10) -> 0 | AK10: =AJ10/(AL4-AJ20) -> 0 | AL10: =IF(AK10=0,0,(AK10*((LOG(AK10))/LOG(2)))) -> 0 | AN10: =N10 -> 1122 | AO10: =COUNTIF(L134:L165,AN10) -> 0 | AP10: =AO10/(AQ4-AO20) -> 0 | AQ10: =IF(AP10=0,0,(AP10*((LOG(AP10))/LOG(2)))) -> 0 | AS10: =N10 -> 1122 | AT10: =COUNTIF(L166:L197,AS10) -> 0 | AU10: =AT10/(AV4-AT20) -> 0 | AV10: =IF(AU10=0,0,(AU10*((LOG(AU10))/LOG(2)))) -> 0
A11: 12 | B11: 567 | C11: 14 | D11: 577 | E11: 13 | F11: 585 | G11: 23 | H11: 599 | K11: 0 | L11: 1112 | N11: 1211 | O11: =COUNTIF($L$7:$L$500,N11) -> 0 | P11: =O11/$Q$4 -> 0 | Q11: =IF(P11=0,0,(P11*((LOG(P11))/LOG(2)))) -> 0 | T11: =N11 -> 1211 | U11: =COUNTIF(L7:L38,T11) -> 0 | V11: =U11/(W4-U20) -> 0 | W11: =IF(V11=0,0,(V11*((LOG(V11))/LOG(2)))) -> 0 | Y11: =N11 -> 1211 | Z11: =COUNTIF(L39:L70,Y11) -> 0 | AA11: =Z11/(AB4-Z20) -> 0 | AB11: =IF(AA11=0,0,(AA11*((LOG(AA11))/LOG(2)))) -> 0 | AD11: =N11 -> 1211 | AE11: =COUNTIF(L71:L101,AD11) -> 0 | AF11: =AE11/(AG4-AE20) -> 0 | AG11: =IF(AF11=0,0,(AF11*((LOG(AF11))/LOG(2)))) -> 0 | AI11: =N11 -> 1211 | AJ11: =COUNTIF(L102:L133,AI11) -> 0 | AK11: =AJ11/(AL4-AJ20) -> 0 | AL11: =IF(AK11=0,0,(AK11*((LOG(AK11))/LOG(2)))) -> 0 | AN11: =N11 -> 1211 | AO11: =COUNTIF(L134:L165,AN11) -> 0 | AP11: =AO11/(AQ4-AO20) -> 0 | AQ11: =IF(AP11=0,0,(AP11*((LOG(AP11))/LOG(2)))) -> 0 | AS11: =N11 -> 1211 | AT11: =COUNTIF(L166:L197,AS11) -> 0 | AU11: =AT11/(AV4-AT20) -> 0 | AV11: =IF(AU11=0,0,(AU11*((LOG(AU11))/LOG(2)))) -> 0
A12: 12 | B12: 703 | C12: 14 | D12: 709 | E12: 13 | F12: 715 | G12: 14 | H12: 725 | K12: 0 | L12: 1111 | N12: 1212 | O12: =COUNTIF($L$7:$L$500,N12) -> 0 | P12: =O12/$Q$4 -> 0 | Q12: =IF(P12=0,0,(P12*((LOG(P12))/LOG(2)))) -> 0 | T12: =N12 -> 1212 | U12: =COUNTIF(L7:L38,T12) -> 0 | V12: =U12/(W4-U20) -> 0 | W12: =IF(V12=0,0,(V12*((LOG(V12))/LOG(2)))) -> 0 | Y12: =N12 -> 1212 | Z12: =COUNTIF(L39:L70,Y12) -> 0 | AA12: =Z12/(AB4-Z20) -> 0 | AB12: =IF(AA12=0,0,(AA12*((LOG(AA12))/LOG(2)))) -> 0 | AD12: =N12 -> 1212 | AE12: =COUNTIF(L71:L101,AD12) -> 0 | AF12: =AE12/(AG4-AE20) -> 0 | AG12: =IF(AF12=0,0,(AF12*((LOG(AF12))/LOG(2)))) -> 0 | AI12: =N12 -> 1212 | AJ12: =COUNTIF(L102:L133,AI12) -> 0 | AK12: =AJ12/(AL4-AJ20) -> 0 | AL12: =IF(AK12=0,0,(AK12*((LOG(AK12))/LOG(2)))) -> 0 | AN12: =N12 -> 1212 | AO12: =COUNTIF(L134:L165,AN12) -> 0 | AP12: =AO12/(AQ4-AO20) -> 0 | AQ12: =IF(AP12=0,0,(AP12*((LOG(AP12))/LOG(2)))) -> 0 | AS12: =N12 -> 1212 | AT12: =COUNTIF(L166:L197,AS12) -> 0 | AU12: =AT12/(AV4-AT20) -> 0 | AV12: =IF(AU12=0,0,(AU12*((LOG(AU12))/LOG(2)))) -> 0
A13: 12 | B13: 819 | C13: 14 | D13: 824 | E13: 13 | F13: 831 | G13: 23 | H13: 843 | K13: 0 | L13: 1112 | N13: 1221 | O13: =COUNTIF($L$7:$L$500,N13) -> 0 | P13: =O13/$Q$4 -> 0 | Q13: =IF(P13=0,0,(P13*((LOG(P13))/LOG(2)))) -> 0 | T13: =N13 -> 1221 | U13: =COUNTIF(L7:L38,T13) -> 0 | V13: =U13/(W4-U20) -> 0 | W13: =IF(V13=0,0,(V13*((LOG(V13))/LOG(2)))) -> 0 | Y13: =N13 -> 1221 | Z13: =COUNTIF(L39:L70,Y13) -> 0 | AA13: =Z13/(AB4-Z20) -> 0 | AB13: =IF(AA13=0,0,(AA13*((LOG(AA13))/LOG(2)))) -> 0 | AD13: =N13 -> 1221 | AE13: =COUNTIF(L71:L101,AD13) -> 0 | AF13: =AE13/(AG4-AE20) -> 0 | AG13: =IF(AF13=0,0,(AF13*((LOG(AF13))/LOG(2)))) -> 0 | AI13: =N13 -> 1221 | AJ13: =COUNTIF(L102:L133,AI13) -> 0 | AK13: =AJ13/(AL4-AJ20) -> 0 | AL13: =IF(AK13=0,0,(AK13*((LOG(AK13))/LOG(2)))) -> 0 | AN13: =N13 -> 1221 | AO13: =COUNTIF(L134:L165,AN13) -> 0 | AP13: =AO13/(AQ4-AO20) -> 0 | AQ13: =IF(AP13=0,0,(AP13*((LOG(AP13))/LOG(2)))) -> 0 | AS13: =N13 -> 1221 | AT13: =COUNTIF(L166:L197,AS13) -> 0 | AU13: =AT13/(AV4-AT20) -> 0 | AV13: =IF(AU13=0,0,(AU13*((LOG(AU13))/LOG(2)))) -> 0
A14: 12 | B14: 942 | C14: 14 | D14: 946 | E14: 13 | F14: 952 | G14: 14 | H14: 963 | K14: 0 | L14: 1111 | N14: 1222 | O14: =COUNTIF($L$7:$L$500,N14) -> 0 | P14: =O14/$Q$4 -> 0 | Q14: =IF(P14=0,0,(P14*((LOG(P14))/LOG(2)))) -> 0 | T14: =N14 -> 1222 | U14: =COUNTIF(L7:L38,T14) -> 0 | V14: =U14/(W4-U20) -> 0 | W14: =IF(V14=0,0,(V14*((LOG(V14))/LOG(2)))) -> 0 | Y14: =N14 -> 1222 | Z14: =COUNTIF(L39:L70,Y14) -> 0 | AA14: =Z14/(AB4-Z20) -> 0 | AB14: =IF(AA14=0,0,(AA14*((LOG(AA14))/LOG(2)))) -> 0 | AD14: =N14 -> 1222 | AE14: =COUNTIF(L71:L101,AD14) -> 0 | AF14: =AE14/(AG4-AE20) -> 0 | AG14: =IF(AF14=0,0,(AF14*((LOG(AF14))/LOG(2)))) -> 0 | AI14: =N14 -> 1222 | AJ14: =COUNTIF(L102:L133,AI14) -> 0 | AK14: =AJ14/(AL4-AJ20) -> 0 | AL14: =IF(AK14=0,0,(AK14*((LOG(AK14))/LOG(2)))) -> 0 | AN14: =N14 -> 1222 | AO14: =COUNTIF(L134:L165,AN14) -> 0 | AP14: =AO14/(AQ4-AO20) -> 0 | AQ14: =IF(AP14=0,0,(AP14*((LOG(AP14))/LOG(2)))) -> 0 | AS14: =N14 -> 1222 | AT14: =COUNTIF(L166:L197,AS14) -> 0 | AU14: =AT14/(AV4-AT20) -> 0 | AV14: =IF(AU14=0,0,(AU14*((LOG(AU14))/LOG(2)))) -> 0
A15: 12 | B15: 1060 | C15: 14 | D15: 1067 | E15: 13 | F15: 1072 | G15: 14 | H15: 1082 | K15: 0 | L15: 1111 | N15: 2111 | O15: =COUNTIF($L$7:$L$500,N15) -> 0 | P15: =O15/$Q$4 -> 0 | Q15: =IF(P15=0,0,(P15*((LOG(P15))/LOG(2)))) -> 0 | T15: =N15 -> 2111 | U15: =COUNTIF(L7:L38,T15) -> 0 | V15: =U15/(W4-U20) -> 0 | W15: =IF(V15=0,0,(V15*((LOG(V15))/LOG(2)))) -> 0 | Y15: =N15 -> 2111 | Z15: =COUNTIF(L39:L70,Y15) -> 0 | AA15: =Z15/(AB4-Z20) -> 0 | AB15: =IF(AA15=0,0,(AA15*((LOG(AA15))/LOG(2)))) -> 0 | AD15: =N15 -> 2111 | AE15: =COUNTIF(L71:L101,AD15) -> 0 | AF15: =AE15/(AG4-AE20) -> 0 | AG15: =IF(AF15=0,0,(AF15*((LOG(AF15))/LOG(2)))) -> 0 | AI15: =N15 -> 2111 | AJ15: =COUNTIF(L102:L133,AI15) -> 0 | AK15: =AJ15/(AL4-AJ20) -> 0 | AL15: =IF(AK15=0,0,(AK15*((LOG(AK15))/LOG(2)))) -> 0 | AN15: =N15 -> 2111 | AO15: =COUNTIF(L134:L165,AN15) -> 0 | AP15: =AO15/(AQ4-AO20) -> 0 | AQ15: =IF(AP15=0,0,(AP15*((LOG(AP15))/LOG(2)))) -> 0 | AS15: =N15 -> 2111 | AT15: =COUNTIF(L166:L197,AS15) -> 0 | AU15: =AT15/(AV4-AT20) -> 0 | AV15: =IF(AU15=0,0,(AU15*((LOG(AU15))/LOG(2)))) -> 0
A16: 12 | B16: 1191 | C16: 14 | D16: 1198 | E16: 13 | F16: 1208 | G16: 14 | H16: 1221 | K16: 0 | L16: 1111 | N16: 2112 | O16: =COUNTIF($L$7:$L$500,N16) -> 0 | P16: =O16/$Q$4 -> 0 | Q16: =IF(P16=0,0,(P16*((LOG(P16))/LOG(2)))) -> 0 | T16: =N16 -> 2112 | U16: =COUNTIF(L7:L38,T16) -> 0 | V16: =U16/(W4-U20) -> 0 | W16: =IF(V16=0,0,(V16*((LOG(V16))/LOG(2)))) -> 0 | Y16: =N16 -> 2112 | Z16: =COUNTIF(L39:L70,Y16) -> 0 | AA16: =Z16/(AB4-Z20) -> 0 | AB16: =IF(AA16=0,0,(AA16*((LOG(AA16))/LOG(2)))) -> 0 | AD16: =N16 -> 2112 | AE16: =COUNTIF(L71:L101,AD16) -> 0 | AF16: =AE16/(AG4-AE20) -> 0 | AG16: =IF(AF16=0,0,(AF16*((LOG(AF16))/LOG(2)))) -> 0 | AI16: =N16 -> 2112 | AJ16: =COUNTIF(L102:L133,AI16) -> 0 | AK16: =AJ16/(AL4-AJ20) -> 0 | AL16: =IF(AK16=0,0,(AK16*((LOG(AK16))/LOG(2)))) -> 0 | AN16: =N16 -> 2112 | AO16: =COUNTIF(L134:L165,AN16) -> 0 | AP16: =AO16/(AQ4-AO20) -> 0 | AQ16: =IF(AP16=0,0,(AP16*((LOG(AP16))/LOG(2)))) -> 0 | AS16: =N16 -> 2112 | AT16: =COUNTIF(L166:L197,AS16) -> 0 | AU16: =AT16/(AV4-AT20) -> 0 | AV16: =IF(AU16=0,0,(AU16*((LOG(AU16))/LOG(2)))) -> 0
A17: 12 | B17: 1325 | C17: 14 | D17: 1330 | E17: 13 | F17: 1339 | G17: 23 | H17: 1354 | K17: 0 | L17: 1112 | N17: 2121 | O17: =COUNTIF($L$7:$L$500,N17) -> 0 | P17: =O17/$Q$4 -> 0 | Q17: =IF(P17=0,0,(P17*((LOG(P17))/LOG(2)))) -> 0 | T17: =N17 -> 2121 | U17: =COUNTIF(L7:L38,T17) -> 0 | V17: =U17/(W4-U20) -> 0 | W17: =IF(V17=0,0,(V17*((LOG(V17))/LOG(2)))) -> 0 | Y17: =N17 -> 2121 | Z17: =COUNTIF(L39:L70,Y17) -> 0 | AA17: =Z17/(AB4-Z20) -> 0 | AB17: =IF(AA17=0,0,(AA17*((LOG(AA17))/LOG(2)))) -> 0 | AD17: =N17 -> 2121 | AE17: =COUNTIF(L71:L101,AD17) -> 0 | AF17: =AE17/(AG4-AE20) -> 0 | AG17: =IF(AF17=0,0,(AF17*((LOG(AF17))/LOG(2)))) -> 0 | AI17: =N17 -> 2121 | AJ17: =COUNTIF(L102:L133,AI17) -> 0 | AK17: =AJ17/(AL4-AJ20) -> 0 | AL17: =IF(AK17=0,0,(AK17*((LOG(AK17))/LOG(2)))) -> 0 | AN17: =N17 -> 2121 | AO17: =COUNTIF(L134:L165,AN17) -> 0 | AP17: =AO17/(AQ4-AO20) -> 0 | AQ17: =IF(AP17=0,0,(AP17*((LOG(AP17))/LOG(2)))) -> 0 | AS17: =N17 -> 2121 | AT17: =COUNTIF(L166:L197,AS17) -> 0 | AU17: =AT17/(AV4-AT20) -> 0 | AV17: =IF(AU17=0,0,(AU17*((LOG(AU17))/LOG(2)))) -> 0
A18: 12 | B18: 1457 | C18: 14 | D18: 1463 | E18: 13 | F18: 1476 | G18: 23 | H18: 1490 | K18: 0 | L18: 1112 | N18: 2122 | O18: =COUNTIF($L$7:$L$500,N18) -> 0 | P18: =O18/$Q$4 -> 0 | Q18: =IF(P18=0,0,(P18*((LOG(P18))/LOG(2)))) -> 0 | T18: =N18 -> 2122 | U18: =COUNTIF(L7:L38,T18) -> 0 | V18: =U18/(W4-U20) -> 0 | W18: =IF(V18=0,0,(V18*((LOG(V18))/LOG(2)))) -> 0 | Y18: =N18 -> 2122 | Z18: =COUNTIF(L39:L70,Y18) -> 0 | AA18: =Z18/(AB4-Z20) -> 0 | AB18: =IF(AA18=0,0,(AA18*((LOG(AA18))/LOG(2)))) -> 0 | AD18: =N18 -> 2122 | AE18: =COUNTIF(L71:L101,AD18) -> 0 | AF18: =AE18/(AG4-AE20) -> 0 | AG18: =IF(AF18=0,0,(AF18*((LOG(AF18))/LOG(2)))) -> 0 | AI18: =N18 -> 2122 | AJ18: =COUNTIF(L102:L133,AI18) -> 0 | AK18: =AJ18/(AL4-AJ20) -> 0 | AL18: =IF(AK18=0,0,(AK18*((LOG(AK18))/LOG(2)))) -> 0 | AN18: =N18 -> 2122 | AO18: =COUNTIF(L134:L165,AN18) -> 0 | AP18: =AO18/(AQ4-AO20) -> 0 | AQ18: =IF(AP18=0,0,(AP18*((LOG(AP18))/LOG(2)))) -> 0 | AS18: =N18 -> 2122 | AT18: =COUNTIF(L166:L197,AS18) -> 0 | AU18: =AT18/(AV4-AT20) -> 0 | AV18: =IF(AU18=0,0,(AU18*((LOG(AU18))/LOG(2)))) -> 0
A19: 12 | B19: 1593 | C19: 14 | D19: 1600 | E19: 13 | F19: 1610 | G19: 14 | H19: 1625 | K19: 0 | L19: 1111 | N19: 2211 | O19: =COUNTIF($L$7:$L$500,N19) -> 0 | P19: =O19/$Q$4 -> 0 | Q19: =IF(P19=0,0,(P19*((LOG(P19))/LOG(2)))) -> 0 | T19: =N19 -> 2211 | U19: =COUNTIF(L7:L38,T19) -> 0 | V19: =U19/(W4-U20) -> 0 | W19: =IF(V19=0,0,(V19*((LOG(V19))/LOG(2)))) -> 0 | Y19: =N19 -> 2211 | Z19: =COUNTIF(L39:L70,Y19) -> 0 | AA19: =Z19/(AB4-Z20) -> 0 | AB19: =IF(AA19=0,0,(AA19*((LOG(AA19))/LOG(2)))) -> 0 | AD19: =N19 -> 2211 | AE19: =COUNTIF(L71:L101,AD19) -> 0 | AF19: =AE19/(AG4-AE20) -> 0 | AG19: =IF(AF19=0,0,(AF19*((LOG(AF19))/LOG(2)))) -> 0 | AI19: =N19 -> 2211 | AJ19: =COUNTIF(L102:L133,AI19) -> 0 | AK19: =AJ19/(AL4-AJ20) -> 0 | AL19: =IF(AK19=0,0,(AK19*((LOG(AK19))/LOG(2)))) -> 0 | AN19: =N19 -> 2211 | AO19: =COUNTIF(L134:L165,AN19) -> 0 | AP19: =AO19/(AQ4-AO20) -> 0 | AQ19: =IF(AP19=0,0,(AP19*((LOG(AP19))/LOG(2)))) -> 0 | AS19: =N19 -> 2211 | AT19: =COUNTIF(L166:L197,AS19) -> 0 | AU19: =AT19/(AV4-AT20) -> 0 | AV19: =IF(AU19=0,0,(AU19*((LOG(AU19))/LOG(2)))) -> 0
A20: 12 | B20: 1722 | C20: 14 | D20: 1728 | E20: 13 | F20: 1734 | G20: 14 | H20: 1743 | K20: 0 | L20: 1111 | N20: 2212 | O20: =COUNTIF($L$7:$L$500,N20) -> 0 | P20: =O20/$Q$4 -> 0 | Q20: =IF(P20=0,0,(P20*((LOG(P20))/LOG(2)))) -> 0 | T20: =N20 -> 2212 | U20: =COUNTIF(L7:L38,T20) -> 0 | Y20: =N20 -> 2212 | Z20: =COUNTIF(L39:L70,Y20) -> 0 | AD20: =N20 -> 2212 | AE20: =COUNTIF(L71:L101,AD20) -> 0 | AI20: =N20 -> 2212 | AJ20: =COUNTIF(L102:L133,AI20) -> 0 | AN20: =N20 -> 2212 | AO20: =COUNTIF(L134:L165,AN20) -> 0 | AS20: =N20 -> 2212 | AT20: =COUNTIF(L166:L197,AS20) -> 0
A21: 12 | B21: 1849 | C21: 14 | D21: 1855 | E21: 13 | F21: 1882 | G21: 14 | H21: 1893 | K21: 0 | L21: 1111 | N21: 2221 | O21: =COUNTIF($L$7:$L$500,N21) -> 0 | P21: =O21/$Q$4 -> 0 | Q21: =IF(P21=0,0,(P21*((LOG(P21))/LOG(2)))) -> 0 | T21: =N21 -> 2221 | U21: =COUNTIF(L7:L38,T21) -> 0 | V21: =U21/(W4-U20) -> 0 | W21: =IF(V21=0,0,(V21*((LOG(V21))/LOG(2)))) -> 0 | Y21: =N21 -> 2221 | Z21: =COUNTIF(L39:L70,Y21) -> 0 | AA21: =Z21/(AB4-Z20) -> 0 | AB21: =IF(AA21=0,0,(AA21*((LOG(AA21))/LOG(2)))) -> 0 | AD21: =N21 -> 2221 | AE21: =COUNTIF(L71:L101,AD21) -> 0 | AF21: =AE21/(AG4-AE20) -> 0 | AG21: =IF(AF21=0,0,(AF21*((LOG(AF21))/LOG(2)))) -> 0 | AI21: =N21 -> 2221 | AJ21: =COUNTIF(L102:L133,AI21) -> 0 | AK21: =AJ21/(AL4-AJ20) -> 0 | AL21: =IF(AK21=0,0,(AK21*((LOG(AK21))/LOG(2)))) -> 0 | AN21: =N21 -> 2221 | AO21: =COUNTIF(L134:L165,AN21) -> 0 | AP21: =AO21/(AQ4-AO20) -> 0 | AQ21: =IF(AP21=0,0,(AP21*((LOG(AP21))/LOG(2)))) -> 0 | AS21: =N21 -> 2221 | AT21: =COUNTIF(L166:L197,AS21) -> 0 | AU21: =AT21/(AV4-AT20) -> 0 | AV21: =IF(AU21=0,0,(AU21*((LOG(AU21))/LOG(2)))) -> 0
A22: 12 | B22: 1985 | C22: 14 | D22: 1990 | E22: 13 | F22: 1999 | G22: 23 | H22: 2013 | K22: 0 | L22: 1112 | N22: 2222 | O22: =COUNTIF($L$7:$L$500,N22) -> 0 | P22: =O22/$Q$4 -> 0 | Q22: =IF(P22=0,0,(P22*((LOG(P22))/LOG(2)))) -> 0 | T22: =N22 -> 2222 | U22: =COUNTIF(L7:L38,T22) -> 0 | V22: =U22/(W4-U20) -> 0 | W22: =IF(V22=0,0,(V22*((LOG(V22))/LOG(2)))) -> 0 | Y22: =N22 -> 2222 | Z22: =COUNTIF(L39:L70,Y22) -> 0 | AA22: =Z22/(AB4-Z20) -> 0 | AB22: =IF(AA22=0,0,(AA22*((LOG(AA22))/LOG(2)))) -> 0 | AD22: =N22 -> 2222 | AE22: =COUNTIF(L71:L101,AD22) -> 0 | AF22: =AE22/(AG4-AE20) -> 0 | AG22: =IF(AF22=0,0,(AF22*((LOG(AF22))/LOG(2)))) -> 0 | AI22: =N22 -> 2222 | AJ22: =COUNTIF(L102:L133,AI22) -> 0 | AK22: =AJ22/(AL4-AJ20) -> 0 | AL22: =IF(AK22=0,0,(AK22*((LOG(AK22))/LOG(2)))) -> 0 | AN22: =N22 -> 2222 | AO22: =COUNTIF(L134:L165,AN22) -> 0 | AP22: =AO22/(AQ4-AO20) -> 0 | AQ22: =IF(AP22=0,0,(AP22*((LOG(AP22))/LOG(2)))) -> 0 | AS22: =N22 -> 2222 | AT22: =COUNTIF(L166:L197,AS22) -> 0 | AU22: =AT22/(AV4-AT20) -> 0 | AV22: =IF(AU22=0,0,(AU22*((LOG(AU22))/LOG(2)))) -> 0
A23: 12 | B23: 2124 | C23: 14 | D23: 2129 | E23: 13 | F23: 2139 | G23: 14 | H23: 2150 | K23: 0 | L23: 1111 | P23: =SUM(P7:P22) -> 1 | Q23: =-SUM(Q7:Q22) -> 0.4519540573 | V23: =SUM(V7:V22) -> 1 | W23: =-SUM(W7:W22) -> 1.226000285 | AA23: =SUM(AA7:AA22) -> 1 | AB23: =-SUM(AB7:AB22) -> 0.4488644887 | AF23: =SUM(AF7:AF22) -> 1 | AG23: =-SUM(AG7:AG22) -> 0 | AK23: =SUM(AK7:AK22) -> 1 | AL23: =-SUM(AL7:AL22) -> 0.2006223243 | AP23: =SUM(AP7:AP22) -> 1 | AQ23: =-SUM(AQ7:AQ22) -> 0 | AU23: =SUM(AU7:AU22) -> 1 | AV23: =-SUM(AV7:AV22) -> 0
A24: 12 | B24: 2257 | C24: 14 | D24: 2263 | E24: 13 | F24: 2272 | G24: 14 | H24: 2283 | K24: 0 | L24: 1111 | P24: U= | Q24: =Q23/(LOG(Q4)/LOG(2)) -> 0.05964477761 | V24: U1= | W24: =W23/(LOG(W4)/LOG(2)) -> 0.2452000569 | AA24: U2= | AB24: =AB23/(LOG(AB4)/LOG(2)) -> 0.08977289774 | AF24: U3= | AG24: =AG23/(LOG(AG4)/LOG(2)) -> 0 | AK24: U4= | AL24: =AL23/(LOG(AL4)/LOG(2)) -> 0.04012446486 | AP24: U5= | AQ24: =AQ23/(LOG(AQ4)/LOG(2)) -> 0 | AU24: U6= | AV24: =AV23/(LOG(AV4)/LOG(2)) -> 0
A25: 12 | B25: 2392 | C25: 14 | D25: 2398 | E25: 13 | F25: 2406 | G25: 14 | H25: 2414 | K25: 0 | L25: 1111
A26: 12 | B26: 2519 | C26: 14 | D26: 2525 | E26: 13 | F26: 2534 | G26: 14 | H26: 2544 | K26: 0 | L26: 1111
A27: 12 | B27: 2651 | C27: 14 | D27: 2661 | E27: 13 | F27: 2680 | G27: 14 | H27: 2689 | K27: 0 | L27: 1111 | N27: Total Target Seq
A28: 12 | B28: 2788 | C28: 14 | D28: 2796 | E28: 13 | F28: 2806 | G28: 14 | H28: 2820 | K28: 0 | L28: 1111 | N28: =COUNTIF(L7:L197,G3) -> 0 | P28: 32 | Q28: 32 | R28: 31 | S28: 32 | T28: 32 | U28: 32
A29: 12 | B29: 2922 | C29: 14 | D29: 2927 | E29: 13 | F29: 2935 | G29: 23 | H29: 2952 | K29: 0 | L29: 1112 | P29: % of reinforcement given in 6 equal intervals based on number of trials
A30: 12 | B30: 3058 | C30: 14 | D30: 3063 | E30: 13 | F30: 3071 | G30: 14 | H30: 3086 | K30: 0 | L30: 1111 | P30: %_1 | Q30: %_2 | R30: %_3 | S30: %_4 | T30: %_5 | U30: %_6
A31: 12 | B31: 3196 | C31: 14 | D31: 3202 | E31: 13 | F31: 3212 | G31: 14 | H31: 3224 | K31: 0 | L31: 1111 | O31: target sequence | P31: =$G$3 -> 2212 | Q31: =$G$3 -> 2212 | R31: =$G$3 -> 2212 | S31: =$G$3 -> 2212 | T31: =$G$3 -> 2212 | U31: =$G$3 -> 2212
A32: 12 | B32: 3331 | C32: 14 | D32: 3339 | E32: 13 | F32: 3349 | G32: 14 | H32: 3362 | K32: 0 | L32: 1111 | O32: total reinforcement | P32: =U20 -> 0 | Q32: =Z20 -> 0 | R32: =AE20 -> 0 | S32: =AJ20 -> 0 | T32: =AO20 -> 0 | U32: =AT20 -> 0
A33: 12 | B33: 3454 | C33: 14 | D33: 3459 | E33: 13 | F33: 3464 | G33: 14 | H33: 3474 | K33: 0 | L33: 1111 | O33: % target
A34: 12 | B34: 3574 | C34: 14 | D34: 3580 | E34: 13 | F34: 3585 | G34: 14 | H34: 3593 | K34: 0 | L34: 1111 | O34: CCRF
A35: 12 | B35: 3697 | C35: 14 | D35: 3703 | E35: 13 | F35: 3716 | G35: 23 | H35: 3732 | K35: 0 | L35: 1112 | O35: % CCRf
A36: 12 | B36: 3823 | C36: 14 | D36: 3827 | E36: 13 | F36: 3832 | G36: 23 | H36: 3843 | K36: 0 | L36: 1112 | O36: average response rate | P36: =H38/P28 -> 128.125 | Q36: =(H70-H38)/Q28 -> 127.71875 | R36: =(H101-H70)/R28 -> 126.1935484 | S36: =(H133-H101)/S28 -> 121.75 | T36: =(H165-H133)/T28 -> 122.875 | U36: =(H197-H165)/U28 -> 127.03125
A37: 12 | B37: 3944 | C37: 14 | D37: 3950 | E37: 13 | F37: 3961 | G37: 14 | H37: 3970 | K37: 0 | L37: 1111
A38: 12 | B38: 4073 | C38: 14 | D38: 4080 | E38: 13 | F38: 4085 | G38: 14 | H38: 4100 | K38: 0 | L38: 1111
A39: 12 | B39: 4205 | C39: 14 | D39: 4210 | E39: 13 | F39: 4216 | G39: 14 | H39: 4225 | K39: 0 | L39: 1111
A40: 12 | B40: 4331 | C40: 14 | D40: 4336 | E40: 13 | F40: 4342 | G40: 14 | H40: 4350 | K40: 0 | L40: 1111
A41: 12 | B41: 4452 | C41: 14 | D41: 4458 | E41: 13 | F41: 4463 | G41: 14 | H41: 4472 | K41: 0 | L41: 1111
A42: 12 | B42: 4584 | C42: 14 | D42: 4593 | E42: 13 | F42: 4606 | G42: 14 | H42: 4619 | K42: 0 | L42: 1111
A43: 12 | B43: 4727 | C43: 14 | D43: 4735 | E43: 13 | F43: 4746 | G43: 14 | H43: 4757 | K43: 0 | L43: 1111
A44: 12 | B44: 4853 | C44: 14 | D44: 4858 | E44: 13 | F44: 4863 | G44: 14 | H44: 4872 | K44: 0 | L44: 1111
A45: 12 | B45: 4971 | C45: 14 | D45: 4975 | E45: 13 | F45: 4980 | G45: 14 | H45: 4990 | K45: 0 | L45: 1111
A46: 12 | B46: 5095 | C46: 14 | D46: 5102 | E46: 13 | F46: 5110 | G46: 23 | H46: 5126 | K46: 0 | L46: 1112
A47: 12 | B47: 5231 | C47: 14 | D47: 5236 | E47: 13 | F47: 5244 | G47: 14 | H47: 5262 | K47: 0 | L47: 1111
A48: 12 | B48: 5369 | C48: 14 | D48: 5374 | E48: 13 | F48: 5380 | G48: 14 | H48: 5386 | K48: 0 | L48: 1111
A49: 12 | B49: 5489 | C49: 14 | D49: 5494 | E49: 13 | F49: 5500 | G49: 14 | H49: 5508 | K49: 0 | L49: 1111
A50: 12 | B50: 5611 | C50: 14 | D50: 5617 | E50: 13 | F50: 5623 | G50: 14 | H50: 5632 | K50: 0 | L50: 1111
A51: 12 | B51: 5739 | C51: 14 | D51: 5745 | E51: 13 | F51: 5750 | G51: 14 | H51: 5759 | K51: 0 | L51: 1111
A52: 12 | B52: 5859 | C52: 14 | D52: 5871 | E52: 13 | F52: 5880 | G52: 14 | H52: 5892 | K52: 0 | L52: 1111
A53: 12 | B53: 5999 | C53: 14 | D53: 6004 | E53: 13 | F53: 6027 | G53: 14 | H53: 6033 | K53: 0 | L53: 1111
A54: 12 | B54: 6146 | C54: 14 | D54: 6151 | E54: 13 | F54: 6157 | G54: 14 | H54: 6166 | K54: 0 | L54: 1111
A55: 12 | B55: 6274 | C55: 14 | D55: 6279 | E55: 13 | F55: 6284 | G55: 14 | H55: 6292 | K55: 0 | L55: 1111
A56: 12 | B56: 6387 | C56: 14 | D56: 6392 | E56: 13 | F56: 6402 | G56: 23 | H56: 6421 | K56: 0 | L56: 1112
A57: 12 | B57: 6527 | C57: 14 | D57: 6537 | E57: 13 | F57: 6546 | G57: 14 | H57: 6559 | K57: 0 | L57: 1111
A58: 12 | B58: 6664 | C58: 14 | D58: 6669 | E58: 13 | F58: 6675 | G58: 14 | H58: 6680 | K58: 0 | L58: 1111
A59: 12 | B59: 6785 | C59: 14 | D59: 6790 | E59: 13 | F59: 6796 | G59: 14 | H59: 6804 | K59: 0 | L59: 1111
A60: 12 | B60: 6892 | C60: 14 | D60: 6897 | E60: 13 | F60: 6902 | G60: 14 | H60: 6910 | K60: 0 | L60: 1111
A61: 12 | B61: 7017 | C61: 14 | D61: 7028 | E61: 13 | F61: 7037 | G61: 14 | H61: 7048 | K61: 0 | L61: 1111
A62: 12 | B62: 7151 | C62: 14 | D62: 7156 | E62: 13 | F62: 7161 | G62: 14 | H62: 7170 | K62: 0 | L62: 1111
A63: 12 | B63: 7283 | C63: 14 | D63: 7289 | E63: 13 | F63: 7297 | G63: 14 | H63: 7305 | K63: 0 | L63: 1111
A64: 12 | B64: 7408 | C64: 14 | D64: 7413 | E64: 13 | F64: 7429 | G64: 14 | H64: 7436 | K64: 0 | L64: 1111
A65: 12 | B65: 7527 | C65: 14 | D65: 7531 | E65: 13 | F65: 7539 | G65: 23 | H65: 7552 | K65: 0 | L65: 1112
A66: 12 | B66: 7660 | C66: 14 | D66: 7668 | E66: 13 | F66: 7680 | G66: 14 | H66: 7688 | K66: 0 | L66: 1111
A67: 12 | B67: 7787 | C67: 14 | D67: 7792 | E67: 13 | F67: 7798 | G67: 14 | H67: 7805 | K67: 0 | L67: 1111
A68: 12 | B68: 7908 | C68: 14 | D68: 7913 | E68: 13 | F68: 7919 | G68: 14 | H68: 7933 | K68: 0 | L68: 1111
A69: 12 | B69: 8044 | C69: 14 | D69: 8050 | E69: 13 | F69: 8068 | G69: 14 | H69: 8080 | K69: 0 | L69: 1111
A70: 12 | B70: 8170 | C70: 14 | D70: 8176 | E70: 13 | F70: 8181 | G70: 14 | H70: 8187 | K70: 0 | L70: 1111
A71: 12 | B71: 8286 | C71: 14 | D71: 8291 | E71: 13 | F71: 8297 | G71: 14 | H71: 8305 | K71: 0 | L71: 1111
A72: 12 | B72: 8411 | C72: 14 | D72: 8421 | E72: 13 | F72: 8428 | G72: 14 | H72: 8440 | K72: 0 | L72: 1111
A73: 12 | B73: 8549 | C73: 14 | D73: 8555 | E73: 13 | F73: 8568 | G73: 14 | H73: 8584 | K73: 0 | L73: 1111
A74: 12 | B74: 8692 | C74: 14 | D74: 8701 | E74: 13 | F74: 8718 | G74: 14 | H74: 8735 | K74: 0 | L74: 1111
A75: 12 | B75: 8844 | C75: 14 | D75: 8849 | E75: 13 | F75: 8854 | G75: 14 | H75: 8862 | K75: 0 | L75: 1111
A76: 12 | B76: 8960 | C76: 14 | D76: 8980 | E76: 13 | F76: 8986 | G76: 14 | H76: 8997 | K76: 0 | L76: 1111
A77: 12 | B77: 9101 | C77: 14 | D77: 9107 | E77: 13 | F77: 9115 | G77: 14 | H77: 9126 | K77: 0 | L77: 1111
A78: 12 | B78: 9225 | C78: 14 | D78: 9235 | E78: 13 | F78: 9244 | G78: 14 | H78: 9256 | K78: 0 | L78: 1111
A79: 12 | B79: 9345 | C79: 14 | D79: 9349 | E79: 13 | F79: 9354 | G79: 14 | H79: 9360 | K79: 0 | L79: 1111
A80: 12 | B80: 9470 | C80: 14 | D80: 9476 | E80: 13 | F80: 9481 | G80: 14 | H80: 9498 | K80: 0 | L80: 1111
A81: 12 | B81: 9610 | C81: 14 | D81: 9615 | E81: 13 | F81: 9620 | G81: 14 | H81: 9629 | K81: 0 | L81: 1111
A82: 12 | B82: 9738 | C82: 14 | D82: 9747 | E82: 13 | F82: 9756 | G82: 14 | H82: 9764 | K82: 0 | L82: 1111
A83: 12 | B83: 9873 | C83: 14 | D83: 9878 | E83: 13 | F83: 9884 | G83: 14 | H83: 9899 | K83: 0 | L83: 1111
A84: 12 | B84: 10000 | C84: 14 | D84: 10005 | E84: 13 | F84: 10011 | G84: 14 | H84: 10017 | K84: 0 | L84: 1111
A85: 12 | B85: 10116 | C85: 14 | D85: 10130 | E85: 13 | F85: 10139 | G85: 14 | H85: 10149 | K85: 0 | L85: 1111
A86: 12 | B86: 10242 | C86: 14 | D86: 10248 | E86: 13 | F86: 10254 | G86: 14 | H86: 10262 | K86: 0 | L86: 1111
A87: 12 | B87: 10371 | C87: 14 | D87: 10376 | E87: 13 | F87: 10385 | G87: 14 | H87: 10395 | K87: 0 | L87: 1111
A88: 12 | B88: 10499 | C88: 14 | D88: 10504 | E88: 13 | F88: 10510 | G88: 14 | H88: 10519 | K88: 0 | L88: 1111
A89: 12 | B89: 10615 | C89: 14 | D89: 10620 | E89: 13 | F89: 10624 | G89: 14 | H89: 10633 | K89: 0 | L89: 1111
A90: 12 | B90: 10732 | C90: 14 | D90: 10737 | E90: 13 | F90: 10742 | G90: 14 | H90: 10750 | K90: 0 | L90: 1111
A91: 12 | B91: 10859 | C91: 14 | D91: 10865 | E91: 13 | F91: 10873 | G91: 14 | H91: 10884 | K91: 0 | L91: 1111
A92: 12 | B92: 10981 | C92: 14 | D92: 10986 | E92: 13 | F92: 10991 | G92: 14 | H92: 11000 | K92: 0 | L92: 1111
A93: 12 | B93: 11099 | C93: 14 | D93: 11104 | E93: 13 | F93: 11111 | G93: 14 | H93: 11120 | K93: 0 | L93: 1111
A94: 12 | B94: 11219 | C94: 14 | D94: 11224 | E94: 13 | F94: 11229 | G94: 14 | H94: 11252 | K94: 0 | L94: 1111
A95: 12 | B95: 11356 | C95: 14 | D95: 11360 | E95: 13 | F95: 11367 | G95: 14 | H95: 11371 | K95: 0 | L95: 1111
A96: 12 | B96: 11467 | C96: 14 | D96: 11472 | E96: 13 | F96: 11477 | G96: 14 | H96: 11485 | K96: 0 | L96: 1111
A97: 12 | B97: 11597 | C97: 14 | D97: 11614 | E97: 13 | F97: 11630 | G97: 14 | H97: 11642 | K97: 0 | L97: 1111
A98: 12 | B98: 11740 | C98: 14 | D98: 11745 | E98: 13 | F98: 11750 | G98: 14 | H98: 11755 | K98: 0 | L98: 1111
A99: 12 | B99: 11852 | C99: 14 | D99: 11857 | E99: 13 | F99: 11863 | G99: 14 | H99: 11876 | K99: 0 | L99: 1111
A100: 12 | B100: 11966 | C100: 14 | D100: 11971 | E100: 13 | F100: 11976 | G100: 14 | H100: 11985 | K100: 0 | L100: 1111
A101: 12 | B101: 12084 | C101: 14 | D101: 12088 | E101: 13 | F101: 12093 | G101: 14 | H101: 12099 | K101: 0 | L101: 1111
A102: 12 | B102: 12197 | C102: 14 | D102: 12228 | E102: 13 | F102: 12237 | G102: 14 | H102: 12245 | K102: 0 | L102: 1111
A103: 12 | B103: 12340 | C103: 14 | D103: 12345 | E103: 13 | F103: 12350 | G103: 14 | H103: 12359 | K103: 0 | L103: 1111
A104: 12 | B104: 12459 | C104: 14 | D104: 12463 | E104: 13 | F104: 12468 | G104: 14 | H104: 12477 | K104: 0 | L104: 1111
A105: 12 | B105: 12572 | C105: 14 | D105: 12577 | E105: 13 | F105: 12582 | G105: 14 | H105: 12591 | K105: 0 | L105: 1111
A106: 12 | B106: 12691 | C106: 14 | D106: 12695 | E106: 13 | F106: 12701 | G106: 14 | H106: 12709 | K106: 0 | L106: 1111
A107: 12 | B107: 12807 | C107: 14 | D107: 12813 | E107: 13 | F107: 12818 | G107: 14 | H107: 12826 | K107: 0 | L107: 1111
A108: 12 | B108: 12922 | C108: 14 | D108: 12928 | E108: 13 | F108: 12933 | G108: 14 | H108: 12942 | K108: 0 | L108: 1111
A109: 12 | B109: 13040 | C109: 14 | D109: 13045 | E109: 13 | F109: 13050 | G109: 14 | H109: 13059 | K109: 0 | L109: 1111
A110: 12 | B110: 13159 | C110: 14 | D110: 13164 | E110: 13 | F110: 13169 | G110: 14 | H110: 13177 | K110: 0 | L110: 1111
A111: 12 | B111: 13266 | C111: 14 | D111: 13271 | E111: 13 | F111: 13276 | G111: 14 | H111: 13281 | K111: 0 | L111: 1111
A112: 12 | B112: 13378 | C112: 14 | D112: 13382 | E112: 13 | F112: 13391 | G112: 23 | H112: 13449 | K112: 0 | L112: 1112
A113: 12 | B113: 13544 | C113: 14 | D113: 13550 | E113: 13 | F113: 13554 | G113: 14 | H113: 13562 | K113: 0 | L113: 1111
A114: 12 | B114: 13657 | C114: 14 | D114: 13663 | E114: 13 | F114: 13668 | G114: 14 | H114: 13676 | K114: 0 | L114: 1111
A115: 12 | B115: 13782 | C115: 14 | D115: 13787 | E115: 13 | F115: 13797 | G115: 14 | H115: 13806 | K115: 0 | L115: 1111
A116: 12 | B116: 13897 | C116: 14 | D116: 13901 | E116: 13 | F116: 13906 | G116: 14 | H116: 13914 | K116: 0 | L116: 1111
A117: 12 | B117: 14009 | C117: 14 | D117: 14014 | E117: 13 | F117: 14019 | G117: 14 | H117: 14024 | K117: 0 | L117: 1111
A118: 12 | B118: 14124 | C118: 14 | D118: 14130 | E118: 13 | F118: 14138 | G118: 14 | H118: 14149 | K118: 0 | L118: 1111
A119: 12 | B119: 14247 | C119: 14 | D119: 14253 | E119: 13 | F119: 14258 | G119: 14 | H119: 14267 | K119: 0 | L119: 1111
A120: 12 | B120: 14365 | C120: 14 | D120: 14369 | E120: 13 | F120: 14375 | G120: 14 | H120: 14384 | K120: 0 | L120: 1111
A121: 12 | B121: 14483 | C121: 14 | D121: 14487 | E121: 13 | F121: 14492 | G121: 14 | H121: 14508 | K121: 0 | L121: 1111
A122: 12 | B122: 14616 | C122: 14 | D122: 14622 | E122: 13 | F122: 14632 | G122: 14 | H122: 14640 | K122: 0 | L122: 1111
A123: 12 | B123: 14737 | C123: 14 | D123: 14742 | E123: 13 | F123: 14747 | G123: 14 | H123: 14752 | K123: 0 | L123: 1111
A124: 12 | B124: 14843 | C124: 14 | D124: 14847 | E124: 13 | F124: 14852 | G124: 14 | H124: 14857 | K124: 0 | L124: 1111
A125: 12 | B125: 14960 | C125: 14 | D125: 14965 | E125: 13 | F125: 14971 | G125: 14 | H125: 14979 | K125: 0 | L125: 1111
A126: 12 | B126: 15087 | C126: 14 | D126: 15092 | E126: 13 | F126: 15098 | G126: 14 | H126: 15107 | K126: 0 | L126: 1111
A127: 12 | B127: 15205 | C127: 14 | D127: 15210 | E127: 13 | F127: 15216 | G127: 14 | H127: 15233 | K127: 0 | L127: 1111
A128: 12 | B128: 15345 | C128: 14 | D128: 15350 | E128: 13 | F128: 15358 | G128: 14 | H128: 15376 | K128: 0 | L128: 1111
A129: 12 | B129: 15473 | C129: 14 | D129: 15479 | E129: 13 | F129: 15488 | G129: 14 | H129: 15495 | K129: 0 | L129: 1111
A130: 12 | B130: 15596 | C130: 14 | D130: 15602 | E130: 13 | F130: 15611 | G130: 14 | H130: 15622 | K130: 0 | L130: 1111
A131: 12 | B131: 15717 | C131: 14 | D131: 15722 | E131: 13 | F131: 15728 | G131: 14 | H131: 15737 | K131: 0 | L131: 1111
A132: 12 | B132: 15832 | C132: 14 | D132: 15837 | E132: 13 | F132: 15843 | G132: 14 | H132: 15851 | K132: 0 | L132: 1111
A133: 12 | B133: 15965 | C133: 14 | D133: 15970 | E133: 13 | F133: 15986 | G133: 14 | H133: 15995 | K133: 0 | L133: 1111
A134: 12 | B134: 16103 | C134: 14 | D134: 16109 | E134: 13 | F134: 16115 | G134: 14 | H134: 16124 | K134: 0 | L134: 1111
A135: 12 | B135: 16228 | C135: 14 | D135: 16233 | E135: 13 | F135: 16239 | G135: 14 | H135: 16248 | K135: 0 | L135: 1111
A136: 12 | B136: 16349 | C136: 14 | D136: 16356 | E136: 13 | F136: 16361 | G136: 14 | H136: 16385 | K136: 0 | L136: 1111
A137: 12 | B137: 16492 | C137: 14 | D137: 16498 | E137: 13 | F137: 16503 | G137: 14 | H137: 16512 | K137: 0 | L137: 1111
A138: 12 | B138: 16606 | C138: 14 | D138: 16610 | E138: 13 | F138: 16615 | G138: 14 | H138: 16624 | K138: 0 | L138: 1111
A139: 12 | B139: 16722 | C139: 14 | D139: 16727 | E139: 13 | F139: 16732 | G139: 14 | H139: 16737 | K139: 0 | L139: 1111
A140: 12 | B140: 16835 | C140: 14 | D140: 16840 | E140: 13 | F140: 16862 | G140: 14 | H140: 16872 | K140: 0 | L140: 1111
A141: 12 | B141: 16971 | C141: 14 | D141: 16977 | E141: 13 | F141: 16982 | G141: 14 | H141: 16991 | K141: 0 | L141: 1111
A142: 12 | B142: 17094 | C142: 14 | D142: 17101 | E142: 13 | F142: 17106 | G142: 14 | H142: 17117 | K142: 0 | L142: 1111
A143: 12 | B143: 17223 | C143: 14 | D143: 17236 | E143: 13 | F143: 17248 | G143: 14 | H143: 17256 | K143: 0 | L143: 1111
A144: 12 | B144: 17351 | C144: 14 | D144: 17355 | E144: 13 | F144: 17361 | G144: 14 | H144: 17366 | K144: 0 | L144: 1111
A145: 12 | B145: 17463 | C145: 14 | D145: 17469 | E145: 13 | F145: 17474 | G145: 14 | H145: 17484 | K145: 0 | L145: 1111
A146: 12 | B146: 17591 | C146: 14 | D146: 17597 | E146: 13 | F146: 17603 | G146: 14 | H146: 17614 | K146: 0 | L146: 1111
A147: 12 | B147: 17716 | C147: 14 | D147: 17722 | E147: 13 | F147: 17732 | G147: 14 | H147: 17749 | K147: 0 | L147: 1111
A148: 12 | B148: 17844 | C148: 14 | D148: 17850 | E148: 13 | F148: 17855 | G148: 14 | H148: 17865 | K148: 0 | L148: 1111
A149: 12 | B149: 17966 | C149: 14 | D149: 17974 | E149: 13 | F149: 17981 | G149: 14 | H149: 17992 | K149: 0 | L149: 1111
A150: 12 | B150: 18093 | C150: 14 | D150: 18100 | E150: 13 | F150: 18106 | G150: 14 | H150: 18114 | K150: 0 | L150: 1111
A151: 12 | B151: 18214 | C151: 14 | D151: 18219 | E151: 13 | F151: 18224 | G151: 14 | H151: 18232 | K151: 0 | L151: 1111
A152: 12 | B152: 18334 | C152: 14 | D152: 18339 | E152: 13 | F152: 18345 | G152: 14 | H152: 18353 | K152: 0 | L152: 1111
A153: 12 | B153: 18444 | C153: 14 | D153: 18448 | E153: 13 | F153: 18455 | G153: 14 | H153: 18461 | K153: 0 | L153: 1111
A154: 12 | B154: 18569 | C154: 14 | D154: 18574 | E154: 13 | F154: 18588 | G154: 14 | H154: 18598 | K154: 0 | L154: 1111
A155: 12 | B155: 18709 | C155: 14 | D155: 18718 | E155: 13 | F155: 18724 | G155: 14 | H155: 18734 | K155: 0 | L155: 1111
A156: 12 | B156: 18833 | C156: 14 | D156: 18843 | E156: 13 | F156: 18852 | G156: 14 | H156: 18861 | K156: 0 | L156: 1111
A157: 12 | B157: 18965 | C157: 14 | D157: 18971 | E157: 13 | F157: 18977 | G157: 14 | H157: 18987 | K157: 0 | L157: 1111
A158: 12 | B158: 19084 | C158: 14 | D158: 19090 | E158: 13 | F158: 19096 | G158: 14 | H158: 19102 | K158: 0 | L158: 1111
A159: 12 | B159: 19202 | C159: 14 | D159: 19207 | E159: 13 | F159: 19212 | G159: 14 | H159: 19220 | K159: 0 | L159: 1111
A160: 12 | B160: 19318 | C160: 14 | D160: 19324 | E160: 13 | F160: 19331 | G160: 14 | H160: 19336 | K160: 0 | L160: 1111
A161: 12 | B161: 19440 | C161: 14 | D161: 19444 | E161: 13 | F161: 19450 | G161: 14 | H161: 19456 | K161: 0 | L161: 1111
A162: 12 | B162: 19558 | C162: 14 | D162: 19562 | E162: 13 | F162: 19567 | G162: 14 | H162: 19573 | K162: 0 | L162: 1111
A163: 12 | B163: 19668 | C163: 14 | D163: 19673 | E163: 13 | F163: 19679 | G163: 14 | H163: 19687 | K163: 0 | L163: 1111
A164: 12 | B164: 19784 | C164: 14 | D164: 19790 | E164: 13 | F164: 19795 | G164: 14 | H164: 19809 | K164: 0 | L164: 1111
A165: 12 | B165: 19907 | C165: 14 | D165: 19912 | E165: 13 | F165: 19917 | G165: 14 | H165: 19927 | K165: 0 | L165: 1111
A166: 12 | B166: 20026 | C166: 14 | D166: 20031 | E166: 13 | F166: 20037 | G166: 14 | H166: 20042 | K166: 0 | L166: 1111
A167: 12 | B167: 20147 | C167: 14 | D167: 20153 | E167: 13 | F167: 20162 | G167: 14 | H167: 20171 | K167: 0 | L167: 1111
A168: 12 | B168: 20264 | C168: 14 | D168: 20269 | E168: 13 | F168: 20275 | G168: 14 | H168: 20280 | K168: 0 | L168: 1111
A169: 12 | B169: 20379 | C169: 14 | D169: 20384 | E169: 13 | F169: 20389 | G169: 14 | H169: 20399 | K169: 0 | L169: 1111
A170: 12 | B170: 20503 | C170: 14 | D170: 20509 | E170: 13 | F170: 20517 | G170: 14 | H170: 20527 | K170: 0 | L170: 1111
A171: 12 | B171: 20632 | C171: 14 | D171: 20647 | E171: 13 | F171: 20659 | G171: 14 | H171: 20681 | K171: 0 | L171: 1111
A172: 12 | B172: 20781 | C172: 14 | D172: 20785 | E172: 13 | F172: 20790 | G172: 14 | H172: 20800 | K172: 0 | L172: 1111
A173: 12 | B173: 20909 | C173: 14 | D173: 20921 | E173: 13 | F173: 20930 | G173: 14 | H173: 20940 | K173: 0 | L173: 1111
A174: 12 | B174: 21036 | C174: 14 | D174: 21041 | E174: 13 | F174: 21046 | G174: 14 | H174: 21050 | K174: 0 | L174: 1111
A175: 12 | B175: 21155 | C175: 14 | D175: 21160 | E175: 13 | F175: 21172 | G175: 14 | H175: 21181 | K175: 0 | L175: 1111
A176: 12 | B176: 21289 | C176: 14 | D176: 21294 | E176: 13 | F176: 21301 | G176: 14 | H176: 21311 | K176: 0 | L176: 1111
A177: 12 | B177: 21409 | C177: 14 | D177: 21415 | E177: 13 | F177: 21420 | G177: 14 | H177: 21428 | K177: 0 | L177: 1111
A178: 12 | B178: 21529 | C178: 14 | D178: 21536 | E178: 13 | F178: 21547 | G178: 14 | H178: 21575 | K178: 0 | L178: 1111
A179: 12 | B179: 21686 | C179: 14 | D179: 21697 | E179: 13 | F179: 21706 | G179: 14 | H179: 21715 | K179: 0 | L179: 1111
A180: 12 | B180: 21822 | C180: 14 | D180: 21828 | E180: 13 | F180: 21838 | G180: 14 | H180: 21847 | K180: 0 | L180: 1111
A181: 12 | B181: 21947 | C181: 14 | D181: 21952 | E181: 13 | F181: 21965 | G181: 14 | H181: 21982 | K181: 0 | L181: 1111
A182: 12 | B182: 22087 | C182: 14 | D182: 22092 | E182: 13 | F182: 22098 | G182: 14 | H182: 22108 | K182: 0 | L182: 1111
A183: 12 | B183: 22207 | C183: 14 | D183: 22216 | E183: 13 | F183: 22226 | G183: 14 | H183: 22233 | K183: 0 | L183: 1111
A184: 12 | B184: 22336 | C184: 14 | D184: 22341 | E184: 13 | F184: 22350 | G184: 14 | H184: 22359 | K184: 0 | L184: 1111
A185: 12 | B185: 22465 | C185: 14 | D185: 22469 | E185: 13 | F185: 22474 | G185: 14 | H185: 22480 | K185: 0 | L185: 1111
A186: 12 | B186: 22571 | C186: 14 | D186: 22577 | E186: 13 | F186: 22584 | G186: 14 | H186: 22592 | K186: 0 | L186: 1111
A187: 12 | B187: 22693 | C187: 14 | D187: 22708 | E187: 13 | F187: 22713 | G187: 14 | H187: 22723 | K187: 0 | L187: 1111
A188: 12 | B188: 22831 | C188: 14 | D188: 22838 | E188: 13 | F188: 22848 | G188: 14 | H188: 22866 | K188: 0 | L188: 1111
A189: 12 | B189: 22965 | C189: 14 | D189: 22970 | E189: 13 | F189: 22976 | G189: 14 | H189: 22980 | K189: 0 | L189: 1111
A190: 12 | B190: 23078 | C190: 14 | D190: 23086 | E190: 13 | F190: 23092 | G190: 14 | H190: 23102 | K190: 0 | L190: 1111
A191: 12 | B191: 23202 | C191: 14 | D191: 23207 | E191: 13 | F191: 23217 | G191: 14 | H191: 23237 | K191: 0 | L191: 1111
A192: 12 | B192: 23341 | C192: 14 | D192: 23346 | E192: 13 | F192: 23352 | G192: 14 | H192: 23363 | K192: 0 | L192: 1111
A193: 12 | B193: 23468 | C193: 14 | D193: 23474 | E193: 13 | F193: 23486 | G193: 14 | H193: 23494 | K193: 0 | L193: 1111
A194: 12 | B194: 23602 | C194: 14 | D194: 23608 | E194: 13 | F194: 23614 | G194: 14 | H194: 23632 | K194: 0 | L194: 1111
A195: 12 | B195: 23732 | C195: 14 | D195: 23738 | E195: 13 | F195: 23748 | G195: 14 | H195: 23758 | K195: 0 | L195: 1111
A196: 12 | B196: 23857 | C196: 14 | D196: 23862 | E196: 13 | F196: 23868 | G196: 14 | H196: 23876 | K196: 0 | L196: 1111
A197: 12 | B197: 23976 | C197: 14 | D197: 23981 | E197: 13 | F197: 23987 | G197: 14 | H197: 23992 | L197: 1111

Sheet !L904B40.056
A1: Report for:!L904B40.056
A2: Date: | B2: <date>
A3: Hen: | B3: <hen> | F3: Correct Sequence | G3: =Start!J2 -> 2212 | P3: Total Sequences in Data | Q3: =4994-COUNTBLANK(L7:L5000) -> 201 | V3: Total Sequences in Block Data | W3: =COUNTA(L7:L40) -> 34 | AA3: Total Sequences in Block Data | AB3: =COUNTA(L41:L73) -> 33 | AF3: Total Sequences in Block Data | AG3: =COUNTA(L74:L107) -> 34 | AK3: Total Sequences in Block Data | AL3: =COUNTA(L108:L140) -> 33 | AP3: Total Sequences in Block Data | AQ3: =COUNTA(L141:L174) -> 34 | AU3: Total Sequences in Block Data | AV3: =COUNTA(L175:L207) -> 33
P4: Total Sequences in Summary | Q4: =SUM(O7:O22) -> 201 | V4: Total Sequences in Block Summary | W4: =SUM(U7:U22) -> 34 | AA4: Total Sequences in Block Summary | AB4: =SUM(Z7:Z22) -> 33 | AF4: Total Sequences in Block Summary | AG4: =SUM(AE7:AE22) -> 34 | AK4: Total Sequences in Block Summary | AL4: =SUM(AJ7:AJ22) -> 33 | AP4: Total Sequences in Block Summary | AQ4: =SUM(AO7:AO22) -> 34 | AU4: Total Sequences in Block Summary | AV4: =SUM(AT7:AT22) -> 33
T5: Block 1 | Y5: Block 2 | AD5: Block 3 | AI5: Block 4 | AN5: Block 5 | AS5: Block 6
A6: Sequence Component 1 | B6: Time 1 | C6: Sequence Component 2 | D6: Time 2 | E6: Sequence Component 3 | F6: Time 3 | G6: Sequence Component 4 | H6: Time 4 | I6: Sequence Component 5 | J6: Time 5 | K6: Correct? 0=No 1=Yes | L6: Sequence | N6: Frequency | P6: Relative Frequency | Q6: Variability | T6: Frequency | V6: Relative Frequency | W6: Variability | Y6: Frequency | AA6: Relative Frequency | AB6: Variability | AD6: Frequency | AF6: Relative Frequency | AG6: Variability | AI6: Frequency | AK6: Relative Frequency | AL6: Variability | AN6: Frequency | AP6: Relative Frequency | AQ6: Variability | AS6: Frequency | AU6: Relative Frequency | AV6: Variability
A7: 12 | B7: 9 | C7: 14 | D7: 19 | E7: 24 | F7: 53 | G7: 14 | H7: 73 | K7: 0 | L7: 1121 | N7: 1111 | O7: =COUNTIF($L$7:$L$500,N7) -> 183 | P7: =O7/$Q$4 -> 0.9104477612 | Q7: =IF(P7=0,0,(P7*((LOG(P7))/LOG(2)))) -> -0.1232307914 | T7: =N7 -> 1111 | U7: =COUNTIF(L7:L40,T7) -> 21 | V7: =U7/(W4-U20) -> 0.6176470588 | W7: =IF(V7=0,0,(V7*((LOG(V7))/LOG(2)))) -> -0.4293545232 | Y7: =N7 -> 1111 | Z7: =COUNTIF(L41:L73,Y7) -> 30 | AA7: =Z7/(AB4-Z20) -> 0.9090909091 | AB7: =IF(AA7=0,0,(AA7*((LOG(AA7))/LOG(2)))) -> -0.1250032034 | AD7: =N7 -> 1111 | AE7: =COUNTIF(L74:L107,AD7) -> 33 | AF7: =AE7/(AG4-AE20) -> 0.9705882353 | AG7: =IF(AF7=0,0,(AF7*((LOG(AF7))/LOG(2)))) -> -0.04180199478 | AI7: =N7 -> 1111 | AJ7: =COUNTIF(L108:L140,AI7) -> 33 | AK7: =AJ7/(AL4-AJ20) -> 1 | AL7: =IF(AK7=0,0,(AK7*((LOG(AK7))/LOG(2)))) -> 0 | AN7: =N7 -> 1111 | AO7: =COUNTIF(L141:L174,AN7) -> 33 | AP7: =AO7/(AQ4-AO20) -> 0.9705882353 | AQ7: =IF(AP7=0,0,(AP7*((LOG(AP7))/LOG(2)))) -> -0.04180199478 | AS7: =N7 -> 1111 | AT7: =COUNTIF(L175:L207,AS7) -> 33 | AU7: =AT7/(AV4-AT20) -> 1 | AV7: =IF(AU7=0,0,(AU7*((LOG(AU7))/LOG(2)))) -> 0
A8: 12 | B8: 190 | C8: 23 | D8: 207 | E8: 13 | F8: 221 | G8: 14 | H8: 227 | K8: 0 | L8: 1211 | N8: 1112 | O8: =COUNTIF($L$7:$L$500,N8) -> 12 | P8: =O8/$Q$4 -> 0.05970149254 | Q8: =IF(P8=0,0,(P8*((LOG(P8))/LOG(2)))) -> -0.2427515935 | T8: =N8 -> 1112 | U8: =COUNTIF(L7:L40,T8) -> 7 | V8: =U8/(W4-U20) -> 0.2058823529 | W8: =IF(V8=0,0,(V8*((LOG(V8))/LOG(2)))) -> -0.4694339834 | Y8: =N8 -> 1112 | Z8: =COUNTIF(L41:L73,Y8) -> 3 | AA8: =Z8/(AB4-Z20) -> 0.09090909091 | AB8: =IF(AA8=0,0,(AA8*((LOG(AA8))/LOG(2)))) -> -0.3144937835 | AD8: =N8 -> 1112 | AE8: =COUNTIF(L74:L107,AD8) -> 1 | AF8: =AE8/(AG4-AE20) -> 0.02941176471 | AG8: =IF(AF8=0,0,(AF8*((LOG(AF8))/LOG(2)))) -> -0.14963126 | AI8: =N8 -> 1112 | AJ8: =COUNTIF(L108:L140,AI8) -> 0 | AK8: =AJ8/(AL4-AJ20) -> 0 | AL8: =IF(AK8=0,0,(AK8*((LOG(AK8))/LOG(2)))) -> 0 | AN8: =N8 -> 1112 | AO8: =COUNTIF(L141:L174,AN8) -> 1 | AP8: =AO8/(AQ4-AO20) -> 0.02941176471 | AQ8: =IF(AP8=0,0,(AP8*((LOG(AP8))/LOG(2)))) -> -0.14963126 | AS8: =N8 -> 1112 | AT8: =COUNTIF(L175:L207,AS8) -> 0 | AU8: =AT8/(AV4-AT20) -> 0 | AV8: =IF(AU8=0,0,(AU8*((LOG(AU8))/LOG(2)))) -> 0
A9: 12 | B9: 329 | C9: 14 | D9: 334 | E9: 13 | F9: 344 | G9: 14 | H9: 355 | K9: 0 | L9: 1111 | N9: 1121 | O9: =COUNTIF($L$7:$L$500,N9) -> 1 | P9: =O9/$Q$4 -> 0.004975124378 | Q9: =IF(P9=0,0,(P9*((LOG(P9))/LOG(2)))) -> -0.03806493379 | T9: =N9 -> 1121 | U9: =COUNTIF(L7:L40,T9) -> 1 | V9: =U9/(W4-U20) -> 0.02941176471 | W9: =IF(V9=0,0,(V9*((LOG(V9))/LOG(2)))) -> -0.14963126 | Y9: =N9 -> 1121 | Z9: =COUNTIF(L41:L73,Y9) -> 0 | AA9: =Z9/(AB4-Z20) -> 0 | AB9: =IF(AA9=0,0,(AA9*((LOG(AA9))/LOG(2)))) -> 0 | AD9: =N9 -> 1121 | AE9: =COUNTIF(L74:L107,AD9) -> 0 | AF9: =AE9/(AG4-AE20) -> 0 | AG9: =IF(AF9=0,0,(AF9*((LOG(AF9))/LOG(2)))) -> 0 | AI9: =N9 -> 1121 | AJ9: =COUNTIF(L108:L140,AI9) -> 0 | AK9: =AJ9/(AL4-AJ20) -> 0 | AL9: =IF(AK9=0,0,(AK9*((LOG(AK9))/LOG(2)))) -> 0 | AN9: =N9 -> 1121 | AO9: =COUNTIF(L141:L174,AN9) -> 0 | AP9: =AO9/(AQ4-AO20) -> 0 | AQ9: =IF(AP9=0,0,(AP9*((LOG(AP9))/LOG(2)))) -> 0 | AS9: =N9 -> 1121 | AT9: =COUNTIF(L175:L207,AS9) -> 0 | AU9: =AT9/(AV4-AT20) -> 0 | AV9: =IF(AU9=0,0,(AU9*((LOG(AU9))/LOG(2)))) -> 0
A10: 12 | B10: 450 | C10: 14 | D10: 454 | E10: 24 | F10: 466 | G10: 23 | H10: 474 | K10: 0 | L10: 1122 | N10: 1122 | O10: =COUNTIF($L$7:$L$500,N10) -> 4 | P10: =O10/$Q$4 -> 0.01990049751 | Q10: =IF(P10=0,0,(P10*((LOG(P10))/LOG(2)))) -> -0.1124587401 | T10: =N10 -> 1122 | U10: =COUNTIF(L7:L40,T10) -> 4 | V10: =U10/(W4-U20) -> 0.1176470588 | W10: =IF(V10=0,0,(V10*((LOG(V10))/LOG(2)))) -> -0.3632309225 | Y10: =N10 -> 1122 | Z10: =COUNTIF(L41:L73,Y10) -> 0 | AA10: =Z10/(AB4-Z20) -> 0 | AB10: =IF(AA10=0,0,(AA10*((LOG(AA10))/LOG(2)))) -> 0 | AD10: =N10 -> 1122 | AE10: =COUNTIF(L74:L107,AD10) -> 0 | AF10: =AE10/(AG4-AE20) -> 0 | AG10: =IF(AF10=0,0,(AF10*((LOG(AF10))/LOG(2)))) -> 0 | AI10: =N10 -> 1122 | AJ10: =COUNTIF(L108:L140,AI10) -> 0 | AK10: =AJ10/(AL4-AJ20) -> 0 | AL10: =IF(AK10=0,0,(AK10*((LOG(AK10))/LOG(2)))) -> 0 | AN10: =N10 -> 1122 | AO10: =COUNTIF(L141:L174,AN10) -> 0 | AP10: =AO10/(AQ4-AO20) -> 0 | AQ10: =IF(AP10=0,0,(AP10*((LOG(AP10))/LOG(2)))) -> 0 | AS10: =N10 -> 1122 | AT10: =COUNTIF(L175:L207,AS10) -> 0 | AU10: =AT10/(AV4-AT20) -> 0 | AV10: =IF(AU10=0,0,(AU10*((LOG(AU10))/LOG(2)))) -> 0
A11: 12 | B11: 573 | C11: 14 | D11: 577 | E11: 13 | F11: 581 | G11: 14 | H11: 590 | K11: 0 | L11: 1111 | N11: 1211 | O11: =COUNTIF($L$7:$L$500,N11) -> 1 | P11: =O11/$Q$4 -> 0.004975124378 | Q11: =IF(P11=0,0,(P11*((LOG(P11))/LOG(2)))) -> -0.03806493379 | T11: =N11 -> 1211 | U11: =COUNTIF(L7:L40,T11) -> 1 | V11: =U11/(W4-U20) -> 0.02941176471 | W11: =IF(V11=0,0,(V11*((LOG(V11))/LOG(2)))) -> -0.14963126 | Y11: =N11 -> 1211 | Z11: =COUNTIF(L41:L73,Y11) -> 0 | AA11: =Z11/(AB4-Z20) -> 0 | AB11: =IF(AA11=0,0,(AA11*((LOG(AA11))/LOG(2)))) -> 0 | AD11: =N11 -> 1211 | AE11: =COUNTIF(L74:L107,AD11) -> 0 | AF11: =AE11/(AG4-AE20) -> 0 | AG11: =IF(AF11=0,0,(AF11*((LOG(AF11))/LOG(2)))) -> 0 | AI11: =N11 -> 1211 | AJ11: =COUNTIF(L108:L140,AI11) -> 0 | AK11: =AJ11/(AL4-AJ20) -> 0 | AL11: =IF(AK11=0,0,(AK11*((LOG(AK11))/LOG(2)))) -> 0 | AN11: =N11 -> 1211 | AO11: =COUNTIF(L141:L174,AN11) -> 0 | AP11: =AO11/(AQ4-AO20) -> 0 | AQ11: =IF(AP11=0,0,(AP11*((LOG(AP11))/LOG(2)))) -> 0 | AS11: =N11 -> 1211 | AT11: =COUNTIF(L175:L207,AS11) -> 0 | AU11: =AT11/(AV4-AT20) -> 0 | AV11: =IF(AU11=0,0,(AU11*((LOG(AU11))/LOG(2)))) -> 0
A12: 12 | B12: 693 | C12: 14 | D12: 698 | E12: 13 | F12: 708 | G12: 23 | H12: 724 | K12: 0 | L12: 1112 | N12: 1212 | O12: =COUNTIF($L$7:$L$500,N12) -> 0 | P12: =O12/$Q$4 -> 0 | Q12: =IF(P12=0,0,(P12*((LOG(P12))/LOG(2)))) -> 0 | T12: =N12 -> 1212 | U12: =COUNTIF(L7:L40,T12) -> 0 | V12: =U12/(W4-U20) -> 0 | W12: =IF(V12=0,0,(V12*((LOG(V12))/LOG(2)))) -> 0 | Y12: =N12 -> 1212 | Z12: =COUNTIF(L41:L73,Y12) -> 0 | AA12: =Z12/(AB4-Z20) -> 0 | AB12: =IF(AA12=0,0,(AA12*((LOG(AA12))/LOG(2)))) -> 0 | AD12: =N12 -> 1212 | AE12: =COUNTIF(L74:L107,AD12) -> 0 | AF12: =AE12/(AG4-AE20) -> 0 | AG12: =IF(AF12=0,0,(AF12*((LOG(AF12))/LOG(2)))) -> 0 | AI12: =N12 -> 1212 | AJ12: =COUNTIF(L108:L140,AI12) -> 0 | AK12: =AJ12/(AL4-AJ20) -> 0 | AL12: =IF(AK12=0,0,(AK12*((LOG(AK12))/LOG(2)))) -> 0 | AN12: =N12 -> 1212 | AO12: =COUNTIF(L141:L174,AN12) -> 0 | AP12: =AO12/(AQ4-AO20) -> 0 | AQ12: =IF(AP12=0,0,(AP12*((LOG(AP12))/LOG(2)))) -> 0 | AS12: =N12 -> 1212 | AT12: =COUNTIF(L175:L207,AS12) -> 0 | AU12: =AT12/(AV4-AT20) -> 0 | AV12: =IF(AU12=0,0,(AU12*((LOG(AU12))/LOG(2)))) -> 0
A13: 12 | B13: 825 | C13: 14 | D13: 831 | E13: 13 | F13: 840 | G13: 23 | H13: 855 | K13: 0 | L13: 1112 | N13: 1221 | O13: =COUNTIF($L$7:$L$500,N13) -> 0 | P13: =O13/$Q$4 -> 0 | Q13: =IF(P13=0,0,(P13*((LOG(P13))/LOG(2)))) -> 0 | T13: =N13 -> 1221 | U13: =COUNTIF(L7:L40,T13) -> 0 | V13: =U13/(W4-U20) -> 0 | W13: =IF(V13=0,0,(V13*((LOG(V13))/LOG(2)))) -> 0 | Y13: =N13 -> 1221 | Z13: =COUNTIF(L41:L73,Y13) -> 0 | AA13: =Z13/(AB4-Z20) -> 0 | AB13: =IF(AA13=0,0,(AA13*((LOG(AA13))/LOG(2)))) -> 0 | AD13: =N13 -> 1221 | AE13: =COUNTIF(L74:L107,AD13) -> 0 | AF13: =AE13/(AG4-AE20) -> 0 | AG13: =IF(AF13=0,0,(AF13*((LOG(AF13))/LOG(2)))) -> 0 | AI13: =N13 -> 1221 | AJ13: =COUNTIF(L108:L140,AI13) -> 0 | AK13: =AJ13/(AL4-AJ20) -> 0 | AL13: =IF(AK13=0,0,(AK13*((LOG(AK13))/LOG(2)))) -> 0 | AN13: =N13 -> 1221 | AO13: =COUNTIF(L141:L174,AN13) -> 0 | AP13: =AO13/(AQ4-AO20) -> 0 | AQ13: =IF(AP13=0,0,(AP13*((LOG(AP13))/LOG(2)))) -> 0 | AS13: =N13 -> 1221 | AT13: =COUNTIF(L175:L207,AS13) -> 0 | AU13: =AT13/(AV4-AT20) -> 0 | AV13: =IF(AU13=0,0,(AU13*((LOG(AU13))/LOG(2)))) -> 0
A14: 12 | B14: 956 | C14: 14 | D14: 961 | E14: 13 | F14: 966 | G14: 23 | H14: 981 | K14: 0 | L14: 1112 | N14: 1222 | O14: =COUNTIF($L$7:$L$500,N14) -> 0 | P14: =O14/$Q$4 -> 0 | Q14: =IF(P14=0,0,(P14*((LOG(P14))/LOG(2)))) -> 0 | T14: =N14 -> 1222 | U14: =COUNTIF(L7:L40,T14) -> 0 | V14: =U14/(W4-U20) -> 0 | W14: =IF(V14=0,0,(V14*((LOG(V14))/LOG(2)))) -> 0 | Y14: =N14 -> 1222 | Z14: =COUNTIF(L41:L73,Y14) -> 0 | AA14: =Z14/(AB4-Z20) -> 0 | AB14: =IF(AA14=0,0,(AA14*((LOG(AA14))/LOG(2)))) -> 0 | AD14: =N14 -> 1222 | AE14: =COUNTIF(L74:L107,AD14) -> 0 | AF14: =AE14/(AG4-AE20) -> 0 | AG14: =IF(AF14=0,0,(AF14*((LOG(AF14))/LOG(2)))) -> 0 | AI14: =N14 -> 1222 | AJ14: =COUNTIF(L108:L140,AI14) -> 0 | AK14: =AJ14/(AL4-AJ20) -> 0 | AL14: =IF(AK14=0,0,(AK14*((LOG(AK14))/LOG(2)))) -> 0 | AN14: =N14 -> 1222 | AO14: =COUNTIF(L141:L174,AN14) -> 0 | AP14: =AO14/(AQ4-AO20) -> 0 | AQ14: =IF(AP14=0,0,(AP14*((LOG(AP14))/LOG(2)))) -> 0 | AS14: =N14 -> 1222 | AT14: =COUNTIF(L175:L207,AS14) -> 0 | AU14: =AT14/(AV4-AT20) -> 0 | AV14: =IF(AU14=0,0,(AU14*((LOG(AU14))/LOG(2)))) -> 0
A15: 12 | B15: 1081 | C15: 14 | D15: 1087 | E15: 13 | F15: 1092 | G15: 14 | H15: 1098 | K15: 0 | L15: 1111 | N15: 2111 | O15: =COUNTIF($L$7:$L$500,N15) -> 0 | P15: =O15/$Q$4 -> 0 | Q15: =IF(P15=0,0,(P15*((LOG(P15))/LOG(2)))) -> 0 | T15: =N15 -> 2111 | U15: =COUNTIF(L7:L40,T15) -> 0 | V15: =U15/(W4-U20) -> 0 | W15: =IF(V15=0,0,(V15*((LOG(V15))/LOG(2)))) -> 0 | Y15: =N15 -> 2111 | Z15: =COUNTIF(L41:L73,Y15) -> 0 | AA15: =Z15/(AB4-Z20) -> 0 | AB15: =IF(AA15=0,0,(AA15*((LOG(AA15))/LOG(2)))) -> 0 | AD15: =N15 -> 2111 | AE15: =COUNTIF(L74:L107,AD15) -> 0 | AF15: =AE15/(AG4-AE20) -> 0 | AG15: =IF(AF15=0,0,(AF15*((LOG(AF15))/LOG(2)))) -> 0 | AI15: =N15 -> 2111 | AJ15: =COUNTIF(L108:L140,AI15) -> 0 | AK15: =AJ15/(AL4-AJ20) -> 0 | AL15: =IF(AK15=0,0,(AK15*((LOG(AK15))/LOG(2)))) -> 0 | AN15: =N15 -> 2111 | AO15: =COUNTIF(L141:L174,AN15) -> 0 | AP15: =AO15/(AQ4-AO20) -> 0 | AQ15: =IF(AP15=0,0,(AP15*((LOG(AP15))/LOG(2)))) -> 0 | AS15: =N15 -> 2111 | AT15: =COUNTIF(L175:L207,AS15) -> 0 | AU15: =AT15/(AV4-AT20) -> 0 | AV15: =IF(AU15=0,0,(AU15*((LOG(AU15))/LOG(2)))) -> 0
A16: 12 | B16: 1195 | C16: 14 | D16: 1203 | E16: 13 | F16: 1213 | G16: 14 | H16: 1222 | K16: 0 | L16: 1111 | N16: 2112 | O16: =COUNTIF($L$7:$L$500,N16) -> 0 | P16: =O16/$Q$4 -> 0 | Q16: =IF(P16=0,0,(P16*((LOG(P16))/LOG(2)))) -> 0 | T16: =N16 -> 2112 | U16: =COUNTIF(L7:L40,T16) -> 0 | V16: =U16/(W4-U20) -> 0 | W16: =IF(V16=0,0,(V16*((LOG(V16))/LOG(2)))) -> 0 | Y16: =N16 -> 2112 | Z16: =COUNTIF(L41:L73,Y16) -> 0 | AA16: =Z16/(AB4-Z20) -> 0 | AB16: =IF(AA16=0,0,(AA16*((LOG(AA16))/LOG(2)))) -> 0 | AD16: =N16 -> 2112 | AE16: =COUNTIF(L74:L107,AD16) -> 0 | AF16: =AE16/(AG4-AE20) -> 0 | AG16: =IF(AF16=0,0,(AF16*((LOG(AF16))/LOG(2)))) -> 0 | AI16: =N16 -> 2112 | AJ16: =COUNTIF(L108:L140,AI16) -> 0 | AK16: =AJ16/(AL4-AJ20) -> 0 | AL16: =IF(AK16=0,0,(AK16*((LOG(AK16))/LOG(2)))) -> 0 | AN16: =N16 -> 2112 | AO16: =COUNTIF(L141:L174,AN16) -> 0 | AP16: =AO16/(AQ4-AO20) -> 0 | AQ16: =IF(AP16=0,0,(AP16*((LOG(AP16))/LOG(2)))) -> 0 | AS16: =N16 -> 2112 | AT16: =COUNTIF(L175:L207,AS16) -> 0 | AU16: =AT16/(AV4-AT20) -> 0 | AV16: =IF(AU16=0,0,(AU16*((LOG(AU16))/LOG(2)))) -> 0
A17: 12 | B17: 1328 | C17: 14 | D17: 1332 | E17: 13 | F17: 1347 | G17: 23 | H17: 1372 | K17: 0 | L17: 1112 | N17: 2121 | O17: =COUNTIF($L$7:$L$500,N17) -> 0 | P17: =O17/$Q$4 -> 0 | Q17: =IF(P17=0,0,(P17*((LOG(P17))/LOG(2)))) -> 0 | T17: =N17 -> 2121 | U17: =COUNTIF(L7:L40,T17) -> 0 | V17: =U17/(W4-U20) -> 0 | W17: =IF(V17=0,0,(V17*((LOG(V17))/LOG(2)))) -> 0 | Y17: =N17 -> 2121 | Z17: =COUNTIF(L41:L73,Y17) -> 0 | AA17: =Z17/(AB4-Z20) -> 0 | AB17: =IF(AA17=0,0,(AA17*((LOG(AA17))/LOG(2)))) -> 0 | AD17: =N17 -> 2121 | AE17: =COUNTIF(L74:L107,AD17) -> 0 | AF17: =AE17/(AG4-AE20) -> 0 | AG17: =IF(AF17=0,0,(AF17*((LOG(AF17))/LOG(2)))) -> 0 | AI17: =N17 -> 2121 | AJ17: =COUNTIF(L108:L140,AI17) -> 0 | AK17: =AJ17/(AL4-AJ20) -> 0 | AL17: =IF(AK17=0,0,(AK17*((LOG(AK17))/LOG(2)))) -> 0 | AN17: =N17 -> 2121 | AO17: =COUNTIF(L141:L174,AN17) -> 0 | AP17: =AO17/(AQ4-AO20) -> 0 | AQ17: =IF(AP17=0,0,(AP17*((LOG(AP17))/LOG(2)))) -> 0 | AS17: =N17 -> 2121 | AT17: =COUNTIF(L175:L207,AS17) -> 0 | AU17: =AT17/(AV4-AT20) -> 0 | AV17: =IF(AU17=0,0,(AU17*((LOG(AU17))/LOG(2)))) -> 0
A18: 12 | B18: 1476 | C18: 14 | D18: 1481 | E18: 13 | F18: 1491 | G18: 23 | H18: 1507 | K18: 0 | L18: 1112 | N18: 2122 | O18: =COUNTIF($L$7:$L$500,N18) -> 0 | P18: =O18/$Q$4 -> 0 | Q18: =IF(P18=0,0,(P18*((LOG(P18))/LOG(2)))) -> 0 | T18: =N18 -> 2122 | U18: =COUNTIF(L7:L40,T18) -> 0 | V18: =U18/(W4-U20) -> 0 | W18: =IF(V18=0,0,(V18*((LOG(V18))/LOG(2)))) -> 0 | Y18: =N18 -> 2122 | Z18: =COUNTIF(L41:L73,Y18) -> 0 | AA18: =Z18/(AB4-Z20) -> 0 | AB18: =IF(AA18=0,0,(AA18*((LOG(AA18))/LOG(2)))) -> 0 | AD18: =N18 -> 2122 | AE18: =COUNTIF(L74:L107,AD18) -> 0 | AF18: =AE18/(AG4-AE20) -> 0 | AG18: =IF(AF18=0,0,(AF18*((LOG(AF18))/LOG(2)))) -> 0 | AI18: =N18 -> 2122 | AJ18: =COUNTIF(L108:L140,AI18) -> 0 | AK18: =AJ18/(AL4-AJ20) -> 0 | AL18: =IF(AK18=0,0,(AK18*((LOG(AK18))/LOG(2)))) -> 0 | AN18: =N18 -> 2122 | AO18: =COUNTIF(L141:L174,AN18) -> 0 | AP18: =AO18/(AQ4-AO20) -> 0 | AQ18: =IF(AP18=0,0,(AP18*((LOG(AP18))/LOG(2)))) -> 0 | AS18: =N18 -> 2122 | AT18: =COUNTIF(L175:L207,AS18) -> 0 | AU18: =AT18/(AV4-AT20) -> 0 | AV18: =IF(AU18=0,0,(AU18*((LOG(AU18))/LOG(2)))) -> 0
A19: 12 | B19: 1602 | C19: 14 | D19: 1607 | E19: 13 | F19: 1612 | G19: 14 | H19: 1621 | K19: 0 | L19: 1111 | N19: 2211 | O19: =COUNTIF($L$7:$L$500,N19) -> 0 | P19: =O19/$Q$4 -> 0 | Q19: =IF(P19=0,0,(P19*((LOG(P19))/LOG(2)))) -> 0 | T19: =N19 -> 2211 | U19: =COUNTIF(L7:L40,T19) -> 0 | V19: =U19/(W4-U20) -> 0 | W19: =IF(V19=0,0,(V19*((LOG(V19))/LOG(2)))) -> 0 | Y19: =N19 -> 2211 | Z19: =COUNTIF(L41:L73,Y19) -> 0 | AA19: =Z19/(AB4-Z20) -> 0 | AB19: =IF(AA19=0,0,(AA19*((LOG(AA19))/LOG(2)))) -> 0 | AD19: =N19 -> 2211 | AE19: =COUNTIF(L74:L107,AD19) -> 0 | AF19: =AE19/(AG4-AE20) -> 0 | AG19: =IF(AF19=0,0,(AF19*((LOG(AF19))/LOG(2)))) -> 0 | AI19: =N19 -> 2211 | AJ19: =COUNTIF(L108:L140,AI19) -> 0 | AK19: =AJ19/(AL4-AJ20) -> 0 | AL19: =IF(AK19=0,0,(AK19*((LOG(AK19))/LOG(2)))) -> 0 | AN19: =N19 -> 2211 | AO19: =COUNTIF(L141:L174,AN19) -> 0 | AP19: =AO19/(AQ4-AO20) -> 0 | AQ19: =IF(AP19=0,0,(AP19*((LOG(AP19))/LOG(2)))) -> 0 | AS19: =N19 -> 2211 | AT19: =COUNTIF(L175:L207,AS19) -> 0 | AU19: =AT19/(AV4-AT20) -> 0 | AV19: =IF(AU19=0,0,(AU19*((LOG(AU19))/LOG(2)))) -> 0
A20: 12 | B20: 1719 | C20: 14 | D20: 1725 | E20: 13 | F20: 1732 | G20: 14 | H20: 1738 | K20: 0 | L20: 1111 | N20: 2212 | O20: =COUNTIF($L$7:$L$500,N20) -> 0 | P20: =O20/$Q$4 -> 0 | Q20: =IF(P20=0,0,(P20*((LOG(P20))/LOG(2)))) -> 0 | T20: =N20 -> 2212 | U20: =COUNTIF(L7:L40,T20) -> 0 | Y20: =N20 -> 2212 | Z20: =COUNTIF(L41:L73,Y20) -> 0 | AD20: =N20 -> 2212 | AE20: =COUNTIF(L74:L107,AD20) -> 0 | AI20: =N20 -> 2212 | AJ20: =COUNTIF(L108:L140,AI20) -> 0 | AN20: =N20 -> 2212 | AO20: =COUNTIF(L141:L174,AN20) -> 0 | AS20: =N20 -> 2212 | AT20: =COUNTIF(L175:L207,AS20) -> 0
A21: 12 | B21: 1836 | C21: 14 | D21: 1840 | E21: 13 | F21: 1850 | G21: 14 | H21: 1858 | K21: 0 | L21: 1111 | N21: 2221 | O21: =COUNTIF($L$7:$L$500,N21) -> 0 | P21: =O21/$Q$4 -> 0 | Q21: =IF(P21=0,0,(P21*((LOG(P21))/LOG(2)))) -> 0 | T21: =N21 -> 2221 | U21: =COUNTIF(L7:L40,T21) -> 0 | V21: =U21/(W4-U20) -> 0 | W21: =IF(V21=0,0,(V21*((LOG(V21))/LOG(2)))) -> 0 | Y21: =N21 -> 2221 | Z21: =COUNTIF(L41:L73,Y21) -> 0 | AA21: =Z21/(AB4-Z20) -> 0 | AB21: =IF(AA21=0,0,(AA21*((LOG(AA21))/LOG(2)))) -> 0 | AD21: =N21 -> 2221 | AE21: =COUNTIF(L74:L107,AD21) -> 0 | AF21: =AE21/(AG4-AE20) -> 0 | AG21: =IF(AF21=0,0,(AF21*((LOG(AF21))/LOG(2)))) -> 0 | AI21: =N21 -> 2221 | AJ21: =COUNTIF(L108:L140,AI21) -> 0 | AK21: =AJ21/(AL4-AJ20) -> 0 | AL21: =IF(AK21=0,0,(AK21*((LOG(AK21))/LOG(2)))) -> 0 | AN21: =N21 -> 2221 | AO21: =COUNTIF(L141:L174,AN21) -> 0 | AP21: =AO21/(AQ4-AO20) -> 0 | AQ21: =IF(AP21=0,0,(AP21*((LOG(AP21))/LOG(2)))) -> 0 | AS21: =N21 -> 2221 | AT21: =COUNTIF(L175:L207,AS21) -> 0 | AU21: =AT21/(AV4-AT20) -> 0 | AV21: =IF(AU21=0,0,(AU21*((LOG(AU21))/LOG(2)))) -> 0
A22: 12 | B22: 1960 | C22: 14 | D22: 1965 | E22: 13 | F22: 1970 | G22: 14 | H22: 1978 | K22: 0 | L22: 1111 | N22: 2222 | O22: =COUNTIF($L$7:$L$500,N22) -> 0 | P22: =O22/$Q$4 -> 0 | Q22: =IF(P22=0,0,(P22*((LOG(P22))/LOG(2)))) -> 0 | T22: =N22 -> 2222 | U22: =COUNTIF(L7:L40,T22) -> 0 | V22: =U22/(W4-U20) -> 0 | W22: =IF(V22=0,0,(V22*((LOG(V22))/LOG(2)))) -> 0 | Y22: =N22 -> 2222 | Z22: =COUNTIF(L41:L73,Y22) -> 0 | AA22: =Z22/(AB4-Z20) -> 0 | AB22: =IF(AA22=0,0,(AA22*((LOG(AA22))/LOG(2)))) -> 0 | AD22: =N22 -> 2222 | AE22: =COUNTIF(L74:L107,AD22) -> 0 | AF22: =AE22/(AG4-AE20) -> 0 | AG22: =IF(AF22=0,0,(AF22*((LOG(AF22))/LOG(2)))) -> 0 | AI22: =N22 -> 2222 | AJ22: =COUNTIF(L108:L140,AI22) -> 0 | AK22: =AJ22/(AL4-AJ20) -> 0 | AL22: =IF(AK22=0,0,(AK22*((LOG(AK22))/LOG(2)))) -> 0 | AN22: =N22 -> 2222 | AO22: =COUNTIF(L141:L174,AN22) -> 0 | AP22: =AO22/(AQ4-AO20) -> 0 | AQ22: =IF(AP22=0,0,(AP22*((LOG(AP22))/LOG(2)))) -> 0 | AS22: =N22 -> 2222 | AT22: =COUNTIF(L175:L207,AS22) -> 0 | AU22: =AT22/(AV4-AT20) -> 0 | AV22: =IF(AU22=0,0,(AU22*((LOG(AU22))/LOG(2)))) -> 0
A23: 12 | B23: 2076 | C23: 14 | D23: 2081 | E23: 13 | F23: 2086 | G23: 14 | H23: 2091 | K23: 0 | L23: 1111 | P23: =SUM(P7:P22) -> 1 | Q23: =-SUM(Q7:Q22) -> 0.5545709926 | V23: =SUM(V7:V22) -> 1 | W23: =-SUM(W7:W22) -> 1.561281949 | AA23: =SUM(AA7:AA22) -> 1 | AB23: =-SUM(AB7:AB22) -> 0.4394969869 | AF23: =SUM(AF7:AF22) -> 1 | AG23: =-SUM(AG7:AG22) -> 0.1914332548 | AK23: =SUM(AK7:AK22) -> 1 | AL23: =-SUM(AL7:AL22) -> 0 | AP23: =SUM(AP7:AP22) -> 1 | AQ23: =-SUM(AQ7:AQ22) -> 0.1914332548 | AU23: =SUM(AU7:AU22) -> 1 | AV23: =-SUM(AV7:AV22) -> 0
A24: 12 | B24: 2194 | C24: 14 | D24: 2202 | E24: 24 | F24: 2215 | G24: 23 | H24: 2227 | K24: 0 | L24: 1122 | P24: U= | Q24: =Q23/(LOG(Q4)/LOG(2)) -> 0.07248297554 | V24: U1= | W24: =W23/(LOG(W4)/LOG(2)) -> 0.3068881283 | AA24: U2= | AB24: =AB23/(LOG(AB4)/LOG(2)) -> 0.08712582255 | AF24: U3= | AG24: =AG23/(LOG(AG4)/LOG(2)) -> 0.03762843303 | AK24: U4= | AL24: =AL23/(LOG(AL4)/LOG(2)) -> 0 | AP24: U5= | AQ24: =AQ23/(LOG(AQ4)/LOG(2)) -> 0.03762843303 | AU24: U6= | AV24: =AV23/(LOG(AV4)/LOG(2)) -> 0
A25: 12 | B25: 2327 | C25: 14 | D25: 2333 | E25: 13 | F25: 2348 | G25: 14 | H25: 2358 | K25: 0 | L25: 1111
A26: 12 | B26: 2469 | C26: 14 | D26: 2480 | E26: 13 | F26: 2486 | G26: 23 | H26: 2504 | K26: 0 | L26: 1112
A27: 12 | B27: 2618 | C27: 14 | D27: 2623 | E27: 24 | F27: 2648 | G27: 23 | H27: 2657 | K27: 0 | L27: 1122 | N27: Total Target Seq
A28: 12 | B28: 2769 | C28: 14 | D28: 2774 | E28: 24 | F28: 2793 | G28: 23 | H28: 2801 | K28: 0 | L28: 1122 | N28: =COUNTIF(L7:L207,G3) -> 0 | P28: 34 | Q28: 33 | R28: 34 | S28: 33 | T28: 34 | U28: 33
A29: 12 | B29: 2905 | C29: 14 | D29: 2913 | E29: 13 | F29: 2919 | G29: 14 | H29: 2928 | K29: 0 | L29: 1111 | P29: % of reinforcement given in 6 equal intervals based on number of trials
A30: 12 | B30: 3025 | C30: 14 | D30: 3031 | E30: 13 | F30: 3036 | G30: 14 | H30: 3041 | K30: 0 | L30: 1111 | P30: %_1 | Q30: %_2 | R30: %_3 | S30: %_4 | T30: %_5 | U30: %_6
A31: 12 | B31: 3137 | C31: 14 | D31: 3143 | E31: 13 | F31: 3147 | G31: 14 | H31: 3156 | K31: 0 | L31: 1111 | O31: target sequence | P31: =$G$3 -> 2212 | Q31: =$G$3 -> 2212 | R31: =$G$3 -> 2212 | S31: =$G$3 -> 2212 | T31: =$G$3 -> 2212 | U31: =$G$3 -> 2212
A32: 12 | B32: 3258 | C32: 14 | D32: 3263 | E32: 13 | F32: 3268 | G32: 14 | H32: 3277 | K32: 0 | L32: 1111 | O32: total reinforcement | P32: =U20 -> 0 | Q32: =Z20 -> 0 | R32: =AE20 -> 0 | S32: =AJ20 -> 0 | T32: =AO20 -> 0 | U32: =AT20 -> 0
A33: 12 | B33: 3377 | C33: 14 | D33: 3383 | E33: 13 | F33: 3388 | G33: 14 | H33: 3396 | K33: 0 | L33: 1111 | O33: % target
A34: 12 | B34: 3499 | C34: 14 | D34: 3505 | E34: 13 | F34: 3510 | G34: 23 | H34: 3524 | K34: 0 | L34: 1112 | O34: CCRF
A35: 12 | B35: 3617 | C35: 14 | D35: 3622 | E35: 13 | F35: 3626 | G35: 14 | H35: 3636 | K35: 0 | L35: 1111 | O35: % CCRf
A36: 12 | B36: 3734 | C36: 14 | D36: 3739 | E36: 13 | F36: 3745 | G36: 14 | H36: 3754 | K36: 0 | L36: 1111 | O36: average response rate | P36: =H40/P28 -> 124.0294118 | Q36: =(H73-H40)/Q28 -> 119.3030303 | R36: =(H107-H73)/R28 -> 118.6176471 | S36: =(H140-H107)/S28 -> 116.6060606 | T36: =(H174-H140)/T28 -> 117.1470588 | U36: =(H207-H174)/U28 -> 119.3030303
A37: 12 | B37: 3853 | C37: 14 | D37: 3859 | E37: 13 | F37: 3864 | G37: 14 | H37: 3872 | K37: 0 | L37: 1111
A38: 12 | B38: 3969 | C38: 14 | D38: 3973 | E38: 13 | F38: 3978 | G38: 14 | H38: 3984 | K38: 0 | L38: 1111
A39: 12 | B39: 4080 | C39: 14 | D39: 4084 | E39: 13 | F39: 4089 | G39: 14 | H39: 4098 | K39: 0 | L39: 1111
A40: 12 | B40: 4194 | C40: 14 | D40: 4199 | E40: 13 | F40: 4209 | G40: 14 | H40: 4217 | K40: 0 | L40: 1111
A41: 12 | B41: 4313 | C41: 14 | D41: 4319 | E41: 13 | F41: 4324 | G41: 14 | H41: 4333 | K41: 0 | L41: 1111
A42: 12 | B42: 4432 | C42: 14 | D42: 4437 | E42: 13 | F42: 4442 | G42: 14 | H42: 4451 | K42: 0 | L42: 1111
A43: 12 | B43: 4550 | C43: 14 | D43: 4555 | E43: 13 | F43: 4561 | G43: 14 | H43: 4577 | K43: 0 | L43: 1111
A44: 12 | B44: 4673 | C44: 14 | D44: 4678 | E44: 13 | F44: 4684 | G44: 14 | H44: 4693 | K44: 0 | L44: 1111
A45: 12 | B45: 4790 | C45: 14 | D45: 4795 | E45: 13 | F45: 4805 | G45: 14 | H45: 4824 | K45: 0 | L45: 1111
A46: 12 | B46: 4920 | C46: 14 | D46: 4925 | E46: 13 | F46: 4930 | G46: 14 | H46: 4938 | K46: 0 | L46: 1111
A47: 12 | B47: 5034 | C47: 14 | D47: 5039 | E47: 13 | F47: 5044 | G47: 14 | H47: 5052 | K47: 0 | L47: 1111
A48: 12 | B48: 5153 | C48: 14 | D48: 5158 | E48: 13 | F48: 5164 | G48: 14 | H48: 5172 | K48: 0 | L48: 1111
A49: 12 | B49: 5271 | C49: 14 | D49: 5276 | E49: 13 | F49: 5284 | G49: 14 | H49: 5293 | K49: 0 | L49: 1111
A50: 12 | B50: 5390 | C50: 14 | D50: 5395 | E50: 13 | F50: 5400 | G50: 14 | H50: 5410 | K50: 0 | L50: 1111
A51: 12 | B51: 5510 | C51: 14 | D51: 5515 | E51: 13 | F51: 5521 | G51: 14 | H51: 5529 | K51: 0 | L51: 1111
A52: 12 | B52: 5622 | C52: 14 | D52: 5627 | E52: 13 | F52: 5636 | G52: 14 | H52: 5656 | K52: 0 | L52: 1111
A53: 12 | B53: 5752 | C53: 14 | D53: 5757 | E53: 13 | F53: 5761 | G53: 14 | H53: 5767 | K53: 0 | L53: 1111
A54: 12 | B54: 5862 | C54: 14 | D54: 5868 | E54: 13 | F54: 5873 | G54: 14 | H54: 5881 | K54: 0 | L54: 1111
A55: 12 | B55: 5986 | C55: 14 | D55: 5991 | E55: 13 | F55: 6001 | G55: 23 | H55: 6035 | K55: 0 | L55: 1112
A56: 12 | B56: 6134 | C56: 14 | D56: 6139 | E56: 13 | F56: 6144 | G56: 14 | H56: 6163 | K56: 0 | L56: 1111
A57: 12 | B57: 6274 | C57: 14 | D57: 6279 | E57: 13 | F57: 6284 | G57: 14 | H57: 6292 | K57: 0 | L57: 1111
A58: 12 | B58: 6394 | C58: 14 | D58: 6399 | E58: 13 | F58: 6405 | G58: 14 | H58: 6414 | K58: 0 | L58: 1111
A59: 12 | B59: 6509 | C59: 14 | D59: 6513 | E59: 13 | F59: 6519 | G59: 14 | H59: 6532 | K59: 0 | L59: 1111
A60: 12 | B60: 6630 | C60: 14 | D60: 6634 | E60: 13 | F60: 6639 | G60: 14 | H60: 6644 | K60: 0 | L60: 1111
A61: 12 | B61: 6739 | C61: 14 | D61: 6743 | E61: 13 | F61: 6750 | G61: 14 | H61: 6759 | K61: 0 | L61: 1111
A62: 12 | B62: 6858 | C62: 14 | D62: 6863 | E62: 13 | F62: 6868 | G62: 14 | H62: 6884 | K62: 0 | L62: 1111
A63: 12 | B63: 6986 | C63: 14 | D63: 6991 | E63: 13 | F63: 6996 | G63: 14 | H63: 7002 | K63: 0 | L63: 1111
A64: 12 | B64: 7100 | C64: 14 | D64: 7106 | E64: 13 | F64: 7111 | G64: 23 | H64: 7135 | K64: 0 | L64: 1112
A65: 12 | B65: 7224 | C65: 14 | D65: 7232 | E65: 13 | F65: 7238 | G65: 14 | H65: 7244 | K65: 0 | L65: 1111
A66: 12 | B66: 7339 | C66: 14 | D66: 7344 | E66: 13 | F66: 7349 | G66: 14 | H66: 7358 | K66: 0 | L66: 1111
A67: 12 | B67: 7458 | C67: 14 | D67: 7462 | E67: 13 | F67: 7467 | G67: 14 | H67: 7475 | K67: 0 | L67: 1111
A68: 12 | B68: 7563 | C68: 14 | D68: 7568 | E68: 13 | F68: 7571 | G68: 14 | H68: 7577 | K68: 0 | L68: 1111
A69: 12 | B69: 7675 | C69: 14 | D69: 7681 | E69: 13 | F69: 7686 | G69: 23 | H69: 7700 | K69: 0 | L69: 1112
A70: 12 | B70: 7807 | C70: 14 | D70: 7813 | E70: 13 | F70: 7818 | G70: 14 | H70: 7825 | K70: 0 | L70: 1111
A71: 12 | B71: 7916 | C71: 14 | D71: 7921 | E71: 13 | F71: 7926 | G71: 14 | H71: 7935 | K71: 0 | L71: 1111
A72: 12 | B72: 8022 | C72: 14 | D72: 8026 | E72: 13 | F72: 8031 | G72: 14 | H72: 8038 | K72: 0 | L72: 1111
A73: 12 | B73: 8136 | C73: 14 | D73: 8140 | E73: 13 | F73: 8146 | G73: 14 | H73: 8154 | K73: 0 | L73: 1111
A74: 12 | B74: 8251 | C74: 14 | D74: 8256 | E74: 13 | F74: 8261 | G74: 14 | H74: 8269 | K74: 0 | L74: 1111
A75: 12 | B75: 8377 | C75: 14 | D75: 8382 | E75: 13 | F75: 8387 | G75: 14 | H75: 8396 | K75: 0 | L75: 1111
A76: 12 | B76: 8498 | C76: 14 | D76: 8502 | E76: 13 | F76: 8507 | G76: 14 | H76: 8512 | K76: 0 | L76: 1111
A77: 12 | B77: 8619 | C77: 14 | D77: 8628 | E77: 13 | F77: 8633 | G77: 14 | H77: 8642 | K77: 0 | L77: 1111
A78: 12 | B78: 8730 | C78: 14 | D78: 8735 | E78: 13 | F78: 8739 | G78: 14 | H78: 8744 | K78: 0 | L78: 1111
A79: 12 | B79: 8841 | C79: 14 | D79: 8846 | E79: 13 | F79: 8851 | G79: 14 | H79: 8856 | K79: 0 | L79: 1111
A80: 12 | B80: 8953 | C80: 14 | D80: 8958 | E80: 13 | F80: 8962 | G80: 14 | H80: 8970 | K80: 0 | L80: 1111
A81: 12 | B81: 9068 | C81: 14 | D81: 9072 | E81: 13 | F81: 9078 | G81: 14 | H81: 9085 | K81: 0 | L81: 1111
A82: 12 | B82: 9196 | C82: 14 | D82: 9200 | E82: 13 | F82: 9206 | G82: 23 | H82: 9223 | K82: 0 | L82: 1112
A83: 12 | B83: 9331 | C83: 14 | D83: 9336 | E83: 13 | F83: 9345 | G83: 14 | H83: 9352 | K83: 0 | L83: 1111
A84: 12 | B84: 9448 | C84: 14 | D84: 9453 | E84: 13 | F84: 9463 | G84: 14 | H84: 9470 | K84: 0 | L84: 1111
A85: 12 | B85: 9568 | C85: 14 | D85: 9574 | E85: 13 | F85: 9584 | G85: 14 | H85: 9601 | K85: 0 | L85: 1111
A86: 12 | B86: 9703 | C86: 14 | D86: 9708 | E86: 13 | F86: 9717 | G86: 14 | H86: 9729 | K86: 0 | L86: 1111
A87: 12 | B87: 9819 | C87: 14 | D87: 9824 | E87: 13 | F87: 9828 | G87: 14 | H87: 9836 | K87: 0 | L87: 1111
A88: 12 | B88: 9939 | C88: 14 | D88: 9944 | E88: 13 | F88: 9949 | G88: 14 | H88: 9957 | K88: 0 | L88: 1111
A89: 12 | B89: 10054 | C89: 14 | D89: 10059 | E89: 13 | F89: 10064 | G89: 14 | H89: 10073 | K89: 0 | L89: 1111
A90: 12 | B90: 10172 | C90: 14 | D90: 10176 | E90: 13 | F90: 10181 | G90: 14 | H90: 10189 | K90: 0 | L90: 1111
A91: 12 | B91: 10296 | C91: 14 | D91: 10303 | E91: 13 | F91: 10309 | G91: 14 | H91: 10317 | K91: 0 | L91: 1111
A92: 12 | B92: 10412 | C92: 14 | D92: 10417 | E92: 13 | F92: 10422 | G92: 14 | H92: 10430 | K92: 0 | L92: 1111
A93: 12 | B93: 10525 | C93: 14 | D93: 10529 | E93: 13 | F93: 10534 | G93: 14 | H93: 10539 | K93: 0 | L93: 1111
A94: 12 | B94: 10635 | C94: 14 | D94: 10640 | E94: 13 | F94: 10656 | G94: 14 | H94: 10664 | K94: 0 | L94: 1111
A95: 12 | B95: 10769 | C95: 14 | D95: 10773 | E95: 13 | F95: 10778 | G95: 14 | H95: 10785 | K95: 0 | L95: 1111
A96: 12 | B96: 10888 | C96: 14 | D96: 10893 | E96: 13 | F96: 10898 | G96: 14 | H96: 10903 | K96: 0 | L96: 1111
A97: 12 | B97: 11009 | C97: 14 | D97: 11021 | E97: 13 | F97: 11026 | G97: 14 | H97: 11034 | K97: 0 | L97: 1111
A98: 12 | B98: 11137 | C98: 14 | D98: 11143 | E98: 13 | F98: 11148 | G98: 14 | H98: 11155 | K98: 0 | L98: 1111
A99: 12 | B99: 11257 | C99: 14 | D99: 11261 | E99: 13 | F99: 11265 | G99: 14 | H99: 11270 | K99: 0 | L99: 1111
A100: 12 | B100: 11375 | C100: 14 | D100: 11382 | E100: 13 | F100: 11387 | G100: 14 | H100: 11393 | K100: 0 | L100: 1111
A101: 12 | B101: 11496 | C101: 14 | D101: 11501 | E101: 13 | F101: 11505 | G101: 14 | H101: 11512 | K101: 0 | L101: 1111
A102: 12 | B102: 11612 | C102: 14 | D102: 11617 | E102: 13 | F102: 11622 | G102: 14 | H102: 11629 | K102: 0 | L102: 1111
A103: 12 | B103: 11725 | C103: 14 | D103: 11729 | E103: 13 | F103: 11733 | G103: 14 | H103: 11740 | K103: 0 | L103: 1111
A104: 12 | B104: 11840 | C104: 14 | D104: 11845 | E104: 13 | F104: 11849 | G104: 14 | H104: 11855 | K104: 0 | L104: 1111
A105: 12 | B105: 11950 | C105: 14 | D105: 11954 | E105: 13 | F105: 11959 | G105: 14 | H105: 11964 | K105: 0 | L105: 1111
A106: 12 | B106: 12060 | C106: 14 | D106: 12064 | E106: 13 | F106: 12068 | G106: 14 | H106: 12073 | K106: 0 | L106: 1111
A107: 12 | B107: 12172 | C107: 14 | D107: 12177 | E107: 13 | F107: 12182 | G107: 14 | H107: 12187 | K107: 0 | L107: 1111
A108: 12 | B108: 12287 | C108: 14 | D108: 12291 | E108: 13 | F108: 12295 | G108: 14 | H108: 12303 | K108: 0 | L108: 1111
A109: 12 | B109: 12398 | C109: 14 | D109: 12403 | E109: 13 | F109: 12408 | G109: 14 | H109: 12415 | K109: 0 | L109: 1111
A110: 12 | B110: 12510 | C110: 14 | D110: 12515 | E110: 13 | F110: 12520 | G110: 14 | H110: 12525 | K110: 0 | L110: 1111
A111: 12 | B111: 12622 | C111: 14 | D111: 12628 | E111: 13 | F111: 12634 | G111: 14 | H111: 12649 | K111: 0 | L111: 1111
A112: 12 | B112: 12749 | C112: 14 | D112: 12755 | E112: 13 | F112: 12760 | G112: 14 | H112: 12765 | K112: 0 | L112: 1111
A113: 12 | B113: 12863 | C113: 14 | D113: 12867 | E113: 13 | F113: 12872 | G113: 14 | H113: 12878 | K113: 0 | L113: 1111
A114: 12 | B114: 12976 | C114: 14 | D114: 12982 | E114: 13 | F114: 12987 | G114: 14 | H114: 12992 | K114: 0 | L114: 1111
A115: 12 | B115: 13087 | C115: 14 | D115: 13092 | E115: 13 | F115: 13098 | G115: 14 | H115: 13103 | K115: 0 | L115: 1111
A116: 12 | B116: 13198 | C116: 14 | D116: 13203 | E116: 13 | F116: 13212 | G116: 14 | H116: 13220 | K116: 0 | L116: 1111
A117: 12 | B117: 13316 | C117: 14 | D117: 13322 | E117: 13 | F117: 13326 | G117: 14 | H117: 13333 | K117: 0 | L117: 1111
A118: 12 | B118: 13439 | C118: 14 | D118: 13444 | E118: 13 | F118: 13453 | G118: 14 | H118: 13462 | K118: 0 | L118: 1111
A119: 12 | B119: 13564 | C119: 14 | D119: 13570 | E119: 13 | F119: 13576 | G119: 14 | H119: 13584 | K119: 0 | L119: 1111
A120: 12 | B120: 13686 | C120: 14 | D120: 13694 | E120: 13 | F120: 13699 | G120: 14 | H120: 13704 | K120: 0 | L120: 1111
A121: 12 | B121: 13799 | C121: 14 | D121: 13803 | E121: 13 | F121: 13809 | G121: 14 | H121: 13818 | K121: 0 | L121: 1111
A122: 12 | B122: 13922 | C122: 14 | D122: 13927 | E122: 13 | F122: 13932 | G122: 14 | H122: 13940 | K122: 0 | L122: 1111
A123: 12 | B123: 14032 | C123: 14 | D123: 14037 | E123: 13 | F123: 14041 | G123: 14 | H123: 14050 | K123: 0 | L123: 1111
A124: 12 | B124: 14151 | C124: 14 | D124: 14157 | E124: 13 | F124: 14162 | G124: 14 | H124: 14167 | K124: 0 | L124: 1111
A125: 12 | B125: 14262 | C125: 14 | D125: 14267 | E125: 13 | F125: 14273 | G125: 14 | H125: 14286 | K125: 0 | L125: 1111
A126: 12 | B126: 14391 | C126: 14 | D126: 14396 | E126: 13 | F126: 14400 | G126: 14 | H126: 14405 | K126: 0 | L126: 1111
A127: 12 | B127: 14504 | C127: 14 | D127: 14508 | E127: 13 | F127: 14513 | G127: 14 | H127: 14517 | K127: 0 | L127: 1111
A128: 12 | B128: 14614 | C128: 14 | D128: 14619 | E128: 13 | F128: 14623 | G128: 14 | H128: 14637 | K128: 0 | L128: 1111
A129: 12 | B129: 14726 | C129: 14 | D129: 14731 | E129: 13 | F129: 14735 | G129: 14 | H129: 14743 | K129: 0 | L129: 1111
A130: 12 | B130: 14839 | C130: 14 | D130: 14843 | E130: 13 | F130: 14848 | G130: 14 | H130: 14855 | K130: 0 | L130: 1111
A131: 12 | B131: 14957 | C131: 14 | D131: 14962 | E131: 13 | F131: 14966 | G131: 14 | H131: 14974 | K131: 0 | L131: 1111
A132: 12 | B132: 15068 | C132: 14 | D132: 15074 | E132: 13 | F132: 15079 | G132: 14 | H132: 15088 | K132: 0 | L132: 1111
A133: 12 | B133: 15184 | C133: 14 | D133: 15190 | E133: 13 | F133: 15195 | G133: 14 | H133: 15203 | K133: 0 | L133: 1111
A134: 12 | B134: 15302 | C134: 14 | D134: 15307 | E134: 13 | F134: 15313 | G134: 14 | H134: 15321 | K134: 0 | L134: 1111
A135: 12 | B135: 15412 | C135: 14 | D135: 15418 | E135: 13 | F135: 15423 | G135: 14 | H135: 15429 | K135: 0 | L135: 1111
A136: 12 | B136: 15527 | C136: 14 | D136: 15533 | E136: 13 | F136: 15538 | G136: 14 | H136: 15545 | K136: 0 | L136: 1111
A137: 12 | B137: 15649 | C137: 14 | D137: 15653 | E137: 13 | F137: 15663 | G137: 14 | H137: 15671 | K137: 0 | L137: 1111
A138: 12 | B138: 15766 | C138: 14 | D138: 15772 | E138: 13 | F138: 15777 | G138: 14 | H138: 15789 | K138: 0 | L138: 1111
A139: 12 | B139: 15894 | C139: 14 | D139: 15898 | E139: 13 | F139: 15910 | G139: 14 | H139: 15918 | K139: 0 | L139: 1111
A140: 12 | B140: 16018 | C140: 14 | D140: 16022 | E140: 13 | F140: 16026 | G140: 14 | H140: 16035 | K140: 0 | L140: 1111
A141: 12 | B141: 16133 | C141: 14 | D141: 16139 | E141: 13 | F141: 16144 | G141: 14 | H141: 16149 | K141: 0 | L141: 1111
A142: 12 | B142: 16246 | C142: 14 | D142: 16251 | E142: 13 | F142: 16256 | G142: 14 | H142: 16266 | K142: 0 | L142: 1111
A143: 12 | B143: 16361 | C143: 14 | D143: 16366 | E143: 13 | F143: 16371 | G143: 14 | H143: 16376 | K143: 0 | L143: 1111
A144: 12 | B144: 16471 | C144: 14 | D144: 16476 | E144: 13 | F144: 16481 | G144: 14 | H144: 16485 | K144: 0 | L144: 1111
A145: 12 | B145: 16590 | C145: 14 | D145: 16596 | E145: 13 | F145: 16602 | G145: 14 | H145: 16609 | K145: 0 | L145: 1111
A146: 12 | B146: 16704 | C146: 14 | D146: 16709 | E146: 13 | F146: 16715 | G146: 14 | H146: 16723 | K146: 0 | L146: 1111
A147: 12 | B147: 16821 | C147: 14 | D147: 16826 | E147: 13 | F147: 16831 | G147: 14 | H147: 16838 | K147: 0 | L147: 1111
A148: 12 | B148: 16935 | C148: 14 | D148: 16941 | E148: 13 | F148: 16946 | G148: 14 | H148: 16953 | K148: 0 | L148: 1111
A149: 12 | B149: 17056 | C149: 14 | D149: 17060 | E149: 13 | F149: 17070 | G149: 14 | H149: 17077 | K149: 0 | L149: 1111
A150: 12 | B150: 17171 | C150: 14 | D150: 17176 | E150: 13 | F150: 17181 | G150: 14 | H150: 17187 | K150: 0 | L150: 1111
A151: 12 | B151: 17289 | C151: 14 | D151: 17294 | E151: 13 | F151: 17300 | G151: 14 | H151: 17305 | K151: 0 | L151: 1111
A152: 12 | B152: 17410 | C152: 14 | D152: 17414 | E152: 13 | F152: 17419 | G152: 14 | H152: 17427 | K152: 0 | L152: 1111
A153: 12 | B153: 17528 | C153: 14 | D153: 17533 | E153: 13 | F153: 17538 | G153: 14 | H153: 17543 | K153: 0 | L153: 1111
A154: 12 | B154: 17638 | C154: 14 | D154: 17645 | E154: 13 | F154: 17651 | G154: 14 | H154: 17656 | K154: 0 | L154: 1111
A155: 12 | B155: 17759 | C155: 14 | D155: 17764 | E155: 13 | F155: 17770 | G155: 14 | H155: 17775 | K155: 0 | L155: 1111
A156: 12 | B156: 17872 | C156: 14 | D156: 17878 | E156: 13 | F156: 17883 | G156: 14 | H156: 17888 | K156: 0 | L156: 1111
A157: 12 | B157: 17992 | C157: 14 | D157: 17998 | E157: 13 | F157: 18003 | G157: 14 | H157: 18009 | K157: 0 | L157: 1111
A158: 12 | B158: 18114 | C158: 14 | D158: 18118 | E158: 13 | F158: 18123 | G158: 14 | H158: 18130 | K158: 0 | L158: 1111
A159: 12 | B159: 18226 | C159: 14 | D159: 18231 | E159: 13 | F159: 18237 | G159: 14 | H159: 18242 | K159: 0 | L159: 1111
A160: 12 | B160: 18349 | C160: 14 | D160: 18355 | E160: 13 | F160: 18361 | G160: 14 | H160: 18370 | K160: 0 | L160: 1111
A161: 12 | B161: 18464 | C161: 14 | D161: 18469 | E161: 13 | F161: 18474 | G161: 14 | H161: 18479 | K161: 0 | L161: 1111
A162: 12 | B162: 18580 | C162: 14 | D162: 18585 | E162: 13 | F162: 18590 | G162: 14 | H162: 18597 | K162: 0 | L162: 1111
A163: 12 | B163: 18703 | C163: 14 | D163: 18712 | E163: 13 | F163: 18717 | G163: 14 | H163: 18726 | K163: 0 | L163: 1111
A164: 12 | B164: 18826 | C164: 14 | D164: 18830 | E164: 13 | F164: 18836 | G164: 14 | H164: 18840 | K164: 0 | L164: 1111
A165: 12 | B165: 18944 | C165: 14 | D165: 18949 | E165: 13 | F165: 18959 | G165: 14 | H165: 18967 | K165: 0 | L165: 1111
A166: 12 | B166: 19066 | C166: 14 | D166: 19071 | E166: 13 | F166: 19075 | G166: 14 | H166: 19080 | K166: 0 | L166: 1111
A167: 12 | B167: 19192 | C167: 14 | D167: 19198 | E167: 13 | F167: 19202 | G167: 14 | H167: 19208 | K167: 0 | L167: 1111
A168: 12 | B168: 19307 | C168: 14 | D168: 19312 | E168: 13 | F168: 19316 | G168: 14 | H168: 19328 | K168: 0 | L168: 1111
A169: 12 | B169: 19423 | C169: 14 | D169: 19428 | E169: 13 | F169: 19434 | G169: 14 | H169: 19439 | K169: 0 | L169: 1111
A170: 12 | B170: 19535 | C170: 14 | D170: 19541 | E170: 13 | F170: 19546 | G170: 14 | H170: 19550 | K170: 0 | L170: 1111
A171: 12 | B171: 19652 | C171: 14 | D171: 19657 | E171: 13 | F171: 19666 | G171: 23 | H171: 19685 | K171: 0 | L171: 1112
A172: 12 | B172: 19786 | C172: 14 | D172: 19790 | E172: 13 | F172: 19795 | G172: 14 | H172: 19799 | K172: 0 | L172: 1111
A173: 12 | B173: 19886 | C173: 14 | D173: 19891 | E173: 13 | F173: 19896 | G173: 14 | H173: 19905 | K173: 0 | L173: 1111
A174: 12 | B174: 20001 | C174: 14 | D174: 20006 | E174: 13 | F174: 20011 | G174: 14 | H174: 20018 | K174: 0 | L174: 1111
A175: 12 | B175: 20115 | C175: 14 | D175: 20122 | E175: 13 | F175: 20127 | G175: 14 | H175: 20137 | K175: 0 | L175: 1111
A176: 12 | B176: 20235 | C176: 14 | D176: 20239 | E176: 13 | F176: 20245 | G176: 14 | H176: 20259 | K176: 0 | L176: 1111
A177: 12 | B177: 20357 | C177: 14 | D177: 20363 | E177: 13 | F177: 20367 | G177: 14 | H177: 20372 | K177: 0 | L177: 1111
A178: 12 | B178: 20471 | C178: 14 | D178: 20476 | E178: 13 | F178: 20480 | G178: 14 | H178: 20490 | K178: 0 | L178: 1111
A179: 12 | B179: 20586 | C179: 14 | D179: 20594 | E179: 13 | F179: 20598 | G179: 14 | H179: 20606 | K179: 0 | L179: 1111
A180: 12 | B180: 20717 | C180: 14 | D180: 20723 | E180: 13 | F180: 20731 | G180: 14 | H180: 20740 | K180: 0 | L180: 1111
A181: 12 | B181: 20848 | C181: 14 | D181: 20853 | E181: 13 | F181: 20858 | G181: 14 | H181: 20864 | K181: 0 | L181: 1111
A182: 12 | B182: 20952 | C182: 14 | D182: 20957 | E182: 13 | F182: 20964 | G182: 14 | H182: 20982 | K182: 0 | L182: 1111
A183: 12 | B183: 21082 | C183: 14 | D183: 21087 | E183: 13 | F183: 21092 | G183: 14 | H183: 21099 | K183: 0 | L183: 1111
A184: 12 | B184: 21197 | C184: 14 | D184: 21208 | E184: 13 | F184: 21219 | G184: 14 | H184: 21242 | K184: 0 | L184: 1111
A185: 12 | B185: 21346 | C185: 14 | D185: 21351 | E185: 13 | F185: 21357 | G185: 14 | H185: 21363 | K185: 0 | L185: 1111
A186: 12 | B186: 21451 | C186: 14 | D186: 21456 | E186: 13 | F186: 21462 | G186: 14 | H186: 21467 | K186: 0 | L186: 1111
A187: 12 | B187: 21564 | C187: 14 | D187: 21568 | E187: 13 | F187: 21574 | G187: 14 | H187: 21605 | K187: 0 | L187: 1111
A188: 12 | B188: 21701 | C188: 14 | D188: 21706 | E188: 13 | F188: 21715 | G188: 14 | H188: 21723 | K188: 0 | L188: 1111
A189: 12 | B189: 21823 | C189: 14 | D189: 21828 | E189: 13 | F189: 21834 | G189: 14 | H189: 21842 | K189: 0 | L189: 1111
A190: 12 | B190: 21944 | C190: 14 | D190: 21949 | E190: 13 | F190: 21954 | G190: 14 | H190: 21962 | K190: 0 | L190: 1111
A191: 12 | B191: 22062 | C191: 14 | D191: 22068 | E191: 13 | F191: 22072 | G191: 14 | H191: 22081 | K191: 0 | L191: 1111
A192: 12 | B192: 22177 | C192: 14 | D192: 22186 | E192: 13 | F192: 22195 | G192: 14 | H192: 22213 | K192: 0 | L192: 1111
A193: 12 | B193: 22318 | C193: 14 | D193: 22323 | E193: 13 | F193: 22328 | G193: 14 | H193: 22337 | K193: 0 | L193: 1111
A194: 12 | B194: 22436 | C194: 14 | D194: 22441 | E194: 13 | F194: 22446 | G194: 14 | H194: 22453 | K194: 0 | L194: 1111
A195: 12 | B195: 22549 | C195: 14 | D195: 22555 | E195: 13 | F195: 22559 | G195: 14 | H195: 22567 | K195: 0 | L195: 1111
A196: 12 | B196: 22661 | C196: 14 | D196: 22667 | E196: 13 | F196: 22672 | G196: 14 | H196: 22677 | K196: 0 | L196: 1111
A197: 12 | B197: 22771 | C197: 14 | D197: 22775 | E197: 13 | F197: 22780 | G197: 14 | H197: 22787 | K197: 0 | L197: 1111
A198: 12 | B198: 22893 | C198: 14 | D198: 22897 | E198: 13 | F198: 22903 | G198: 14 | H198: 22917 | K198: 0 | L198: 1111
A199: 12 | B199: 23016 | C199: 14 | D199: 23021 | E199: 13 | F199: 23025 | G199: 14 | H199: 23030 | K199: 0 | L199: 1111
A200: 12 | B200: 23129 | C200: 14 | D200: 23134 | E200: 13 | F200: 23139 | G200: 14 | H200: 23147 | K200: 0 | L200: 1111
... 7 more rows

Sheet !L905A40.056
A1: Report for:!L905A40.056
A2: Date: | B2: <date>
A3: Hen: | B3: <hen> | F3: Correct Sequence | G3: =Start!J2 -> 2212 | P3: Total Sequences in Data | Q3: =4994-COUNTBLANK(L7:L5000) -> 205 | V3: Total Sequences in Block Data | W3: =COUNTA(L7:L40) -> 34 | AA3: Total Sequences in Block Data | AB3: =COUNTA(L41:L74) -> 34 | AF3: Total Sequences in Block Data | AG3: =COUNTA(L75:L109) -> 35 | AK3: Total Sequences in Block Data | AL3: =COUNTA(L110:L143) -> 34 | AP3: Total Sequences in Block Data | AQ3: =COUNTA(L144:L177) -> 34 | AU3: Total Sequences in Block Data | AV3: =COUNTA(L178:L211) -> 34
P4: Total Sequences in Summary | Q4: =SUM(O7:O22) -> 205 | V4: Total Sequences in Block Summary | W4: =SUM(U7:U22) -> 34 | AA4: Total Sequences in Block Summary | AB4: =SUM(Z7:Z22) -> 34 | AF4: Total Sequences in Block Summary | AG4: =SUM(AE7:AE22) -> 35 | AK4: Total Sequences in Block Summary | AL4: =SUM(AJ7:AJ22) -> 34 | AP4: Total Sequences in Block Summary | AQ4: =SUM(AO7:AO22) -> 34 | AU4: Total Sequences in Block Summary | AV4: =SUM(AT7:AT22) -> 34
T5: Block 1 | Y5: Block 2 | AD5: Block 3 | AI5: Block 4 | AN5: Block 5 | AS5: Block 6
A6: Sequence Component 1 | B6: Time 1 | C6: Sequence Component 2 | D6: Time 2 | E6: Sequence Component 3 | F6: Time 3 | G6: Sequence Component 4 | H6: Time 4 | I6: Sequence Component 5 | J6: Time 5 | K6: Correct? 0=No 1=Yes | L6: Sequence | N6: Frequency | P6: Relative Frequency | Q6: Variability | T6: Frequency | V6: Relative Frequency | W6: Variability | Y6: Frequency | AA6: Relative Frequency | AB6: Variability | AD6: Frequency | AF6: Relative Frequency | AG6: Variability | AI6: Frequency | AK6: Relative Frequency | AL6: Variability | AN6: Frequency | AP6: Relative Frequency | AQ6: Variability | AS6: Frequency | AU6: Relative Frequency | AV6: Variability
A7: 12 | B7: 15 | C7: 14 | D7: 24 | E7: 13 | F7: 34 | G7: 23 | H7: 51 | K7: 0 | L7: 1112 | N7: 1111 | O7: =COUNTIF($L$7:$L$500,N7) -> 202 | P7: =O7/$Q$4 -> 0.9853658537 | Q7: =IF(P7=0,0,(P7*((LOG(P7))/LOG(2)))) -> -0.0209573687 | T7: =N7 -> 1111 | U7: =COUNTIF(L7:L40,T7) -> 32 | V7: =U7/(W4-U20) -> 0.9411764706 | W7: =IF(V7=0,0,(V7*((LOG(V7))/LOG(2)))) -> -0.08231796824 | Y7: =N7 -> 1111 | Z7: =COUNTIF(L41:L74,Y7) -> 34 | AA7: =Z7/(AB4-Z20) -> 1 | AB7: =IF(AA7=0,0,(AA7*((LOG(AA7))/LOG(2)))) -> 0 | AD7: =N7 -> 1111 | AE7: =COUNTIF(L75:L109,AD7) -> 35 | AF7: =AE7/(AG4-AE20) -> 1 | AG7: =IF(AF7=0,0,(AF7*((LOG(AF7))/LOG(2)))) -> 0 | AI7: =N7 -> 1111 | AJ7: =COUNTIF(L110:L143,AI7) -> 34 | AK7: =AJ7/(AL4-AJ20) -> 1 | AL7: =IF(AK7=0,0,(AK7*((LOG(AK7))/LOG(2)))) -> 0 | AN7: =N7 -> 1111 | AO7: =COUNTIF(L144:L177,AN7) -> 34 | AP7: =AO7/(AQ4-AO20) -> 1 | AQ7: =IF(AP7=0,0,(AP7*((LOG(AP7))/LOG(2)))) -> 0 | AS7: =N7 -> 1111 | AT7: =COUNTIF(L178:L211,AS7) -> 33 | AU7: =AT7/(AV4-AT20) -> 0.9705882353 | AV7: =IF(AU7=0,0,(AU7*((LOG(AU7))/LOG(2)))) -> -0.04180199478
A8: 12 | B8: 154 | C8: 14 | D8: 160 | E8: 13 | F8: 165 | G8: 14 | H8: 171 | K8: 0 | L8: 1111 | N8: 1112 | O8: =COUNTIF($L$7:$L$500,N8) -> 3 | P8: =O8/$Q$4 -> 0.01463414634 | Q8: =IF(P8=0,0,(P8*((LOG(P8))/LOG(2)))) -> -0.08918806242 | T8: =N8 -> 1112 | U8: =COUNTIF(L7:L40,T8) -> 2 | V8: =U8/(W4-U20) -> 0.05882352941 | W8: =IF(V8=0,0,(V8*((LOG(V8))/LOG(2)))) -> -0.2404389907 | Y8: =N8 -> 1112 | Z8: =COUNTIF(L41:L74,Y8) -> 0 | AA8: =Z8/(AB4-Z20) -> 0 | AB8: =IF(AA8=0,0,(AA8*((LOG(AA8))/LOG(2)))) -> 0 | AD8: =N8 -> 1112 | AE8: =COUNTIF(L75:L109,AD8) -> 0 | AF8: =AE8/(AG4-AE20) -> 0 | AG8: =IF(AF8=0,0,(AF8*((LOG(AF8))/LOG(2)))) -> 0 | AI8: =N8 -> 1112 | AJ8: =COUNTIF(L110:L143,AI8) -> 0 | AK8: =AJ8/(AL4-AJ20) -> 0 | AL8: =IF(AK8=0,0,(AK8*((LOG(AK8))/LOG(2)))) -> 0 | AN8: =N8 -> 1112 | AO8: =COUNTIF(L144:L177,AN8) -> 0 | AP8: =AO8/(AQ4-AO20) -> 0 | AQ8: =IF(AP8=0,0,(AP8*((LOG(AP8))/LOG(2)))) -> 0 | AS8: =N8 -> 1112 | AT8: =COUNTIF(L178:L211,AS8) -> 1 | AU8: =AT8/(AV4-AT20) -> 0.02941176471 | AV8: =IF(AU8=0,0,(AU8*((LOG(AU8))/LOG(2)))) -> -0.14963126
A9: 12 | B9: 273 | C9: 14 | D9: 278 | E9: 13 | F9: 283 | G9: 14 | H9: 290 | K9: 0 | L9: 1111 | N9: 1121 | O9: =COUNTIF($L$7:$L$500,N9) -> 0 | P9: =O9/$Q$4 -> 0 | Q9: =IF(P9=0,0,(P9*((LOG(P9))/LOG(2)))) -> 0 | T9: =N9 -> 1121 | U9: =COUNTIF(L7:L40,T9) -> 0 | V9: =U9/(W4-U20) -> 0 | W9: =IF(V9=0,0,(V9*((LOG(V9))/LOG(2)))) -> 0 | Y9: =N9 -> 1121 | Z9: =COUNTIF(L41:L74,Y9) -> 0 | AA9: =Z9/(AB4-Z20) -> 0 | AB9: =IF(AA9=0,0,(AA9*((LOG(AA9))/LOG(2)))) -> 0 | AD9: =N9 -> 1121 | AE9: =COUNTIF(L75:L109,AD9) -> 0 | AF9: =AE9/(AG4-AE20) -> 0 | AG9: =IF(AF9=0,0,(AF9*((LOG(AF9))/LOG(2)))) -> 0 | AI9: =N9 -> 1121 | AJ9: =COUNTIF(L110:L143,AI9) -> 0 | AK9: =AJ9/(AL4-AJ20) -> 0 | AL9: =IF(AK9=0,0,(AK9*((LOG(AK9))/LOG(2)))) -> 0 | AN9: =N9 -> 1121 | AO9: =COUNTIF(L144:L177,AN9) -> 0 | AP9: =AO9/(AQ4-AO20) -> 0 | AQ9: =IF(AP9=0,0,(AP9*((LOG(AP9))/LOG(2)))) -> 0 | AS9: =N9 -> 1121 | AT9: =COUNTIF(L178:L211,AS9) -> 0 | AU9: =AT9/(AV4-AT20) -> 0 | AV9: =IF(AU9=0,0,(AU9*((LOG(AU9))/LOG(2)))) -> 0
A10: 12 | B10: 388 | C10: 14 | D10: 393 | E10: 13 | F10: 398 | G10: 14 | H10: 403 | K10: 0 | L10: 1111 | N10: 1122 | O10: =COUNTIF($L$7:$L$500,N10) -> 0 | P10: =O10/$Q$4 -> 0 | Q10: =IF(P10=0,0,(P10*((LOG(P10))/LOG(2)))) -> 0 | T10: =N10 -> 1122 | U10: =COUNTIF(L7:L40,T10) -> 0 | V10: =U10/(W4-U20) -> 0 | W10: =IF(V10=0,0,(V10*((LOG(V10))/LOG(2)))) -> 0 | Y10: =N10 -> 1122 | Z10: =COUNTIF(L41:L74,Y10) -> 0 | AA10: =Z10/(AB4-Z20) -> 0 | AB10: =IF(AA10=0,0,(AA10*((LOG(AA10))/LOG(2)))) -> 0 | AD10: =N10 -> 1122 | AE10: =COUNTIF(L75:L109,AD10) -> 0 | AF10: =AE10/(AG4-AE20) -> 0 | AG10: =IF(AF10=0,0,(AF10*((LOG(AF10))/LOG(2)))) -> 0 | AI10: =N10 -> 1122 | AJ10: =COUNTIF(L110:L143,AI10) -> 0 | AK10: =AJ10/(AL4-AJ20) -> 0 | AL10: =IF(AK10=0,0,(AK10*((LOG(AK10))/LOG(2)))) -> 0 | AN10: =N10 -> 1122 | AO10: =COUNTIF(L144:L177,AN10) -> 0 | AP10: =AO10/(AQ4-AO20) -> 0 | AQ10: =IF(AP10=0,0,(AP10*((LOG(AP10))/LOG(2)))) -> 0 | AS10: =N10 -> 1122 | AT10: =COUNTIF(L178:L211,AS10) -> 0 | AU10: =AT10/(AV4-AT20) -> 0 | AV10: =IF(AU10=0,0,(AU10*((LOG(AU10))/LOG(2)))) -> 0
A11: 12 | B11: 501 | C11: 14 | D11: 507 | E11: 13 | F11: 512 | G11: 14 | H11: 522 | K11: 0 | L11: 1111 | N11: 1211 | O11: =COUNTIF($L$7:$L$500,N11) -> 0 | P11: =O11/$Q$4 -> 0 | Q11: =IF(P11=0,0,(P11*((LOG(P11))/LOG(2)))) -> 0 | T11: =N11 -> 1211 | U11: =COUNTIF(L7:L40,T11) -> 0 | V11: =U11/(W4-U20) -> 0 | W11: =IF(V11=0,0,(V11*((LOG(V11))/LOG(2)))) -> 0 | Y11: =N11 -> 1211 | Z11: =COUNTIF(L41:L74,Y11) -> 0 | AA11: =Z11/(AB4-Z20) -> 0 | AB11: =IF(AA11=0,0,(AA11*((LOG(AA11))/LOG(2)))) -> 0 | AD11: =N11 -> 1211 | AE11: =COUNTIF(L75:L109,AD11) -> 0 | AF11: =AE11/(AG4-AE20) -> 0 | AG11: =IF(AF11=0,0,(AF11*((LOG(AF11))/LOG(2)))) -> 0 | AI11: =N11 -> 1211 | AJ11: =COUNTIF(L110:L143,AI11) -> 0 | AK11: =AJ11/(AL4-AJ20) -> 0 | AL11: =IF(AK11=0,0,(AK11*((LOG(AK11))/LOG(2)))) -> 0 | AN11: =N11 -> 1211 | AO11: =COUNTIF(L144:L177,AN11) -> 0 | AP11: =AO11/(AQ4-AO20) -> 0 | AQ11: =IF(AP11=0,0,(AP11*((LOG(AP11))/LOG(2)))) -> 0 | AS11: =N11 -> 1211 | AT11: =COUNTIF(L178:L211,AS11) -> 0 | AU11: =AT11/(AV4-AT20) -> 0 | AV11: =IF(AU11=0,0,(AU11*((LOG(AU11))/LOG(2)))) -> 0
A12: 12 | B12: 624 | C12: 14 | D12: 629 | E12: 13 | F12: 635 | G12: 14 | H12: 641 | K12: 0 | L12: 1111 | N12: 1212 | O12: =COUNTIF($L$7:$L$500,N12) -> 0 | P12: =O12/$Q$4 -> 0 | Q12: =IF(P12=0,0,(P12*((LOG(P12))/LOG(2)))) -> 0 | T12: =N12 -> 1212 | U12: =COUNTIF(L7:L40,T12) -> 0 | V12: =U12/(W4-U20) -> 0 | W12: =IF(V12=0,0,(V12*((LOG(V12))/LOG(2)))) -> 0 | Y12: =N12 -> 1212 | Z12: =COUNTIF(L41:L74,Y12) -> 0 | AA12: =Z12/(AB4-Z20) -> 0 | AB12: =IF(AA12=0,0,(AA12*((LOG(AA12))/LOG(2)))) -> 0 | AD12: =N12 -> 1212 | AE12: =COUNTIF(L75:L109,AD12) -> 0 | AF12: =AE12/(AG4-AE20) -> 0 | AG12: =IF(AF12=0,0,(AF12*((LOG(AF12))/LOG(2)))) -> 0 | AI12: =N12 -> 1212 | AJ12: =COUNTIF(L110:L143,AI12) -> 0 | AK12: =AJ12/(AL4-AJ20) -> 0 | AL12: =IF(AK12=0,0,(AK12*((LOG(AK12))/LOG(2)))) -> 0 | AN12: =N12 -> 1212 | AO12: =COUNTIF(L144:L177,AN12) -> 0 | AP12: =AO12/(AQ4-AO20) -> 0 | AQ12: =IF(AP12=0,0,(AP12*((LOG(AP12))/LOG(2)))) -> 0 | AS12: =N12 -> 1212 | AT12: =COUNTIF(L178:L211,AS12) -> 0 | AU12: =AT12/(AV4-AT20) -> 0 | AV12: =IF(AU12=0,0,(AU12*((LOG(AU12))/LOG(2)))) -> 0
A13: 12 | B13: 734 | C13: 14 | D13: 741 | E13: 13 | F13: 746 | G13: 14 | H13: 760 | K13: 0 | L13: 1111 | N13: 1221 | O13: =COUNTIF($L$7:$L$500,N13) -> 0 | P13: =O13/$Q$4 -> 0 | Q13: =IF(P13=0,0,(P13*((LOG(P13))/LOG(2)))) -> 0 | T13: =N13 -> 1221 | U13: =COUNTIF(L7:L40,T13) -> 0 | V13: =U13/(W4-U20) -> 0 | W13: =IF(V13=0,0,(V13*((LOG(V13))/LOG(2)))) -> 0 | Y13: =N13 -> 1221 | Z13: =COUNTIF(L41:L74,Y13) -> 0 | AA13: =Z13/(AB4-Z20) -> 0 | AB13: =IF(AA13=0,0,(AA13*((LOG(AA13))/LOG(2)))) -> 0 | AD13: =N13 -> 1221 | AE13: =COUNTIF(L75:L109,AD13) -> 0 | AF13: =AE13/(AG4-AE20) -> 0 | AG13: =IF(AF13=0,0,(AF13*((LOG(AF13))/LOG(2)))) -> 0 | AI13: =N13 -> 1221 | AJ13: =COUNTIF(L110:L143,AI13) -> 0 | AK13: =AJ13/(AL4-AJ20) -> 0 | AL13: =IF(AK13=0,0,(AK13*((LOG(AK13))/LOG(2)))) -> 0 | AN13: =N13 -> 1221 | AO13: =COUNTIF(L144:L177,AN13) -> 0 | AP13: =AO13/(AQ4-AO20) -> 0 | AQ13: =IF(AP13=0,0,(AP13*((LOG(AP13))/LOG(2)))) -> 0 | AS13: =N13 -> 1221 | AT13: =COUNTIF(L178:L211,AS13) -> 0 | AU13: =AT13/(AV4-AT20) -> 0 | AV13: =IF(AU13=0,0,(AU13*((LOG(AU13))/LOG(2)))) -> 0
A14: 12 | B14: 852 | C14: 14 | D14: 857 | E14: 13 | F14: 863 | G14: 23 | H14: 901 | K14: 0 | L14: 1112 | N14: 1222 | O14: =COUNTIF($L$7:$L$500,N14) -> 0 | P14: =O14/$Q$4 -> 0 | Q14: =IF(P14=0,0,(P14*((LOG(P14))/LOG(2)))) -> 0 | T14: =N14 -> 1222 | U14: =COUNTIF(L7:L40,T14) -> 0 | V14: =U14/(W4-U20) -> 0 | W14: =IF(V14=0,0,(V14*((LOG(V14))/LOG(2)))) -> 0 | Y14: =N14 -> 1222 | Z14: =COUNTIF(L41:L74,Y14) -> 0 | AA14: =Z14/(AB4-Z20) -> 0 | AB14: =IF(AA14=0,0,(AA14*((LOG(AA14))/LOG(2)))) -> 0 | AD14: =N14 -> 1222 | AE14: =COUNTIF(L75:L109,AD14) -> 0 | AF14: =AE14/(AG4-AE20) -> 0 | AG14: =IF(AF14=0,0,(AF14*((LOG(AF14))/LOG(2)))) -> 0 | AI14: =N14 -> 1222 | AJ14: =COUNTIF(L110:L143,AI14) -> 0 | AK14: =AJ14/(AL4-AJ20) -> 0 | AL14: =IF(AK14=0,0,(AK14*((LOG(AK14))/LOG(2)))) -> 0 | AN14: =N14 -> 1222 | AO14: =COUNTIF(L144:L177,AN14) -> 0 | AP14: =AO14/(AQ4-AO20) -> 0 | AQ14: =IF(AP14=0,0,(AP14*((LOG(AP14))/LOG(2)))) -> 0 | AS14: =N14 -> 1222 | AT14: =COUNTIF(L178:L211,AS14) -> 0 | AU14: =AT14/(AV4-AT20) -> 0 | AV14: =IF(AU14=0,0,(AU14*((LOG(AU14))/LOG(2)))) -> 0
A15: 12 | B15: 998 | C15: 14 | D15: 1003 | E15: 13 | F15: 1008 | G15: 14 | H15: 1017 | K15: 0 | L15: 1111 | N15: 2111 | O15: =COUNTIF($L$7:$L$500,N15) -> 0 | P15: =O15/$Q$4 -> 0 | Q15: =IF(P15=0,0,(P15*((LOG(P15))/LOG(2)))) -> 0 | T15: =N15 -> 2111 | U15: =COUNTIF(L7:L40,T15) -> 0 | V15: =U15/(W4-U20) -> 0 | W15: =IF(V15=0,0,(V15*((LOG(V15))/LOG(2)))) -> 0 | Y15: =N15 -> 2111 | Z15: =COUNTIF(L41:L74,Y15) -> 0 | AA15: =Z15/(AB4-Z20) -> 0 | AB15: =IF(AA15=0,0,(AA15*((LOG(AA15))/LOG(2)))) -> 0 | AD15: =N15 -> 2111 | AE15: =COUNTIF(L75:L109,AD15) -> 0 | AF15: =AE15/(AG4-AE20) -> 0 | AG15: =IF(AF15=0,0,(AF15*((LOG(AF15))/LOG(2)))) -> 0 | AI15: =N15 -> 2111 | AJ15: =COUNTIF(L110:L143,AI15) -> 0 | AK15: =AJ15/(AL4-AJ20) -> 0 | AL15: =IF(AK15=0,0,(AK15*((LOG(AK15))/LOG(2)))) -> 0 | AN15: =N15 -> 2111 | AO15: =COUNTIF(L144:L177,AN15) -> 0 | AP15: =AO15/(AQ4-AO20) -> 0 | AQ15: =IF(AP15=0,0,(AP15*((LOG(AP15))/LOG(2)))) -> 0 | AS15: =N15 -> 2111 | AT15: =COUNTIF(L178:L211,AS15) -> 0 | AU15: =AT15/(AV4-AT20) -> 0 | AV15: =IF(AU15=0,0,(AU15*((LOG(AU15))/LOG(2)))) -> 0
A16: 12 | B16: 1113 | C16: 14 | D16: 1118 | E16: 13 | F16: 1124 | G16: 14 | H16: 1130 | K16: 0 | L16: 1111 | N16: 2112 | O16: =COUNTIF($L$7:$L$500,N16) -> 0 | P16: =O16/$Q$4 -> 0 | Q16: =IF(P16=0,0,(P16*((LOG(P16))/LOG(2)))) -> 0 | T16: =N16 -> 2112 | U16: =COUNTIF(L7:L40,T16) -> 0 | V16: =U16/(W4-U20) -> 0 | W16: =IF(V16=0,0,(V16*((LOG(V16))/LOG(2)))) -> 0 | Y16: =N16 -> 2112 | Z16: =COUNTIF(L41:L74,Y16) -> 0 | AA16: =Z16/(AB4-Z20) -> 0 | AB16: =IF(AA16=0,0,(AA16*((LOG(AA16))/LOG(2)))) -> 0 | AD16: =N16 -> 2112 | AE16: =COUNTIF(L75:L109,AD16) -> 0 | AF16: =AE16/(AG4-AE20) -> 0 | AG16: =IF(AF16=0,0,(AF16*((LOG(AF16))/LOG(2)))) -> 0 | AI16: =N16 -> 2112 | AJ16: =COUNTIF(L110:L143,AI16) -> 0 | AK16: =AJ16/(AL4-AJ20) -> 0 | AL16: =IF(AK16=0,0,(AK16*((LOG(AK16))/LOG(2)))) -> 0 | AN16: =N16 -> 2112 | AO16: =COUNTIF(L144:L177,AN16) -> 0 | AP16: =AO16/(AQ4-AO20) -> 0 | AQ16: =IF(AP16=0,0,(AP16*((LOG(AP16))/LOG(2)))) -> 0 | AS16: =N16 -> 2112 | AT16: =COUNTIF(L178:L211,AS16) -> 0 | AU16: =AT16/(AV4-AT20) -> 0 | AV16: =IF(AU16=0,0,(AU16*((LOG(AU16))/LOG(2)))) -> 0
A17: 12 | B17: 1232 | C17: 14 | D17: 1237 | E17: 13 | F17: 1246 | G17: 14 | H17: 1258 | K17: 0 | L17: 1111 | N17: 2121 | O17: =COUNTIF($L$7:$L$500,N17) -> 0 | P17: =O17/$Q$4 -> 0 | Q17: =IF(P17=0,0,(P17*((LOG(P17))/LOG(2)))) -> 0 | T17: =N17 -> 2121 | U17: =COUNTIF(L7:L40,T17) -> 0 | V17: =U17/(W4-U20) -> 0 | W17: =IF(V17=0,0,(V17*((LOG(V17))/LOG(2)))) -> 0 | Y17: =N17 -> 2121 | Z17: =COUNTIF(L41:L74,Y17) -> 0 | AA17: =Z17/(AB4-Z20) -> 0 | AB17: =IF(AA17=0,0,(AA17*((LOG(AA17))/LOG(2)))) -> 0 | AD17: =N17 -> 2121 | AE17: =COUNTIF(L75:L109,AD17) -> 0 | AF17: =AE17/(AG4-AE20) -> 0 | AG17: =IF(AF17=0,0,(AF17*((LOG(AF17))/LOG(2)))) -> 0 | AI17: =N17 -> 2121 | AJ17: =COUNTIF(L110:L143,AI17) -> 0 | AK17: =AJ17/(AL4-AJ20) -> 0 | AL17: =IF(AK17=0,0,(AK17*((LOG(AK17))/LOG(2)))) -> 0 | AN17: =N17 -> 2121 | AO17: =COUNTIF(L144:L177,AN17) -> 0 | AP17: =AO17/(AQ4-AO20) -> 0 | AQ17: =IF(AP17=0,0,(AP17*((LOG(AP17))/LOG(2)))) -> 0 | AS17: =N17 -> 2121 | AT17: =COUNTIF(L178:L211,AS17) -> 0 | AU17: =AT17/(AV4-AT20) -> 0 | AV17: =IF(AU17=0,0,(AU17*((LOG(AU17))/LOG(2)))) -> 0
A18: 12 | B18: 1360 | C18: 14 | D18: 1365 | E18: 13 | F18: 1371 | G18: 14 | H18: 1378 | K18: 0 | L18: 1111 | N18: 2122 | O18: =COUNTIF($L$7:$L$500,N18) -> 0 | P18: =O18/$Q$4 -> 0 | Q18: =IF(P18=0,0,(P18*((LOG(P18))/LOG(2)))) -> 0 | T18: =N18 -> 2122 | U18: =COUNTIF(L7:L40,T18) -> 0 | V18: =U18/(W4-U20) -> 0 | W18: =IF(V18=0,0,(V18*((LOG(V18))/LOG(2)))) -> 0 | Y18: =N18 -> 2122 | Z18: =COUNTIF(L41:L74,Y18) -> 0 | AA18: =Z18/(AB4-Z20) -> 0 | AB18: =IF(AA18=0,0,(AA18*((LOG(AA18))/LOG(2)))) -> 0 | AD18: =N18 -> 2122 | AE18: =COUNTIF(L75:L109,AD18) -> 0 | AF18: =AE18/(AG4-AE20) -> 0 | AG18: =IF(AF18=0,0,(AF18*((LOG(AF18))/LOG(2)))) -> 0 | AI18: =N18 -> 2122 | AJ18: =COUNTIF(L110:L143,AI18) -> 0 | AK18: =AJ18/(AL4-AJ20) -> 0 | AL18: =IF(AK18=0,0,(AK18*((LOG(AK18))/LOG(2)))) -> 0 | AN18: =N18 -> 2122 | AO18: =COUNTIF(L144:L177,AN18) -> 0 | AP18: =AO18/(AQ4-AO20) -> 0 | AQ18: =IF(AP18=0,0,(AP18*((LOG(AP18))/LOG(2)))) -> 0 | AS18: =N18 -> 2122 | AT18: =COUNTIF(L178:L211,AS18) -> 0 | AU18: =AT18/(AV4-AT20) -> 0 | AV18: =IF(AU18=0,0,(AU18*((LOG(AU18))/LOG(2)))) -> 0
A19: 12 | B19: 1477 | C19: 14 | D19: 1482 | E19: 13 | F19: 1487 | G19: 14 | H19: 1493 | K19: 0 | L19: 1111 | N19: 2211 | O19: =COUNTIF($L$7:$L$500,N19) -> 0 | P19: =O19/$Q$4 -> 0 | Q19: =IF(P19=0,0,(P19*((LOG(P19))/LOG(2)))) -> 0 | T19: =N19 -> 2211 | U19: =COUNTIF(L7:L40,T19) -> 0 | V19: =U19/(W4-U20) -> 0 | W19: =IF(V19=0,0,(V19*((LOG(V19))/LOG(2)))) -> 0 | Y19: =N19 -> 2211 | Z19: =COUNTIF(L41:L74,Y19) -> 0 | AA19: =Z19/(AB4-Z20) -> 0 | AB19: =IF(AA19=0,0,(AA19*((LOG(AA19))/LOG(2)))) -> 0 | AD19: =N19 -> 2211 | AE19: =COUNTIF(L75:L109,AD19) -> 0 | AF19: =AE19/(AG4-AE20) -> 0 | AG19: =IF(AF19=0,0,(AF19*((LOG(AF19))/LOG(2)))) -> 0 | AI19: =N19 -> 2211 | AJ19: =COUNTIF(L110:L143,AI19) -> 0 | AK19: =AJ19/(AL4-AJ20) -> 0 | AL19: =IF(AK19=0,0,(AK19*((LOG(AK19))/LOG(2)))) -> 0 | AN19: =N19 -> 2211 | AO19: =COUNTIF(L144:L177,AN19) -> 0 | AP19: =AO19/(AQ4-AO20) -> 0 | AQ19: =IF(AP19=0,0,(AP19*((LOG(AP19))/LOG(2)))) -> 0 | AS19: =N19 -> 2211 | AT19: =COUNTIF(L178:L211,AS19) -> 0 | AU19: =AT19/(AV4-AT20) -> 0 | AV19: =IF(AU19=0,0,(AU19*((LOG(AU19))/LOG(2)))) -> 0
A20: 12 | B20: 1588 | C20: 14 | D20: 1593 | E20: 13 | F20: 1598 | G20: 14 | H20: 1606 | K20: 0 | L20: 1111 | N20: 2212 | O20: =COUNTIF($L$7:$L$500,N20) -> 0 | P20: =O20/$Q$4 -> 0 | Q20: =IF(P20=0,0,(P20*((LOG(P20))/LOG(2)))) -> 0 | T20: =N20 -> 2212 | U20: =COUNTIF(L7:L40,T20) -> 0 | Y20: =N20 -> 2212 | Z20: =COUNTIF(L41:L74,Y20) -> 0 | AD20: =N20 -> 2212 | AE20: =COUNTIF(L75:L109,AD20) -> 0 | AI20: =N20 -> 2212 | AJ20: =COUNTIF(L110:L143,AI20) -> 0 | AN20: =N20 -> 2212 | AO20: =COUNTIF(L144:L177,AN20) -> 0 | AS20: =N20 -> 2212 | AT20: =COUNTIF(L178:L211,AS20) -> 0
A21: 12 | B21: 1708 | C21: 14 | D21: 1713 | E21: 13 | F21: 1722 | G21: 14 | H21: 1734 | K21: 0 | L21: 1111 | N21: 2221 | O21: =COUNTIF($L$7:$L$500,N21) -> 0 | P21: =O21/$Q$4 -> 0 | Q21: =IF(P21=0,0,(P21*((LOG(P21))/LOG(2)))) -> 0 | T21: =N21 -> 2221 | U21: =COUNTIF(L7:L40,T21) -> 0 | V21: =U21/(W4-U20) -> 0 | W21: =IF(V21=0,0,(V21*((LOG(V21))/LOG(2)))) -> 0 | Y21: =N21 -> 2221 | Z21: =COUNTIF(L41:L74,Y21) -> 0 | AA21: =Z21/(AB4-Z20) -> 0 | AB21: =IF(AA21=0,0,(AA21*((LOG(AA21))/LOG(2)))) -> 0 | AD21: =N21 -> 2221 | AE21: =COUNTIF(L75:L109,AD21) -> 0 | AF21: =AE21/(AG4-AE20) -> 0 | AG21: =IF(AF21=0,0,(AF21*((LOG(AF21))/LOG(2)))) -> 0 | AI21: =N21 -> 2221 | AJ21: =COUNTIF(L110:L143,AI21) -> 0 | AK21: =AJ21/(AL4-AJ20) -> 0 | AL21: =IF(AK21=0,0,(AK21*((LOG(AK21))/LOG(2)))) -> 0 | AN21: =N21 -> 2221 | AO21: =COUNTIF(L144:L177,AN21) -> 0 | AP21: =AO21/(AQ4-AO20) -> 0 | AQ21: =IF(AP21=0,0,(AP21*((LOG(AP21))/LOG(2)))) -> 0 | AS21: =N21 -> 2221 | AT21: =COUNTIF(L178:L211,AS21) -> 0 | AU21: =AT21/(AV4-AT20) -> 0 | AV21: =IF(AU21=0,0,(AU21*((LOG(AU21))/LOG(2)))) -> 0
A22: 12 | B22: 1825 | C22: 14 | D22: 1830 | E22: 13 | F22: 1835 | G22: 14 | H22: 1852 | K22: 0 | L22: 1111 | N22: 2222 | O22: =COUNTIF($L$7:$L$500,N22) -> 0 | P22: =O22/$Q$4 -> 0 | Q22: =IF(P22=0,0,(P22*((LOG(P22))/LOG(2)))) -> 0 | T22: =N22 -> 2222 | U22: =COUNTIF(L7:L40,T22) -> 0 | V22: =U22/(W4-U20) -> 0 | W22: =IF(V22=0,0,(V22*((LOG(V22))/LOG(2)))) -> 0 | Y22: =N22 -> 2222 | Z22: =COUNTIF(L41:L74,Y22) -> 0 | AA22: =Z22/(AB4-Z20) -> 0 | AB22: =IF(AA22=0,0,(AA22*((LOG(AA22))/LOG(2)))) -> 0 | AD22: =N22 -> 2222 | AE22: =COUNTIF(L75:L109,AD22) -> 0 | AF22: =AE22/(AG4-AE20) -> 0 | AG22: =IF(AF22=0,0,(AF22*((LOG(AF22))/LOG(2)))) -> 0 | AI22: =N22 -> 2222 | AJ22: =COUNTIF(L110:L143,AI22) -> 0 | AK22: =AJ22/(AL4-AJ20) -> 0 | AL22: =IF(AK22=0,0,(AK22*((LOG(AK22))/LOG(2)))) -> 0 | AN22: =N22 -> 2222 | AO22: =COUNTIF(L144:L177,AN22) -> 0 | AP22: =AO22/(AQ4-AO20) -> 0 | AQ22: =IF(AP22=0,0,(AP22*((LOG(AP22))/LOG(2)))) -> 0 | AS22: =N22 -> 2222 | AT22: =COUNTIF(L178:L211,AS22) -> 0 | AU22: =AT22/(AV4-AT20) -> 0 | AV22: =IF(AU22=0,0,(AU22*((LOG(AU22))/LOG(2)))) -> 0
A23: 12 | B23: 1949 | C23: 14 | D23: 1954 | E23: 13 | F23: 1959 | G23: 14 | H23: 1968 | K23: 0 | L23: 1111 | P23: =SUM(P7:P22) -> 1 | Q23: =-SUM(Q7:Q22) -> 0.1101454311 | V23: =SUM(V7:V22) -> 1 | W23: =-SUM(W7:W22) -> 0.3227569589 | AA23: =SUM(AA7:AA22) -> 1 | AB23: =-SUM(AB7:AB22) -> 0 | AF23: =SUM(AF7:AF22) -> 1 | AG23: =-SUM(AG7:AG22) -> 0 | AK23: =SUM(AK7:AK22) -> 1 | AL23: =-SUM(AL7:AL22) -> 0 | AP23: =SUM(AP7:AP22) -> 1 | AQ23: =-SUM(AQ7:AQ22) -> 0 | AU23: =SUM(AU7:AU22) -> 1 | AV23: =-SUM(AV7:AV22) -> 0.1914332548
A24: 12 | B24: 2070 | C24: 14 | D24: 2074 | E24: 13 | F24: 2079 | G24: 14 | H24: 2088 | K24: 0 | L24: 1111 | P24: U= | Q24: =Q23/(LOG(Q4)/LOG(2)) -> 0.01434282395 | V24: U1= | W24: =W23/(LOG(W4)/LOG(2)) -> 0.06344163466 | AA24: U2= | AB24: =AB23/(LOG(AB4)/LOG(2)) -> 0 | AF24: U3= | AG24: =AG23/(LOG(AG4)/LOG(2)) -> 0 | AK24: U4= | AL24: =AL23/(LOG(AL4)/LOG(2)) -> 0 | AP24: U5= | AQ24: =AQ23/(LOG(AQ4)/LOG(2)) -> 0 | AU24: U6= | AV24: =AV23/(LOG(AV4)/LOG(2)) -> 0.03762843303
A25: 12 | B25: 2191 | C25: 14 | D25: 2196 | E25: 13 | F25: 2202 | G25: 14 | H25: 2210 | K25: 0 | L25: 1111
A26: 12 | B26: 2313 | C26: 14 | D26: 2318 | E26: 13 | F26: 2323 | G26: 14 | H26: 2332 | K26: 0 | L26: 1111
A27: 12 | B27: 2426 | C27: 14 | D27: 2432 | E27: 13 | F27: 2437 | G27: 14 | H27: 2443 | K27: 0 | L27: 1111 | N27: Total Target Seq
A28: 12 | B28: 2544 | C28: 14 | D28: 2549 | E28: 13 | F28: 2554 | G28: 14 | H28: 2563 | K28: 0 | L28: 1111 | N28: =COUNTIF(L7:L211,G3) -> 0 | P28: 34 | Q28: 34 | R28: 35 | S28: 34 | T28: 34 | U28: 34
A29: 12 | B29: 2668 | C29: 14 | D29: 2673 | E29: 13 | F29: 2683 | G29: 14 | H29: 2694 | K29: 0 | L29: 1111 | P29: % of reinforcement given in 6 equal intervals based on number of trials
A30: 12 | B30: 2797 | C30: 14 | D30: 2802 | E30: 13 | F30: 2808 | G30: 14 | H30: 2818 | K30: 0 | L30: 1111 | P30: %_1 | Q30: %_2 | R30: %_3 | S30: %_4 | T30: %_5 | U30: %_6
A31: 12 | B31: 2917 | C31: 14 | D31: 2922 | E31: 13 | F31: 2927 | G31: 14 | H31: 2934 | K31: 0 | L31: 1111 | O31: target sequence | P31: =$G$3 -> 2212 | Q31: =$G$3 -> 2212 | R31: =$G$3 -> 2212 | S31: =$G$3 -> 2212 | T31: =$G$3 -> 2212 | U31: =$G$3 -> 2212
A32: 12 | B32: 3041 | C32: 14 | D32: 3047 | E32: 13 | F32: 3056 | G32: 14 | H32: 3064 | K32: 0 | L32: 1111 | O32: total reinforcement | P32: =U20 -> 0 | Q32: =Z20 -> 0 | R32: =AE20 -> 0 | S32: =AJ20 -> 0 | T32: =AO20 -> 0 | U32: =AT20 -> 0
A33: 12 | B33: 3167 | C33: 14 | D33: 3172 | E33: 13 | F33: 3177 | G33: 14 | H33: 3183 | K33: 0 | L33: 1111 | O33: % target
A34: 12 | B34: 3284 | C34: 14 | D34: 3290 | E34: 13 | F34: 3304 | G34: 14 | H34: 3324 | K34: 0 | L34: 1111 | O34: CCRF
A35: 12 | B35: 3419 | C35: 14 | D35: 3424 | E35: 13 | F35: 3429 | G35: 14 | H35: 3440 | K35: 0 | L35: 1111 | O35: % CCRf
A36: 12 | B36: 3540 | C36: 14 | D36: 3545 | E36: 13 | F36: 3550 | G36: 14 | H36: 3558 | K36: 0 | L36: 1111 | O36: average response rate | P36: =H40/P28 -> 118.8235294 | Q36: =(H74-H40)/Q28 -> 118.1176471 | R36: =(H109-H74)/R28 -> 118.6857143 | S36: =(H143-H109)/S28 -> 117.0294118 | T36: =(H177-H143)/T28 -> 114.5588235 | U36: =(H211-H177)/U28 -> 113.1764706
A37: 12 | B37: 3656 | C37: 14 | D37: 3662 | E37: 13 | F37: 3667 | G37: 14 | H37: 3675 | K37: 0 | L37: 1111
A38: 12 | B38: 3779 | C38: 14 | D38: 3784 | E38: 13 | F38: 3793 | G38: 14 | H38: 3800 | K38: 0 | L38: 1111
A39: 12 | B39: 3905 | C39: 14 | D39: 3911 | E39: 13 | F39: 3915 | G39: 14 | H39: 3923 | K39: 0 | L39: 1111
A40: 12 | B40: 4023 | C40: 14 | D40: 4027 | E40: 13 | F40: 4032 | G40: 14 | H40: 4040 | K40: 0 | L40: 1111
A41: 12 | B41: 4139 | C41: 14 | D41: 4144 | E41: 13 | F41: 4149 | G41: 14 | H41: 4157 | K41: 0 | L41: 1111
A42: 12 | B42: 4260 | C42: 14 | D42: 4264 | E42: 13 | F42: 4269 | G42: 14 | H42: 4276 | K42: 0 | L42: 1111
A43: 12 | B43: 4373 | C43: 14 | D43: 4378 | E43: 13 | F43: 4388 | G43: 14 | H43: 4404 | K43: 0 | L43: 1111
A44: 12 | B44: 4502 | C44: 14 | D44: 4507 | E44: 13 | F44: 4512 | G44: 14 | H44: 4517 | K44: 0 | L44: 1111
A45: 12 | B45: 4622 | C45: 14 | D45: 4627 | E45: 13 | F45: 4636 | G45: 14 | H45: 4644 | K45: 0 | L45: 1111
A46: 12 | B46: 4747 | C46: 14 | D46: 4752 | E46: 13 | F46: 4757 | G46: 14 | H46: 4761 | K46: 0 | L46: 1111
A47: 12 | B47: 4863 | C47: 14 | D47: 4869 | E47: 13 | F47: 4874 | G47: 14 | H47: 4879 | K47: 0 | L47: 1111
A48: 12 | B48: 4979 | C48: 14 | D48: 4987 | E48: 13 | F48: 4991 | G48: 14 | H48: 4998 | K48: 0 | L48: 1111
A49: 12 | B49: 5096 | C49: 14 | D49: 5101 | E49: 13 | F49: 5105 | G49: 14 | H49: 5114 | K49: 0 | L49: 1111
A50: 12 | B50: 5214 | C50: 14 | D50: 5218 | E50: 13 | F50: 5223 | G50: 14 | H50: 5231 | K50: 0 | L50: 1111
A51: 12 | B51: 5330 | C51: 14 | D51: 5334 | E51: 13 | F51: 5340 | G51: 14 | H51: 5349 | K51: 0 | L51: 1111
A52: 12 | B52: 5450 | C52: 14 | D52: 5456 | E52: 13 | F52: 5460 | G52: 14 | H52: 5469 | K52: 0 | L52: 1111
A53: 12 | B53: 5574 | C53: 14 | D53: 5579 | E53: 13 | F53: 5584 | G53: 14 | H53: 5592 | K53: 0 | L53: 1111
A54: 12 | B54: 5691 | C54: 14 | D54: 5698 | E54: 13 | F54: 5702 | G54: 14 | H54: 5709 | K54: 0 | L54: 1111
A55: 12 | B55: 5805 | C55: 14 | D55: 5810 | E55: 13 | F55: 5817 | G55: 14 | H55: 5824 | K55: 0 | L55: 1111
A56: 12 | B56: 5923 | C56: 14 | D56: 5929 | E56: 13 | F56: 5933 | G56: 14 | H56: 5940 | K56: 0 | L56: 1111
A57: 12 | B57: 6040 | C57: 14 | D57: 6045 | E57: 13 | F57: 6052 | G57: 14 | H57: 6062 | K57: 0 | L57: 1111
A58: 12 | B58: 6158 | C58: 14 | D58: 6165 | E58: 13 | F58: 6170 | G58: 14 | H58: 6176 | K58: 0 | L58: 1111
A59: 12 | B59: 6286 | C59: 14 | D59: 6292 | E59: 13 | F59: 6297 | G59: 14 | H59: 6312 | K59: 0 | L59: 1111
A60: 12 | B60: 6415 | C60: 14 | D60: 6419 | E60: 13 | F60: 6423 | G60: 14 | H60: 6434 | K60: 0 | L60: 1111
A61: 12 | B61: 6526 | C61: 14 | D61: 6530 | E61: 13 | F61: 6535 | G61: 14 | H61: 6542 | K61: 0 | L61: 1111
A62: 12 | B62: 6640 | C62: 14 | D62: 6644 | E62: 13 | F62: 6648 | G62: 14 | H62: 6656 | K62: 0 | L62: 1111
A63: 12 | B63: 6756 | C63: 14 | D63: 6763 | E63: 13 | F63: 6768 | G63: 14 | H63: 6776 | K63: 0 | L63: 1111
A64: 12 | B64: 6872 | C64: 14 | D64: 6878 | E64: 13 | F64: 6883 | G64: 14 | H64: 6888 | K64: 0 | L64: 1111
A65: 12 | B65: 6991 | C65: 14 | D65: 6995 | E65: 13 | F65: 7000 | G65: 14 | H65: 7007 | K65: 0 | L65: 1111
A66: 12 | B66: 7111 | C66: 14 | D66: 7116 | E66: 13 | F66: 7120 | G66: 14 | H66: 7127 | K66: 0 | L66: 1111
A67: 12 | B67: 7226 | C67: 14 | D67: 7231 | E67: 13 | F67: 7235 | G67: 14 | H67: 7240 | K67: 0 | L67: 1111
A68: 12 | B68: 7347 | C68: 14 | D68: 7351 | E68: 13 | F68: 7356 | G68: 14 | H68: 7362 | K68: 0 | L68: 1111
A69: 12 | B69: 7465 | C69: 14 | D69: 7469 | E69: 13 | F69: 7474 | G69: 14 | H69: 7482 | K69: 0 | L69: 1111
A70: 12 | B70: 7573 | C70: 14 | D70: 7578 | E70: 13 | F70: 7582 | G70: 14 | H70: 7586 | K70: 0 | L70: 1111
A71: 12 | B71: 7691 | C71: 14 | D71: 7700 | E71: 13 | F71: 7705 | G71: 14 | H71: 7713 | K71: 0 | L71: 1111
A72: 12 | B72: 7813 | C72: 14 | D72: 7821 | E72: 13 | F72: 7825 | G72: 14 | H72: 7829 | K72: 0 | L72: 1111
A73: 12 | B73: 7926 | C73: 14 | D73: 7931 | E73: 13 | F73: 7935 | G73: 14 | H73: 7942 | K73: 0 | L73: 1111
A74: 12 | B74: 8040 | C74: 14 | D74: 8044 | E74: 13 | F74: 8049 | G74: 14 | H74: 8056 | K74: 0 | L74: 1111
A75: 12 | B75: 8158 | C75: 14 | D75: 8163 | E75: 13 | F75: 8172 | G75: 14 | H75: 8179 | K75: 0 | L75: 1111
A76: 12 | B76: 8279 | C76: 14 | D76: 8284 | E76: 13 | F76: 8288 | G76: 14 | H76: 8292 | K76: 0 | L76: 1111
A77: 12 | B77: 8391 | C77: 14 | D77: 8396 | E77: 13 | F77: 8400 | G77: 14 | H77: 8407 | K77: 0 | L77: 1111
A78: 12 | B78: 8503 | C78: 14 | D78: 8508 | E78: 13 | F78: 8516 | G78: 14 | H78: 8530 | K78: 0 | L78: 1111
A79: 12 | B79: 8639 | C79: 14 | D79: 8647 | E79: 13 | F79: 8654 | G79: 14 | H79: 8661 | K79: 0 | L79: 1111
A80: 12 | B80: 8755 | C80: 14 | D80: 8760 | E80: 13 | F80: 8765 | G80: 14 | H80: 8773 | K80: 0 | L80: 1111
A81: 12 | B81: 8876 | C81: 14 | D81: 8881 | E81: 13 | F81: 8890 | G81: 14 | H81: 8897 | K81: 0 | L81: 1111
A82: 12 | B82: 8998 | C82: 14 | D82: 9003 | E82: 13 | F82: 9007 | G82: 14 | H82: 9020 | K82: 0 | L82: 1111
A83: 12 | B83: 9118 | C83: 14 | D83: 9122 | E83: 13 | F83: 9126 | G83: 14 | H83: 9131 | K83: 0 | L83: 1111
A84: 12 | B84: 9229 | C84: 14 | D84: 9233 | E84: 13 | F84: 9237 | G84: 14 | H84: 9244 | K84: 0 | L84: 1111
A85: 12 | B85: 9344 | C85: 14 | D85: 9349 | E85: 13 | F85: 9354 | G85: 14 | H85: 9360 | K85: 0 | L85: 1111
A86: 12 | B86: 9455 | C86: 14 | D86: 9460 | E86: 13 | F86: 9466 | G86: 14 | H86: 9470 | K86: 0 | L86: 1111
A87: 12 | B87: 9573 | C87: 14 | D87: 9577 | E87: 13 | F87: 9581 | G87: 14 | H87: 9585 | K87: 0 | L87: 1111
A88: 12 | B88: 9682 | C88: 14 | D88: 9687 | E88: 13 | F88: 9691 | G88: 14 | H88: 9697 | K88: 0 | L88: 1111
A89: 12 | B89: 9792 | C89: 14 | D89: 9797 | E89: 13 | F89: 9802 | G89: 14 | H89: 9809 | K89: 0 | L89: 1111
A90: 12 | B90: 9904 | C90: 14 | D90: 9909 | E90: 13 | F90: 9913 | G90: 14 | H90: 9917 | K90: 0 | L90: 1111
A91: 12 | B91: 10021 | C91: 14 | D91: 10025 | E91: 13 | F91: 10029 | G91: 14 | H91: 10036 | K91: 0 | L91: 1111
A92: 12 | B92: 10138 | C92: 14 | D92: 10147 | E92: 13 | F92: 10151 | G92: 14 | H92: 10158 | K92: 0 | L92: 1111
A93: 12 | B93: 10257 | C93: 14 | D93: 10261 | E93: 13 | F93: 10265 | G93: 14 | H93: 10271 | K93: 0 | L93: 1111
A94: 12 | B94: 10376 | C94: 14 | D94: 10381 | E94: 13 | F94: 10389 | G94: 14 | H94: 10396 | K94: 0 | L94: 1111
A95: 12 | B95: 10504 | C95: 14 | D95: 10508 | E95: 13 | F95: 10513 | G95: 14 | H95: 10521 | K95: 0 | L95: 1111
A96: 12 | B96: 10628 | C96: 14 | D96: 10637 | E96: 13 | F96: 10643 | G96: 14 | H96: 10650 | K96: 0 | L96: 1111
A97: 12 | B97: 10755 | C97: 14 | D97: 10759 | E97: 13 | F97: 10767 | G97: 14 | H97: 10773 | K97: 0 | L97: 1111
A98: 12 | B98: 10890 | C98: 14 | D98: 10895 | E98: 13 | F98: 10902 | G98: 14 | H98: 10908 | K98: 0 | L98: 1111
A99: 12 | B99: 11014 | C99: 14 | D99: 11019 | E99: 13 | F99: 11023 | G99: 14 | H99: 11031 | K99: 0 | L99: 1111
A100: 12 | B100: 11127 | C100: 14 | D100: 11132 | E100: 13 | F100: 11136 | G100: 14 | H100: 11141 | K100: 0 | L100: 1111
A101: 12 | B101: 11246 | C101: 14 | D101: 11255 | E101: 13 | F101: 11264 | G101: 14 | H101: 11271 | K101: 0 | L101: 1111
A102: 12 | B102: 11368 | C102: 14 | D102: 11373 | E102: 13 | F102: 11377 | G102: 14 | H102: 11382 | K102: 0 | L102: 1111
A103: 12 | B103: 11484 | C103: 14 | D103: 11488 | E103: 13 | F103: 11492 | G103: 14 | H103: 11498 | K103: 0 | L103: 1111
A104: 12 | B104: 11605 | C104: 14 | D104: 11611 | E104: 13 | F104: 11616 | G104: 14 | H104: 11621 | K104: 0 | L104: 1111
A105: 12 | B105: 11727 | C105: 14 | D105: 11732 | E105: 13 | F105: 11736 | G105: 14 | H105: 11743 | K105: 0 | L105: 1111
A106: 12 | B106: 11852 | C106: 14 | D106: 11856 | E106: 13 | F106: 11860 | G106: 14 | H106: 11867 | K106: 0 | L106: 1111
A107: 12 | B107: 11963 | C107: 14 | D107: 11967 | E107: 13 | F107: 11972 | G107: 14 | H107: 11976 | K107: 0 | L107: 1111
A108: 12 | B108: 12076 | C108: 14 | D108: 12081 | E108: 13 | F108: 12086 | G108: 14 | H108: 12090 | K108: 0 | L108: 1111
A109: 12 | B109: 12195 | C109: 14 | D109: 12199 | E109: 13 | F109: 12204 | G109: 14 | H109: 12210 | K109: 0 | L109: 1111
A110: 12 | B110: 12310 | C110: 14 | D110: 12316 | E110: 13 | F110: 12320 | G110: 14 | H110: 12324 | K110: 0 | L110: 1111
A111: 12 | B111: 12431 | C111: 14 | D111: 12436 | E111: 13 | F111: 12440 | G111: 14 | H111: 12445 | K111: 0 | L111: 1111
A112: 12 | B112: 12550 | C112: 14 | D112: 12556 | E112: 13 | F112: 12561 | G112: 14 | H112: 12565 | K112: 0 | L112: 1111
A113: 12 | B113: 12669 | C113: 14 | D113: 12673 | E113: 13 | F113: 12678 | G113: 14 | H113: 12682 | K113: 0 | L113: 1111
A114: 12 | B114: 12787 | C114: 14 | D114: 12791 | E114: 13 | F114: 12800 | G114: 14 | H114: 12807 | K114: 0 | L114: 1111
A115: 12 | B115: 12909 | C115: 14 | D115: 12913 | E115: 13 | F115: 12918 | G115: 14 | H115: 12923 | K115: 0 | L115: 1111
A116: 12 | B116: 13014 | C116: 14 | D116: 13019 | E116: 13 | F116: 13023 | G116: 14 | H116: 13029 | K116: 0 | L116: 1111
A117: 12 | B117: 13117 | C117: 14 | D117: 13120 | E117: 13 | F117: 13126 | G117: 14 | H117: 13130 | K117: 0 | L117: 1111
A118: 12 | B118: 13230 | C118: 14 | D118: 13235 | E118: 13 | F118: 13239 | G118: 14 | H118: 13244 | K118: 0 | L118: 1111
A119: 12 | B119: 13343 | C119: 14 | D119: 13348 | E119: 13 | F119: 13352 | G119: 14 | H119: 13356 | K119: 0 | L119: 1111
A120: 12 | B120: 13448 | C120: 14 | D120: 13453 | E120: 13 | F120: 13457 | G120: 14 | H120: 13470 | K120: 0 | L120: 1111
A121: 12 | B121: 13566 | C121: 14 | D121: 13572 | E121: 13 | F121: 13576 | G121: 14 | H121: 13581 | K121: 0 | L121: 1111
A122: 12 | B122: 13684 | C122: 14 | D122: 13689 | E122: 13 | F122: 13694 | G122: 14 | H122: 13699 | K122: 0 | L122: 1111
A123: 12 | B123: 13791 | C123: 14 | D123: 13795 | E123: 13 | F123: 13800 | G123: 14 | H123: 13804 | K123: 0 | L123: 1111
A124: 12 | B124: 13902 | C124: 14 | D124: 13906 | E124: 13 | F124: 13910 | G124: 14 | H124: 13914 | K124: 0 | L124: 1111
A125: 12 | B125: 14020 | C125: 14 | D125: 14027 | E125: 13 | F125: 14031 | G125: 14 | H125: 14035 | K125: 0 | L125: 1111
A126: 12 | B126: 14137 | C126: 14 | D126: 14140 | E126: 13 | F126: 14145 | G126: 14 | H126: 14152 | K126: 0 | L126: 1111
A127: 12 | B127: 14259 | C127: 14 | D127: 14263 | E127: 13 | F127: 14268 | G127: 14 | H127: 14272 | K127: 0 | L127: 1111
A128: 12 | B128: 14362 | C128: 14 | D128: 14367 | E128: 13 | F128: 14371 | G128: 14 | H128: 14376 | K128: 0 | L128: 1111
A129: 12 | B129: 14483 | C129: 14 | D129: 14487 | E129: 13 | F129: 14491 | G129: 14 | H129: 14495 | K129: 0 | L129: 1111
A130: 12 | B130: 14598 | C130: 14 | D130: 14602 | E130: 13 | F130: 14606 | G130: 14 | H130: 14612 | K130: 0 | L130: 1111
A131: 12 | B131: 14709 | C131: 14 | D131: 14716 | E131: 13 | F131: 14720 | G131: 14 | H131: 14725 | K131: 0 | L131: 1111
A132: 12 | B132: 14823 | C132: 14 | D132: 14827 | E132: 13 | F132: 14832 | G132: 14 | H132: 14840 | K132: 0 | L132: 1111
A133: 12 | B133: 14943 | C133: 14 | D133: 14947 | E133: 13 | F133: 14951 | G133: 14 | H133: 14958 | K133: 0 | L133: 1111
A134: 12 | B134: 15064 | C134: 14 | D134: 15069 | E134: 13 | F134: 15073 | G134: 14 | H134: 15081 | K134: 0 | L134: 1111
A135: 12 | B135: 15183 | C135: 14 | D135: 15187 | E135: 13 | F135: 15191 | G135: 14 | H135: 15198 | K135: 0 | L135: 1111
A136: 12 | B136: 15312 | C136: 14 | D136: 15317 | E136: 13 | F136: 15322 | G136: 14 | H136: 15330 | K136: 0 | L136: 1111
A137: 12 | B137: 15421 | C137: 14 | D137: 15426 | E137: 13 | F137: 15430 | G137: 14 | H137: 15435 | K137: 0 | L137: 1111
A138: 12 | B138: 15538 | C138: 14 | D138: 15542 | E138: 13 | F138: 15546 | G138: 14 | H138: 15553 | K138: 0 | L138: 1111
A139: 12 | B139: 15661 | C139: 14 | D139: 15665 | E139: 13 | F139: 15673 | G139: 14 | H139: 15683 | K139: 0 | L139: 1111
A140: 12 | B140: 15782 | C140: 14 | D140: 15791 | E140: 13 | F140: 15799 | G140: 14 | H140: 15819 | K140: 0 | L140: 1111
A141: 12 | B141: 15941 | C141: 14 | D141: 15946 | E141: 13 | F141: 15955 | G141: 14 | H141: 15963 | K141: 0 | L141: 1111
A142: 12 | B142: 16066 | C142: 14 | D142: 16070 | E142: 13 | F142: 16078 | G142: 14 | H142: 16085 | K142: 0 | L142: 1111
A143: 12 | B143: 16177 | C143: 14 | D143: 16181 | E143: 13 | F143: 16185 | G143: 14 | H143: 16189 | K143: 0 | L143: 1111
A144: 12 | B144: 16283 | C144: 14 | D144: 16287 | E144: 13 | F144: 16292 | G144: 14 | H144: 16298 | K144: 0 | L144: 1111
A145: 12 | B145: 16394 | C145: 14 | D145: 16398 | E145: 13 | F145: 16403 | G145: 14 | H145: 16410 | K145: 0 | L145: 1111
A146: 12 | B146: 16506 | C146: 14 | D146: 16510 | E146: 13 | F146: 16514 | G146: 14 | H146: 16523 | K146: 0 | L146: 1111
A147: 12 | B147: 16626 | C147: 14 | D147: 16631 | E147: 13 | F147: 16640 | G147: 14 | H147: 16658 | K147: 0 | L147: 1111
A148: 12 | B148: 16760 | C148: 14 | D148: 16765 | E148: 13 | F148: 16773 | G148: 14 | H148: 16780 | K148: 0 | L148: 1111
A149: 12 | B149: 16876 | C149: 14 | D149: 16881 | E149: 13 | F149: 16885 | G149: 14 | H149: 16890 | K149: 0 | L149: 1111
A150: 12 | B150: 16979 | C150: 14 | D150: 16984 | E150: 13 | F150: 16988 | G150: 14 | H150: 16993 | K150: 0 | L150: 1111
A151: 12 | B151: 17088 | C151: 14 | D151: 17094 | E151: 13 | F151: 17098 | G151: 14 | H151: 17102 | K151: 0 | L151: 1111
A152: 12 | B152: 17197 | C152: 14 | D152: 17202 | E152: 13 | F152: 17207 | G152: 14 | H152: 17211 | K152: 0 | L152: 1111
A153: 12 | B153: 17309 | C153: 14 | D153: 17314 | E153: 13 | F153: 17323 | G153: 14 | H153: 17330 | K153: 0 | L153: 1111
A154: 12 | B154: 17433 | C154: 14 | D154: 17437 | E154: 13 | F154: 17442 | G154: 14 | H154: 17446 | K154: 0 | L154: 1111
A155: 12 | B155: 17546 | C155: 14 | D155: 17550 | E155: 13 | F155: 17554 | G155: 14 | H155: 17558 | K155: 0 | L155: 1111
A156: 12 | B156: 17658 | C156: 14 | D156: 17663 | E156: 13 | F156: 17668 | G156: 14 | H156: 17674 | K156: 0 | L156: 1111
A157: 12 | B157: 17769 | C157: 14 | D157: 17773 | E157: 13 | F157: 17778 | G157: 14 | H157: 17784 | K157: 0 | L157: 1111
A158: 12 | B158: 17881 | C158: 14 | D158: 17886 | E158: 13 | F158: 17891 | G158: 14 | H158: 17896 | K158: 0 | L158: 1111
A159: 12 | B159: 17993 | C159: 14 | D159: 17997 | E159: 13 | F159: 18005 | G159: 14 | H159: 18012 | K159: 0 | L159: 1111
A160: 12 | B160: 18118 | C160: 14 | D160: 18123 | E160: 13 | F160: 18127 | G160: 14 | H160: 18134 | K160: 0 | L160: 1111
A161: 12 | B161: 18236 | C161: 14 | D161: 18241 | E161: 13 | F161: 18245 | G161: 14 | H161: 18249 | K161: 0 | L161: 1111
A162: 12 | B162: 18346 | C162: 14 | D162: 18351 | E162: 13 | F162: 18355 | G162: 14 | H162: 18360 | K162: 0 | L162: 1111
A163: 12 | B163: 18465 | C163: 14 | D163: 18470 | E163: 13 | F163: 18475 | G163: 14 | H163: 18480 | K163: 0 | L163: 1111
A164: 12 | B164: 18581 | C164: 14 | D164: 18586 | E164: 13 | F164: 18590 | G164: 14 | H164: 18597 | K164: 0 | L164: 1111
A165: 12 | B165: 18692 | C165: 14 | D165: 18700 | E165: 13 | F165: 18704 | G165: 14 | H165: 18708 | K165: 0 | L165: 1111
A166: 12 | B166: 18812 | C166: 14 | D166: 18817 | E166: 13 | F166: 18821 | G166: 14 | H166: 18826 | K166: 0 | L166: 1111
A167: 12 | B167: 18928 | C167: 14 | D167: 18932 | E167: 13 | F167: 18937 | G167: 14 | H167: 18941 | K167: 0 | L167: 1111
A168: 12 | B168: 19040 | C168: 14 | D168: 19044 | E168: 13 | F168: 19049 | G168: 14 | H168: 19053 | K168: 0 | L168: 1111
A169: 12 | B169: 19156 | C169: 14 | D169: 19160 | E169: 13 | F169: 19164 | G169: 14 | H169: 19169 | K169: 0 | L169: 1111
A170: 12 | B170: 19259 | C170: 14 | D170: 19264 | E170: 13 | F170: 19269 | G170: 14 | H170: 19273 | K170: 0 | L170: 1111
A171: 12 | B171: 19374 | C171: 14 | D171: 19378 | E171: 13 | F171: 19383 | G171: 14 | H171: 19391 | K171: 0 | L171: 1111
A172: 12 | B172: 19494 | C172: 14 | D172: 19498 | E172: 13 | F172: 19502 | G172: 14 | H172: 19509 | K172: 0 | L172: 1111
A173: 12 | B173: 19601 | C173: 14 | D173: 19605 | E173: 13 | F173: 19610 | G173: 14 | H173: 19615 | K173: 0 | L173: 1111
A174: 12 | B174: 19719 | C174: 14 | D174: 19725 | E174: 13 | F174: 19730 | G174: 14 | H174: 19737 | K174: 0 | L174: 1111
A175: 12 | B175: 19841 | C175: 14 | D175: 19845 | E175: 13 | F175: 19849 | G175: 14 | H175: 19856 | K175: 0 | L175: 1111
A176: 12 | B176: 19955 | C176: 14 | D176: 19959 | E176: 13 | F176: 19964 | G176: 14 | H176: 19971 | K176: 0 | L176: 1111
A177: 12 | B177: 20069 | C177: 14 | D177: 20075 | E177: 13 | F177: 20080 | G177: 14 | H177: 20084 | K177: 0 | L177: 1111
A178: 12 | B178: 20182 | C178: 14 | D178: 20186 | E178: 13 | F178: 20191 | G178: 14 | H178: 20195 | K178: 0 | L178: 1111
A179: 12 | B179: 20286 | C179: 14 | D179: 20290 | E179: 13 | F179: 20294 | G179: 14 | H179: 20299 | K179: 0 | L179: 1111
A180: 12 | B180: 20388 | C180: 14 | D180: 20393 | E180: 13 | F180: 20398 | G180: 23 | H180: 20421 | K180: 0 | L180: 1112
A181: 12 | B181: 20517 | C181: 14 | D181: 20521 | E181: 13 | F181: 20525 | G181: 14 | H181: 20529 | K181: 0 | L181: 1111
A182: 12 | B182: 20629 | C182: 14 | D182: 20633 | E182: 13 | F182: 20637 | G182: 14 | H182: 20645 | K182: 0 | L182: 1111
A183: 12 | B183: 20734 | C183: 14 | D183: 20738 | E183: 13 | F183: 20746 | G183: 14 | H183: 20753 | K183: 0 | L183: 1111
A184: 12 | B184: 20851 | C184: 14 | D184: 20855 | E184: 13 | F184: 20860 | G184: 14 | H184: 20864 | K184: 0 | L184: 1111
A185: 12 | B185: 20960 | C185: 14 | D185: 20965 | E185: 13 | F185: 20969 | G185: 14 | H185: 20976 | K185: 0 | L185: 1111
A186: 12 | B186: 21073 | C186: 14 | D186: 21078 | E186: 13 | F186: 21083 | G186: 14 | H186: 21088 | K186: 0 | L186: 1111
A187: 12 | B187: 21187 | C187: 14 | D187: 21192 | E187: 13 | F187: 21196 | G187: 14 | H187: 21203 | K187: 0 | L187: 1111
A188: 12 | B188: 21309 | C188: 14 | D188: 21313 | E188: 13 | F188: 21318 | G188: 14 | H188: 21333 | K188: 0 | L188: 1111
A189: 12 | B189: 21429 | C189: 14 | D189: 21434 | E189: 13 | F189: 21439 | G189: 14 | H189: 21444 | K189: 0 | L189: 1111
A190: 12 | B190: 21545 | C190: 14 | D190: 21550 | E190: 13 | F190: 21554 | G190: 14 | H190: 21559 | K190: 0 | L190: 1111
A191: 12 | B191: 21664 | C191: 14 | D191: 21668 | E191: 13 | F191: 21673 | G191: 14 | H191: 21680 | K191: 0 | L191: 1111
A192: 12 | B192: 21768 | C192: 14 | D192: 21772 | E192: 13 | F192: 21777 | G192: 14 | H192: 21782 | K192: 0 | L192: 1111
A193: 12 | B193: 21880 | C193: 14 | D193: 21886 | E193: 13 | F193: 21892 | G193: 14 | H193: 21897 | K193: 0 | L193: 1111
A194: 12 | B194: 21994 | C194: 14 | D194: 21999 | E194: 13 | F194: 22004 | G194: 14 | H194: 22009 | K194: 0 | L194: 1111
A195: 12 | B195: 22107 | C195: 14 | D195: 22111 | E195: 13 | F195: 22115 | G195: 14 | H195: 22120 | K195: 0 | L195: 1111
A196: 12 | B196: 22219 | C196: 14 | D196: 22223 | E196: 13 | F196: 22227 | G196: 14 | H196: 22232 | K196: 0 | L196: 1111
A197: 12 | B197: 22330 | C197: 14 | D197: 22335 | E197: 13 | F197: 22339 | G197: 14 | H197: 22343 | K197: 0 | L197: 1111
A198: 12 | B198: 22450 | C198: 14 | D198: 22454 | E198: 13 | F198: 22462 | G198: 14 | H198: 22470 | K198: 0 | L198: 1111
A199: 12 | B199: 22573 | C199: 14 | D199: 22578 | E199: 13 | F199: 22583 | G199: 14 | H199: 22587 | K199: 0 | L199: 1111
A200: 12 | B200: 22687 | C200: 14 | D200: 22691 | E200: 13 | F200: 22699 | G200: 14 | H200: 22707 | K200: 0 | L200: 1111
... 11 more rows

Sheet !L906C20.056
A1: Report for:!L906C20.056
A2: Date: | B2: <date>
A3: Hen: | B3: <hen> | F3: Correct Sequence | G3: =Start!J2 -> 2212 | P3: Total Sequences in Data | Q3: =4994-COUNTBLANK(L7:L5000) -> 201 | V3: Total Sequences in Block Data | W3: =COUNTA(L7:L40) -> 34 | AA3: Total Sequences in Block Data | AB3: =COUNTA(L41:L73) -> 33 | AF3: Total Sequences in Block Data | AG3: =COUNTA(L74:L107) -> 34 | AK3: Total Sequences in Block Data | AL3: =COUNTA(L108:L140) -> 33 | AP3: Total Sequences in Block Data | AQ3: =COUNTA(L141:L174) -> 34 | AU3: Total Sequences in Block Data | AV3: =COUNTA(L175:L207) -> 33
P4: Total Sequences in Summary | Q4: =SUM(O7:O22) -> 201 | V4: Total Sequences in Block Summary | W4: =SUM(U7:U22) -> 34 | AA4: Total Sequences in Block Summary | AB4: =SUM(Z7:Z22) -> 33 | AF4: Total Sequences in Block Summary | AG4: =SUM(AE7:AE22) -> 34 | AK4: Total Sequences in Block Summary | AL4: =SUM(AJ7:AJ22) -> 33 | AP4: Total Sequences in Block Summary | AQ4: =SUM(AO7:AO22) -> 34 | AU4: Total Sequences in Block Summary | AV4: =SUM(AT7:AT22) -> 33
T5: Block 1 | Y5: Block 2 | AD5: Block 3 | AI5: Block 4 | AN5: Block 5 | AS5: Block 6
A6: Sequence Component 1 | B6: Time 1 | C6: Sequence Component 2 | D6: Time 2 | E6: Sequence Component 3 | F6: Time 3 | G6: Sequence Component 4 | H6: Time 4 | I6: Sequence Component 5 | J6: Time 5 | K6: Correct? 0=No 1=Yes | L6: Sequence | N6: Frequency | P6: Relative Frequency | Q6: Variability | T6: Frequency | V6: Relative Frequency | W6: Variability | Y6: Frequency | AA6: Relative Frequency | AB6: Variability | AD6: Frequency | AF6: Relative Frequency | AG6: Variability | AI6: Frequency | AK6: Relative Frequency | AL6: Variability | AN6: Frequency | AP6: Relative Frequency | AQ6: Variability | AS6: Frequency | AU6: Relative Frequency | AV6: Variability
A7: 12 | B7: 21 | C7: 14 | D7: 28 | E7: 24 | F7: 51 | G7: 14 | H7: 66 | K7: 0 | L7: 1121 | N7: 1111 | O7: =COUNTIF($L$7:$L$500,N7) -> 195 | P7: =O7/$Q$4 -> 0.9701492537 | Q7: =IF(P7=0,0,(P7*((LOG(P7))/LOG(2)))) -> -0.04241626169 | T7: =N7 -> 1111 | U7: =COUNTIF(L7:L40,T7) -> 30 | V7: =U7/(W4-U20) -> 0.8823529412 | W7: =IF(V7=0,0,(V7*((LOG(V7))/LOG(2)))) -> -0.159328452 | Y7: =N7 -> 1111 | Z7: =COUNTIF(L41:L73,Y7) -> 33 | AA7: =Z7/(AB4-Z20) -> 1 | AB7: =IF(AA7=0,0,(AA7*((LOG(AA7))/LOG(2)))) -> 0 | AD7: =N7 -> 1111 | AE7: =COUNTIF(L74:L107,AD7) -> 34 | AF7: =AE7/(AG4-AE20) -> 1 | AG7: =IF(AF7=0,0,(AF7*((LOG(AF7))/LOG(2)))) -> 0 | AI7: =N7 -> 1111 | AJ7: =COUNTIF(L108:L140,AI7) -> 33 | AK7: =AJ7/(AL4-AJ20) -> 1 | AL7: =IF(AK7=0,0,(AK7*((LOG(AK7))/LOG(2)))) -> 0 | AN7: =N7 -> 1111 | AO7: =COUNTIF(L141:L174,AN7) -> 33 | AP7: =AO7/(AQ4-AO20) -> 0.9705882353 | AQ7: =IF(AP7=0,0,(AP7*((LOG(AP7))/LOG(2)))) -> -0.04180199478 | AS7: =N7 -> 1111 | AT7: =COUNTIF(L175:L207,AS7) -> 32 | AU7: =AT7/(AV4-AT20) -> 0.9696969697 | AV7: =IF(AU7=0,0,(AU7*((LOG(AU7))/LOG(2)))) -> -0.04304884301
A8: 12 | B8: 174 | C8: 23 | D8: 192 | E8: 13 | F8: 215 | G8: 23 | H8: 225 | K8: 0 | L8: 1212 | N8: 1112 | O8: =COUNTIF($L$7:$L$500,N8) -> 3 | P8: =O8/$Q$4 -> 0.01492537313 | Q8: =IF(P8=0,0,(P8*((LOG(P8))/LOG(2)))) -> -0.09053864463 | T8: =N8 -> 1112 | U8: =COUNTIF(L7:L40,T8) -> 2 | V8: =U8/(W4-U20) -> 0.05882352941 | W8: =IF(V8=0,0,(V8*((LOG(V8))/LOG(2)))) -> -0.2404389907 | Y8: =N8 -> 1112 | Z8: =COUNTIF(L41:L73,Y8) -> 0 | AA8: =Z8/(AB4-Z20) -> 0 | AB8: =IF(AA8=0,0,(AA8*((LOG(AA8))/LOG(2)))) -> 0 | AD8: =N8 -> 1112 | AE8: =COUNTIF(L74:L107,AD8) -> 0 | AF8: =AE8/(AG4-AE20) -> 0 | AG8: =IF(AF8=0,0,(AF8*((LOG(AF8))/LOG(2)))) -> 0 | AI8: =N8 -> 1112 | AJ8: =COUNTIF(L108:L140,AI8) -> 0 | AK8: =AJ8/(AL4-AJ20) -> 0 | AL8: =IF(AK8=0,0,(AK8*((LOG(AK8))/LOG(2)))) -> 0 | AN8: =N8 -> 1112 | AO8: =COUNTIF(L141:L174,AN8) -> 1 | AP8: =AO8/(AQ4-AO20) -> 0.02941176471 | AQ8: =IF(AP8=0,0,(AP8*((LOG(AP8))/LOG(2)))) -> -0.14963126 | AS8: =N8 -> 1112 | AT8: =COUNTIF(L175:L207,AS8) -> 0 | AU8: =AT8/(AV4-AT20) -> 0 | AV8: =IF(AU8=0,0,(AU8*((LOG(AU8))/LOG(2)))) -> 0
A9: 12 | B9: 328 | C9: 14 | D9: 333 | E9: 13 | F9: 338 | G9: 23 | H9: 360 | K9: 0 | L9: 1112 | N9: 1121 | O9: =COUNTIF($L$7:$L$500,N9) -> 1 | P9: =O9/$Q$4 -> 0.004975124378 | Q9: =IF(P9=0,0,(P9*((LOG(P9))/LOG(2)))) -> -0.03806493379 | T9: =N9 -> 1121 | U9: =COUNTIF(L7:L40,T9) -> 1 | V9: =U9/(W4-U20) -> 0.02941176471 | W9: =IF(V9=0,0,(V9*((LOG(V9))/LOG(2)))) -> -0.14963126 | Y9: =N9 -> 1121 | Z9: =COUNTIF(L41:L73,Y9) -> 0 | AA9: =Z9/(AB4-Z20) -> 0 | AB9: =IF(AA9=0,0,(AA9*((LOG(AA9))/LOG(2)))) -> 0 | AD9: =N9 -> 1121 | AE9: =COUNTIF(L74:L107,AD9) -> 0 | AF9: =AE9/(AG4-AE20) -> 0 | AG9: =IF(AF9=0,0,(AF9*((LOG(AF9))/LOG(2)))) -> 0 | AI9: =N9 -> 1121 | AJ9: =COUNTIF(L108:L140,AI9) -> 0 | AK9: =AJ9/(AL4-AJ20) -> 0 | AL9: =IF(AK9=0,0,(AK9*((LOG(AK9))/LOG(2)))) -> 0 | AN9: =N9 -> 1121 | AO9: =COUNTIF(L141:L174,AN9) -> 0 | AP9: =AO9/(AQ4-AO20) -> 0 | AQ9: =IF(AP9=0,0,(AP9*((LOG(AP9))/LOG(2)))) -> 0 | AS9: =N9 -> 1121 | AT9: =COUNTIF(L175:L207,AS9) -> 0 | AU9: =AT9/(AV4-AT20) -> 0 | AV9: =IF(AU9=0,0,(AU9*((LOG(AU9))/LOG(2)))) -> 0
A10: 12 | B10: 467 | C10: 14 | D10: 472 | E10: 13 | F10: 478 | G10: 14 | H10: 487 | K10: 0 | L10: 1111 | N10: 1122 | O10: =COUNTIF($L$7:$L$500,N10) -> 1 | P10: =O10/$Q$4 -> 0.004975124378 | Q10: =IF(P10=0,0,(P10*((LOG(P10))/LOG(2)))) -> -0.03806493379 | T10: =N10 -> 1122 | U10: =COUNTIF(L7:L40,T10) -> 0 | V10: =U10/(W4-U20) -> 0 | W10: =IF(V10=0,0,(V10*((LOG(V10))/LOG(2)))) -> 0 | Y10: =N10 -> 1122 | Z10: =COUNTIF(L41:L73,Y10) -> 0 | AA10: =Z10/(AB4-Z20) -> 0 | AB10: =IF(AA10=0,0,(AA10*((LOG(AA10))/LOG(2)))) -> 0 | AD10: =N10 -> 1122 | AE10: =COUNTIF(L74:L107,AD10) -> 0 | AF10: =AE10/(AG4-AE20) -> 0 | AG10: =IF(AF10=0,0,(AF10*((LOG(AF10))/LOG(2)))) -> 0 | AI10: =N10 -> 1122 | AJ10: =COUNTIF(L108:L140,AI10) -> 0 | AK10: =AJ10/(AL4-AJ20) -> 0 | AL10: =IF(AK10=0,0,(AK10*((LOG(AK10))/LOG(2)))) -> 0 | AN10: =N10 -> 1122 | AO10: =COUNTIF(L141:L174,AN10) -> 0 | AP10: =AO10/(AQ4-AO20) -> 0 | AQ10: =IF(AP10=0,0,(AP10*((LOG(AP10))/LOG(2)))) -> 0 | AS10: =N10 -> 1122 | AT10: =COUNTIF(L175:L207,AS10) -> 1 | AU10: =AT10/(AV4-AT20) -> 0.0303030303 | AV10: =IF(AU10=0,0,(AU10*((LOG(AU10))/LOG(2)))) -> -0.1528604279
A11: 12 | B11: 581 | C11: 14 | D11: 585 | E11: 13 | F11: 591 | G11: 23 | H11: 623 | K11: 0 | L11: 1112 | N11: 1211 | O11: =COUNTIF($L$7:$L$500,N11) -> 0 | P11: =O11/$Q$4 -> 0 | Q11: =IF(P11=0,0,(P11*((LOG(P11))/LOG(2)))) -> 0 | T11: =N11 -> 1211 | U11: =COUNTIF(L7:L40,T11) -> 0 | V11: =U11/(W4-U20) -> 0 | W11: =IF(V11=0,0,(V11*((LOG(V11))/LOG(2)))) -> 0 | Y11: =N11 -> 1211 | Z11: =COUNTIF(L41:L73,Y11) -> 0 | AA11: =Z11/(AB4-Z20) -> 0 | AB11: =IF(AA11=0,0,(AA11*((LOG(AA11))/LOG(2)))) -> 0 | AD11: =N11 -> 1211 | AE11: =COUNTIF(L74:L107,AD11) -> 0 | AF11: =AE11/(AG4-AE20) -> 0 | AG11: =IF(AF11=0,0,(AF11*((LOG(AF11))/LOG(2)))) -> 0 | AI11: =N11 -> 1211 | AJ11: =COUNTIF(L108:L140,AI11) -> 0 | AK11: =AJ11/(AL4-AJ20) -> 0 | AL11: =IF(AK11=0,0,(AK11*((LOG(AK11))/LOG(2)))) -> 0 | AN11: =N11 -> 1211 | AO11: =COUNTIF(L141:L174,AN11) -> 0 | AP11: =AO11/(AQ4-AO20) -> 0 | AQ11: =IF(AP11=0,0,(AP11*((LOG(AP11))/LOG(2)))) -> 0 | AS11: =N11 -> 1211 | AT11: =COUNTIF(L175:L207,AS11) -> 0 | AU11: =AT11/(AV4-AT20) -> 0 | AV11: =IF(AU11=0,0,(AU11*((LOG(AU11))/LOG(2)))) -> 0
A12: 12 | B12: 726 | C12: 14 | D12: 731 | E12: 13 | F12: 737 | G12: 14 | H12: 743 | K12: 0 | L12: 1111 | N12: 1212 | O12: =COUNTIF($L$7:$L$500,N12) -> 1 | P12: =O12/$Q$4 -> 0.004975124378 | Q12: =IF(P12=0,0,(P12*((LOG(P12))/LOG(2)))) -> -0.03806493379 | T12: =N12 -> 1212 | U12: =COUNTIF(L7:L40,T12) -> 1 | V12: =U12/(W4-U20) -> 0.02941176471 | W12: =IF(V12=0,0,(V12*((LOG(V12))/LOG(2)))) -> -0.14963126 | Y12: =N12 -> 1212 | Z12: =COUNTIF(L41:L73,Y12) -> 0 | AA12: =Z12/(AB4-Z20) -> 0 | AB12: =IF(AA12=0,0,(AA12*((LOG(AA12))/LOG(2)))) -> 0 | AD12: =N12 -> 1212 | AE12: =COUNTIF(L74:L107,AD12) -> 0 | AF12: =AE12/(AG4-AE20) -> 0 | AG12: =IF(AF12=0,0,(AF12*((LOG(AF12))/LOG(2)))) -> 0 | AI12: =N12 -> 1212 | AJ12: =COUNTIF(L108:L140,AI12) -> 0 | AK12: =AJ12/(AL4-AJ20) -> 0 | AL12: =IF(AK12=0,0,(AK12*((LOG(AK12))/LOG(2)))) -> 0 | AN12: =N12 -> 1212 | AO12: =COUNTIF(L141:L174,AN12) -> 0 | AP12: =AO12/(AQ4-AO20) -> 0 | AQ12: =IF(AP12=0,0,(AP12*((LOG(AP12))/LOG(2)))) -> 0 | AS12: =N12 -> 1212 | AT12: =COUNTIF(L175:L207,AS12) -> 0 | AU12: =AT12/(AV4-AT20) -> 0 | AV12: =IF(AU12=0,0,(AU12*((LOG(AU12))/LOG(2)))) -> 0
A13: 12 | B13: 848 | C13: 14 | D13: 855 | E13: 13 | F13: 860 | G13: 14 | H13: 871 | K13: 0 | L13: 1111 | N13: 1221 | O13: =COUNTIF($L$7:$L$500,N13) -> 0 | P13: =O13/$Q$4 -> 0 | Q13: =IF(P13=0,0,(P13*((LOG(P13))/LOG(2)))) -> 0 | T13: =N13 -> 1221 | U13: =COUNTIF(L7:L40,T13) -> 0 | V13: =U13/(W4-U20) -> 0 | W13: =IF(V13=0,0,(V13*((LOG(V13))/LOG(2)))) -> 0 | Y13: =N13 -> 1221 | Z13: =COUNTIF(L41:L73,Y13) -> 0 | AA13: =Z13/(AB4-Z20) -> 0 | AB13: =IF(AA13=0,0,(AA13*((LOG(AA13))/LOG(2)))) -> 0 | AD13: =N13 -> 1221 | AE13: =COUNTIF(L74:L107,AD13) -> 0 | AF13: =AE13/(AG4-AE20) -> 0 | AG13: =IF(AF13=0,0,(AF13*((LOG(AF13))/LOG(2)))) -> 0 | AI13: =N13 -> 1221 | AJ13: =COUNTIF(L108:L140,AI13) -> 0 | AK13: =AJ13/(AL4-AJ20) -> 0 | AL13: =IF(AK13=0,0,(AK13*((LOG(AK13))/LOG(2)))) -> 0 | AN13: =N13 -> 1221 | AO13: =COUNTIF(L141:L174,AN13) -> 0 | AP13: =AO13/(AQ4-AO20) -> 0 | AQ13: =IF(AP13=0,0,(AP13*((LOG(AP13))/LOG(2)))) -> 0 | AS13: =N13 -> 1221 | AT13: =COUNTIF(L175:L207,AS13) -> 0 | AU13: =AT13/(AV4-AT20) -> 0 | AV13: =IF(AU13=0,0,(AU13*((LOG(AU13))/LOG(2)))) -> 0
A14: 12 | B14: 963 | C14: 14 | D14: 967 | E14: 13 | F14: 972 | G14: 14 | H14: 976 | K14: 0 | L14: 1111 | N14: 1222 | O14: =COUNTIF($L$7:$L$500,N14) -> 0 | P14: =O14/$Q$4 -> 0 | Q14: =IF(P14=0,0,(P14*((LOG(P14))/LOG(2)))) -> 0 | T14: =N14 -> 1222 | U14: =COUNTIF(L7:L40,T14) -> 0 | V14: =U14/(W4-U20) -> 0 | W14: =IF(V14=0,0,(V14*((LOG(V14))/LOG(2)))) -> 0 | Y14: =N14 -> 1222 | Z14: =COUNTIF(L41:L73,Y14) -> 0 | AA14: =Z14/(AB4-Z20) -> 0 | AB14: =IF(AA14=0,0,(AA14*((LOG(AA14))/LOG(2)))) -> 0 | AD14: =N14 -> 1222 | AE14: =COUNTIF(L74:L107,AD14) -> 0 | AF14: =AE14/(AG4-AE20) -> 0 | AG14: =IF(AF14=0,0,(AF14*((LOG(AF14))/LOG(2)))) -> 0 | AI14: =N14 -> 1222 | AJ14: =COUNTIF(L108:L140,AI14) -> 0 | AK14: =AJ14/(AL4-AJ20) -> 0 | AL14: =IF(AK14=0,0,(AK14*((LOG(AK14))/LOG(2)))) -> 0 | AN14: =N14 -> 1222 | AO14: =COUNTIF(L141:L174,AN14) -> 0 | AP14: =AO14/(AQ4-AO20) -> 0 | AQ14: =IF(AP14=0,0,(AP14*((LOG(AP14))/LOG(2)))) -> 0 | AS14: =N14 -> 1222 | AT14: =COUNTIF(L175:L207,AS14) -> 0 | AU14: =AT14/(AV4-AT20) -> 0 | AV14: =IF(AU14=0,0,(AU14*((LOG(AU14))/LOG(2)))) -> 0
A15: 12 | B15: 1075 | C15: 14 | D15: 1080 | E15: 13 | F15: 1085 | G15: 14 | H15: 1093 | K15: 0 | L15: 1111 | N15: 2111 | O15: =COUNTIF($L$7:$L$500,N15) -> 0 | P15: =O15/$Q$4 -> 0 | Q15: =IF(P15=0,0,(P15*((LOG(P15))/LOG(2)))) -> 0 | T15: =N15 -> 2111 | U15: =COUNTIF(L7:L40,T15) -> 0 | V15: =U15/(W4-U20) -> 0 | W15: =IF(V15=0,0,(V15*((LOG(V15))/LOG(2)))) -> 0 | Y15: =N15 -> 2111 | Z15: =COUNTIF(L41:L73,Y15) -> 0 | AA15: =Z15/(AB4-Z20) -> 0 | AB15: =IF(AA15=0,0,(AA15*((LOG(AA15))/LOG(2)))) -> 0 | AD15: =N15 -> 2111 | AE15: =COUNTIF(L74:L107,AD15) -> 0 | AF15: =AE15/(AG4-AE20) -> 0 | AG15: =IF(AF15=0,0,(AF15*((LOG(AF15))/LOG(2)))) -> 0 | AI15: =N15 -> 2111 | AJ15: =COUNTIF(L108:L140,AI15) -> 0 | AK15: =AJ15/(AL4-AJ20) -> 0 | AL15: =IF(AK15=0,0,(AK15*((LOG(AK15))/LOG(2)))) -> 0 | AN15: =N15 -> 2111 | AO15: =COUNTIF(L141:L174,AN15) -> 0 | AP15: =AO15/(AQ4-AO20) -> 0 | AQ15: =IF(AP15=0,0,(AP15*((LOG(AP15))/LOG(2)))) -> 0 | AS15: =N15 -> 2111 | AT15: =COUNTIF(L175:L207,AS15) -> 0 | AU15: =AT15/(AV4-AT20) -> 0 | AV15: =IF(AU15=0,0,(AU15*((LOG(AU15))/LOG(2)))) -> 0
A16: 12 | B16: 1204 | C16: 14 | D16: 1210 | E16: 13 | F16: 1215 | G16: 14 | H16: 1224 | K16: 0 | L16: 1111 | N16: 2112 | O16: =COUNTIF($L$7:$L$500,N16) -> 0 | P16: =O16/$Q$4 -> 0 | Q16: =IF(P16=0,0,(P16*((LOG(P16))/LOG(2)))) -> 0 | T16: =N16 -> 2112 | U16: =COUNTIF(L7:L40,T16) -> 0 | V16: =U16/(W4-U20) -> 0 | W16: =IF(V16=0,0,(V16*((LOG(V16))/LOG(2)))) -> 0 | Y16: =N16 -> 2112 | Z16: =COUNTIF(L41:L73,Y16) -> 0 | AA16: =Z16/(AB4-Z20) -> 0 | AB16: =IF(AA16=0,0,(AA16*((LOG(AA16))/LOG(2)))) -> 0 | AD16: =N16 -> 2112 | AE16: =COUNTIF(L74:L107,AD16) -> 0 | AF16: =AE16/(AG4-AE20) -> 0 | AG16: =IF(AF16=0,0,(AF16*((LOG(AF16))/LOG(2)))) -> 0 | AI16: =N16 -> 2112 | AJ16: =COUNTIF(L108:L140,AI16) -> 0 | AK16: =AJ16/(AL4-AJ20) -> 0 | AL16: =IF(AK16=0,0,(AK16*((LOG(AK16))/LOG(2)))) -> 0 | AN16: =N16 -> 2112 | AO16: =COUNTIF(L141:L174,AN16) -> 0 | AP16: =AO16/(AQ4-AO20) -> 0 | AQ16: =IF(AP16=0,0,(AP16*((LOG(AP16))/LOG(2)))) -> 0 | AS16: =N16 -> 2112 | AT16: =COUNTIF(L175:L207,AS16) -> 0 | AU16: =AT16/(AV4-AT20) -> 0 | AV16: =IF(AU16=0,0,(AU16*((LOG(AU16))/LOG(2)))) -> 0
A17: 12 | B17: 1315 | C17: 14 | D17: 1319 | E17: 13 | F17: 1324 | G17: 14 | H17: 1333 | K17: 0 | L17: 1111 | N17: 2121 | O17: =COUNTIF($L$7:$L$500,N17) -> 0 | P17: =O17/$Q$4 -> 0 | Q17: =IF(P17=0,0,(P17*((LOG(P17))/LOG(2)))) -> 0 | T17: =N17 -> 2121 | U17: =COUNTIF(L7:L40,T17) -> 0 | V17: =U17/(W4-U20) -> 0 | W17: =IF(V17=0,0,(V17*((LOG(V17))/LOG(2)))) -> 0 | Y17: =N17 -> 2121 | Z17: =COUNTIF(L41:L73,Y17) -> 0 | AA17: =Z17/(AB4-Z20) -> 0 | AB17: =IF(AA17=0,0,(AA17*((LOG(AA17))/LOG(2)))) -> 0 | AD17: =N17 -> 2121 | AE17: =COUNTIF(L74:L107,AD17) -> 0 | AF17: =AE17/(AG4-AE20) -> 0 | AG17: =IF(AF17=0,0,(AF17*((LOG(AF17))/LOG(2)))) -> 0 | AI17: =N17 -> 2121 | AJ17: =COUNTIF(L108:L140,AI17) -> 0 | AK17: =AJ17/(AL4-AJ20) -> 0 | AL17: =IF(AK17=0,0,(AK17*((LOG(AK17))/LOG(2)))) -> 0 | AN17: =N17 -> 2121 | AO17: =COUNTIF(L141:L174,AN17) -> 0 | AP17: =AO17/(AQ4-AO20) -> 0 | AQ17: =IF(AP17=0,0,(AP17*((LOG(AP17))/LOG(2)))) -> 0 | AS17: =N17 -> 2121 | AT17: =COUNTIF(L175:L207,AS17) -> 0 | AU17: =AT17/(AV4-AT20) -> 0 | AV17: =IF(AU17=0,0,(AU17*((LOG(AU17))/LOG(2)))) -> 0
A18: 12 | B18: 1437 | C18: 14 | D18: 1442 | E18: 13 | F18: 1451 | G18: 14 | H18: 1462 | K18: 0 | L18: 1111 | N18: 2122 | O18: =COUNTIF($L$7:$L$500,N18) -> 0 | P18: =O18/$Q$4 -> 0 | Q18: =IF(P18=0,0,(P18*((LOG(P18))/LOG(2)))) -> 0 | T18: =N18 -> 2122 | U18: =COUNTIF(L7:L40,T18) -> 0 | V18: =U18/(W4-U20) -> 0 | W18: =IF(V18=0,0,(V18*((LOG(V18))/LOG(2)))) -> 0 | Y18: =N18 -> 2122 | Z18: =COUNTIF(L41:L73,Y18) -> 0 | AA18: =Z18/(AB4-Z20) -> 0 | AB18: =IF(AA18=0,0,(AA18*((LOG(AA18))/LOG(2)))) -> 0 | AD18: =N18 -> 2122 | AE18: =COUNTIF(L74:L107,AD18) -> 0 | AF18: =AE18/(AG4-AE20) -> 0 | AG18: =IF(AF18=0,0,(AF18*((LOG(AF18))/LOG(2)))) -> 0 | AI18: =N18 -> 2122 | AJ18: =COUNTIF(L108:L140,AI18) -> 0 | AK18: =AJ18/(AL4-AJ20) -> 0 | AL18: =IF(AK18=0,0,(AK18*((LOG(AK18))/LOG(2)))) -> 0 | AN18: =N18 -> 2122 | AO18: =COUNTIF(L141:L174,AN18) -> 0 | AP18: =AO18/(AQ4-AO20) -> 0 | AQ18: =IF(AP18=0,0,(AP18*((LOG(AP18))/LOG(2)))) -> 0 | AS18: =N18 -> 2122 | AT18: =COUNTIF(L175:L207,AS18) -> 0 | AU18: =AT18/(AV4-AT20) -> 0 | AV18: =IF(AU18=0,0,(AU18*((LOG(AU18))/LOG(2)))) -> 0
A19: 12 | B19: 1566 | C19: 14 | D19: 1570 | E19: 13 | F19: 1575 | G19: 14 | H19: 1584 | K19: 0 | L19: 1111 | N19: 2211 | O19: =COUNTIF($L$7:$L$500,N19) -> 0 | P19: =O19/$Q$4 -> 0 | Q19: =IF(P19=0,0,(P19*((LOG(P19))/LOG(2)))) -> 0 | T19: =N19 -> 2211 | U19: =COUNTIF(L7:L40,T19) -> 0 | V19: =U19/(W4-U20) -> 0 | W19: =IF(V19=0,0,(V19*((LOG(V19))/LOG(2)))) -> 0 | Y19: =N19 -> 2211 | Z19: =COUNTIF(L41:L73,Y19) -> 0 | AA19: =Z19/(AB4-Z20) -> 0 | AB19: =IF(AA19=0,0,(AA19*((LOG(AA19))/LOG(2)))) -> 0 | AD19: =N19 -> 2211 | AE19: =COUNTIF(L74:L107,AD19) -> 0 | AF19: =AE19/(AG4-AE20) -> 0 | AG19: =IF(AF19=0,0,(AF19*((LOG(AF19))/LOG(2)))) -> 0 | AI19: =N19 -> 2211 | AJ19: =COUNTIF(L108:L140,AI19) -> 0 | AK19: =AJ19/(AL4-AJ20) -> 0 | AL19: =IF(AK19=0,0,(AK19*((LOG(AK19))/LOG(2)))) -> 0 | AN19: =N19 -> 2211 | AO19: =COUNTIF(L141:L174,AN19) -> 0 | AP19: =AO19/(AQ4-AO20) -> 0 | AQ19: =IF(AP19=0,0,(AP19*((LOG(AP19))/LOG(2)))) -> 0 | AS19: =N19 -> 2211 | AT19: =COUNTIF(L175:L207,AS19) -> 0 | AU19: =AT19/(AV4-AT20) -> 0 | AV19: =IF(AU19=0,0,(AU19*((LOG(AU19))/LOG(2)))) -> 0
A20: 12 | B20: 1682 | C20: 14 | D20: 1686 | E20: 13 | F20: 1691 | G20: 14 | H20: 1695 | K20: 0 | L20: 1111 | N20: 2212 | O20: =COUNTIF($L$7:$L$500,N20) -> 0 | P20: =O20/$Q$4 -> 0 | Q20: =IF(P20=0,0,(P20*((LOG(P20))/LOG(2)))) -> 0 | T20: =N20 -> 2212 | U20: =COUNTIF(L7:L40,T20) -> 0 | Y20: =N20 -> 2212 | Z20: =COUNTIF(L41:L73,Y20) -> 0 | AD20: =N20 -> 2212 | AE20: =COUNTIF(L74:L107,AD20) -> 0 | AI20: =N20 -> 2212 | AJ20: =COUNTIF(L108:L140,AI20) -> 0 | AN20: =N20 -> 2212 | AO20: =COUNTIF(L141:L174,AN20) -> 0 | AS20: =N20 -> 2212 | AT20: =COUNTIF(L175:L207,AS20) -> 0
A21: 12 | B21: 1795 | C21: 14 | D21: 1800 | E21: 13 | F21: 1804 | G21: 14 | H21: 1822 | K21: 0 | L21: 1111 | N21: 2221 | O21: =COUNTIF($L$7:$L$500,N21) -> 0 | P21: =O21/$Q$4 -> 0 | Q21: =IF(P21=0,0,(P21*((LOG(P21))/LOG(2)))) -> 0 | T21: =N21 -> 2221 | U21: =COUNTIF(L7:L40,T21) -> 0 | V21: =U21/(W4-U20) -> 0 | W21: =IF(V21=0,0,(V21*((LOG(V21))/LOG(2)))) -> 0 | Y21: =N21 -> 2221 | Z21: =COUNTIF(L41:L73,Y21) -> 0 | AA21: =Z21/(AB4-Z20) -> 0 | AB21: =IF(AA21=0,0,(AA21*((LOG(AA21))/LOG(2)))) -> 0 | AD21: =N21 -> 2221 | AE21: =COUNTIF(L74:L107,AD21) -> 0 | AF21: =AE21/(AG4-AE20) -> 0 | AG21: =IF(AF21=0,0,(AF21*((LOG(AF21))/LOG(2)))) -> 0 | AI21: =N21 -> 2221 | AJ21: =COUNTIF(L108:L140,AI21) -> 0 | AK21: =AJ21/(AL4-AJ20) -> 0 | AL21: =IF(AK21=0,0,(AK21*((LOG(AK21))/LOG(2)))) -> 0 | AN21: =N21 -> 2221 | AO21: =COUNTIF(L141:L174,AN21) -> 0 | AP21: =AO21/(AQ4-AO20) -> 0 | AQ21: =IF(AP21=0,0,(AP21*((LOG(AP21))/LOG(2)))) -> 0 | AS21: =N21 -> 2221 | AT21: =COUNTIF(L175:L207,AS21) -> 0 | AU21: =AT21/(AV4-AT20) -> 0 | AV21: =IF(AU21=0,0,(AU21*((LOG(AU21))/LOG(2)))) -> 0
A22: 12 | B22: 1924 | C22: 14 | D22: 1933 | E22: 13 | F22: 1941 | G22: 14 | H22: 1960 | K22: 0 | L22: 1111 | N22: 2222 | O22: =COUNTIF($L$7:$L$500,N22) -> 0 | P22: =O22/$Q$4 -> 0 | Q22: =IF(P22=0,0,(P22*((LOG(P22))/LOG(2)))) -> 0 | T22: =N22 -> 2222 | U22: =COUNTIF(L7:L40,T22) -> 0 | V22: =U22/(W4-U20) -> 0 | W22: =IF(V22=0,0,(V22*((LOG(V22))/LOG(2)))) -> 0 | Y22: =N22 -> 2222 | Z22: =COUNTIF(L41:L73,Y22) -> 0 | AA22: =Z22/(AB4-Z20) -> 0 | AB22: =IF(AA22=0,0,(AA22*((LOG(AA22))/LOG(2)))) -> 0 | AD22: =N22 -> 2222 | AE22: =COUNTIF(L74:L107,AD22) -> 0 | AF22: =AE22/(AG4-AE20) -> 0 | AG22: =IF(AF22=0,0,(AF22*((LOG(AF22))/LOG(2)))) -> 0 | AI22: =N22 -> 2222 | AJ22: =COUNTIF(L108:L140,AI22) -> 0 | AK22: =AJ22/(AL4-AJ20) -> 0 | AL22: =IF(AK22=0,0,(AK22*((LOG(AK22))/LOG(2)))) -> 0 | AN22: =N22 -> 2222 | AO22: =COUNTIF(L141:L174,AN22) -> 0 | AP22: =AO22/(AQ4-AO20) -> 0 | AQ22: =IF(AP22=0,0,(AP22*((LOG(AP22))/LOG(2)))) -> 0 | AS22: =N22 -> 2222 | AT22: =COUNTIF(L175:L207,AS22) -> 0 | AU22: =AT22/(AV4-AT20) -> 0 | AV22: =IF(AU22=0,0,(AU22*((LOG(AU22))/LOG(2)))) -> 0
A23: 12 | B23: 2054 | C23: 14 | D23: 2059 | E23: 13 | F23: 2065 | G23: 14 | H23: 2074 | K23: 0 | L23: 1111 | P23: =SUM(P7:P22) -> 1 | Q23: =-SUM(Q7:Q22) -> 0.2471497077 | V23: =SUM(V7:V22) -> 1 | W23: =-SUM(W7:W22) -> 0.6990299628 | AA23: =SUM(AA7:AA22) -> 1 | AB23: =-SUM(AB7:AB22) -> 0 | AF23: =SUM(AF7:AF22) -> 1 | AG23: =-SUM(AG7:AG22) -> 0 | AK23: =SUM(AK7:AK22) -> 1 | AL23: =-SUM(AL7:AL22) -> 0 | AP23: =SUM(AP7:AP22) -> 1 | AQ23: =-SUM(AQ7:AQ22) -> 0.1914332548 | AU23: =SUM(AU7:AU22) -> 1 | AV23: =-SUM(AV7:AV22) -> 0.1959092709
A24: 12 | B24: 2177 | C24: 14 | D24: 2181 | E24: 13 | F24: 2186 | G24: 14 | H24: 2195 | K24: 0 | L24: 1111 | P24: U= | Q24: =Q23/(LOG(Q4)/LOG(2)) -> 0.03230271048 | V24: U1= | W24: =W23/(LOG(W4)/LOG(2)) -> 0.1374024705 | AA24: U2= | AB24: =AB23/(LOG(AB4)/LOG(2)) -> 0 | AF24: U3= | AG24: =AG23/(LOG(AG4)/LOG(2)) -> 0 | AK24: U4= | AL24: =AL23/(LOG(AL4)/LOG(2)) -> 0 | AP24: U5= | AQ24: =AQ23/(LOG(AQ4)/LOG(2)) -> 0.03762843303 | AU24: U6= | AV24: =AV23/(LOG(AV4)/LOG(2)) -> 0.03883702705
A25: 12 | B25: 2297 | C25: 14 | D25: 2308 | E25: 13 | F25: 2331 | G25: 14 | H25: 2339 | K25: 0 | L25: 1111
A26: 12 | B26: 2444 | C26: 14 | D26: 2448 | E26: 13 | F26: 2462 | G26: 14 | H26: 2469 | K26: 0 | L26: 1111
A27: 12 | B27: 2565 | C27: 14 | D27: 2570 | E27: 13 | F27: 2579 | G27: 14 | H27: 2610 | K27: 0 | L27: 1111 | N27: Total Target Seq
A28: 12 | B28: 2712 | C28: 14 | D28: 2716 | E28: 13 | F28: 2721 | G28: 14 | H28: 2731 | K28: 0 | L28: 1111 | N28: =COUNTIF(L7:L207,G3) -> 0 | P28: 34 | Q28: 33 | R28: 34 | S28: 33 | T28: 34 | U28: 33
A29: 12 | B29: 2833 | C29: 14 | D29: 2838 | E29: 13 | F29: 2848 | G29: 14 | H29: 2857 | K29: 0 | L29: 1111 | P29: % of reinforcement given in 6 equal intervals based on number of trials
A30: 12 | B30: 2964 | C30: 14 | D30: 2969 | E30: 13 | F30: 2975 | G30: 14 | H30: 2984 | K30: 0 | L30: 1111 | P30: %_1 | Q30: %_2 | R30: %_3 | S30: %_4 | T30: %_5 | U30: %_6
A31: 12 | B31: 3091 | C31: 14 | D31: 3098 | E31: 13 | F31: 3103 | G31: 14 | H31: 3108 | K31: 0 | L31: 1111 | O31: target sequence | P31: =$G$3 -> 2212 | Q31: =$G$3 -> 2212 | R31: =$G$3 -> 2212 | S31: =$G$3 -> 2212 | T31: =$G$3 -> 2212 | U31: =$G$3 -> 2212
A32: 12 | B32: 3215 | C32: 14 | D32: 3221 | E32: 13 | F32: 3226 | G32: 14 | H32: 3233 | K32: 0 | L32: 1111 | O32: total reinforcement | P32: =U20 -> 0 | Q32: =Z20 -> 0 | R32: =AE20 -> 0 | S32: =AJ20 -> 0 | T32: =AO20 -> 0 | U32: =AT20 -> 0
A33: 12 | B33: 3330 | C33: 14 | D33: 3335 | E33: 13 | F33: 3340 | G33: 14 | H33: 3349 | K33: 0 | L33: 1111 | O33: % target
A34: 12 | B34: 3454 | C34: 14 | D34: 3459 | E34: 13 | F34: 3464 | G34: 14 | H34: 3469 | K34: 0 | L34: 1111 | O34: CCRF
A35: 12 | B35: 3575 | C35: 14 | D35: 3580 | E35: 13 | F35: 3584 | G35: 14 | H35: 3592 | K35: 0 | L35: 1111 | O35: % CCRf
A36: 12 | B36: 3699 | C36: 14 | D36: 3704 | E36: 13 | F36: 3709 | G36: 14 | H36: 3718 | K36: 0 | L36: 1111 | O36: average response rate | P36: =H40/P28 -> 124 | Q36: =(H73-H40)/Q28 -> 120.8484848 | R36: =(H107-H73)/R28 -> 117.5294118 | S36: =(H140-H107)/S28 -> 116.7272727 | T36: =(H174-H140)/T28 -> 116.7647059 | U36: =(H207-H174)/U28 -> 118.2121212
A37: 12 | B37: 3822 | C37: 14 | D37: 3830 | E37: 13 | F37: 3835 | G37: 14 | H37: 3851 | K37: 0 | L37: 1111
A38: 12 | B38: 3958 | C38: 14 | D38: 3963 | E38: 13 | F38: 3968 | G38: 14 | H38: 3976 | K38: 0 | L38: 1111
A39: 12 | B39: 4067 | C39: 14 | D39: 4074 | E39: 13 | F39: 4081 | G39: 14 | H39: 4086 | K39: 0 | L39: 1111
A40: 12 | B40: 4190 | C40: 14 | D40: 4194 | E40: 13 | F40: 4208 | G40: 14 | H40: 4216 | K40: 0 | L40: 1111
A41: 12 | B41: 4322 | C41: 14 | D41: 4328 | E41: 13 | F41: 4334 | G41: 14 | H41: 4339 | K41: 0 | L41: 1111
A42: 12 | B42: 4440 | C42: 14 | D42: 4445 | E42: 13 | F42: 4450 | G42: 14 | H42: 4455 | K42: 0 | L42: 1111
A43: 12 | B43: 4576 | C43: 14 | D43: 4581 | E43: 13 | F43: 4589 | G43: 14 | H43: 4597 | K43: 0 | L43: 1111
A44: 12 | B44: 4702 | C44: 14 | D44: 4708 | E44: 13 | F44: 4712 | G44: 14 | H44: 4721 | K44: 0 | L44: 1111
A45: 12 | B45: 4826 | C45: 14 | D45: 4830 | E45: 13 | F45: 4840 | G45: 14 | H45: 4845 | K45: 0 | L45: 1111
A46: 12 | B46: 4950 | C46: 14 | D46: 4955 | E46: 13 | F46: 4960 | G46: 14 | H46: 4965 | K46: 0 | L46: 1111
A47: 12 | B47: 5056 | C47: 14 | D47: 5062 | E47: 13 | F47: 5067 | G47: 14 | H47: 5071 | K47: 0 | L47: 1111
A48: 12 | B48: 5163 | C48: 14 | D48: 5168 | E48: 13 | F48: 5177 | G48: 14 | H48: 5185 | K48: 0 | L48: 1111
A49: 12 | B49: 5289 | C49: 14 | D49: 5294 | E49: 13 | F49: 5299 | G49: 14 | H49: 5304 | K49: 0 | L49: 1111
A50: 12 | B50: 5410 | C50: 14 | D50: 5415 | E50: 13 | F50: 5417 | G50: 14 | H50: 5426 | K50: 0 | L50: 1111
A51: 12 | B51: 5524 | C51: 14 | D51: 5533 | E51: 13 | F51: 5542 | G51: 14 | H51: 5550 | K51: 0 | L51: 1111
A52: 12 | B52: 5661 | C52: 14 | D52: 5665 | E52: 13 | F52: 5674 | G52: 14 | H52: 5682 | K52: 0 | L52: 1111
A53: 12 | B53: 5784 | C53: 14 | D53: 5789 | E53: 13 | F53: 5799 | G53: 14 | H53: 5807 | K53: 0 | L53: 1111
A54: 12 | B54: 5902 | C54: 14 | D54: 5907 | E54: 13 | F54: 5912 | G54: 14 | H54: 5920 | K54: 0 | L54: 1111
A55: 12 | B55: 6023 | C55: 14 | D55: 6029 | E55: 13 | F55: 6034 | G55: 14 | H55: 6043 | K55: 0 | L55: 1111
A56: 12 | B56: 6149 | C56: 14 | D56: 6155 | E56: 13 | F56: 6160 | G56: 14 | H56: 6168 | K56: 0 | L56: 1111
A57: 12 | B57: 6275 | C57: 14 | D57: 6279 | E57: 13 | F57: 6284 | G57: 14 | H57: 6291 | K57: 0 | L57: 1111
A58: 12 | B58: 6396 | C58: 14 | D58: 6401 | E58: 13 | F58: 6406 | G58: 14 | H58: 6410 | K58: 0 | L58: 1111
A59: 12 | B59: 6511 | C59: 14 | D59: 6516 | E59: 13 | F59: 6524 | G59: 14 | H59: 6532 | K59: 0 | L59: 1111
A60: 12 | B60: 6637 | C60: 14 | D60: 6642 | E60: 13 | F60: 6647 | G60: 14 | H60: 6653 | K60: 0 | L60: 1111
A61: 12 | B61: 6749 | C61: 14 | D61: 6754 | E61: 13 | F61: 6760 | G61: 14 | H61: 6768 | K61: 0 | L61: 1111
A62: 12 | B62: 6864 | C62: 14 | D62: 6869 | E62: 13 | F62: 6875 | G62: 14 | H62: 6880 | K62: 0 | L62: 1111
A63: 12 | B63: 6969 | C63: 14 | D63: 6976 | E63: 13 | F63: 6981 | G63: 14 | H63: 6989 | K63: 0 | L63: 1111
A64: 12 | B64: 7087 | C64: 14 | D64: 7092 | E64: 13 | F64: 7096 | G64: 14 | H64: 7110 | K64: 0 | L64: 1111
A65: 12 | B65: 7209 | C65: 14 | D65: 7214 | E65: 13 | F65: 7224 | G65: 14 | H65: 7238 | K65: 0 | L65: 1111
A66: 12 | B66: 7345 | C66: 14 | D66: 7351 | E66: 13 | F66: 7357 | G66: 14 | H66: 7362 | K66: 0 | L66: 1111
A67: 12 | B67: 7457 | C67: 14 | D67: 7463 | E67: 13 | F67: 7473 | G67: 14 | H67: 7480 | K67: 0 | L67: 1111
A68: 12 | B68: 7581 | C68: 14 | D68: 7586 | E68: 13 | F68: 7591 | G68: 14 | H68: 7604 | K68: 0 | L68: 1111
A69: 12 | B69: 7705 | C69: 14 | D69: 7715 | E69: 13 | F69: 7720 | G69: 14 | H69: 7725 | K69: 0 | L69: 1111
A70: 12 | B70: 7823 | C70: 14 | D70: 7828 | E70: 13 | F70: 7832 | G70: 14 | H70: 7836 | K70: 0 | L70: 1111
A71: 12 | B71: 7934 | C71: 14 | D71: 7939 | E71: 13 | F71: 7947 | G71: 14 | H71: 7961 | K71: 0 | L71: 1111
A72: 12 | B72: 8061 | C72: 14 | D72: 8071 | E72: 13 | F72: 8082 | G72: 14 | H72: 8089 | K72: 0 | L72: 1111
A73: 12 | B73: 8187 | C73: 14 | D73: 8192 | E73: 13 | F73: 8198 | G73: 14 | H73: 8204 | K73: 0 | L73: 1111
A74: 12 | B74: 8315 | C74: 14 | D74: 8320 | E74: 13 | F74: 8325 | G74: 14 | H74: 8336 | K74: 0 | L74: 1111
A75: 12 | B75: 8430 | C75: 14 | D75: 8436 | E75: 13 | F75: 8441 | G75: 14 | H75: 8449 | K75: 0 | L75: 1111
A76: 12 | B76: 8546 | C76: 14 | D76: 8551 | E76: 13 | F76: 8555 | G76: 14 | H76: 8563 | K76: 0 | L76: 1111
A77: 12 | B77: 8664 | C77: 14 | D77: 8670 | E77: 13 | F77: 8676 | G77: 14 | H77: 8681 | K77: 0 | L77: 1111
A78: 12 | B78: 8780 | C78: 14 | D78: 8785 | E78: 13 | F78: 8790 | G78: 14 | H78: 8800 | K78: 0 | L78: 1111
A79: 12 | B79: 8895 | C79: 14 | D79: 8901 | E79: 13 | F79: 8906 | G79: 14 | H79: 8913 | K79: 0 | L79: 1111
A80: 12 | B80: 9017 | C80: 14 | D80: 9027 | E80: 13 | F80: 9035 | G80: 14 | H80: 9042 | K80: 0 | L80: 1111
A81: 12 | B81: 9150 | C81: 14 | D81: 9155 | E81: 13 | F81: 9162 | G81: 14 | H81: 9170 | K81: 0 | L81: 1111
A82: 12 | B82: 9275 | C82: 14 | D82: 9282 | E82: 13 | F82: 9286 | G82: 14 | H82: 9294 | K82: 0 | L82: 1111
A83: 12 | B83: 9381 | C83: 14 | D83: 9387 | E83: 13 | F83: 9391 | G83: 14 | H83: 9396 | K83: 0 | L83: 1111
A84: 12 | B84: 9495 | C84: 14 | D84: 9499 | E84: 13 | F84: 9504 | G84: 14 | H84: 9517 | K84: 0 | L84: 1111
A85: 12 | B85: 9626 | C85: 14 | D85: 9631 | E85: 13 | F85: 9644 | G85: 14 | H85: 9652 | K85: 0 | L85: 1111
A86: 12 | B86: 9752 | C86: 14 | D86: 9757 | E86: 13 | F86: 9766 | G86: 14 | H86: 9774 | K86: 0 | L86: 1111
A87: 12 | B87: 9871 | C87: 14 | D87: 9876 | E87: 13 | F87: 9881 | G87: 14 | H87: 9899 | K87: 0 | L87: 1111
A88: 12 | B88: 10003 | C88: 14 | D88: 10013 | E88: 13 | F88: 10020 | G88: 14 | H88: 10029 | K88: 0 | L88: 1111
A89: 12 | B89: 10132 | C89: 14 | D89: 10137 | E89: 13 | F89: 10141 | G89: 14 | H89: 10146 | K89: 0 | L89: 1111
A90: 12 | B90: 10245 | C90: 14 | D90: 10250 | E90: 13 | F90: 10255 | G90: 14 | H90: 10259 | K90: 0 | L90: 1111
A91: 12 | B91: 10354 | C91: 14 | D91: 10359 | E91: 13 | F91: 10363 | G91: 14 | H91: 10368 | K91: 0 | L91: 1111
A92: 12 | B92: 10455 | C92: 14 | D92: 10459 | E92: 13 | F92: 10465 | G92: 14 | H92: 10469 | K92: 0 | L92: 1111
A93: 12 | B93: 10571 | C93: 14 | D93: 10580 | E93: 13 | F93: 10585 | G93: 14 | H93: 10593 | K93: 0 | L93: 1111
A94: 12 | B94: 10693 | C94: 14 | D94: 10697 | E94: 13 | F94: 10702 | G94: 14 | H94: 10707 | K94: 0 | L94: 1111
A95: 12 | B95: 10805 | C95: 14 | D95: 10809 | E95: 13 | F95: 10813 | G95: 14 | H95: 10821 | K95: 0 | L95: 1111
A96: 12 | B96: 10920 | C96: 14 | D96: 10926 | E96: 13 | F96: 10934 | G96: 14 | H96: 10939 | K96: 0 | L96: 1111
A97: 12 | B97: 11039 | C97: 14 | D97: 11044 | E97: 13 | F97: 11049 | G97: 14 | H97: 11053 | K97: 0 | L97: 1111
A98: 12 | B98: 11155 | C98: 14 | D98: 11160 | E98: 13 | F98: 11164 | G98: 14 | H98: 11173 | K98: 0 | L98: 1111
A99: 12 | B99: 11276 | C99: 14 | D99: 11280 | E99: 13 | F99: 11285 | G99: 14 | H99: 11290 | K99: 0 | L99: 1111
A100: 12 | B100: 11379 | C100: 14 | D100: 11385 | E100: 13 | F100: 11390 | G100: 14 | H100: 11396 | K100: 0 | L100: 1111
A101: 12 | B101: 11493 | C101: 14 | D101: 11498 | E101: 13 | F101: 11503 | G101: 14 | H101: 11507 | K101: 0 | L101: 1111
A102: 12 | B102: 11600 | C102: 14 | D102: 11605 | E102: 13 | F102: 11614 | G102: 14 | H102: 11623 | K102: 0 | L102: 1111
A103: 12 | B103: 11719 | C103: 14 | D103: 11724 | E103: 13 | F103: 11729 | G103: 14 | H103: 11737 | K103: 0 | L103: 1111
A104: 12 | B104: 11833 | C104: 14 | D104: 11838 | E104: 13 | F104: 11843 | G104: 14 | H104: 11848 | K104: 0 | L104: 1111
A105: 12 | B105: 11944 | C105: 14 | D105: 11954 | E105: 13 | F105: 11959 | G105: 14 | H105: 11967 | K105: 0 | L105: 1111
A106: 12 | B106: 12065 | C106: 14 | D106: 12070 | E106: 13 | F106: 12079 | G106: 14 | H106: 12087 | K106: 0 | L106: 1111
A107: 12 | B107: 12183 | C107: 14 | D107: 12188 | E107: 13 | F107: 12192 | G107: 14 | H107: 12200 | K107: 0 | L107: 1111
A108: 12 | B108: 12301 | C108: 14 | D108: 12305 | E108: 13 | F108: 12310 | G108: 14 | H108: 12314 | K108: 0 | L108: 1111
A109: 12 | B109: 12417 | C109: 14 | D109: 12422 | E109: 13 | F109: 12427 | G109: 14 | H109: 12437 | K109: 0 | L109: 1111
A110: 12 | B110: 12539 | C110: 14 | D110: 12543 | E110: 13 | F110: 12551 | G110: 14 | H110: 12559 | K110: 0 | L110: 1111
A111: 12 | B111: 12659 | C111: 14 | D111: 12664 | E111: 13 | F111: 12669 | G111: 14 | H111: 12675 | K111: 0 | L111: 1111
A112: 12 | B112: 12770 | C112: 14 | D112: 12775 | E112: 13 | F112: 12779 | G112: 14 | H112: 12786 | K112: 0 | L112: 1111
A113: 12 | B113: 12891 | C113: 14 | D113: 12898 | E113: 13 | F113: 12907 | G113: 14 | H113: 12914 | K113: 0 | L113: 1111
A114: 12 | B114: 13017 | C114: 14 | D114: 13022 | E114: 13 | F114: 13028 | G114: 14 | H114: 13035 | K114: 0 | L114: 1111
A115: 12 | B115: 13134 | C115: 14 | D115: 13138 | E115: 13 | F115: 13143 | G115: 14 | H115: 13151 | K115: 0 | L115: 1111
A116: 12 | B116: 13248 | C116: 14 | D116: 13253 | E116: 13 | F116: 13257 | G116: 14 | H116: 13262 | K116: 0 | L116: 1111
A117: 12 | B117: 13365 | C117: 14 | D117: 13370 | E117: 13 | F117: 13375 | G117: 14 | H117: 13381 | K117: 0 | L117: 1111
A118: 12 | B118: 13479 | C118: 14 | D118: 13485 | E118: 13 | F118: 13489 | G118: 14 | H118: 13494 | K118: 0 | L118: 1111
A119: 12 | B119: 13581 | C119: 14 | D119: 13586 | E119: 13 | F119: 13591 | G119: 14 | H119: 13598 | K119: 0 | L119: 1111
A120: 12 | B120: 13699 | C120: 14 | D120: 13704 | E120: 13 | F120: 13708 | G120: 14 | H120: 13714 | K120: 0 | L120: 1111
A121: 12 | B121: 13807 | C121: 14 | D121: 13811 | E121: 13 | F121: 13816 | G121: 14 | H121: 13824 | K121: 0 | L121: 1111
A122: 12 | B122: 13922 | C122: 14 | D122: 13929 | E122: 13 | F122: 13933 | G122: 14 | H122: 13941 | K122: 0 | L122: 1111
A123: 12 | B123: 14049 | C123: 14 | D123: 14054 | E123: 13 | F123: 14061 | G123: 14 | H123: 14073 | K123: 0 | L123: 1111
A124: 12 | B124: 14167 | C124: 14 | D124: 14175 | E124: 13 | F124: 14180 | G124: 14 | H124: 14185 | K124: 0 | L124: 1111
A125: 12 | B125: 14282 | C125: 14 | D125: 14287 | E125: 13 | F125: 14293 | G125: 14 | H125: 14298 | K125: 0 | L125: 1111
A126: 12 | B126: 14398 | C126: 14 | D126: 14403 | E126: 13 | F126: 14408 | G126: 14 | H126: 14417 | K126: 0 | L126: 1111
A127: 12 | B127: 14514 | C127: 14 | D127: 14520 | E127: 13 | F127: 14525 | G127: 14 | H127: 14533 | K127: 0 | L127: 1111
A128: 12 | B128: 14632 | C128: 14 | D128: 14637 | E128: 13 | F128: 14642 | G128: 14 | H128: 14647 | K128: 0 | L128: 1111
A129: 12 | B129: 14744 | C129: 14 | D129: 14749 | E129: 13 | F129: 14753 | G129: 14 | H129: 14766 | K129: 0 | L129: 1111
A130: 12 | B130: 14869 | C130: 14 | D130: 14873 | E130: 13 | F130: 14878 | G130: 14 | H130: 14882 | K130: 0 | L130: 1111
A131: 12 | B131: 14985 | C131: 14 | D131: 14990 | E131: 13 | F131: 14994 | G131: 14 | H131: 15000 | K131: 0 | L131: 1111
A132: 12 | B132: 15094 | C132: 14 | D132: 15098 | E132: 13 | F132: 15107 | G132: 14 | H132: 15115 | K132: 0 | L132: 1111
A133: 12 | B133: 15216 | C133: 14 | D133: 15222 | E133: 13 | F133: 15231 | G133: 14 | H133: 15238 | K133: 0 | L133: 1111
A134: 12 | B134: 15338 | C134: 14 | D134: 15343 | E134: 13 | F134: 15352 | G134: 14 | H134: 15360 | K134: 0 | L134: 1111
A135: 12 | B135: 15448 | C135: 14 | D135: 15453 | E135: 13 | F135: 15457 | G135: 14 | H135: 15462 | K135: 0 | L135: 1111
A136: 12 | B136: 15565 | C136: 14 | D136: 15569 | E136: 13 | F136: 15574 | G136: 14 | H136: 15581 | K136: 0 | L136: 1111
A137: 12 | B137: 15676 | C137: 14 | D137: 15682 | E137: 13 | F137: 15687 | G137: 14 | H137: 15695 | K137: 0 | L137: 1111
A138: 12 | B138: 15795 | C138: 14 | D138: 15799 | E138: 13 | F138: 15804 | G138: 14 | H138: 15811 | K138: 0 | L138: 1111
A139: 12 | B139: 15916 | C139: 14 | D139: 15922 | E139: 13 | F139: 15927 | G139: 14 | H139: 15935 | K139: 0 | L139: 1111
A140: 12 | B140: 16025 | C140: 14 | D140: 16030 | E140: 13 | F140: 16043 | G140: 14 | H140: 16052 | K140: 0 | L140: 1111
A141: 12 | B141: 16156 | C141: 14 | D141: 16160 | E141: 13 | F141: 16165 | G141: 14 | H141: 16172 | K141: 0 | L141: 1111
A142: 12 | B142: 16276 | C142: 14 | D142: 16281 | E142: 13 | F142: 16289 | G142: 14 | H142: 16296 | K142: 0 | L142: 1111
A143: 12 | B143: 16397 | C143: 14 | D143: 16402 | E143: 13 | F143: 16407 | G143: 14 | H143: 16411 | K143: 0 | L143: 1111
A144: 12 | B144: 16511 | C144: 14 | D144: 16516 | E144: 13 | F144: 16521 | G144: 14 | H144: 16528 | K144: 0 | L144: 1111
A145: 12 | B145: 16625 | C145: 14 | D145: 16631 | E145: 13 | F145: 16635 | G145: 14 | H145: 16639 | K145: 0 | L145: 1111
A146: 12 | B146: 16727 | C146: 14 | D146: 16733 | E146: 13 | F146: 16742 | G146: 14 | H146: 16750 | K146: 0 | L146: 1111
A147: 12 | B147: 16849 | C147: 14 | D147: 16854 | E147: 13 | F147: 16859 | G147: 14 | H147: 16864 | K147: 0 | L147: 1111
A148: 12 | B148: 16970 | C148: 14 | D148: 16974 | E148: 13 | F148: 16983 | G148: 14 | H148: 16989 | K148: 0 | L148: 1111
A149: 12 | B149: 17086 | C149: 14 | D149: 17088 | E149: 13 | F149: 17096 | G149: 14 | H149: 17112 | K149: 0 | L149: 1111
A150: 12 | B150: 17212 | C150: 14 | D150: 17217 | E150: 13 | F150: 17222 | G150: 14 | H150: 17229 | K150: 0 | L150: 1111
A151: 12 | B151: 17325 | C151: 14 | D151: 17330 | E151: 13 | F151: 17334 | G151: 14 | H151: 17341 | K151: 0 | L151: 1111
A152: 12 | B152: 17441 | C152: 14 | D152: 17445 | E152: 13 | F152: 17450 | G152: 14 | H152: 17454 | K152: 0 | L152: 1111
A153: 12 | B153: 17550 | C153: 14 | D153: 17555 | E153: 13 | F153: 17560 | G153: 14 | H153: 17569 | K153: 0 | L153: 1111
A154: 12 | B154: 17658 | C154: 14 | D154: 17664 | E154: 13 | F154: 17670 | G154: 14 | H154: 17681 | K154: 0 | L154: 1111
A155: 12 | B155: 17774 | C155: 14 | D155: 17779 | E155: 13 | F155: 17784 | G155: 14 | H155: 17789 | K155: 0 | L155: 1111
A156: 12 | B156: 17884 | C156: 14 | D156: 17889 | E156: 13 | F156: 17896 | G156: 14 | H156: 17905 | K156: 0 | L156: 1111
A157: 12 | B157: 18007 | C157: 14 | D157: 18013 | E157: 13 | F157: 18021 | G157: 14 | H157: 18030 | K157: 0 | L157: 1111
A158: 12 | B158: 18138 | C158: 14 | D158: 18144 | E158: 13 | F158: 18151 | G158: 23 | H158: 18168 | K158: 0 | L158: 1112
A159: 12 | B159: 18265 | C159: 14 | D159: 18269 | E159: 13 | F159: 18275 | G159: 14 | H159: 18280 | K159: 0 | L159: 1111
A160: 12 | B160: 18377 | C160: 14 | D160: 18382 | E160: 13 | F160: 18386 | G160: 14 | H160: 18391 | K160: 0 | L160: 1111
A161: 12 | B161: 18488 | C161: 14 | D161: 18496 | E161: 13 | F161: 18500 | G161: 14 | H161: 18504 | K161: 0 | L161: 1111
A162: 12 | B162: 18591 | C162: 14 | D162: 18602 | E162: 13 | F162: 18607 | G162: 14 | H162: 18615 | K162: 0 | L162: 1111
A163: 12 | B163: 18718 | C163: 14 | D163: 18723 | E163: 13 | F163: 18728 | G163: 14 | H163: 18736 | K163: 0 | L163: 1111
A164: 12 | B164: 18834 | C164: 14 | D164: 18839 | E164: 13 | F164: 18847 | G164: 14 | H164: 18855 | K164: 0 | L164: 1111
A165: 12 | B165: 18959 | C165: 14 | D165: 18968 | E165: 13 | F165: 18976 | G165: 14 | H165: 18985 | K165: 0 | L165: 1111
A166: 12 | B166: 19086 | C166: 14 | D166: 19092 | E166: 13 | F166: 19096 | G166: 14 | H166: 19104 | K166: 0 | L166: 1111
A167: 12 | B167: 19202 | C167: 14 | D167: 19207 | E167: 13 | F167: 19212 | G167: 14 | H167: 19225 | K167: 0 | L167: 1111
A168: 12 | B168: 19313 | C168: 14 | D168: 19318 | E168: 13 | F168: 19322 | G168: 14 | H168: 19330 | K168: 0 | L168: 1111
A169: 12 | B169: 19430 | C169: 14 | D169: 19434 | E169: 13 | F169: 19443 | G169: 14 | H169: 19451 | K169: 0 | L169: 1111
A170: 12 | B170: 19550 | C170: 14 | D170: 19556 | E170: 13 | F170: 19561 | G170: 14 | H170: 19567 | K170: 0 | L170: 1111
A171: 12 | B171: 19665 | C171: 14 | D171: 19670 | E171: 13 | F171: 19675 | G171: 14 | H171: 19682 | K171: 0 | L171: 1111
A172: 12 | B172: 19782 | C172: 14 | D172: 19788 | E172: 13 | F172: 19792 | G172: 14 | H172: 19797 | K172: 0 | L172: 1111
A173: 12 | B173: 19894 | C173: 14 | D173: 19899 | E173: 13 | F173: 19903 | G173: 14 | H173: 19907 | K173: 0 | L173: 1111
A174: 12 | B174: 20004 | C174: 14 | D174: 20009 | E174: 13 | F174: 20014 | G174: 14 | H174: 20022 | K174: 0 | L174: 1111
A175: 12 | B175: 20119 | C175: 14 | D175: 20125 | E175: 13 | F175: 20131 | G175: 14 | H175: 20136 | K175: 0 | L175: 1111
A176: 12 | B176: 20235 | C176: 14 | D176: 20239 | E176: 13 | F176: 20244 | G176: 14 | H176: 20249 | K176: 0 | L176: 1111
A177: 12 | B177: 20337 | C177: 14 | D177: 20342 | E177: 13 | F177: 20348 | G177: 14 | H177: 20353 | K177: 0 | L177: 1111
A178: 12 | B178: 20456 | C178: 14 | D178: 20461 | E178: 13 | F178: 20471 | G178: 14 | H178: 20480 | K178: 0 | L178: 1111
A179: 12 | B179: 20576 | C179: 14 | D179: 20583 | E179: 13 | F179: 20588 | G179: 14 | H179: 20592 | K179: 0 | L179: 1111
A180: 12 | B180: 20691 | C180: 14 | D180: 20697 | E180: 13 | F180: 20703 | G180: 14 | H180: 20708 | K180: 0 | L180: 1111
A181: 12 | B181: 20803 | C181: 14 | D181: 20810 | E181: 13 | F181: 20814 | G181: 14 | H181: 20822 | K181: 0 | L181: 1111
A182: 12 | B182: 20927 | C182: 14 | D182: 20932 | E182: 13 | F182: 20937 | G182: 14 | H182: 20944 | K182: 0 | L182: 1111
A183: 12 | B183: 21035 | C183: 14 | D183: 21044 | E183: 13 | F183: 21048 | G183: 14 | H183: 21055 | K183: 0 | L183: 1111
A184: 12 | B184: 21157 | C184: 14 | D184: 21162 | E184: 13 | F184: 21167 | G184: 14 | H184: 21181 | K184: 0 | L184: 1111
A185: 12 | B185: 21292 | C185: 14 | D185: 21297 | E185: 13 | F185: 21302 | G185: 14 | H185: 21307 | K185: 0 | L185: 1111
A186: 12 | B186: 21415 | C186: 14 | D186: 21420 | E186: 13 | F186: 21427 | G186: 14 | H186: 21477 | K186: 0 | L186: 1111
A187: 12 | B187: 21568 | C187: 14 | D187: 21573 | E187: 24 | F187: 21584 | G187: 23 | H187: 21591 | K187: 0 | L187: 1122
A188: 12 | B188: 21690 | C188: 14 | D188: 21694 | E188: 13 | F188: 21699 | G188: 14 | H188: 21710 | K188: 0 | L188: 1111
A189: 12 | B189: 21807 | C189: 14 | D189: 21817 | E189: 13 | F189: 21822 | G189: 14 | H189: 21830 | K189: 0 | L189: 1111
A190: 12 | B190: 21929 | C190: 14 | D190: 21934 | E190: 13 | F190: 21938 | G190: 14 | H190: 21944 | K190: 0 | L190: 1111
A191: 12 | B191: 22044 | C191: 14 | D191: 22048 | E191: 13 | F191: 22052 | G191: 14 | H191: 22057 | K191: 0 | L191: 1111
A192: 12 | B192: 22164 | C192: 14 | D192: 22169 | E192: 13 | F192: 22173 | G192: 14 | H192: 22177 | K192: 0 | L192: 1111
A193: 12 | B193: 22280 | C193: 14 | D193: 22285 | E193: 13 | F193: 22290 | G193: 14 | H193: 22295 | K193: 0 | L193: 1111
A194: 12 | B194: 22402 | C194: 14 | D194: 22411 | E194: 13 | F194: 22418 | G194: 14 | H194: 22426 | K194: 0 | L194: 1111
A195: 12 | B195: 22526 | C195: 14 | D195: 22531 | E195: 13 | F195: 22536 | G195: 14 | H195: 22541 | K195: 0 | L195: 1111
A196: 12 | B196: 22632 | C196: 14 | D196: 22637 | E196: 13 | F196: 22642 | G196: 14 | H196: 22652 | K196: 0 | L196: 1111
A197: 12 | B197: 22754 | C197: 14 | D197: 22758 | E197: 13 | F197: 22763 | G197: 14 | H197: 22779 | K197: 0 | L197: 1111
A198: 12 | B198: 22881 | C198: 14 | D198: 22885 | E198: 13 | F198: 22890 | G198: 14 | H198: 22894 | K198: 0 | L198: 1111
A199: 12 | B199: 22997 | C199: 14 | D199: 23001 | E199: 13 | F199: 23005 | G199: 14 | H199: 23010 | K199: 0 | L199: 1111
A200: 12 | B200: 23105 | C200: 14 | D200: 23111 | E200: 13 | F200: 23115 | G200: 14 | H200: 23120 | K200: 0 | L200: 1111
... 7 more rows

Sheet !L907B30.056
A1: Report for:!L907B30.056
A2: Date: | B2: <date>
A3: Hen: | B3: <hen> | F3: Correct Sequence | G3: =Start!J2 -> 2212 | P3: Total Sequences in Data | Q3: =4994-COUNTBLANK(L7:L5000) -> 192 | V3: Total Sequences in Block Data | W3: =COUNTA(L7:L38) -> 32 | AA3: Total Sequences in Block Data | AB3: =COUNTA(L39:L70) -> 32 | AF3: Total Sequences in Block Data | AG3: =COUNTA(L71:L102) -> 32 | AK3: Total Sequences in Block Data | AL3: =COUNTA(L103:L134) -> 32 | AP3: Total Sequences in Block Data | AQ3: =COUNTA(L135:L166) -> 32 | AU3: Total Sequences in Block Data | AV3: =COUNTA(L167:L198) -> 32
P4: Total Sequences in Summary | Q4: =SUM(O7:O22) -> 192 | V4: Total Sequences in Block Summary | W4: =SUM(U7:U22) -> 32 | AA4: Total Sequences in Block Summary | AB4: =SUM(Z7:Z22) -> 32 | AF4: Total Sequences in Block Summary | AG4: =SUM(AE7:AE22) -> 32 | AK4: Total Sequences in Block Summary | AL4: =SUM(AJ7:AJ22) -> 32 | AP4: Total Sequences in Block Summary | AQ4: =SUM(AO7:AO22) -> 32 | AU4: Total Sequences in Block Summary | AV4: =SUM(AT7:AT22) -> 32
T5: Block 1 | Y5: Block 2 | AD5: Block 3 | AI5: Block 4 | AN5: Block 5 | AS5: Block 6
A6: Sequence Component 1 | B6: Time 1 | C6: Sequence Component 2 | D6: Time 2 | E6: Sequence Component 3 | F6: Time 3 | G6: Sequence Component 4 | H6: Time 4 | I6: Sequence Component 5 | J6: Time 5 | K6: Correct? 0=No 1=Yes | L6: Sequence | N6: Frequency | P6: Relative Frequency | Q6: Variability | T6: Frequency | V6: Relative Frequency | W6: Variability | Y6: Frequency | AA6: Relative Frequency | AB6: Variability | AD6: Frequency | AF6: Relative Frequency | AG6: Variability | AI6: Frequency | AK6: Relative Frequency | AL6: Variability | AN6: Frequency | AP6: Relative Frequency | AQ6: Variability | AS6: Frequency | AU6: Relative Frequency | AV6: Variability
A7: 12 | B7: 13 | C7: 14 | D7: 18 | E7: 13 | F7: 24 | G7: 23 | H7: 38 | K7: 0 | L7: 1112 | N7: 1111 | O7: =COUNTIF($L$7:$L$500,N7) -> 181 | P7: =O7/$Q$4 -> 0.9427083333 | Q7: =IF(P7=0,0,(P7*((LOG(P7))/LOG(2)))) -> -0.08024014098 | T7: =N7 -> 1111 | U7: =COUNTIF(L7:L38,T7) -> 26 | V7: =U7/(W4-U20) -> 0.8125 | W7: =IF(V7=0,0,(V7*((LOG(V7))/LOG(2)))) -> -0.243392729 | Y7: =N7 -> 1111 | Z7: =COUNTIF(L39:L70,Y7) -> 32 | AA7: =Z7/(AB4-Z20) -> 1 | AB7: =IF(AA7=0,0,(AA7*((LOG(AA7))/LOG(2)))) -> 0 | AD7: =N7 -> 1111 | AE7: =COUNTIF(L71:L102,AD7) -> 32 | AF7: =AE7/(AG4-AE20) -> 1 | AG7: =IF(AF7=0,0,(AF7*((LOG(AF7))/LOG(2)))) -> 0 | AI7: =N7 -> 1111 | AJ7: =COUNTIF(L103:L134,AI7) -> 30 | AK7: =AJ7/(AL4-AJ20) -> 0.9375 | AL7: =IF(AK7=0,0,(AK7*((LOG(AK7))/LOG(2)))) -> -0.08729006662 | AN7: =N7 -> 1111 | AO7: =COUNTIF(L135:L166,AN7) -> 30 | AP7: =AO7/(AQ4-AO20) -> 0.9375 | AQ7: =IF(AP7=0,0,(AP7*((LOG(AP7))/LOG(2)))) -> -0.08729006662 | AS7: =N7 -> 1111 | AT7: =COUNTIF(L167:L198,AS7) -> 31 | AU7: =AT7/(AV4-AT20) -> 0.96875 | AV7: =IF(AU7=0,0,(AU7*((LOG(AU7))/LOG(2)))) -> -0.04437232431
A8: 12 | B8: 142 | C8: 14 | D8: 147 | E8: 13 | F8: 152 | G8: 14 | H8: 162 | K8: 0 | L8: 1111 | N8: 1112 | O8: =COUNTIF($L$7:$L$500,N8) -> 5 | P8: =O8/$Q$4 -> 0.02604166667 | Q8: =IF(P8=0,0,(P8*((LOG(P8))/LOG(2)))) -> -0.1370581877 | T8: =N8 -> 1112 | U8: =COUNTIF(L7:L38,T8) -> 4 | V8: =U8/(W4-U20) -> 0.125 | W8: =IF(V8=0,0,(V8*((LOG(V8))/LOG(2)))) -> -0.375 | Y8: =N8 -> 1112 | Z8: =COUNTIF(L39:L70,Y8) -> 0 | AA8: =Z8/(AB4-Z20) -> 0 | AB8: =IF(AA8=0,0,(AA8*((LOG(AA8))/LOG(2)))) -> 0 | AD8: =N8 -> 1112 | AE8: =COUNTIF(L71:L102,AD8) -> 0 | AF8: =AE8/(AG4-AE20) -> 0 | AG8: =IF(AF8=0,0,(AF8*((LOG(AF8))/LOG(2)))) -> 0 | AI8: =N8 -> 1112 | AJ8: =COUNTIF(L103:L134,AI8) -> 0 | AK8: =AJ8/(AL4-AJ20) -> 0 | AL8: =IF(AK8=0,0,(AK8*((LOG(AK8))/LOG(2)))) -> 0 | AN8: =N8 -> 1112 | AO8: =COUNTIF(L135:L166,AN8) -> 1 | AP8: =AO8/(AQ4-AO20) -> 0.03125 | AQ8: =IF(AP8=0,0,(AP8*((LOG(AP8))/LOG(2)))) -> -0.15625 | AS8: =N8 -> 1112 | AT8: =COUNTIF(L167:L198,AS8) -> 0 | AU8: =AT8/(AV4-AT20) -> 0 | AV8: =IF(AU8=0,0,(AU8*((LOG(AU8))/LOG(2)))) -> 0
A9: 12 | B9: 264 | C9: 14 | D9: 269 | E9: 13 | F9: 274 | G9: 14 | H9: 279 | K9: 0 | L9: 1111 | N9: 1121 | O9: =COUNTIF($L$7:$L$500,N9) -> 0 | P9: =O9/$Q$4 -> 0 | Q9: =IF(P9=0,0,(P9*((LOG(P9))/LOG(2)))) -> 0 | T9: =N9 -> 1121 | U9: =COUNTIF(L7:L38,T9) -> 0 | V9: =U9/(W4-U20) -> 0 | W9: =IF(V9=0,0,(V9*((LOG(V9))/LOG(2)))) -> 0 | Y9: =N9 -> 1121 | Z9: =COUNTIF(L39:L70,Y9) -> 0 | AA9: =Z9/(AB4-Z20) -> 0 | AB9: =IF(AA9=0,0,(AA9*((LOG(AA9))/LOG(2)))) -> 0 | AD9: =N9 -> 1121 | AE9: =COUNTIF(L71:L102,AD9) -> 0 | AF9: =AE9/(AG4-AE20) -> 0 | AG9: =IF(AF9=0,0,(AF9*((LOG(AF9))/LOG(2)))) -> 0 | AI9: =N9 -> 1121 | AJ9: =COUNTIF(L103:L134,AI9) -> 0 | AK9: =AJ9/(AL4-AJ20) -> 0 | AL9: =IF(AK9=0,0,(AK9*((LOG(AK9))/LOG(2)))) -> 0 | AN9: =N9 -> 1121 | AO9: =COUNTIF(L135:L166,AN9) -> 0 | AP9: =AO9/(AQ4-AO20) -> 0 | AQ9: =IF(AP9=0,0,(AP9*((LOG(AP9))/LOG(2)))) -> 0 | AS9: =N9 -> 1121 | AT9: =COUNTIF(L167:L198,AS9) -> 0 | AU9: =AT9/(AV4-AT20) -> 0 | AV9: =IF(AU9=0,0,(AU9*((LOG(AU9))/LOG(2)))) -> 0
A10: 21 | B10: 385 | C10: 21 | D10: 391 | E10: 22 | F10: 400 | G10: 23 | H10: 417 | K10: 0 | L10: 2222 | N10: 1122 | O10: =COUNTIF($L$7:$L$500,N10) -> 5 | P10: =O10/$Q$4 -> 0.02604166667 | Q10: =IF(P10=0,0,(P10*((LOG(P10))/LOG(2)))) -> -0.1370581877 | T10: =N10 -> 1122 | U10: =COUNTIF(L7:L38,T10) -> 1 | V10: =U10/(W4-U20) -> 0.03125 | W10: =IF(V10=0,0,(V10*((LOG(V10))/LOG(2)))) -> -0.15625 | Y10: =N10 -> 1122 | Z10: =COUNTIF(L39:L70,Y10) -> 0 | AA10: =Z10/(AB4-Z20) -> 0 | AB10: =IF(AA10=0,0,(AA10*((LOG(AA10))/LOG(2)))) -> 0 | AD10: =N10 -> 1122 | AE10: =COUNTIF(L71:L102,AD10) -> 0 | AF10: =AE10/(AG4-AE20) -> 0 | AG10: =IF(AF10=0,0,(AF10*((LOG(AF10))/LOG(2)))) -> 0 | AI10: =N10 -> 1122 | AJ10: =COUNTIF(L103:L134,AI10) -> 2 | AK10: =AJ10/(AL4-AJ20) -> 0.0625 | AL10: =IF(AK10=0,0,(AK10*((LOG(AK10))/LOG(2)))) -> -0.25 | AN10: =N10 -> 1122 | AO10: =COUNTIF(L135:L166,AN10) -> 1 | AP10: =AO10/(AQ4-AO20) -> 0.03125 | AQ10: =IF(AP10=0,0,(AP10*((LOG(AP10))/LOG(2)))) -> -0.15625 | AS10: =N10 -> 1122 | AT10: =COUNTIF(L167:L198,AS10) -> 1 | AU10: =AT10/(AV4-AT20) -> 0.03125 | AV10: =IF(AU10=0,0,(AU10*((LOG(AU10))/LOG(2)))) -> -0.15625
A11: 12 | B11: 525 | C11: 14 | D11: 531 | E11: 24 | F11: 545 | G11: 23 | H11: 573 | K11: 0 | L11: 1122 | N11: 1211 | O11: =COUNTIF($L$7:$L$500,N11) -> 0 | P11: =O11/$Q$4 -> 0 | Q11: =IF(P11=0,0,(P11*((LOG(P11))/LOG(2)))) -> 0 | T11: =N11 -> 1211 | U11: =COUNTIF(L7:L38,T11) -> 0 | V11: =U11/(W4-U20) -> 0 | W11: =IF(V11=0,0,(V11*((LOG(V11))/LOG(2)))) -> 0 | Y11: =N11 -> 1211 | Z11: =COUNTIF(L39:L70,Y11) -> 0 | AA11: =Z11/(AB4-Z20) -> 0 | AB11: =IF(AA11=0,0,(AA11*((LOG(AA11))/LOG(2)))) -> 0 | AD11: =N11 -> 1211 | AE11: =COUNTIF(L71:L102,AD11) -> 0 | AF11: =AE11/(AG4-AE20) -> 0 | AG11: =IF(AF11=0,0,(AF11*((LOG(AF11))/LOG(2)))) -> 0 | AI11: =N11 -> 1211 | AJ11: =COUNTIF(L103:L134,AI11) -> 0 | AK11: =AJ11/(AL4-AJ20) -> 0 | AL11: =IF(AK11=0,0,(AK11*((LOG(AK11))/LOG(2)))) -> 0 | AN11: =N11 -> 1211 | AO11: =COUNTIF(L135:L166,AN11) -> 0 | AP11: =AO11/(AQ4-AO20) -> 0 | AQ11: =IF(AP11=0,0,(AP11*((LOG(AP11))/LOG(2)))) -> 0 | AS11: =N11 -> 1211 | AT11: =COUNTIF(L167:L198,AS11) -> 0 | AU11: =AT11/(AV4-AT20) -> 0 | AV11: =IF(AU11=0,0,(AU11*((LOG(AU11))/LOG(2)))) -> 0
A12: 12 | B12: 676 | C12: 14 | D12: 681 | E12: 13 | F12: 687 | G12: 23 | H12: 699 | K12: 0 | L12: 1112 | N12: 1212 | O12: =COUNTIF($L$7:$L$500,N12) -> 0 | P12: =O12/$Q$4 -> 0 | Q12: =IF(P12=0,0,(P12*((LOG(P12))/LOG(2)))) -> 0 | T12: =N12 -> 1212 | U12: =COUNTIF(L7:L38,T12) -> 0 | V12: =U12/(W4-U20) -> 0 | W12: =IF(V12=0,0,(V12*((LOG(V12))/LOG(2)))) -> 0 | Y12: =N12 -> 1212 | Z12: =COUNTIF(L39:L70,Y12) -> 0 | AA12: =Z12/(AB4-Z20) -> 0 | AB12: =IF(AA12=0,0,(AA12*((LOG(AA12))/LOG(2)))) -> 0 | AD12: =N12 -> 1212 | AE12: =COUNTIF(L71:L102,AD12) -> 0 | AF12: =AE12/(AG4-AE20) -> 0 | AG12: =IF(AF12=0,0,(AF12*((LOG(AF12))/LOG(2)))) -> 0 | AI12: =N12 -> 1212 | AJ12: =COUNTIF(L103:L134,AI12) -> 0 | AK12: =AJ12/(AL4-AJ20) -> 0 | AL12: =IF(AK12=0,0,(AK12*((LOG(AK12))/LOG(2)))) -> 0 | AN12: =N12 -> 1212 | AO12: =COUNTIF(L135:L166,AN12) -> 0 | AP12: =AO12/(AQ4-AO20) -> 0 | AQ12: =IF(AP12=0,0,(AP12*((LOG(AP12))/LOG(2)))) -> 0 | AS12: =N12 -> 1212 | AT12: =COUNTIF(L167:L198,AS12) -> 0 | AU12: =AT12/(AV4-AT20) -> 0 | AV12: =IF(AU12=0,0,(AU12*((LOG(AU12))/LOG(2)))) -> 0
A13: 12 | B13: 793 | C13: 14 | D13: 799 | E13: 13 | F13: 804 | G13: 14 | H13: 808 | K13: 0 | L13: 1111 | N13: 1221 | O13: =COUNTIF($L$7:$L$500,N13) -> 0 | P13: =O13/$Q$4 -> 0 | Q13: =IF(P13=0,0,(P13*((LOG(P13))/LOG(2)))) -> 0 | T13: =N13 -> 1221 | U13: =COUNTIF(L7:L38,T13) -> 0 | V13: =U13/(W4-U20) -> 0 | W13: =IF(V13=0,0,(V13*((LOG(V13))/LOG(2)))) -> 0 | Y13: =N13 -> 1221 | Z13: =COUNTIF(L39:L70,Y13) -> 0 | AA13: =Z13/(AB4-Z20) -> 0 | AB13: =IF(AA13=0,0,(AA13*((LOG(AA13))/LOG(2)))) -> 0 | AD13: =N13 -> 1221 | AE13: =COUNTIF(L71:L102,AD13) -> 0 | AF13: =AE13/(AG4-AE20) -> 0 | AG13: =IF(AF13=0,0,(AF13*((LOG(AF13))/LOG(2)))) -> 0 | AI13: =N13 -> 1221 | AJ13: =COUNTIF(L103:L134,AI13) -> 0 | AK13: =AJ13/(AL4-AJ20) -> 0 | AL13: =IF(AK13=0,0,(AK13*((LOG(AK13))/LOG(2)))) -> 0 | AN13: =N13 -> 1221 | AO13: =COUNTIF(L135:L166,AN13) -> 0 | AP13: =AO13/(AQ4-AO20) -> 0 | AQ13: =IF(AP13=0,0,(AP13*((LOG(AP13))/LOG(2)))) -> 0 | AS13: =N13 -> 1221 | AT13: =COUNTIF(L167:L198,AS13) -> 0 | AU13: =AT13/(AV4-AT20) -> 0 | AV13: =IF(AU13=0,0,(AU13*((LOG(AU13))/LOG(2)))) -> 0
